{"text_format":"1","workbook":"xlsx","n_sheets":81,"sheets":["Input","Mõisted","Meetmed","EN3b","EN3c","EN4","EN5","EN6","EN7","EN8","EN9","EN10","EN11","EN12","EN13","EN14","EN16","EN17","EN18","EN19","EN20","EN21","EN22","EN23","EN24 ","EN25","EN26","EN28","EN29","EN30","HF1","HF2","HF3","HF4","HF5","TR1","TR3","TR4","TR5","TR6","TR7","TR13","TR15","TR16a","TR16b","TR17","TR19","TR21","TR25","PM4","PM7","PM9","PM11","PM13","PM19","PM23","PM24","JM1","JM2","JM3","JM4","JM5 ","MM1","MM2","MM3","MM4","MM5","MM6","MM7","MM8","MM9","TÖ1","TÖ2","IP1","PM-EN1","PM_MM1","PM_MM2","PM_MM3","PM_MM4","PM-MM5","PM_MM6"],"not_rendered":{"charts":0,"images":0,"macros":1,"external_links":1,"defined_names":59,"comments":8,"pivot_tables":0},"unopened":[],"bounds":{"document_bytes":16777216,"sheet_cells":100000,"rows_first":2000,"rows_last":500,"rows_between":2000,"halvings":0,"cell_chars":16384,"cell_head_chars":4096},"cells_cut":0,"cells_raw":0,"read":"whole","date_system":"1900"}

{"sheet":"Input","index":0,"n_rows":80,"n_cols":10,"rows_kept":80,"cut":false,"hidden":true,"merged":[]}
[null,null,"Seis","Mõõde","Sihid","Sektor","Eesmärgid","Õigusakt","Uuendus\n","Asutus"]
["Section of NECP template","Programmi või meetme tüüp","Programmi või meetme rakendamise seis","Seonduv EL energialiidu mõõde või mõõtmed","Asjakohased eesmärgid, sihid või panused, millele poliitikasuund või meede kaasa aitab (märgi asjakohased nt \"X\"-ga)","Sektor","Programmi või meetme eesmärk","Programmi või meetme aluseks olevad Euroopa Liidu õigusaktid","Ajakohastus pärast eelmist esitamist","Programmi või meetme rakendamise eest vastutavad isikute või asutuste tüüp"]
["3.1.1.i","Majanduslikud stiimulid (Economic)","Kavandatavad (Planned)","CO2 heite vähendamise mõõde","CO2 heite vähendamise mõõde","energiavarustus (sh kütuste ammutamine/kaevandamine, edastamine, jaotamine ja säilitamine ning energia muundamine kütteks ja jahutuseks ning elektri tootmiseks)","ENERGIAVARUSTUS","Governance Regulation","uue meetme vastuvõtmine, kokkuleppe sõlmimine, õigusaktide avaldamine\n","riigi valitsus"]
["3.1.1.ii","Haridus (Education)","Vastuvõetud (Adopted)","CO2 heite vähendamise mõõde: taastuvenergia","kasvuhoonegaaside heide ja nende sidumine – liikmesriigi siduv riiklik kasvuhoonegaaside heitega seotud eesmärk ja iga-aastased siduvad riiklikud piirnormid vastavalt määrusele (EL) 2018/842","energiatarbimine (sh kütuste ja elektri tarbimine lõpptarbijate, näiteks kodumajapidamiste ja ametiasutuste, teenindus-, tööstus- ja põllumajandussektori poolt)","taastuvate energiaallikate osakaalu suurendamine elektrisektoris (energiavarustus)","Effort Sharing Regulation","meetme/programmi käivitamine/jõustamine","piirkondlikud üksused"]
["3.1.1.iii","Maksundus (Fiscal)","Rakendatud (Implemented)","Energiatõhususe mõõde"," liikmesriigi kohustused vastavalt määrusele (EL) 2018/841","transport","taastuvenergia osakaalu suurendamine kütte- ja jahutussektoris (energiavarustus)","ETS Directive","meetme tühistamine/lõpetamine/lõpuleviimine","kohalik omavalitsus"]
["3.1.2.i","Teavitamine (Information)","Aegunud (Expired)","Energiajulgeoleku mõõde"," muud eesmärgid, sh sektoripõhised ja kohanemiseesmärgid","tööstusprotsessid (sh tööstusharud, kus muundatakse materjale keemiliselt või füüsikaliselt,\nkus tekitatakse sellega kasvuhoonegaaside heidet või kasutatakse toodetes kasvuhoonegaase ja fossiilkütustest pärinevat süsinikdioksiidi mitteenergeetilisel eesmärgil)","üleminek vähem CO2 heidet tekitavatele kütustele (energiavarustus)","Effort Sharing Decision","kehtiva meetme muutmine, muudatused rakendamises või ülesehituses ja pikendamine; seireteave, ajakohased andmed edusammude kohta või mõjuhindamise tulemused","ettevõtjad/tööstusühendused"]
["3.1.2.ii","Planeerimine (Planning)",null,"Energia siseturu mõõde","CO2 heite vähendamise mõõde: taastuvenergia","põllumajandus","vähese CO2 heitega energia tõhusam tootmine taastumatutest allikatest (tuumaenergia) (energiavarustus)","European Structural and Investment Funds","olemasolevate meetmete jätkamine / oluliste ajakohastuste puudumine","teadusasutused"]
["3.1.2.iii","Seadusandlus (Regulatory)",null,"Teadusuuringute, innovatsiooni ja konkurentsivõime mõõde","panus liidu siduvasse eesmärki saavutada 2030. aastal taastuvenergia vähemalt 32 % osakaal, nagu on osutatud direktiivi (EL) 2018/2001 artiklis 3\n","LULUCF\n","kadude vähendamine (energiavarustus)","Energy Efficency Directive","eelnõud, teadaanded, kohustused, kavandatavad meetmed, arutelud uue meetme kohta","muud loetlemata üksused"]
["3.1.2.iv","Teadusuuringud (Research)",null,null,"eeldatavad trajektoorid, mis näitavad ajavahemikul 2021–2030 elektri-, kütte- ja jahutus- ning transpordisektoris tarbitava taastuvenergia osakaalu lõppenergia tarbimises","jäätmekäitlus/jäätmed","tõhususe suurendamine energeetikasektoris ja energia muundamise sektoris (energiavarustus)","Energy Performance of Buildings Directive","muu"]
["3.1.2.v","Vabatahtlikud/läbiräägitud kokkulepped (Voluntary)",null,null,"eeldatavad trajektoorid taastuvenergiatehnoloogia lahenduste kaupa","muud sektorid","CO2 kogumine ja säilitamine või CO2 kogumine ja kasutamine (energiavarustus)","Eco-desgin Framework Directive"]
["3.1.2.vi","Muu (Other)",null,null,"eeldatavad trajektoorid, mis näitavad nõudlust bioenergia järele, liigitatuna kütte-, elektri- ja transpordisektori kaupa, ning bioenergia pakkumist lähtematerjalide ja päritolu kaupa",null,"energiatootmise hajusheite piiramine (energiavarustus)","xOBSOLETE Directive on end-use energy efficency and energy services"]
["3.1.3.i",null,null,null,"muud riiklikud trajektoorid ja eesmärgid, sh pikaajalised või sektoripõhised trajektoorid ja eesmärgid (nt taastuvenergia osakaal kaugküttes, taastuvenergia kasutus hoonetes, linnade, taastuvenergiakogukondade ja oma tarbeks toodetud taastuvenergia tarbijate toodetav taastuvenergia, reovee töötlemisel settest saadud energia)",null,"primaarenergia tootmisel kasutatavate allikate arvu suurendamine (energiavarustus)","xOBSOLETE Energy Star Program"]
["3.1.3.ii",null,null,null,"Energiatõhususe mõõde",null,"kolmandatest riikidest pärinevast impordist sõltumise vähendamine (energiavarustus)","Union renewable energy financing mechanism"]
["3.1.3.iii",null,null,null,"seoses liidu 2030. aasta vähemalt 32,5 % energiatõhususeesmärgiga kindlaks määratud soovituslik riiklik energiatõhususpanus, millele on osutatud direktiivi 2012/27/EL artikli 1 lõikes 1 ja artikli 3 lõikes 5",null,"energiavarustustaristu vastupanuvõime suurendamine, sealhulgas energiavarustuse tagamine suuremate võrguhäirete korral (energiavarustus)","Electricity Market Directive"]
["3.1.3.iv",null,null,null,"ajavahemikul 2021–2030 saavutatav kumulatiivne lõpptarbimise energiasääst kooskõlas direktiivi 2012/27/EL artikli 7 lõike 1 punktiga b energiasäästukohustuste kohta",null,"elektrivõrgus suuremal määral taastuvenergia vastuvõtmise võime parandamine (energiavarustus)","Renewable Energy Directive"]
["3.2.i",null,null,null,"riigi elu- ja mitteeluhoonete pikaajalise renoveerimisstrateegia soovituslikud vahe-eesmärgid",null,"elektrivõrkude omavaheliste ühenduste suurendamine (energiavarustus)","CCS Directive"]
["3.2.ii",null,null,null,"ajavahemikul 2021–2030 renoveeritav üldpõrandapind või võrdväärne iga-aastane energiasääst vastavalt direktiivi 2012/27/EL artiklile 5, mis käsitleb avaliku sektori asutuste hoonete eeskuju",null,"hindade suurem lähendamine elektrienergiaturgudel (energiavarustus)","xOBSOLETE Geological storage of CO2 Directive"]
["3.2.iii",null,null,null," muud riiklikud eesmärgid, sh pikaajalised eesmärgid või strateegiad ja sektoripõhised eesmärgid, ning riiklikud eesmärgid sellistes valdkondades nagu energiatõhusus transpordisektoris ning seoses kütmise ja jahutamisega",null,"tarbijate energiaturgudel osalemise suurendamine (energiavarustus)","Energy Taxation Directive"]
["3.2.iv",null,null,null,"Energiajulgeoleku mõõde",null,"elektrisüsteemi paindlikkuse ja piisavuse suurendamine (energiavarustus)","xOBSOLETE Completion of the internal energy market"]
["3.2.v",null,null,null,"riiklikud eesmärgid seoses energiaallikate mitmekesistamise ja kolmandatest riikidest pärit energiatarnete suurendamisega, mille eesmärk võib olla vähendada sõltumist imporditavast energiast",null," energiavarustusega seotud teadusuuringud ja innovatsioon (energiavarustus)","Regulation on CO2 standards for cars and vans"]
["3.2.vi",null,null,null,"kolmandatest riikidest imporditavast energiast sõltumise vähendamise riiklikud eesmärgid, et suurendada piirkondade ja riikide energiasüsteemide vastupanuvõimet",null,"muu energiavarustus","Regulation on CO2 standards for heavy duty vehicles"]
["3.2.vii",null,null,null,"riiklikud eesmärgid, mis on seotud riigi energiasüsteemi paindlikkuse suurendamisega, eelkõige omamaiste energiaallikate kasutuselevõtu, tarbimiskaja ja energia salvestamise abil",null,"ENERGIATARBIMINE","Alternative Fuels Infrastructure Directive"]
["3.3.i",null,null,null,"riiklikud eesmärgid, et tulla toime olukorraga, kus energiaallikast pärit tarned on napid või katkenud, et tõsta piirkondade ja riigi energiasüsteemide vastupanuvõimet",null,"hoonete energiatõhususe suurendamine (energiatarbimine)","Eurovignette Directive"]
["3.3.ii",null,null,null,"Energia siseturu mõõde",null,"seadmete energiatõhususe suurendamine (energiatarbimine)","Fuel Quality Directive"]
["3.3.iii",null,null,null,"elektrivõrkude omavahelise ühendatuse määr, mille liikmesriik on 2030. aastaks eesmärgiks seadnud, võttes arvesse elektrivõrkude omavahelise ühendatuse 2030. aasta eesmärki, mis on vähemalt 15 %",null,"Energiatõhususe suurendamine teenuste-/teenindussektoris  (energiatarbimine)","Clean Vehicles Directive"]
["3.4.1.i",null,null,null,"elektrienergia ja gaasi ülekande taristu põhiprojektid ja asjakohasel juhul moderniseerimisprojektid, mis on vajalikud energialiidu viie mõõtmega seotud eesmärkide saavutamiseks; muud kavandatud peamised taristuprojektid kui ühishuviprojektid: energia siseturu muude aspektide, nt süsteemi paindlikkuse suurendamise (eelkõige seoses konkurentsipõhiste elektrihindade edendamisega vastavalt valdkondlikule õigusele), turgude lõimimise ja liitmisega (mille eesmärk on suurendada olemasolevate ühenduste kaubeldavat võimsust), arukate võrkude, koondamise, tarbimiskaja, salvestamise, hajatootmise, jaotamise, ümberjaotamise ja piiramise mehhanismide ning reaalajas edastatavate hinnasignaalidega seotud riiklikud eesmärgid",null,"energiatõhususe suurendamine teenuste-/teenindussektoris (energiatarbimine)","Euro VI regulation"]
["3.4.1.ii",null,null,null,"riiklikud eesmärgid, mis on seotud taastuvenergia mittediskrimineeriva osaluse, tarbimiskaja ja salvestamisega, sh koondamise abil, kõigil energiaturgudel",null,"energiatõhususe suurendamine tööstusliku lõppkasutuse sektorites (energiatarbimine)","Euro 5/6 Regulation"]
["3.4.1.iii",null,null,null,"riiklikud eesmärgid seoses tagamisega, et tarbijad osalevad energiasüsteemis ning saavad kasu omatootmisest ja uutest tehnoloogialahendustest, sh arukatest arvestitest",null,"nõudluse juhtimine/vähendamine (energiatarbimine)","xOBOSLETE Biofuels directive"]
["3.4.2.i",null,null,null,"riiklikud eesmärgid, millega tagada elektrisüsteemi piisavus ja energiasüsteemi paindlikkus taastuvenergia tootmiseks",null,"tehnoloogia-, protsesside- ja materjalidealased teadusuuringud ja innovatsioon, mis aitavad vähendada energiatarbimist (energiatarbimine)","F-gas Regulation"]
["3.4.2.ii",null,null,null,"riiklikud eesmärgid, millega tagatakse energiatarbijate kaitse ja energia jaemüügisektori konkurentsivõime suurendamine",null,"muu energiatarbimine (energiatarbimine)","Mobile Air-conditioning system Directive"]
["3.4.2.iii",null,null,null,"energiaostuvõimetusega seotud riiklikud eesmärgid",null,"TRANSPORT","xOBSOLETE F-gas regulation"]
["3.4.3.i",null,null,null,"Teadusuuringute, innovatsiooni ja konkurentsivõime mõõde",null,"sõidukite energiatõhususe suurendamine (transport)","Common Agricultural Policy"]
["3.4.3.ii",null,null,null,"energialiiduga seotud avaliku sektori teadusuuringuid ja innovatsiooni ning asjakohasel juhul ka erasektori teadusuuringuid ja innovatsiooni käsitlevad riiklikud rahastamis- ja muud eesmärgid",null,"ühistranspordile või mootorita transpordivahenditele ülemineku edendamine (transport)","Nitrate Directive"]
["3.4.3.iii",null,null,null,"puhta energia tehnoloogia edendamisega seotud riiklikud 2050. aasta eesmärgid ning vajaduse korral riiklikud eesmärgid, sh pikaajalised (2050), mis on seotud vähese CO2 heitega tehnoloogia kasutuselevõtuga, sh suure energiakasutusega ja rohkesti CO2 heidet tekitavate tööstussektorite CO2 heite vähendamise ning vajaduse korral seonduva CO2 transpordi ja säilitamise taristu tehnoloogia",null,"vähese CO2 heitega kütused (transport)","Waste Management Framework Directive"]
["3.4.3.iv",null,null,null,"riiklikud konkurentsivõimeeesmärgid",null,"elektriline maanteetransport (transport)","xOBSOLETE Waste Directive"]
["3.4.3.v",null,null,null,null,null,"nõudluse juhtimine/vähendamine (transport)","xOBOSOLETE Waste Incineration Directive"]
["3.4.4.i",null,null,null,null,null,"käitumise parandamine (transport)","Landfill Directive"]
["3.5.i",null,null,null,null,null,"transporditaristu tõhustamine (transport)","LULUCF Regulation"]
["3.5.ii",null,null,null,null,null,"rahvusvahelise õhu- või meretranspordist pärit heite vähendamine (transport)","LULUCF Decision"]
["3.5.iii",null,null,null,null,null,"teadusuuringud ja innovatsioon transpordisektorist pärit heite vähendamiseks (transport)","Indurstrial Emission Directive"]
[null,null,null,null,null,null,"innovatsioon transpordi digipöörde valdkonnas (transport)","NEC Directive"]
[null,null,null,null,null,null,"muu transport (transport)","Water Framework Directive"]
[null,null,null,null,null,null,"TÖÖSTUSPROTSESSID","Medium Combustion Plant Directive"]
[null,null,null,null,null,null,"heite vähendamise tehnoloogia kasutamine (tööstusprotsessid)","Euoropean Climate Law"]
[null,null,null,null,null,null,"tööstusprotsesside hajusheite tõhusam piiramine (tööstusprotsessid)","Labelling Regulation"]
[null,null,null,null,null,null," fluoritud gaaside tootmisega seotud heite, kontrollimatu heite ja kõrvaldamisega seotud heite tõhusam piiramine (tööstusprotsessid)","Regulation on coordinated demand-reduction measures for gas"]
[null,null,null,null,null,null,"fluoritud gaaside asendamine väiksema globaalse soojendamise potentsiaaliga gaasidega (tööstusprotsessid)","Electricity Market Regulation"]
[null,null,null,null,null,null,"teadusuuringud ja innovatsioon ELi tööstuse energiamahukuse vähendamise\nvaldkonnas (tööstusprotsessid) ","Gas Storage Regulation"]
[null,null,null,null,null,null,"muud tööstusprotsessid (tööstusprotsessid)","Regulation on risk-preparedness in the electicity sector"]
[null,null,null,null,null,null,"JÄÄTMEKÄITLUS/JÄÄTMED","Just Transition Fund Regulation"]
[null,null,null,null,null,null,"nõudluse juhtimine/vähendamine (jäätmekäitlus/jäätmed)","Recovery and Resielience Facility Rregulation"]
[null,null,null,null,null,null,"tõhusam ringlussevõtt (jäätmekäitlus/jäätmed)","Security of gas supply Regulation"]
[null,null,null,null,null,null,"tõhusam CH4 kogumine ja kasutamine (jäätmekäitlus/jäätmed)","Network code on electricity emergency and restoration"]
[null,null,null,null,null,null,"tõhusam jäätmekäitlustehnoloogia (jäätmekäitlus/jäätmed)","Oil Stocks Directive"]
[null,null,null,null,null,null,"prügilate tõhusam haldamine (jäätmekäitlus/jäätmed)","Directive on safety of offshore oil and gas operations"]
[null,null,null,null,null,null,"jäätmete põletamine koos energia kasutamisega (jäätmekäitlus/jäätmed)","NIS Directice"]
[null,null,null,null,null,null,"reoveejuhtimissüsteemide tõhustamine (jäätmekäitlus/jäätmed)","Directive on European Critical Infrastructures"]
[null,null,null,null,null,null,"prügilasse ladestamise vähendamine (jäätmekäitlus/jäätmed)","Urban Waste water directive"]
[null,null,null,null,null,null,"muud jäätmed (jäätmekäitlus/jäätmed)","Commission Reccomendaton permit-granting procedures Power Purchase Agreements"]
[null,null,null,null,null,null,"PÕLLUMAJANDUS"]
[null,null,null,null,null,null,"väetiste/sõnniku kasutamise vähendamine põllumaal (põllumajandus)"]
[null,null,null,null,null,null,"muud põllumaa parema majandamise meetmed (põllumajandus)"]
[null,null,null,null,null,null,"tõhusam loomakasvatus (põllumajandus)"]
[null,null,null,null,null,null,"tõhusamad süsteemid loomse päritoluga jäätmete käitlemiseks (põllumajandus) "]
[null,null,null,null,null,null,"karja- või rohumaade parema majandamise meetmed (põllumajandus)"]
[null,null,null,null,null,null,"orgaaniliste muldade parem majandamine (põllumajandus)"]
[null,null,null,null,null,null,"muu põllumajandus (põllumajandus)"]
[null,null,null,null,null,null,"LULUCF"]
[null,null,null,null,null,null,"metsastamine ja taasmetsastamine (LULUCF)"]
[null,null,null,null,null,null,"süsiniku säilitamine olemasolevates metsades (LULUCF) "]
[null,null,null,null,null,null,"olemasolevate metsade tootmisvõime suurendamine (LULUCF) "]
[null,null,null,null,null,null,"puittoodete süsiniku talletaja suurendamine (LULUCF)"]
[null,null,null,null,null,null,"metsade tõhusam majandamine (LULUCF)"]
[null,null,null,null,null,null,"raadamise ärahoidmine (LULUCF)"]
[null,null,null,null,null,null,"tugevam kaitse looduslike häiringute eest (LULUCF)"]
[null,null,null,null,null,null,"suure kasvuhoonegaaside heitemahukusega lähteainete ja materjalide asendamine puittoodetega (LULUCF)\n"]
[null,null,null,null,null,null,"sookuivendamise ärahoidmine või taassoostamine (LULUCF)"]
[null,null,null,null,null,null,"degradeerunud maa taastamine; muu LULUCFi sektoriga seotud eesmärk (LULUCF)"]
[null,null,null,null,null,null,"MUU"]
[null,null,null,null,null,null,"liikmesriigid esitavad eesmärgi lühikirjelduse"]

{"sheet":"Mõisted","index":1,"n_rows":14,"n_cols":3,"rows_kept":14,"cut":false,"hidden":true,"merged":[[1,0,1,2],[8,0,8,2]]}
[]
["Stsenaarium, mille juures programmi või meedet on arvestatud"]
["WEM","With existing measures - olemasolevate meetmetega stsenaarium","Kasvuhoonegaaside inimtekkelistest allikatest pärineva heite ja nende neeldajates sidumise prognoos, mille puhul võetakse seoses kasvuhoonegaaside heitkoguste vähendamise või energiasüsteemi arenguga arvesse vastuvõetud ja rakendatud poliitikasuundade ja meetmete mõju."]
["WAM","With additional measures - lisameetmetega stsenaarium","Kasvuhoonegaaside inimtekkelistest allikatest pärineva heite ja nende neeldajates sidumise või energiasüsteemi arengu prognoos, mille puhul võetakse seoses kasvuhoonegaaside heitkoguste vähendamisega arvesse kliimamuutuste mõju leevendamiseks või energiaeesmärkide saavutamiseks vastu võetud ja rakendatud, samuti sel eesmärgil kavandatud poliitikasuundade ja meetmete mõju."]
["NIP","Not included in projections - ei kajastu prognooside","Poliitika ja/või meetme mõju ei avaldu kasvuhoonegaaside inimtekkelistest allikatest pärineva heite ja nende neeldajates sidumise prognoos"]
[]
[]
[]
["Rakendamise definitsioonid"]
["Rakendamise seis","Definitsioon","Kommentaar"]
["Vastuvõetud","Vastavalt Energialiidu juhtimismäärusele (EL) 2018/1999) on vastuvõetud poliitikasuunad ja meetmed , mille kohta on lõimitud riikliku energia- ja kliimakava või lõimitud riikliku energia- ja kliimaalase eduaruande esitamise kuupäevaks tehtud valitsuse ametlik otsus ning mis on rakendamiseks üheselt kohustuslikud. "]
["Rakendatud","Vastavalt Energialiidu juhtimismäärusele (EL) 2018/1999) on rakendatud poliitikasuunad ja meetmed, mis vastavad lõimitud riikliku energia- ja kliimakava või lõimitud riikliku energia- ja kliimaalase eduaruande esitamise kuupäeval ühele või mitmele järgmisele tingimusele: jõus on vahetult kohaldatav liidu või liikmesriigi õigus, sõlmitud on üks või mitu vabatahtlikku kokkulepet, eraldatud on rahalised vahendid, kaasatud on inimressursid. "]
["Kavandatavad","Kavandatavad poliitikasuunad ja meetmed on arutlusel olevad variandid, mille vastuvõtmine ja rakendamine pärast lõimitud riikliku energia- ja kliimakava või lõimitud riikliku energia- ja kliimaalase eduaruande esitamise kuupäeva on reaalselt võimalik. "]
["Aegunud"," Aegunud poliitikasuunad ja meetmed esitatakse vormil ainult juhul, kui neil on mõju või kui on oodata\nnende mõju jätkumist kasvuhoonegaaside heitele."]

{"sheet":"Meetmed","index":2,"n_rows":108,"n_cols":38,"rows_kept":108,"cut":false,"hidden":false,"merged":[[93,0,93,37],[0,2,2,2],[0,1,2,1],[81,0,81,37],[0,0,2,0],[0,6,2,6],[0,5,2,5],[0,4,2,4],[0,3,2,3],[51,0,51,37],[37,0,37,37],[4,0,4,37],[58,0,58,37],[91,0,91,37],[38,0,38,37],[63,0,63,37],[75,0,75,37],[72,0,72,37],[45,0,45,37],[41,0,41,37],[43,0,43,37],[0,7,0,37],[2,7,2,37],[47,0,47,37],[3,0,3,37],[44,0,44,37],[16,0,16,37],[21,0,21,37],[32,0,32,37]]}
["PaM ID\n(REKK eduaruanne 2025)","Meetme kood \n(REKK ajakohastamine 2025)","Meetme nimi\n(eesti keeles)","Meetme nimi\n(inglise keeles)","Stsenaarium (2025 kasvuhoonegaaside prognoosid)","Viide allikale","Meetme rakendamise algus-lõpp"]
[null,null,null,null,null,null,null,2025,2026,2027,2028,2029,2030,2031,2032,2033,2034,2035,2036,2037,2038,2039,2040,2041,2042,2043,2044,2045,2046,2047,2048,2049,2050,2051,2052,2053,2054,2055]
[]
["ENERGEETIKA"]
["Elektrimajandus"]
[9,"EN5",{"$f":"'EN5'!$B$5","v":"Taastuvenergia toetus läbi vähempakkumiste oksjoni (tehnoloogia neutraalne)"},{"$f":"'EN5'!$B$6","v":"Renewable energy support through underbidding auctions (technology neutral)"},{"$f":"'EN5'!$B$21","v":"WEM"},"Elektrituruseadus",{"$f":"'EN5'!$B$20","v":"2019-2024"},108.12869351504744,108.12869351504744,108.12869351504744,108.12869351504744,108.12869351504744,108.12869351504744,108.12869351504744,108.12869351504744,108.12869351504744,108.12869351504744,108.12869351504744,108.12869351504744,108.12869351504744,108.12869351504744,108.12869351504744,108.12869351504744,108.12869351504744,108.12869351504744,108.12869351504744,108.12869351504744,108.12869351504744,108.12869351504744,108.12869351504744,108.12869351504744,108.12869351504744,108.12869351504744,108.12869351504744,108.12869351504744,108.12869351504744,108.12869351504744,108.12869351504744]
[10,"EN6",{"$f":"'EN6'!$B$5","v":"Taastuvenergia toetus läbi vähempakkumiste oksjoni (tehnoloogia spetsiifiline)"},{"$f":"'EN6'!$B$6","v":"Renewable energy support through underbidding auctions (technology specific)"},{"$f":"'EN6'!$B$20","v":"WEM"},"Elektrituruseadus",{"$f":"'EN6'!$B$19","v":"2023-2028"},56.296671806000944,{"$f":"(K7-H7)/3+H7","v":107.68912702687575},{"$f":"(K7-H7)/3+I7","v":159.08158224775056},210.47403746862534,210.47403746862534,210.47403746862534,210.47403746862534,210.47403746862534,210.47403746862534,210.47403746862534,210.47403746862534,210.47403746862534,210.47403746862534,210.47403746862534,210.47403746862534,210.47403746862534,210.47403746862534,210.47403746862534,210.47403746862534,210.47403746862534,210.47403746862534,210.47403746862534,210.47403746862534,210.47403746862534,210.47403746862534,210.47403746862534,210.47403746862534,210.47403746862534,210.47403746862534,210.47403746862534,210.47403746862534]
[6,"EN4",{"$f":"'EN4'!$B$5","v":"Investeering kompensatsiooni meetmesse, võimaldamaks Kirde Eestis tuuleenergia tootmisvõimsuste rajamist"},{"$f":"'EN4'!$B$6","v":"Investment in a compensation measure to enable the construction of wind energy production capacities in Northeast Estonia"},{"$f":"'EN4'!$B$21","v":"NIP"},"2021-2030  perioodi EL sisese kasvuhoonegaaside lubatud heitkoguse ühikutega kauplemise vahendid",{"$f":"'EN4'!$B$20","v":"2021-2024"},"NE","-","-","-","-","NE","NE","NE","NE","NE","NE","NE","NE","NE","NE","NE","NE","NE","NE","NE","NE","NE","NE","NE","NE","NE","NE","NE","NE","NE","NE"]
[7,"EN7",{"$f":"'EN7'!$B$5","v":"Rohehange"},{"$f":"'EN7'!$B$6","v":"Green procurement"},{"$f":"'EN7'!$B$21","v":"NIP"},"RKAS",{"$f":"'EN7'!$B$20","v":"2021-"},"NE","NE","NE","NE","NE","NE","NE","NE","NE","NE","NE","NE","NE","NE","NE","NE","NE","NE","NE","NE","NE","NE","NE","NE","NE","NE","NE","NE","NE","NE","NE"]
[20,"EN23",{"$f":"'EN23'!$B$5","v":"Elektrivõrgu tugevdamise programm taastuvenergia tootmisvõimekuse tõstmiseks ning kliimamuutustega kohanemiseks"},{"$f":"'EN23'!$B$6","v":"Electricity grid reinforcement program to increase renewable energy production capacity and adaptation to climate change"},{"$f":"'EN23'!$B$21","v":"WEM"},"Eesti taaste- ja vastupidavuskava",{"$f":"'EN23'!$B$20","v":"2021-2027"},"NE","NE","NE","NE","NE","NE","NE","NE","NE","NE","NE","NE","NE","NE","NE","NE","NE","NE","NE","NE","NE","NE","NE","NE","NE","NE","NE","NE","NE","NE","NE"]
[8,"EN9",{"$f":"'EN9'!$B$5","v":"Ilmastikukindla võrgu osakaalu suurendamine"},{"$f":"'EN9'!$B$6","v":"Increasing the share of the weatherproof network"},{"$f":"'EN9'!$B$21","v":"NIP"},"Energiamajanduse arengukava aastani 2030",{"$f":"'EN9'!$B$20","v":"2017-2030"},"NE","NE","NE","NE","NE","NE","NE","NE","NE","NE","NE","NE","NE","NE","NE","NE","NE","NE","NE","NE","NE","NE","NE","NE","NE","NE","NE","NE","NE","NE","NE"]
[122,"EN10",{"$f":"'EN10'!$B$5","v":"Kauglugemissüsteemile üleminek"},{"$f":"'EN10'!$B$6","v":"Switching to a remote reading system"},{"$f":"'EN10'!$B$21","v":"NIP"},"Energiamajanduse arengukava aastani 2030",{"$f":"'EN10'!$B$20","v":"2027-2030"},"NE","NE","NE","NE","NE","NE","NE","NE","NE","NE","NE","NE","NE","NE","NE","NE","NE","NE","NE","NE","NE","NE","NE","NE","NE","NE","NE","NE","NE","NE","NE"]
[23,"EN11",{"$f":"'EN11'!$B$5","v":"Balti riikide elektrisüsteemi sünkroniseerimine mandri-Euroopa sünkroonalaga"},{"$f":"'EN11'!$B$6","v":"Synchronization of the electricity system of the Baltic countries with the synchronous area of continental Europe"},{"$f":"'EN11'!$B$21","v":"NIP"},"Energiamajanduse arengukava aastani 2030",{"$f":"'EN11'!$B$20","v":"2018-2025"},"-","-","-","-","-","-","-","-","-","-","-","-","-","-","-","-","-","-","-","-","-","-","-","-","-","-","-","-","-","-","-"]
[22,"EN12",{"$f":"'EN12'!$B$5","v":"Õhuseireradarite soetamine tuuleparkide arendamiseks "},{"$f":"'EN12'!$B$6","v":"The acquisition of air surveillance  radars for the development of wind farms"},{"$f":"'EN12'!$B$21","v":"NIP"},"Energiamajanduse arengukava aastani 2030",{"$f":"'EN12'!$B$20","v":"2019-2025"},"NE","NE","NE","NE","NE","NE","NE","NE","NE","NE","NE","NE","NE","NE","NE","NE","NE","NE","NE","NE","NE","NE","NE","NE","NE","NE","NE","NE","NE","NE","NE"]
[26,"EN13",{"$f":"'EN13'!$B$5","v":"Meretuuleparkide eelarendus (liitumised, planeeringud), ühisprojekt "},{"$f":"'EN13'!$B$6","v":"Preliminary development of offshore wind farms (joinings, plans), joint project"},{"$f":"'EN13'!$B$21","v":"NIP"},"Energiamajanduse arengukava aastani 2030",{"$f":"'EN13'!$B$20","v":"2020-2029"},"NE","NE","NE","NE","NE","NE","NE","NE","NE","NE","NE","NE","NE","NE","NE","NE","NE","NE","NE","NE","NE","NE","NE","NE","NE","NE","NE","NE","NE","NE","NE"]
[33,"EN8",{"$f":"'EN8'!$B$5","v":"Võrguteenuste kvaliteedi tõstmine"},{"$f":"'EN8'!$B$6","v":"Improving the quality of network services"},{"$f":"'EN8'!$B$21","v":"NIP"},"Energiamajanduse arengukava aastani 2030",{"$f":"'EN8'!$B$20","v":"2017-2030"},"NE","NE","NE","NE","NE","NE","NE","NE","NE","NE","NE","NE","NE","NE","NE","NE","NE","NE","NE","NE","NE","NE","NE","NE","NE","NE","NE","NE","NE","NE","NE"]
["Soojusmajandus"]
[4,"EN3b",{"$f":"EN3b!$B$5","v":"Amortiseerunud ja ebaefektiivse soojustorustiku renoveerimine"},{"$f":"EN3b!$B$6","v":"Renovation of depreciated and inefficient heat pipelines"},{"$f":"EN3b!$B$21","v":"WEM"},"Määrus: Kaugküttesüsteemide investeeringute toetamise tingimused",{"$f":"EN3b!$B$20","v":"2016-2027"},13.575032017935341,{"$f":"(M18-H18)/5+H18","v":14.253783618832113},{"$f":"(M18-H18)/5+I18","v":14.932535219728885},{"$f":"(M18-H18)/5+J18","v":15.611286820625658},{"$f":"(M18-H18)/5+K18","v":16.290038421522429},16.968790022419199,16.968790022419174,16.968790022419174,16.968790022419174,16.968790022419174,16.968790022419174,16.968790022419174,16.968790022419174,16.968790022419174,16.968790022419174,16.968790022419174,16.968790022419174,16.968790022419174,16.968790022419174,16.968790022419174,16.968790022419174,16.968790022419174,16.968790022419174,16.968790022419174,16.968790022419174,16.968790022419174,16.968790022419174,16.968790022419174,16.968790022419174,16.968790022419174,16.968790022419174]
[5,"EN3c",{"$f":"EN3c!$B$5","v":"Kaugküttekatelde  renoveerimine ja kütuse vahetus"},{"$f":"EN3c!$B$6","v":"Renovation of district heating boilers and fuel change"},{"$f":"EN3c!$B$21","v":"WEM"},"Määrus: Kaugküttesüsteemide investeeringute toetamise tingimused",{"$f":"EN3c!$B$20","v":"2016-2027"},37.091945862896161,{"$f":"(M19-H19)/5+H19","v":38.946543156040967},{"$f":"(M19-H19)/5+I19","v":40.801140449185773},{"$f":"(M19-H19)/5+J19","v":42.655737742330579},{"$f":"(M19-H19)/5+K19","v":44.510335035475386},46.364932328620199,46.364932328620199,46.364932328620199,46.364932328620199,46.364932328620199,46.364932328620199,46.364932328620199,46.364932328620199,46.364932328620199,46.364932328620199,46.364932328620199,46.364932328620199,46.364932328620199,46.364932328620199,46.364932328620199,46.364932328620199,46.364932328620199,46.364932328620199,46.364932328620199,46.364932328620199,46.364932328620199,46.364932328620199,46.364932328620199,46.364932328620199,46.364932328620199,46.364932328620199]
[15,"EN18",{"$f":"'EN18'!$B$5","v":"Väikeelamute taastuvenergia kasutuselevõtu ja küttesüsteemide uuendamise toetus"},{"$f":"'EN18'!$B$6","v":"Oil boiler replacement programme"},{"$f":"'EN18'!$B$21","v":"WEM"},"Määrus: Väikeelamute taastuvenergia kasutuselevõtu ja küttesüsteemide uuendamise toetuse kasutamise tingimused ja kord (EL HKS 2013-2020)",{"$f":"'EN18'!$B$20","v":"2014-"},0.3,0.3,0.3,0.3,0.3,0.3,0.3,0.3,0.3,0.3,0.3,0.3,0.3,0.3,0.3,0.3,0.3,0.3,0.3,0.3,0.3,0.3,0.3,0.3,0.3,0.3,0.3,0.3,0.3,0.3,0.3]
[11,"EN14",{"$f":"'EN14'!$B$5","v":"Keskkonnasäästlikud energialahendused väikesaartel"},{"$f":"'EN14'!$B$6","v":"Introduction of renewable energy in maritime surveillance radar stations on small islands"},{"$f":"'EN14'!$B$21","v":"WEM"},"RES 2021-2024, Lisa 5",{"$f":"'EN14'!$B$20","v":"2021-"},0.18,0.18,0.18,0.18,0.18,0.18,0.18,0.18,0.18,0.18,0.18,0.18,0.18,0.18,0.18,0.18,0.18,0.18,0.18,0.18,0.18,0.18,0.18,0.18,0.18,0.18,0.18,0.18,0.18,0.18,0.18]
["Energiatõhusus"]
[16,"EN19",{"$f":"'EN19'!$B$5","v":"Energia- ja ressursiauditite toetamine tööstusettevõtetes"},{"$f":"'EN19'!$B$6","v":"Support for energy- and resource audits in industries"},{"$f":"'EN19'!$B$21","v":"WEM"},"Energiasäästu direktiiv/Energiamajanduse korralduse seadus",{"$f":"'EN19'!$B$20","v":"2021-2029"},"NE","NE","NE","NE","NE","NE","NE","NE","NE","NE","NE","NE","NE","NE","NE","NE","NE","NE","NE","NE","NE","NE","NE","NE","NE","NE","NE","NE","NE","NE","NE"]
[17,"EN20",{"$f":"'EN20'!$B$5","v":"Energia- ja ressursitõhusus ettevõtetes"},{"$f":"'EN20'!$B$6","v":"Energy and resource efficiency in industries"},{"$f":"'EN20'!$B$21","v":"WEM"},"Määrus: Toetuse andmise tingimused meetme „Ettevõtete ressursitõhusus” tegevuse „Energia- ja ressursiauditite läbiviimine” jaoks avatud taotlemise korral",{"$f":"'EN20'!$B$20","v":"2016-, (ÜF periood 2014-2020), RRF kuni 2026 ja ÜF periood 2021-2027"},"NE","-","-","-","-",6.4198860651766001,6.4198860651766037,6.4198860651766037,6.4198860651766037,6.4198860651766037,6.4198860651766037,6.4198860651766037,6.4198860651766037,6.4198860651766037,6.4198860651766037,6.4198860651766037,6.4198860651766037,6.4198860651766037,6.4198860651766037,6.4198860651766037,6.4198860651766037,6.4198860651766037,6.4198860651766037,6.4198860651766037,6.4198860651766037,6.4198860651766037,6.4198860651766037,6.4198860651766037,6.4198860651766037,6.4198860651766037,6.4198860651766037]
[58,"HF4",{"$f":"'HF4'!$B$5","v":"Investeeringud tänavavalgustuse rekonstrueerimisprogrammi "},{"$f":"'HF4'!$B$6","v":"Street lighting reconstruction programme investments"},{"$f":"'HF4'!$B$20","v":"WEM"},"Ühtekuuluvusfond",{"$f":"'HF4'!$B$19","v":"2007-2024"},72.933047446073928,72.933047446073928,72.933047446073928,72.933047446073928,72.933047446073928,72.933047446073928,72.933047446073928,72.933047446073928,72.933047446073928,72.933047446073928,72.933047446073928,72.933047446073928,72.933047446073928,72.933047446073928,72.933047446073928,72.933047446073928,72.933047446073928,72.933047446073928,72.933047446073928,72.933047446073928,72.933047446073928,72.933047446073928,72.933047446073928,72.933047446073928,72.933047446073928,72.933047446073928,72.933047446073928,72.933047446073928,72.933047446073928,72.933047446073928,72.933047446073928]
[35,"HF5",{"$f":"'HF5'!$B$5","v":"Energiasäästlikud  valgustuslahendused (sh alameede: energiasäästlikud valgustuslahendused kultuuriasutustele) "},{"$f":"'HF5'!$B$6","v":"Energy-saving lighting solutions (energy-efficient lighting solutions for cultural institutions)"},{"$f":"'HF5'!$B$20","v":"WEM"},"2021-2030  perioodi EL sisese kasvuhoonegaaside lubatud heitkoguse ühikutega kauplemise vahendid",{"$f":"'HF5'!$B$19","v":"2023-2025"},"NE","-","-","-","-",2.1567854341321202,2.1567854341321184,2.1567854341321184,2.1567854341321184,2.1567854341321184,2.1567854341321184,2.1567854341321184,2.1567854341321184,2.1567854341321184,2.1567854341321184,2.1567854341321184,2.1567854341321184,2.1567854341321184,2.1567854341321184,2.1567854341321184,2.1567854341321184,2.1567854341321184,2.1567854341321184,2.1567854341321184,2.1567854341321184,2.1567854341321184,2.1567854341321184,2.1567854341321184,2.1567854341321184,2.1567854341321184,2.1567854341321184]
[21,"EN24",{"$f":"'EN24 '!$B$5","v":"Energia salvestuse pilootprogramm"},{"$f":"'EN24 '!$B$6","v":"Energy storage pilot program"},{"$f":"'EN24 '!$B$21","v":"WEM"},"Eesti taaste- ja vastupidavuskava",{"$f":"'EN24 '!$B$20","v":"2021-2027"},"NE","NE","NE","NE","NE","NE","NE","NE","NE","NE","NE","NE","NE","NE","NE","NE","NE","NE","NE","NE","NE","NE","NE","NE","NE","NE","NE","NE","NE","NE","NE"]
[36,"EN28",{"$f":"'EN28'!$B$5","v":"Ressursitõhusate rohetehnoloogiate kasutuselevõtt "},{"$f":"'EN28'!$B$6","v":"Adoption of resource-efficient green technologies"},{"$f":"'EN28'!$B$21","v":"WEM"},"Eesti taaste- ja vastupidavuskava",{"$f":"'EN28'!$B$20","v":"(2021-2027),  RRF 2021 - kuni 04.2026 k.a"},"NE","NE","NE","NE","NE","NE","NE","NE","NE","NE","NE","NE","NE","NE","NE","NE","NE","NE","NE","NE","NE","NE","NE","NE","NE","NE","NE","NE","NE","NE","NE"]
[121,"EN25",{"$f":"'EN25'!$B$5","v":"Energia maksumeetmed"},{"$f":"'EN25'!$B$6","v":"Energy tax measures"},{"$f":"'EN25'!$B$21","v":"WEM"},"Maksuseadused",{"$f":"'EN25'!$B$20","v":"1993-"},"NE","NE","NE","NE","NE","NE","NE","NE","NE","NE","NE","NE","NE","NE","NE","NE","NE","NE","NE","NE","NE","NE","NE","NE","NE","NE","NE","NE","NE","NE","NE"]
[46,"EN26",{"$f":"'EN26'!$B$5","v":"Tootmisettevõtete ärimudeli muutus"},{"$f":"'EN26'!$B$6","v":"A change in the business model of manufacturing companies"},{"$f":"'EN26'!$B$21","v":"WEM"},"Eesti taaste- ja vastupidavuskava",{"$f":"'EN26'!$B$20","v":"2022-2027"},"NE","NE","NE","NE","NE","NE","NE","NE","NE","NE","NE","NE","NE","NE","NE","NE","NE","NE","NE","NE","NE","NE","NE","NE","NE","NE","NE","NE","NE","NE","NE"]
[13,"EN16",{"$f":"'EN16'!$B$5","v":"Kalalaeva energiatõhususe parendamise ja kliimamuutuste leevendamise toetus"},{"$f":"'EN16'!$B$6","v":"Support for making the processing of fishery and aquaculture products more energy and resource efficient"},{"$f":"'EN16'!$B$21","v":"WEM"},"Määrus: Kalapüügi- ja vesiviljelustoodete töötlemise energia- ja ressursisäästlikumaks muutmise toetus",{"$f":"'EN16'!$B$20","v":"2017-"},3.4540397994620493,3.4540397994620493,3.4540397994620493,3.4540397994620493,3.4540397994620493,3.4540397994620502,3.4540397994620493,3.4540397994620493,3.4540397994620493,3.4540397994620493,3.4540397994620493,3.4540397994620493,3.4540397994620493,3.4540397994620493,3.4540397994620493,3.4540397994620493,3.4540397994620493,3.4540397994620493,3.4540397994620493,3.4540397994620493,3.4540397994620493,3.4540397994620493,3.4540397994620493,3.4540397994620493,3.4540397994620493,3.4540397994620493,3.4540397994620493,3.4540397994620493,3.4540397994620493,3.4540397994620493,3.4540397994620493]
[14,"EN17",{"$f":"'EN17'!$B$5","v":"Kalapüügi- ja vesiviljelustoodete käitlemisettevõtete energia- ja ressursiauditi tegemise toetus"},{"$f":"'EN17'!$B$6","v":"Support for energy and resource audits of fishery and aquaculture products establishments"},{"$f":"'EN17'!$B$21","v":"NIP"},"Euroopa Merendus-ja Kalandusfond 2014-2020",{"$f":"'EN17'!$B$20","v":"2017-"},"NE","NE","NE","NE","NE","NE","NE","NE","NE","NE","NE","NE","NE","NE","NE","NE","NE","NE","NE","NE","NE","NE","NE","NE","NE","NE","NE","NE","NE","NE","NE"]
["Alternatiivkütused"]
[18,"EN21",{"$f":"'EN21'!$B$5","v":"Biometaani kasutuselevõtu soodustamine"},{"$f":"'EN21'!$B$6","v":"Encouraging the introduction of biomethane"},{"$f":"'EN21'!$B$21","v":"WEM"},"Eesti taaste- ja vastupidavuskava",{"$f":"'EN21'!$B$20","v":"2021-"},"NE","NE","NE","NE","NE","NE","NE","NE","NE","NE","NE","NE","NE","NE","NE","NE","NE","NE","NE","NE","NE","NE","NE","NE","NE","NE","NE","NE","NE","NE","NE"]
[19,"EN22",{"$f":"'EN22'!$B$5","v":"Vesiniku terviktehnoloogiate kasutuselevõtu edendamine"},{"$f":"'EN22'!$B$6","v":"Promoting the deployment of complete hydrogen technologies"},{"$f":"'EN22'!$B$21","v":"WEM"},"Eesti taaste- ja vastupidavuskava",{"$f":"'EN22'!$B$20","v":"2021-"},"NE","NE","NE","NE","NE","NE","NE","NE","NE","NE","NE","NE","NE","NE","NE","NE","NE","NE","NE","NE","NE","NE","NE","NE","NE","NE","NE","NE","NE","NE","NE"]
[59,"EN29",{"$f":"'EN29'!$B$5","v":"Rohefond"},{"$f":"'EN29'!$B$6","v":"Green fond"},{"$f":"'EN29'!$B$21","v":"WEM"},"Eesti taaste- ja vastupidavuskava",{"$f":"'EN29'!$B$20","v":"2021-2027"},"NE","NE","NE","NE","NE","NE","NE","NE","NE","NE","NE","NE","NE","NE","NE","NE","NE","NE","NE","NE","NE","NE","NE","NE","NE","NE","NE","NE","NE","NE","NE"]
[60,"EN30",{"$f":"'EN30'!$B$5","v":"Tööstusalades taastuvelektri tootmisseadmete kasutuselevõtu hoogustamise programm "},{"$f":"'EN30'!$B$6","v":"Program for accelerating the introduction of renewable electricity production equipment in industries"},{"$f":"'EN30'!$B$21","v":"WEM"},"Eesti taaste- ja vastupidavuskava",{"$f":"'EN30'!$B$20","v":"2021-2027"},"NE","NE","NE","NE","NE","NE","NE","NE","NE","NE","NE","NE","NE","NE","NE","NE","NE","NE","NE","NE","NE","NE","NE","NE","NE","NE","NE","NE","NE","NE","NE"]
["HOONED"]
["Äri/avalik hoonete renoveerimine"]
[47,"HF1",{"$f":"'HF1'!$B$5","v":"Kohalike omavalitsuste hoonete renoveerimine"},{"$f":"'HF1'!$B$6","v":"Energy efficiency in local government buildings"},{"$f":"'HF1'!$B$21","v":"WEM"},null,{"$f":"'HF1'!$B$20","v":"2021-2027"},4.2629412713048573,4.7611012410360374,6.8716718776104972,9.6869563429629579,13.384026384395005,15.463628282700533,18.34681348303425,18.34681348303425,18.34681348303425,18.34681348303425,18.34681348303425,18.34681348303425,18.34681348303425,18.34681348303425,18.34681348303425,18.34681348303425,18.34681348303425,18.34681348303425,18.34681348303425,18.34681348303425,18.34681348303425,18.34681348303425,18.34681348303425,18.34681348303425,18.34681348303425,18.34681348303425,18.34681348303425,18.34681348303425,18.34681348303425,18.34681348303425,18.34681348303425]
[48,"HF2",{"$f":"'HF2'!$B$5","v":"Keskvalitsuse hoonete rekonstrueerimine"},{"$f":"'HF2'!$B$6","v":"Energy efficiency in central government buildings"},{"$f":"'HF2'!$B$21","v":"WEM"},null,{"$f":"'HF2'!$B$20","v":"2021-2027"},0.75435825859450989,1.2456353237094913,1.6681786577495057,2.5924461681075175,3.7477805560550319,4.8453482246051696,6.0295659722513708,6.0295659722513708,6.0295659722513708,6.0295659722513708,6.0295659722513708,6.0295659722513708,6.0295659722513708,6.0295659722513708,6.0295659722513708,6.0295659722513708,6.0295659722513708,6.0295659722513708,6.0295659722513708,6.0295659722513708,6.0295659722513708,6.0295659722513708,6.0295659722513708,6.0295659722513708,6.0295659722513708,6.0295659722513708,6.0295659722513708,6.0295659722513708,6.0295659722513708,6.0295659722513708,6.0295659722513708]
["Elamumajandus"]
[61,"HF3",{"$f":"'HF3'!$B$5","v":"Elamumajanduse hoonete renoveerimine"},{"$f":"'HF3'!$B$6","v":"Renovation of residential buildings"},{"$f":"'HF3'!$B$20","v":"WEM"},"Eesti taaste- ja vastupidavuskava",{"$f":"'HF3'!$B$19","v":"2023-2027"},9.640350414101702,13.515351604378482,16.254528663504587,18.829308660340441,21.246156425079832,23.323364275766778,23.323364275766743,23.323364275766743,23.323364275766743,23.323364275766743,23.323364275766743,23.323364275766743,23.323364275766743,23.323364275766743,23.323364275766743,23.323364275766743,23.323364275766743,23.323364275766743,23.323364275766743,23.323364275766743,23.323364275766743,23.323364275766743,23.323364275766743,23.323364275766743,23.323364275766743,23.323364275766743,23.323364275766743,23.323364275766743,23.323364275766743,23.323364275766743,23.323364275766743]
[]
["TRANSPORT"]
[]
[28,"TR4",{"$f":"'TR4'!$B$5","v":"Keskkonnahoidlikku liikuvust soodustav linnakeskkond"},{"$f":"'TR4'!$B$6","v":"An urban environment that promotes environmentally friendly movement"},{"$f":"#REF!","v":{"$error":"#REF!"}},"Transpordi ja liikuvuse programm 2024-2027",{"$f":"'TR4'!$B$20","v":"2021-2030"},"NE","-","-","-","-",16.795661510666498,16.446909251685106,16.004644705168786,15.469069708396116,14.839999801228366,14.116912351908796,13.408085643369283,12.711590931755882,12.025660274023117,11.348673030073844,10.67914347028503,10.002765346970586,9.3329515223753674,8.668538753633289,8.0084639774916457,7.3517556655393355,6.6975259053726255,6.0449631478089918,5.3933255651341234,4.7419349698491731,4.0901712475059444,3.4374672610059949,2.7833041872221775,2.1272072500021784,1.4687418165560677,0.80750982693406026]
["Säästvate liikumisviiside kättesaadavuse arendamine"]
[27,"TR3",{"$f":"'TR3'!$B$5","v":"Säästliku autojuhtimise edendamine"},{"$f":"'TR3'!$B$6","v":"Promotion of economical driving"},{"$f":"'TR3'!$B$21","v":"WEM"},"Määrus: Mootorsõidukijuhi ettevalmistamise tingimused ja kord ning mootorsõidukijuhi ettevalmistamise õppekavad",{"$f":"'TR3'!$B$20","v":"2002-"},13.794624823460591,13.693975847135519,13.609944715575432,13.539600132599809,13.482052228128243,13.4365292085332,13.157527401348082,12.803715764135026,12.375255766716894,11.871999840982694,11.293529881527039,10.726468514695426,10.169272745404706,9.6205282192184924,9.0789384240590749,8.5433147762280228,8.0022122775764686,7.4663612179002925,6.9348310029066322,6.4067711819933173,5.8814045324314677,5.3580207242981004,4.8359705182471933,4.3146604521072982,3.7935479758793385,3.2721369980047559,2.9652463888939202,2.6576658602702929,2.3491786651490933,2.0395857790633989,0.64600786154724821]
[30,"TR5",{"$f":"'TR5'!$B$5","v":"Kestliku ühistranspordi arendamine"},{"$f":"'TR5'!$B$6","v":"\nDevelopment of sustainable public transport"},{"$f":"'TR5'!$B$21","v":"NIP"},"Ühistranspordi programm 2024-2027",{"$f":"'TR5'!$B$20","v":"2015-"},"NE","NE","NE","NE","NE","NE","NE","NE","NE","NE","NE","NE","NE","NE","NE","NE","NE","NE","NE","NE","NE","NE","NE","NE","NE","NE","NE","NE","NE","NE","NE"]
[37,"TR13",{"$f":"'TR13'!$B$5","v":"Kestliku raudteetranspordi arendamine"},{"$f":"'TR13'!$B$6","v":"Development of sustainable rail transport"},{"$f":"'TR13'!$B$21","v":"WEM"},"RES 2024-2027, Lisa 5",{"$f":"'TR13'!$B$20","v":"2024-2027"},"NE",8.3038181709674497,16.607636341934899,24.911454512902353,33.215272683869799,41.519090854837302,62.300172415326912,67.495442805449329,72.690713195571746,77.885983585694163,83.08125397581658,102.74906330985144,102.74906330985144,102.74906330985144,102.74906330985144,102.74906330985144,102.74906330985144,102.74906330985144,102.74906330985144,102.74906330985144,102.74906330985144,102.74906330985144,102.74906330985144,102.74906330985144,102.74906330985144,102.74906330985144,102.82328145828177,102.89749960671207,102.97171775514241,103.04593590357273,102.74906330985144]
["Energiatõhusamate sõidukite osakaalu suurendamine"]
[31,"TR6",{"$f":"'TR6'!$B$5","v":"Raskeveokite ajapõhine teekasutustasu "},{"$f":"'TR6'!$B$6","v":"Road usage fees for heavy duty vehicles based on time"},{"$f":"'TR6'!$B$20","v":"WEM"},"Raskeveokimaksu seadus",{"$f":"'TR6'!$B$19","v":"2018-"},14.183805980398672,14.071488080490608,13.961530181192023,13.853846001695054,13.748352760627803,13.6449710322571,13.540902819097719,13.43883727664598,13.338703088665731,13.240431830729888,13.143957850915079,13.049218155428797,12.956152298965167,12.864702279593637,12.774812437993273,12.686429360852832,12.618496012065869,12.551739559639968,12.486118403232108,12.421592583997025,12.358123719139861,12.295674939080646,12.234210827126333,12.173697361550349,12.114101859983549,12.055392926024334,11.997540397979344,11.940515299649755,11.884289793081461,11.828837133200793,11.774131624260594]
[32,"TR7",{"$f":"'TR7'!$B$5","v":"Nullheitega sõidukite ostutoetus"},{"$f":"'TR7'!$B$6","v":"Support for the purchase of zero-emission vehicles"},{"$f":"'TR7'!$B$21","v":"WEM"},"Määrus: Nullheitega sõidukite ostutoetuse andmise tingimused ja kord",{"$f":"'TR7'!$B$20","v":"2020-2025"},57.180044297115565,48.603037652548224,40.02603100798089,31.449024363413557,22.872017718846227,14.2950110742789,"-","-","-","-","NA","-","-","-","-","NA","NA","NA","NA","NA","NA","NA","NA","NA","NA","NA","NA","NA","NA","NA","NA"]
[39,"TR15",{"$f":"'TR15'!$B$5","v":"Siseriikliku parvlaeva muutmine kliimaneutraalseks"},{"$f":"'TR15'!$B$6","v":"Making a domestic ferry climate neutral"},{"$f":"'TR15'!$B$21","v":"WEM"},"Kliimaministeerium mereosakond",{"$f":"'TR15'!$B$20","v":"2027-"},"NE","-",8.1261663262811705,8.1261663262811705,8.1261663262811705,8.1261663262811705,8.1261663262811705,8.1261663262811705,8.1261663262811705,8.1261663262811705,8.1261663262811705,8.1261663262811705,8.1261663262811705,8.1261663262811705,8.1261663262811705,8.1261663262811705,8.1261663262811705,8.1261663262811705,8.1261663262811705,8.1261663262811705,8.1261663262811705,8.1261663262811705,8.1261663262811705,8.1261663262811705,8.1261663262811705,8.1261663262811705,8.1261663262811705,8.1261663262811705,8.1261663262811705,8.1261663262811705,8.1261663262811705]
[41,"TR16b",{"$f":"TR16b!$B$5","v":"Elektri kasutamise soodustamine bussides"},{"$f":"TR16b!$B$6","v":"Promoting the use of electricity in busses"},{"$f":"TR16b!$B$21","v":"WEM"},"Määrus: Elektribusside transpordisektoris kasutuselevõtu toetamise tingimused ja kord",{"$f":"TR16b!$B$20","v":"2020-…"},13.483534807691491,14.5558099915554,15.628085175419312,16.700360359283223,17.772635543147128,18.844910727011001,19.917185910874942,20.989461094738846,22.061736278602755,23.134011462466663,24.206286646330575,34.657877529301835,41.773048414982263,48.961009247665423,56.217235080094838,67.925751543346294,76.020466939908871,84.127124969594888,92.24502312457345,100.37350022100389,108.51193396821257,108.36199852119924,108.22088280636312,108.08806801592912,107.96306586022658,107.84541677250652,107.7346882193582,107.63047311051275,107.53238830218763,107.44007318846988,107.353188375559]
[42,"TR17",{"$f":"'TR17'!$B$5","v":"KHS direktiivi ülevõtmine ning riigisektori sõidukipargi keskkonnasõbralikuks muutmine"},{"$f":"'TR17'!$B$6","v":"Promotion of clean and energy efficient road transport vehicles in public procurement"},{"$f":"'TR17'!$B$21","v":"WEM"},"Keskkonnasõbralike ja energiatõhusate maanteesõidukite edendamist käsitlev direktiiv",{"$f":"'TR17'!$B$20","v":"2021-2030"},14.994803293033325,14.994803293033325,14.994803293033325,14.994803293033325,14.994803293033325,14.9948032930333,14.994803293033325,14.994803293033325,14.994803293033325,14.994803293033325,14.994803293033325,"-","-","-","-","NE","NE","NE","NE","NE","NE","NE","NE","NE","NE","NE","NE","NE","NE","NE","NE"]
[124,"TR21",{"$f":"'TR21'!$B$5","v":"Mootorsõidukite registreerimis- ja aastamaks"},{"$f":"'TR21'!$B$6","v":"Vehicle registration and annual tax"},{"$f":"'TR21'!$B$21","v":"WEM"},"Kliimaministeerium",{"$f":"'TR21'!$B$20","v":"2025-"},"NA",12.811211325218832,25.622422650437663,38.433633975656505,51.244845300875326,64.056056626094204,64.056056626094175,64.056056626094175,64.056056626094175,64.056056626094175,64.056056626094175,64.056056626094175,64.056056626094175,64.056056626094175,64.056056626094175,64.056056626094175,64.056056626094175,64.056056626094175,64.056056626094175,64.056056626094175,64.056056626094175,64.056056626094175,64.056056626094175,64.056056626094175,64.056056626094175,64.056056626094175,64.056056626094175,64.056056626094175,64.056056626094175,64.056056626094175,64.056056626094175]
["Väiksema heitega kütuste osakaalu suurendamine"]
[24,"TR1",{"$f":"'TR1'!$B$5","v":"Biokütuste osakaalu suurendamine transpordisektoris"},{"$f":"'TR1'!$B$6","v":"Increasing the share of biofuels in transport"},{"$f":"'TR1'!$B$20","v":"WEM"},"Vedelkütuseseadus",{"$f":"'TR1'!$B$19","v":"2010-"},71.687311558401419,71.414808136247089,71.192127164862967,71.01173752946994,70.871154106029252,70.753617682296905,69.893903664654445,68.845650940675299,67.609026031193153,66.183439218263729,64.567636493223233,63.001249068829125,61.464656103362813,59.954186129535017,58.466458043715534,56.998357619881602,55.50995563263632,54.038867712661443,52.58262143901603,51.138945454570127,49.705752822781257,48.281125734965023,46.863301460050259,45.450659437342068,44.041709420682785,42.635080589651757,41.229511550126098,39.82384115268534,38.417000063016417,37.008003023707239,35.595941751635323]
[40,"TR16a",{"$f":"TR16a!$B$5","v":"Biometaani kasutamise soodustamine bussides"},{"$f":"TR16a!$B$6","v":"Promoting the use of biomethane in busses"},{"$f":"TR16a!$B$21","v":"WEM"},"Määrus: Biometaani transpordisektoris tarbimise toetamise tingimused",{"$f":"TR16a!$B$20","v":"2014-…"},60.490570520473192,65.896809102893329,71.303047685313459,76.709286267733603,82.115524850153733,87.521763432573906,87.274882127205686,87.028000821837537,86.781119516469346,86.534238211101169,86.287356905732977,78.034366548493011,69.781376191253059,61.528385834013086,53.275395476773134,45.022405119533154,32.992364734750701,24.744273551063021,16.496182367375347,8.2480911836876736,"NE","NE","NE","NE","NE","NE","NE","NE","NE","NE","NE"]
[44,"TR19",{"$f":"'TR19'!$B$5","v":"Vesiniku pilootprojekt"},{"$f":"'TR19'!$B$6","v":"Pilot project for hydrogen"},{"$f":"'TR19'!$B$21","v":"WEM"},"Määrus: Toetuse andmise tingimused ja kord rohevesiniku\nkasutuselevõtuks transpordisektoris ja\nkeemiatööstuse lähteainena",{"$f":"'TR19'!$B$20","v":"2021-2025"},0.91198551663753935,0.91198551663753935,0.91198551663753935,0.91198551663753935,0.91198551663753935,0.91198551663753902,0.91198551663753935,0.91198551663753935,0.91198551663753935,0.91198551663753935,0.91198551663753935,0.91198551663753935,0.91198551663753935,0.91198551663753935,0.91198551663753935,0.91198551663753935,0.91198551663753935,0.91198551663753935,0.91198551663753935,0.91198551663753935,0.91198551663753935,0.91198551663753935,0.91198551663753935,0.91198551663753935,0.91198551663753935,0.91198551663753935,0.91198551663753935,0.91198551663753935,0.91198551663753935,0.91198551663753935,0.91198551663753935]
[63,"TR25",{"$f":"'TR25'!$B$5","v":"Alternatiivkütustuste taristu arendamine transpordis (elektri- ja vesiniku laadimistaristu loomine)"},{"$f":"'TR25'!$B$6","v":"Development of infrastructure for alternative fuels in transport ()"},{"$f":"'TR25'!$B$21","v":"WEM"},"RES 2024-2027, Lisa 5",{"$f":"'TR25'!$B$20","v":"2024-2027"},"NE","NE","NE","NE","NE","NE","NE","NE","NE","NE","NE","NE","NE","NE","NE","NE","NE","NE","NE","NE","NE","NE","NE","NE","NE","NE","NE","NE","NE","NE","NE"]
["PÕLLUMAJANDUS"]
[70,"PM4",{"$f":"'PM4'!B5","v":"Teadmussiire ja teavitus"},{"$f":"'PM4'!B6","v":"Knowledge transfer and awareness"},{"$f":"'PM4'!B20","v":"WEM"},"Eesti maaelu arengukava 2014–2020",{"$f":"'PM4'!B19","v":"2015-2025"},"NE","NE","NE","NE","NE","NE","NE","NE","NE","NE","NE","NE","NE","NE","NE","NE","NE","NE","NE","NE","NE","NE","NE","NE","NE","NE","NE","NE","NE","NE","NE"]
[76,"PM7",{"$f":"'PM7'!B5","v":"Kliima- ja keskkonnakava: mahepõllumajanduse ökokava (ÖK2)"},{"$f":"'PM7'!B6","v":"Eco-scheme for organic farming"},{"$f":"'PM7'!B20","v":"WEM"},"Euroopa Liidu ühise põllumajanduspoliitika strateegiakava 2023–2027",{"$f":"'PM7'!B19","v":"2023-2027"},27.161009196903478,26.816412116601555,26.99144286551234,26.983020527736016,27.030936190858256,27.099009664053401,27.135512967205386,27.154493386876197,27.205370660961876,27.205370660961648,27.205370660961535,27.205370660961762,27.205370660961762,27.205370660961762,27.205370660961876,27.205370660961648,27.205370660961648,27.205370660961648,27.205370660961648,27.205370660961648,27.205370660961762,27.205370660961648,27.205370660961762,27.205370660961762,27.205370660961762,27.205370660961762,27.205370660961648,27.205370660961876,27.205370660961648,27.205370660961876,27.205370660961762]
[78,"PM13",{"$f":"'PM13'!B5","v":"Kliima- ja keskkonnakava: ökosüsteemiteenuste säilitamine põllumaal (ÖK4)"},{"$f":"'PM13'!B6","v":"Support for maintenance of ecosystem services on agricultural land"},{"$f":"'PM13'!B20","v":"WEM"},"Euroopa Liidu ühise põllumajanduspoliitika strateegiakava 2023–2027",{"$f":"'PM13'!B19","v":"2023-2027"},"NE","NE","NE","NE","NE","NE","NE","NE","NE","NE","NE","NE","NE","NE","NE","NE","NE","NE","NE","NE","NE","NE","NE","NE","NE","NE","NE","NE","NE","NE","NE"]
[82,"PM9",{"$f":"'PM9'!B5","v":"Loomade heaolu toetus"},{"$f":"'PM9'!B6","v":"Animal welfare support"},{"$f":"'PM9'!B20","v":"WEM"},"Euroopa Liidu ühise põllumajanduspoliitika strateegiakava 2023–2027",{"$f":"'PM9'!B19","v":"2023-2027"},9.2820229283861408,12.370001996993551,13.18450988507584,14.568694239322895,15.333661231874885,15.6562156265929,16.06359056207657,16.308200861353043,16.490117174687384,16.485051396415884,16.480250048190783,16.474587881216166,16.469520650738559,16.465048369054784,16.459980233077431,16.454911661855476,16.454962290646108,16.454682025861757,16.455062319053241,16.454781258874164,16.4548302962055,16.454878960150836,16.454927259874694,16.454975204250786,16.455022801868154,16.455070061046854,16.455070061046627,16.455070061046854,16.455070061046854,16.455070061046854,16.455070061046627]
[84,"PM19",{"$f":"'PM19'!B5","v":"Teadmussiirde- ja innovatsioonisüsteemi (AKIS) arendamise toetus"},{"$f":"'PM19'!B6","v":"Support for the development of knowledge transfer and advisory services (AKIS) "},{"$f":"'PM19'!B20","v":"WEM"},"Euroopa Liidu ühise põllumajanduspoliitika strateegiakava 2023–2027",{"$f":"'PM19'!B19","v":"2023-2029"},"NE","NE","NE","NE","NE","NE","NE","NE","NE","NE","NE","NE","NE","NE","NE","NE","NE","NE","NE","NE","NE","NE","NE","NE","NE","NE","NE","NE","NE","NE","NE"]
[85,"PM23",{"$f":"'PM23'!B5","v":"Nõuandetoetus"},{"$f":"'PM23'!B6","v":"Support for Advisory services"},{"$f":"'PM23'!B20","v":"WEM"},"Euroopa Liidu ühise põllumajanduspoliitika strateegiakava 2023–2027",{"$f":"'PM23'!B19","v":"2024-2029"},"NE","NE","NE","NE","NE","NE","NE","NE","NE","NE","NE","NE","NE","NE","NE","NE","NE","NE","NE","NE","NE","NE","NE","NE","NE","NE","NE","NE","NE","NE","NE"]
[86,"PM11",{"$f":"'PM11'!B5","v":"Investeeringud bioressursside väärindamisse "},{"$f":"'PM11'!B6","v":"Investments in expoitation bioresources"},{"$f":"'PM11'!B20","v":"WEM"},"Euroopa Liidu ühise põllumajanduspoliitika strateegiakava 2023–2027",{"$f":"'PM11'!B19","v":"2023-2027"},"NE","NE","NE","NE","NE","NE","NE","NE","NE","NE","NE","NE","NE","NE","NE","NE","NE","NE","NE","NE","NE","NE","NE","NE","NE","NE","NE","NE","NE","NE","NE"]
[132,"PM24",{"$f":"'PM24'!B5","v":"Investeering: Biogaasi ja biometaani tootmise ja kasutamise suurendamine  "},{"$f":"'PM24'!B6","v":"Increasing the production and uptake of biomethane"},{"$f":"'PM24'!B20","v":"WEM"},"Eesti taaste- ja vastupidavuskava",{"$f":"'PM24'!B19","v":"2023-2026"},"NA","−",3.9176935381260591,3.8113540883277892,3.712918739081033,3.62466370478433,3.5461398909055788,3.472625778390011,3.4078408378140921,3.4078408378138647,3.4078408378140921,3.4078408378143195,3.4078408378140921,3.4078408378143195,3.4078408378138647,3.4078408378138647,3.4078408378140921,3.4078408378140921,3.4078408378138647,3.4078408378140921,3.4078408378140921,3.4078408378140921,3.4078408378138647,3.4078408378140921,3.4078408378138647,3.4078408378143195,3.4078408378138647,3.4078408378143195,3.4078408378140921,3.4078408378140921,3.4078408378136373]
["TÖÖSTUSLIKUD PROTSESSID JA TOODETE KASUTAMINE"]
[87,"TÖ1","Keelud, piirangud ja kohustused, mis tulenevad määrusest (EL) nr 2024/573 fluoritud kasvuhoonegaaside kohta ja direktiivist 2006/40/EC, mis käsitleb mootorsõidukite kliimaseadmetest pärit heitkoguseid","Bans and duties from the Regulation (EU) No 2024/573 on fluorinated greenhouse gases and Directive 2006/40/EC related to emissions from mobile air conditioners (MACs)","WEM","Määrus (EL) nr 2024/573  ja direktiiv 2006/40/EC","2024-2050","NE","NE","NE","NE","NE","NE","NE","NE","NE","NE","NE","NE","NE","NE","NE","NE","NE","NE","NE","NE","NE","NE","NE","NE","NE","NE","NE","NE","NE","NE","NE"]
[88,"TÖ2","Parima võimaliku tehnika (PVT) rakendamine","Implement best available technologies (BAT)","WEM","Tööstusheite seadus","2013-…","NE","NE","NE","NE","NE","NE","NE","NE","NE","NE","NE","NE","NE","NE","NE","NE","NE","NE","NE","NE","NE","NE","NE","NE","NE","NE","NE","NE","NE","NE","NE"]
["JÄÄTMED"]
[89,"JM1","Ladestatavate biolagunevate jäätmete koguse protsendiline piiramine ja jäätmematerjalide korduskasutusse ja ringlusse võtmise mahu suurendamine","Limiting the percentage of biodegradable waste landfilled and increasing the reuse and recycling of waste materials. ","WEM","Jäätmekava 2023-2028","2014-2023","NE","NE","NE","NE","NE","NE","NE","NE","NE","NE","NE","NE","NE","NE","NE","NE","NE","NE","NE","NE","NE","NE","NE","NE","NE","NE","NE","NE","NE","NE","NE"]
[90,"JM3","Jäätmetekke ennetamise ja vähendamise propageerimine, sh jäätmete ohtlikkuse vähendamine  ","Promotion of waste prevention and reduction, including the reduction of hazardous waste.","WEM","Jäätmekava 2023-2028","2014-","NE","NE","NE","NE","NE","NE","NE","NE","NE","NE","NE","NE","NE","NE","NE","NE","NE","NE","NE","NE","NE","NE","NE","NE","NE","NE","NE","NE","NE","NE","NE"]
[91,"JM4","Jäätmetest tingitud keskkonnaohtude vähendamine, seire ja järelvalve tõhustamine  ","Reduction of environmental hazards from waste, improvement of monitoring and surveillance","WEM","Jäätmekava 2023-2028","2014-","NE","NE","NE","NE","NE","NE","NE","NE","NE","NE","NE","NE","NE","NE","NE","NE","NE","NE","NE","NE","NE","NE","NE","NE","NE","NE","NE","NE","NE","NE","NE"]
[92,"JM2","Jäätmete prügilasse ladestamise (sh biolagunevate jäätmete) vähendamine","Reducing the landfilling of waste (including biodegradable waste)","WEM","Jäätmekava 2023-2028","2021-2035","NE","NE","NE","NE","NE","NE","NE","NE","NE","NE","NE","NE","NE","NE","NE","NE","NE","NE","NE","NE","NE","NE","NE","NE","NE","NE","NE","NE","NE","NE","NE"]
[133,"JM5","Toidujäätmete tekke vähendamine","Reduction of food waste","WEM","Jäätmekava 2023-2028","2021-","NE","NE","NE","NE","NE","NE","NE","NE","NE","NE","NE","NE","NE","NE","NE","NE","NE","NE","NE","NE","NE","NE","NE","NE","NE","NE","NE","NE","NE","NE","NE"]
["LULUCF"]
[93,"MM4",{"$f":"'MM4'!$B$5","v":"Fossiilsete kütuste ja mittetaastuvate loodusvarade kasutamisega seotud keskkonnamõjude vähendamine Eesti puidutootmise ja -kasutamise suurendamise läbi"},{"$f":"'MM4'!$B$6","v":"Reduction of environmental impacts related to the use of fossil fuels and non-renewable natural resources by increasing the Estonian timber production and use"},{"$f":"'MM4'!$B$20","v":"WEM"},"Keskkonnakaitse ja -kasutuse programm\n2022-2025",{"$f":"'MM4'!B19","v":"2012-"},"NE","NE","NE","NE","NE","NE","NE","NE","NE","NE","NE","NE","NE","NE","NE","NE","NE","NE","NE","NE","NE","NE","NE","NE","NE","NE","NE","NE","NE","NE","NE"]
[94,"MM5",{"$f":"'MM5'!$B$5","v":"Elurikkuse soodustamine Natura 2000 erametsades       "},{"$f":"'MM5'!$B$6","v":"Promoting biodiversity in Natura 2000 private forests"},{"$f":"'MM5'!$B$20","v":"WEM"},"Euroopa Liidu ühise põllumajanduspoliitika strateegiakava 2023–2027",{"$f":"'MM5'!B19","v":"2023-2027"},"NE","NE","NE","NE","NE","NE","NE","NE","NE","NE","NE","NE","NE","NE","NE","NE","NE","NE","NE","NE","NE","NE","NE","NE","NE","NE","NE","NE","NE","NE","NE"]
[95,"MM2",{"$f":"'MM2'!$B$5","v":"Erametsade uuendamine võimalikult heade pärilike omaduste ja kasvukohale sobivamate kodumaiste puuliikidega"},{"$f":"'MM2'!$B$6","v":"Supporting the reforestation in private forests with native tree species of best possible hereditary characteristics suitable for the site "},{"$f":"'MM2'!$B$20","v":"WEM"},"Keskkonnakaitse ja -kasutuse programm\n2022-2025",{"$f":"'MM2'!B19","v":"2012-"},"NE","NE","NE","NE","NE","NE","NE","NE","NE","NE","NE","NE","NE","NE","NE","NE","NE","NE","NE","NE","NE","NE","NE","NE","NE","NE","NE","NE","NE","NE","NE"]
[96,"MM1",{"$f":"'MM1'!$B$5","v":"Väljaspool Natura 2000 võrgustiku ala asuvate erametsaalade looduskaitseliste piirangute hüvitamine"},{"$f":"'MM1'!$B$6","v":"Compensation for nature conservation restrictions on private forest areas outside the Natura 2000 network"},{"$f":"'MM1'!$B$21","v":"WEM"},"Keskkonnakaitse ja -kasutuse programm\n2022-2025",{"$f":"'MM1'!B20","v":"2022-"},"NE","NE","NE","NE","NE","NE","NE","NE","NE","NE","NE","NE","NE","NE","NE","NE","NE","NE","NE","NE","NE","NE","NE","NE","NE","NE","NE","NE","NE","NE","NE"]
[97,"MM3",{"$f":"'MM3'!$B$5","v":"Elurikkuse kaitse tagamine "},{"$f":"'MM3'!$B$6","v":"Ensuring the protection of biodiversity"},{"$f":"'MM3'!$B$20","v":"WEM"},"Keskkonnakaitse ja -kasutuse programm\n2022-2025",{"$f":"'MM3'!B19","v":"2020-"},"NE","NE","NE","NE","NE","NE","NE","NE","NE","NE","NE","NE","NE","NE","NE","NE","NE","NE","NE","NE","NE","NE","NE","NE","NE","NE","NE","NE","NE","NE","NE"]
[98,"MM6",{"$f":"'MM6'!$B$5","v":"Investeeringud metsa kliimamuutustega kohanemiseks "},{"$f":"'MM6'!$B$6","v":"Investments to support forest adaptation to climate change "},{"$f":"'MM6'!$B$20","v":"WEM"},"Euroopa Liidu ühise põllumajanduspoliitika strateegiakava 2023–2027",{"$f":"'MM6'!B19","v":"2023-2027"},"NE","NE","NE","NE","NE","NE","NE","NE","NE","NE","NE","NE","NE","NE","NE","NE","NE","NE","NE","NE","NE","NE","NE","NE","NE","NE","NE","NE","NE","NE","NE"]
[98,"MM7",{"$f":"'MM7'!$B$5","v":"Vääriselupaikade kaitse"},{"$f":"'MM7'!$B$6","v":"Protection of woodland key habitats"},{"$f":"'MM7'!$B$20","v":"WEM"},"Keskkonnakaitse ja -kasutuse programm\n2022-2025",{"$f":"'MM7'!B19","v":"2009-"},"NE","NE","NE","NE","NE","NE","NE","NE","NE","NE","NE","NE","NE","NE","NE","NE","NE","NE","NE","NE","NE","NE","NE","NE","NE","NE","NE","NE","NE","NE","NE"]
[99,"MM8",{"$f":"'MM8'!$B$5","v":"Üraskikahjustuste ennetamise toetamine"},{"$f":"'MM8'!$B$6","v":"Prevention of bark beetle damage"},{"$f":"'MM8'!$B$21","v":"WEM"},"Erametsanduse toetuse andmise alused, taotluse kohta esitatavad nõuded, toetuse taotlemise ja taotluse menetlemise kord, taotluse hindamise alused ning toetuse tagasinõudmise kord",{"$f":"'MM8'!B20","v":2021},"NE","NE","NE","NE","NE","NE","NE","NE","NE","NE","NE","NE","NE","NE","NE","NE","NE","NE","NE","NE","NE","NE","NE","NE","NE","NE","NE","NE","NE","NE","NE"]
[100,"MM9",{"$f":"'MM9'!B5","v":"Raadamisõiguse tasu"},{"$f":"'MM9'!$B$6","v":"Deforestation fee"},{"$f":"'MM9'!$B$20","v":"WEM"},null,null,"NE","NE","NE","NE","NE","NE","NE","NE","NE","NE","NE","NE","NE","NE","NE","NE","NE","NE","NE","NE","NE","NE","NE","NE","NE","NE","NE","NE","NE","NE","NE"]
["Rohetehnoloogiad"]
[123,"IP1","Rohetehnoloogia investeerimisprogramm","Green technology investment program","NIP","Eesti taaste- ja vastupidavuskava","2022-","NE","NE","NE","NE","NE","NE","NE","NE","NE","NE","NE","NE","NE","NE","NE","NE","NE","NE","NE","NE","NE","NE","NE","NE","NE","NE","NE","NE","NE","NE","NE"]
["Ühismeetmed"]
[66,"PM-EN1",{"$f":"'PM-EN1'!B5","v":"Põllumajandustootjate materiaalsed ja immateriaalsed investeeringud (KK1)"},{"$f":"'PM-EN1'!B6","v":"Productive tangible and intangible investments of agricultural producers "},{"$f":"'PM-EN1'!B20","v":"WEM"},"Euroopa Liidu ühise põllumajanduspoliitika strateegiakava 2023–2027",{"$f":"'PM-EN1'!B19","v":"2025-2027"},"NE","NE","NE","NE","NE","NE","NE","NE","NE","NE","NE","NE","NE","NE","NE","NE","NE","NE","NE","NE","NE","NE","NE","NE","NE","NE","NE","NE","NE","NE","NE"]
[67,"PM_MM1",{"$f":"PM_MM1!B5","v":"Kliima- ja keskkonnakava: keskkonnasõbralik majandamine (ÖK1)"},{"$f":"PM_MM1!B6","v":"Environmentally friendly management"},{"$f":"PM_MM1!B20","v":"WEM"},"Euroopa Liidu ühise põllumajanduspoliitika strateegiakava 2023–2027",{"$f":"PM_MM1!B19","v":"2023-2027"},"NE","NE","NE","NE","NE","NE","NE","NE","NE","NE","NE","NE","NE","NE","NE","NE","NE","NE","NE","NE","NE","NE","NE","NE","NE","NE","NE","NE","NE","NE","NE"]
[69,"PM_MM2",{"$f":"PM_MM2!B5","v":"Põllumajanduse keskkonna- ja kliimameede ja selle alameetmed"},{"$f":"PM_MM2!B6","v":"Agri-environment-climate measures (including its sub-measures for Agriculture and LULUCF)"},{"$f":"PM_MM2!B20","v":"WEM"},"Eesti maaelu arengukava 2014–2020",{"$f":"PM_MM2!B19","v":"2015-2025"},"NE","NE","NE","NE","NE","NE","NE","NE","NE","NE","NE","NE","NE","NE","NE","NE","NE","NE","NE","NE","NE","NE","NE","NE","NE","NE","NE","NE","NE","NE","NE"]
[77,"PM-MM3",{"$f":"PM_MM3!B5","v":"Kliima- ja keskkonnakava: ökoalad"},{"$f":"PM_MM3!B6","v":"Eco-scheme for ecological focus areas"},{"$f":"PM_MM3!B20","v":"WEM"},"Euroopa Liidu ühise põllumajanduspoliitika strateegiakava 2023–2027",{"$f":"PM_MM3!B19","v":"2023-2027"},"NE","NE","NE","NE","NE","NE","NE","NE","NE","NE","NE","NE","NE","NE","NE","NE","NE","NE","NE","NE","NE","NE","NE","NE","NE","NE","NE","NE","NE","NE","NE"]
[79,"PM_MM4",{"$f":"PM_MM4!B5","v":"Mulla- ja veekaitsetoetus"},{"$f":"PM_MM4!B6","v":"Soil and water protection support"},{"$f":"PM_MM4!B20","v":"WEM"},"Euroopa Liidu ühise põllumajanduspoliitika strateegiakava 2023–2027",{"$f":"PM_MM4!B19","v":"2023-2028"},"NE","NE","NE","NE","NE","NE","NE","NE","NE","NE","NE","NE","NE","NE","NE","NE","NE","NE","NE","NE","NE","NE","NE","NE","NE","NE","NE","NE","NE","NE","NE"]
[80,"PM_MM5",{"$f":"'PM-MM5'!B5","v":"Väärtusliku püsirohumaa säilitamise toetus"},{"$f":"'PM-MM5'!B6","v":"Support for the maintenance of valuable permanent grassland"},{"$f":"'PM-MM5'!B20","v":"WEM"},"Euroopa Liidu ühise põllumajanduspoliitika strateegiakava 2023–2027",{"$f":"'PM-MM5'!B19","v":"2024-2028"},"NE","NE","NE","NE","NE","NE","NE","NE","NE","NE","NE","NE","NE","NE","NE","NE","NE","NE","NE","NE","NE","NE","NE","NE","NE","NE","NE","NE","NE","NE","NE"]
[81,"PM_MM6",{"$f":"PM_MM6!B5","v":"Pärandniidu hooldamise toetus "},{"$f":"PM_MM6!B6","v":"Support for maintaining semi-natural grassland"},{"$f":"PM_MM6!B20","v":"WEM"},"Euroopa Liidu ühise põllumajanduspoliitika strateegiakava 2023–2027",{"$f":"PM_MM6!B19","v":"2023-2028"},"NE","NE","NE","NE","NE","NE","NE","NE","NE","NE","NE","NE","NE","NE","NE","NE","NE","NE","NE","NE","NE","NE","NE","NE","NE","NE","NE","NE","NE","NE","NE"]
[]
[]
[null,null,null,null,null,null,null,null,"31-40"]
[null,null,null,null,null,null,null,null,{"$f":"AVERAGE(#REF!)*1000","v":{"$error":"#REF!"}}]
[null,null,null,null,null,null,null,null,{"$f":"AVERAGE(#REF!)*1000","v":{"$error":"#REF!"}}]
[null,null,null,null,null,null,null,null,{"$f":"AVERAGE(#REF!)*1000","v":{"$error":"#REF!"}}]
[null,null,null,null,null,null,null,null,{"$f":"AVERAGE(#REF!)*1000+AVERAGE([1]Meetmed_LULUCF!$J$38:$S$38)*1000","v":{"$error":"#REF!"}}]

{"sheet":"EN3b","index":3,"n_rows":25,"n_cols":2,"rows_kept":25,"cut":false,"hidden":false,"merged":[]}
["REKK peatükk","3.1.1.i"]
["Teised seonduvad REKK 2030 peatükid","3.1.2.i"]
["Poliitikasuuna või meetme number (PaM ID)",4]
["Programmi või meetme number REKK2030",{"$f":"MID(CELL(\"filename\",A2),FIND(\"]\",CELL(\"filename\",A2))+1,255)","v":"EN3b"}]
["Programmi või meetme nimetus ","Amortiseerunud ja ebaefektiivse soojustorustiku renoveerimine"]
["Programmi või meetme nimetus inglise keeles","Renovation of depreciated and inefficient heat pipelines"]
["Lühike kirjeldus","Amortiseerunud ja ebaefektiivsete soojustorustike renoveerimine ja/või uute soojustrasside ehitamine. Meetme tulemusena rekonstrueeritakse 227 km amortiseerunud ebaefektiivseid soojustorustikke.\n"]
["Seotud Euroopa Liidu energialiidu mõõtmed","CO2 heite vähendamise mõõde;\r\nEnergiatõhususe mõõde"]
["Asjakohased eesmärgid, sihid või panused, millele\npoliitikasuund või meede kaasa aitab","kasvuhoonegaaside heide ja nende sidumine – liikmesriigi siduv riiklik kasvuhoonegaaside heitega seotud eesmärk ja iga-aastased siduvad riiklikud piirnormid vastavalt määrusele (EL) 2018/842;\r\nseoses liidu 2030. aasta vähemalt 32,5 % energiatõhususeesmärgiga kindlaks määratud soovituslik riiklik energiatõhususpanus, millele on osutatud direktiivi 2012/27/EL artikli 1 lõikes 1 ja artikli 3 lõikes 5;\r\najavahemikul 2021–2030 saavutatav kumulatiivne lõpptarbimise energiasääst kooskõlas direktiivi 2012/27/EL artikli 7 lõike 1 punktiga b energiasäästukohustuste kohta"]
["Mõjutatud sektorid","energiavarustus (sh kütuste ammutamine/kaevandamine, edastamine, jaotamine ja säilitamine ning energia muundamine kütteks ja jahutuseks ning elektri tootmiseks)"]
["Eesmärk","tõhususe suurendamine energeetikasektoris ja energia muundamise sektoris (energiavarustus);\r\nkadude vähendamine (energiavarustus)"]
["Kvantitatiivne eesmärk","Rekonstrueeritakse 227 km amortiseerunud ebaefektiivseid soojustorustikke."]
["Kasvuhoonegaasid, mille heitmeid otseselt mõjutatakse","CO2; CH4; N2O"]
["Planeeritud eelarve"]
["Oodatav mõju 2025-2030 keskmine",{"$f":"AVERAGE(Meetmed!H18:M18)","v":15.271911020177271}]
["Programmi või meetme tüüp","Majanduslikud stiimulid (Economic)"]
["Hinnang sellele, mil määral poliitikasuund või meede aitab saavutada määruse\n(EL) 2021/1119 artikli 2 lõikes 1 sätestatud liidu kliimaneutraalsusees märki ja täita määruse (EL) 2018/1999 artiklis 15 osutatud pikaajalist strateegiat","This measure contributes to the political guidelines for the economy as a whole set in the General Principles of Climate Policy until 2050. https://kliimaministeerium.ee/sites/default/files/documents/2023-03/310022023003%20%281%29.pdf"]
["Programmi või meetme aluseks olevad Euroopa Liidu õigusaktid","Effort Sharing Regulation; ETS Directive; Effort Sharing Decision; Energy Efficency Directive"]
["Programmi või meetme rakendamise seis","Rakendatud (Implemented)"]
["Programmi või meetme rakendamise periood","2016-2027"]
["Stsenaarium, mille juures programmi või meedet on arvestatud","WEM"]
["Programmi või meetme rakendamise eest vastutavad isikute või asutuste tüüp","riigi valitsus"]
["Programmi või meetme rakendamise eest vastutavad isikud või asutused","Keskkonnainvesteeringute Keskus, Kliimaministeerium"]
["Viide analüüsidele või tehnilistele aruannetele","https://www.riigiteataja.ee/akt/108012016008?leiaKehtiv"]
["Kommentaar"]

{"sheet":"EN3c","index":4,"n_rows":25,"n_cols":2,"rows_kept":25,"cut":false,"hidden":false,"merged":[]}
["REKK peatükk","3.1.1.i"]
["Teised seonduvad REKK 2030 peatükid","3.1.2.i"]
["Poliitikasuuna või meetme number (PaM ID)",5]
["Programmi või meetme number REKK2030",{"$f":"MID(CELL(\"filename\",A2),FIND(\"]\",CELL(\"filename\",A2))+1,255)","v":"EN3c"}]
["Programmi või meetme nimetus ","Kaugküttekatelde  renoveerimine ja kütuse vahetus"]
["Programmi või meetme nimetus inglise keeles","Renovation of district heating boilers and fuel change"]
["Lühike kirjeldus","Kaugküttekatelde renoveerimine ja/või ehitus ning kütusevahetus. Meetme tegevuse tulemusena rekonstrueeritakse vähemalt 157 MW kaugküttekatlaid.\n"]
["Seotud Euroopa Liidu energialiidu mõõtmed","CO2 heite vähendamise mõõde;\r\nCO2 heite vähendamise mõõde: taastuvenergia;\r\nEnergiatõhususe mõõde"]
["Asjakohased eesmärgid, sihid või panused, millele\npoliitikasuund või meede kaasa aitab"," muud eesmärgid, sh sektoripõhised ja kohanemiseesmärgid;\r\neeldatavad trajektoorid, mis näitavad ajavahemikul 2021–2030 elektri-, kütte- ja jahutus- ning transpordisektoris tarbitava taastuvenergia osakaalu lõppenergia tarbimises;\r\nseoses liidu 2030. aasta vähemalt 32,5 % energiatõhususeesmärgiga kindlaks määratud soovituslik riiklik energiatõhususpanus, millele on osutatud direktiivi 2012/27/EL artikli 1 lõikes 1 ja artikli 3 lõikes 5;\r\najavahemikul 2021–2030 saavutatav kumulatiivne lõpptarbimise energiasääst kooskõlas direktiivi 2012/27/EL artikli 7 lõike 1 punktiga b energiasäästukohustuste kohta"]
["Mõjutatud sektorid","energiavarustus (sh kütuste ammutamine/kaevandamine, edastamine, jaotamine ja säilitamine ning energia muundamine kütteks ja jahutuseks ning elektri tootmiseks)"]
["Eesmärk","taastuvenergia osakaalu suurendamine kütte- ja jahutussektoris (energiavarustus);\r\ntõhususe suurendamine energeetikasektoris ja energia muundamise sektoris (energiavarustus);\r\nüleminek vähem CO2 heidet tekitavatele kütustele (energiavarustus);\r\nkadude vähendamine (energiavarustus)"]
["Kvantitatiivne eesmärk","Rekonstrueeritakse 157 MW kaugküttekatlaid"]
["Kasvuhoonegaasid, mille heitmeid otseselt mõjutatakse","CO2; CH4; N2O"]
["Planeeritud eelarve"]
["Oodatav mõju 2025-2030 keskmine",{"$f":"AVERAGE(Meetmed!H19:M19)","v":41.728439095758176}]
["Programmi või meetme tüüp","Majanduslikud stiimulid (Economic)"]
["Hinnang sellele, mil määral poliitikasuund või meede aitab saavutada määruse\n(EL) 2021/1119 artikli 2 lõikes 1 sätestatud liidu kliimaneutraalsusees märki ja täita määruse (EL) 2018/1999 artiklis 15 osutatud pikaajalist strateegiat","This measure contributes to the political guidelines for the economy as a whole set in the General Principles of Climate Policy until 2050. https://kliimaministeerium.ee/sites/default/files/documents/2023-03/310022023003%20%281%29.pdf"]
["Programmi või meetme aluseks olevad Euroopa Liidu õigusaktid","Effort Sharing Regulation; ETS Directive;\r\nEffort Sharing Decision;\r\nEnergy Efficency Directive"]
["Programmi või meetme rakendamise seis","Rakendatud (Implemented)"]
["Programmi või meetme rakendamise periood","2016-2027"]
["Stsenaarium, mille juures programmi või meedet on arvestatud","WEM"]
["Programmi või meetme rakendamise eest vastutavad isikute või asutuste tüüp","riigi valitsus"]
["Programmi või meetme rakendamise eest vastutavad isikud või asutused","Keskkonnainvesteeringute Keskus, Kliimaministeerium"]
["Viide analüüsidele või tehnilistele aruannetele","https://www.riigiteataja.ee/akt/108012016008?leiaKehtiv"]
["Kommentaar"]

{"sheet":"EN4","index":5,"n_rows":25,"n_cols":2,"rows_kept":25,"cut":false,"hidden":false,"merged":[]}
["REKK peatükk","3.5.i"]
["Teised seonduvad REKK 2030 peatükid","3.2.1.i"]
["Poliitikasuuna või meetme number (PaM ID)",6]
["Programmi või meetme number REKK2030",{"$f":"MID(CELL(\"filename\",A2),FIND(\"]\",CELL(\"filename\",A2))+1,255)","v":"EN4"}]
["Programmi või meetme nimetus ","Investeering kompensatsiooni meetmesse, võimaldamaks Kirde Eestis tuuleenergia tootmisvõimsuste rajamist"]
["Programmi või meetme nimetus inglise keeles","Investment in a compensation measure to enable the construction of wind energy production capacities in Northeast Estonia"]
["Lühike kirjeldus","Programmi raames viiakse ellu projekte ja tegevusi, mis aitavad kaasa energiamajanduse arengukava rakendamisele. Meetme raames investeeritakse radarite taristu, masinate ja seadmete seotamisse."]
["Seotud Euroopa Liidu energialiidu mõõtmed","CO2 heite vähendamise mõõde: taastuvenergia;\r\nEnergiajulgeoleku mõõde;\r\nCO2 heite vähendamise mõõde"]
["Asjakohased eesmärgid, sihid või panused, millele\npoliitikasuund või meede kaasa aitab"," muud eesmärgid, sh sektoripõhised ja kohanemiseesmärgid;\r\npanus liidu siduvasse eesmärki saavutada 2030. aastal taastuvenergia vähemalt 32 % osakaal, nagu on osutatud direktiivi (EL) 2018/2001 artiklis 3\n;\r\nriiklikud eesmärgid seoses energiaallikate mitmekesistamise ja kolmandatest riikidest pärit energiatarnete suurendamisega, mille eesmärk võib olla vähendada sõltumist imporditavast energiast"]
["Mõjutatud sektorid","energiavarustus (sh kütuste ammutamine/kaevandamine, edastamine, jaotamine ja säilitamine ning energia muundamine kütteks ja jahutuseks ning elektri tootmiseks)"]
["Eesmärk","taastuvate energiaallikate osakaalu suurendamine elektrisektoris (energiavarustus)"]
["Kvantitatiivne eesmärk","NA"]
["Kasvuhoonegaasid, mille heitmeid otseselt mõjutatakse","CO2; CH4; N2O"]
["Planeeritud eelarve"]
["Oodatav mõju 2025-2030 keskmine","NE"]
["Programmi või meetme tüüp","Planeerimine (Planning)"]
["Hinnang sellele, mil määral poliitikasuund või meede aitab saavutada määruse\n(EL) 2021/1119 artikli 2 lõikes 1 sätestatud liidu kliimaneutraalsusees märki ja täita määruse (EL) 2018/1999 artiklis 15 osutatud pikaajalist strateegiat","This measure contributes to the political guidelines for the economy as a whole set in the General Principles of Climate Policy until 2050. https://kliimaministeerium.ee/sites/default/files/documents/2023-03/310022023003%20%281%29.pdf"]
["Programmi või meetme aluseks olevad Euroopa Liidu õigusaktid","Renewable Energy Directive"]
["Programmi või meetme rakendamise seis","Rakendatud (Implemented)"]
["Programmi või meetme rakendamise periood","2021-2024"]
["Stsenaarium, mille juures programmi või meedet on arvestatud","NIP"]
["Programmi või meetme rakendamise eest vastutavad isikute või asutuste tüüp","riigi valitsus"]
["Programmi või meetme rakendamise eest vastutavad isikud või asutused","Kaitseministeerium"]
["Viide analüüsidele või tehnilistele aruannetele","https://kliimaministeerium.ee/sites/default/files/documents/2023-07/REKK%202030%20kaasamisseminari%20ettekanded.pdf"]
["Kommentaar"]

{"sheet":"EN5","index":6,"n_rows":25,"n_cols":2,"rows_kept":25,"cut":false,"hidden":false,"merged":[]}
["REKK peatükk","3.1.1.i"]
["Teised seonduvad REKK 2030 peatükid","3.1.2.i"]
["Poliitikasuuna või meetme number (PaM ID)",9]
["Programmi või meetme number REKK2030",{"$f":"MID(CELL(\"filename\",A2),FIND(\"]\",CELL(\"filename\",A2))+1,255)","v":"EN5"}]
["Programmi või meetme nimetus ","Taastuvenergia toetus läbi vähempakkumiste oksjoni (tehnoloogia neutraalne)"]
["Programmi või meetme nimetus inglise keeles","Renewable energy support through underbidding auctions (technology neutral)"]
["Lühike kirjeldus","Toetus taastuvenergia tootmiseks tehnoloogianeutraalse enampakkumise kaudu. Eesmärk on suurendada taastuvatest energiaallikatest energiatootmist ja liikuda turupõhise energiamajanduse poole. Enampakkumiste väljakuulutamise ajakava: 2019 kuulutati välja 5 GWh suurune enampakkumine, 2020 kuulutati välja 5 GWh suurune enampakkumine, 2021. aastal kuulutati välja 540 GWh suurune enampakkumine (tehnoloogia neutraalne). "]
["Seotud Euroopa Liidu energialiidu mõõtmed","CO2 heite vähendamise mõõde;\r\nCO2 heite vähendamise mõõde: taastuvenergia;\r\nEnergiajulgeoleku mõõde"]
["Asjakohased eesmärgid, sihid või panused, millele\npoliitikasuund või meede kaasa aitab"," muud eesmärgid, sh sektoripõhised ja kohanemiseesmärgid;\r\npanus liidu siduvasse eesmärki saavutada 2030. aastal taastuvenergia vähemalt 32 % osakaal, nagu on osutatud direktiivi (EL) 2018/2001 artiklis 3\n;\r\nriiklikud eesmärgid seoses energiaallikate mitmekesistamise ja kolmandatest riikidest pärit energiatarnete suurendamisega, mille eesmärk võib olla vähendada sõltumist imporditavast energiast"]
["Mõjutatud sektorid","energiavarustus (sh kütuste ammutamine/kaevandamine, edastamine, jaotamine ja säilitamine ning energia muundamine kütteks ja jahutuseks ning elektri tootmiseks)"]
["Eesmärk","taastuvate energiaallikate osakaalu suurendamine elektrisektoris (energiavarustus);\r\nüleminek vähem CO2 heidet tekitavatele kütustele (energiavarustus);\r\ntõhususe suurendamine energeetikasektoris ja energia muundamise sektoris (energiavarustus)"]
["Kvantitatiivne eesmärk","Täiendav taastuvenergia toodang:\n2024-2025 - 555 GWh"]
["Kasvuhoonegaasid, mille heitmeid otseselt mõjutatakse","CO2; CH4; N2O"]
["Planeeritud eelarve"]
["Oodatav mõju 2025-2030 keskmine",{"$f":"AVERAGE(Meetmed!H6:M6)","v":108.12869351504743}]
["Programmi või meetme tüüp","Majanduslikud stiimulid (Economic);\r\nSeadusandlus (Regulatory)"]
["Hinnang sellele, mil määral poliitikasuund või meede aitab saavutada määruse\n(EL) 2021/1119 artikli 2 lõikes 1 sätestatud liidu kliimaneutraalsusees märki ja täita määruse (EL) 2018/1999 artiklis 15 osutatud pikaajalist strateegiat","This measure contributes to the political guidelines for the economy as a whole set in the General Principles of Climate Policy until 2050. https://kliimaministeerium.ee/sites/default/files/documents/2023-03/310022023003%20%281%29.pdf"]
["Programmi või meetme aluseks olevad Euroopa Liidu õigusaktid","ETS Directive;\r\nRenewable Energy Directive"]
["Programmi või meetme rakendamise seis","Rakendatud (Implemented)"]
["Programmi või meetme rakendamise periood","2019-2024"]
["Stsenaarium, mille juures programmi või meedet on arvestatud","WEM"]
["Programmi või meetme rakendamise eest vastutavad isikute või asutuste tüüp","ettevõtjad/tööstusühendused; riigi valitsus"]
["Programmi või meetme rakendamise eest vastutavad isikud või asutused","Elering, Kliimaministeerium"]
["Viide analüüsidele või tehnilistele aruannetele","https://kliimaministeerium.ee/energeetika-maavarad/taastuvenergia/vahempakkumised"]
["Kommentaar","Oodatav mõju on esitatud aasta kohta perioodi 2021-2030 keskmisena"]

{"sheet":"EN6","index":7,"n_rows":24,"n_cols":2,"rows_kept":24,"cut":false,"hidden":false,"merged":[]}
["REKK peatükk","3.1.1.i"]
["Teised seonduvad REKK 2030 peatükid","3.1.2.i"]
["Poliitikasuuna või meetme number (PaM ID)",10]
["Programmi või meetme number REKK2030",{"$f":"MID(CELL(\"filename\",A2),FIND(\"]\",CELL(\"filename\",A2))+1,255)","v":"EN6"}]
["Programmi või meetme nimetus ","Taastuvenergia toetus läbi vähempakkumiste oksjoni (tehnoloogia spetsiifiline)"]
["Programmi või meetme nimetus inglise keeles","Renewable energy support through underbidding auctions (technology specific)"]
["Lühike kirjeldus","Toetus taastuvenergia tootmiseks tehnoloogia spetsiifilise enampakkumise kaudu. Eesmärk on suurendada taastuvatest energiaallikatest energiatootmist ja liikuda turupõhise energiamajanduse poole. Enampakkumiste väljakuulutamise ajakava:  2023. aastal viidi läbi vähemalt 650 GWh suurune enampakkumine (tehnoloogia spetsiifiline).\n\nUute võimsuste rajamise valmimisaasta on indikatiivne, eelduslikult 4-5 aasta pärast konkursi läbiviimist. \n"]
["Seotud Euroopa Liidu energialiidu mõõtmed","CO2 heite vähendamise mõõde; CO2 heite vähendamise mõõde: taastuvenergia;\r\nEnergiajulgeoleku mõõde"]
["Asjakohased eesmärgid, sihid või panused, millele\npoliitikasuund või meede kaasa aitab"," muud eesmärgid, sh sektoripõhised ja kohanemiseesmärgid;\r\npanus liidu siduvasse eesmärki saavutada 2030. aastal taastuvenergia vähemalt 32 % osakaal, nagu on osutatud direktiivi (EL) 2018/2001 artiklis 3\n;\r\neeldatavad trajektoorid taastuvenergiatehnoloogia lahenduste kaupa;\r\nriiklikud eesmärgid seoses energiaallikate mitmekesistamise ja kolmandatest riikidest pärit energiatarnete suurendamisega, mille eesmärk võib olla vähendada sõltumist imporditavast energiast"]
["Mõjutatud sektorid","energiavarustus (sh kütuste ammutamine/kaevandamine, edastamine, jaotamine ja säilitamine ning energia muundamine kütteks ja jahutuseks ning elektri tootmiseks)"]
["Eesmärk","taastuvate energiaallikate osakaalu suurendamine elektrisektoris (energiavarustus);\r\nüleminek vähem CO2 heidet tekitavatele kütustele (energiavarustus);\r\ntõhususe suurendamine energeetikasektoris ja energia muundamise sektoris (energiavarustus)"]
["Kvantitatiivne eesmärk","Täiendav taastuvenergia toodang:\nAlates 2028 - 1070 GWh"]
["Kasvuhoonegaasid, mille heitmeid otseselt mõjutatakse","CO2; CH4; N2O"]
["Oodatav mõju 2025-2030 keskmine",{"$f":"AVERAGE(Meetmed!H7:M7)","v":159.0815822477505}]
["Programmi või meetme tüüp","Majanduslikud stiimulid (Economic);\r\nSeadusandlus (Regulatory)"]
["Hinnang sellele, mil määral poliitikasuund või meede aitab saavutada määruse\n(EL) 2021/1119 artikli 2 lõikes 1 sätestatud liidu kliimaneutraalsusees märki ja täita määruse (EL) 2018/1999 artiklis 15 osutatud pikaajalist strateegiat","This measure contributes to the political guidelines for the economy as a whole set in the General Principles of Climate Policy until 2050.\nhttps://kliimaministeerium.ee/sites/default/files/documents/2023-03/310022023003%20%281%29.pdf"]
["Programmi või meetme aluseks olevad Euroopa Liidu õigusaktid","ETS Directive;\r\nRenewable Energy Directive"]
["Programmi või meetme rakendamise seis","Rakendatud (Implemented)"]
["Programmi või meetme rakendamise periood","2023-2028"]
["Stsenaarium, mille juures programmi või meedet on arvestatud","WEM"]
["Programmi või meetme rakendamise eest vastutavad isikute või asutuste tüüp","ettevõtjad/tööstusühendused; riigi valitsus"]
["Programmi või meetme rakendamise eest vastutavad isikud või asutused","Elering, Kliimaministeerium"]
["Viide analüüsidele või tehnilistele aruannetele","https://kliimaministeerium.ee/energeetika-maavarad/taastuvenergia/vahempakkumised\nhttps://www.riigiteataja.ee/akt/330012024001"]
["Kommentaar","Oodatav mõju on esitatud aasta kohta perioodi 2021-2030 keskmisena"]

{"sheet":"EN7","index":8,"n_rows":25,"n_cols":2,"rows_kept":25,"cut":false,"hidden":false,"merged":[]}
["REKK peatükk","3.1.1.i"]
["Teised seonduvad REKK 2030 peatükid","3.2.1.i"]
["Poliitikasuuna või meetme number (PaM ID)",7]
["Programmi või meetme number REKK2030",{"$f":"MID(CELL(\"filename\",A2),FIND(\"]\",CELL(\"filename\",A2))+1,255)","v":"EN7"}]
["Programmi või meetme nimetus ","Rohehange"]
["Programmi või meetme nimetus inglise keeles","Green procurement"]
["Lühike kirjeldus","Ühishanke eesmärk on sõlmida pikaajalisi fikseeritud hinnaga elektriostu lepinguid otse tootjatega. Hangitav elekter on toetusteta ja toodetud Eesti taastuvatest energiaallikatest."]
["Seotud Euroopa Liidu energialiidu mõõtmed","CO2 heite vähendamise mõõde;\r\nCO2 heite vähendamise mõõde: taastuvenergia"]
["Asjakohased eesmärgid, sihid või panused, millele\npoliitikasuund või meede kaasa aitab","eeldatavad trajektoorid, mis näitavad ajavahemikul 2021–2030 elektri-, kütte- ja jahutus- ning transpordisektoris tarbitava taastuvenergia osakaalu lõppenergia tarbimises;\r\n muud eesmärgid, sh sektoripõhised ja kohanemiseesmärgid"]
["Mõjutatud sektorid","energiatarbimine (sh kütuste ja elektri tarbimine lõpptarbijate, näiteks kodumajapidamiste ja ametiasutuste, teenindus-, tööstus- ja põllumajandussektori poolt)"]
["Eesmärk","taastuvate energiaallikate osakaalu suurendamine elektrisektoris (energiavarustus)"]
["Kvantitatiivne eesmärk","NA"]
["Kasvuhoonegaasid, mille heitmeid otseselt mõjutatakse","CO2; CH4; N2O"]
["Planeeritud eelarve"]
["Oodatav mõju 2025-2030 keskmine","NE"]
["Programmi või meetme tüüp","Planeerimine (Planning)"]
["Hinnang sellele, mil määral poliitikasuund või meede aitab saavutada määruse\n(EL) 2021/1119 artikli 2 lõikes 1 sätestatud liidu kliimaneutraalsusees märki ja täita määruse (EL) 2018/1999 artiklis 15 osutatud pikaajalist strateegiat","This measure contributes to the political guidelines for the economy as a whole set in the General Principles of Climate Policy until 2050. https://kliimaministeerium.ee/sites/default/files/documents/2023-03/310022023003%20%281%29.pdf"]
["Programmi või meetme aluseks olevad Euroopa Liidu õigusaktid","Renewable Energy Directive"]
["Programmi või meetme rakendamise seis","Rakendatud (Implemented)"]
["Programmi või meetme rakendamise periood","2021-"]
["Stsenaarium, mille juures programmi või meedet on arvestatud","NIP"]
["Programmi või meetme rakendamise eest vastutavad isikute või asutuste tüüp","riigi valitsus"]
["Programmi või meetme rakendamise eest vastutavad isikud või asutused","Riigi Kinnisvara"]
["Viide analüüsidele või tehnilistele aruannetele"]
["Kommentaar"]

{"sheet":"EN8","index":9,"n_rows":25,"n_cols":2,"rows_kept":25,"cut":false,"hidden":false,"merged":[]}
["REKK peatükk","3.2.iv"]
["Teised seonduvad REKK 2030 peatükid"]
["Poliitikasuuna või meetme number (PaM ID)",33]
["Programmi või meetme number REKK2030",{"$f":"MID(CELL(\"filename\",A2),FIND(\"]\",CELL(\"filename\",A2))+1,255)","v":"EN8"}]
["Programmi või meetme nimetus ","Võrguteenuste kvaliteedi tõstmine"]
["Programmi või meetme nimetus inglise keeles","Improving the quality of network services"]
["Lühike kirjeldus","Võrguteenuste kvaliteedi tõstmine (standardite EVSEN 50160, EVS-IEC 61000 nõuete täitmine) ja häiringute põhjustajate vastutuse määratlemine ning meetmete rakendamine häiringute kõrvaldamiseks"]
["Seotud Euroopa Liidu energialiidu mõõtmed","Energiatõhususe mõõde"]
["Asjakohased eesmärgid, sihid või panused, millele\npoliitikasuund või meede kaasa aitab","seoses liidu 2030. aasta vähemalt 32,5 % energiatõhususeesmärgiga kindlaks määratud soovituslik riiklik energiatõhususpanus, millele on osutatud direktiivi 2012/27/EL artikli 1 lõikes 1 ja artikli 3 lõikes 5"]
["Mõjutatud sektorid","energiatarbimine (sh kütuste ja elektri tarbimine lõpptarbijate, näiteks kodumajapidamiste ja ametiasutuste, teenindus-, tööstus- ja põllumajandussektori poolt)"]
["Eesmärk","hoonete energiatõhususe suurendamine (energiatarbimine);\r\nseadmete energiatõhususe suurendamine (energiatarbimine);\r\nEnergiatõhususe suurendamine teenuste-/teenindussektoris  (energiatarbimine);\r\nenergiatõhususe suurendamine tööstusliku lõppkasutuse sektorites (energiatarbimine)"]
["Kvantitatiivne eesmärk","Jaotusvõrgus katkestuste keskmine kogukestus minutites tarbimiskoha kohta aastas, minutit: ≤90 (2030) Andmata jäänud energia kogus ülekandevõrgus: ≤150 (2030)"]
["Kasvuhoonegaasid, mille heitmeid otseselt mõjutatakse","NA"]
["Planeeritud eelarve"]
["Oodatav mõju 2025-2030 keskmine","NE"]
["Programmi või meetme tüüp","Seadusandlus (Regulatory)"]
["Hinnang sellele, mil määral poliitikasuund või meede aitab saavutada määruse\n(EL) 2021/1119 artikli 2 lõikes 1 sätestatud liidu kliimaneutraalsusees märki ja täita määruse (EL) 2018/1999 artiklis 15 osutatud pikaajalist strateegiat","This measure contributes to the political guidelines for the economy as a whole set in the General Principles of Climate Policy until 2050. https://kliimaministeerium.ee/sites/default/files/documents/2023-03/310022023003%20%281%29.pdf"]
["Programmi või meetme aluseks olevad Euroopa Liidu õigusaktid","Energy Efficency Directive"]
["Programmi või meetme rakendamise seis","Rakendatud (Implemented)"]
["Programmi või meetme rakendamise periood","2017-2030"]
["Stsenaarium, mille juures programmi või meedet on arvestatud","NIP"]
["Programmi või meetme rakendamise eest vastutavad isikute või asutuste tüüp","riigi valitsus"]
["Programmi või meetme rakendamise eest vastutavad isikud või asutused","Kliimaministeerium"]
["Viide analüüsidele või tehnilistele aruannetele","https://energiatalgud.ee/img_auth.php/1/12/Eesti_Arengufond._Elektriv%C3%B5rgu_t%C3%A4nane_olukord._V%C3%B5imalikud_arengustsenaariumid.pdf"]
["Kommentaar"]

{"sheet":"EN9","index":10,"n_rows":25,"n_cols":2,"rows_kept":25,"cut":false,"hidden":false,"merged":[]}
["REKK peatükk","3.2.vi"]
["Teised seonduvad REKK 2030 peatükid",{"$f":"\"3.3.i\"","v":"3.3.i"}]
["Poliitikasuuna või meetme number (PaM ID)",8]
["Programmi või meetme number REKK2030",{"$f":"MID(CELL(\"filename\",A2),FIND(\"]\",CELL(\"filename\",A2))+1,255)","v":"EN9"}]
["Programmi või meetme nimetus ","Ilmastikukindla võrgu osakaalu suurendamine"]
["Programmi või meetme nimetus inglise keeles","Increasing the share of the weatherproof network"]
["Lühike kirjeldus","Paljasjuhtmeliste õhuliinide asendamine ilmastikukindlate lahendustega jaotusvõrgus"]
["Seotud Euroopa Liidu energialiidu mõõtmed","Energiatõhususe mõõde"]
["Asjakohased eesmärgid, sihid või panused, millele\npoliitikasuund või meede kaasa aitab","seoses liidu 2030. aasta vähemalt 32,5 % energiatõhususeesmärgiga kindlaks määratud soovituslik riiklik energiatõhususpanus, millele on osutatud direktiivi 2012/27/EL artikli 1 lõikes 1 ja artikli 3 lõikes 5"]
["Mõjutatud sektorid","energiavarustus (sh kütuste ammutamine/kaevandamine, edastamine, jaotamine ja säilitamine ning energia muundamine kütteks ja jahutuseks ning elektri tootmiseks)"]
["Eesmärk","energiavarustustaristu vastupanuvõime suurendamine, sealhulgas energiavarustuse tagamine suuremate võrguhäirete korral (energiavarustus)"]
["Kvantitatiivne eesmärk","Ilmastikukindla võrgu osakaal jaotusvõrgus: 75% (2030) (Elektrilevi arengukava eesmärk)"]
["Kasvuhoonegaasid, mille heitmeid otseselt mõjutatakse","NA"]
["Planeeritud eelarve"]
["Oodatav mõju 2025-2030 keskmine","NE"]
["Programmi või meetme tüüp","Seadusandlus (Regulatory)"]
["Hinnang sellele, mil määral poliitikasuund või meede aitab saavutada määruse\n(EL) 2021/1119 artikli 2 lõikes 1 sätestatud liidu kliimaneutraalsusees märki ja täita määruse (EL) 2018/1999 artiklis 15 osutatud pikaajalist strateegiat","This measure contributes to the political guidelines for the economy as a whole set in the General Principles of Climate Policy until 2050. https://kliimaministeerium.ee/sites/default/files/documents/2023-03/310022023003%20%281%29.pdf"]
["Programmi või meetme aluseks olevad Euroopa Liidu õigusaktid","Energy Efficency Directive"]
["Programmi või meetme rakendamise seis","Rakendatud (Implemented)"]
["Programmi või meetme rakendamise periood","2017-2030"]
["Stsenaarium, mille juures programmi või meedet on arvestatud","NIP"]
["Programmi või meetme rakendamise eest vastutavad isikute või asutuste tüüp","riigi valitsus"]
["Programmi või meetme rakendamise eest vastutavad isikud või asutused","Kliimaministeerium"]
["Viide analüüsidele või tehnilistele aruannetele","https://energiatalgud.ee/img_auth.php/1/12/Eesti_Arengufond._Elektriv%C3%B5rgu_t%C3%A4nane_olukord._V%C3%B5imalikud_arengustsenaariumid.pdf"]
["Kommentaar"]

{"sheet":"EN10","index":11,"n_rows":25,"n_cols":2,"rows_kept":25,"cut":false,"hidden":false,"merged":[]}
["REKK peatükk","3.2.vi"]
["Teised seonduvad REKK 2030 peatükid"]
["Poliitikasuuna või meetme number (PaM ID)",122]
["Programmi või meetme number REKK2030",{"$f":"MID(CELL(\"filename\",A1),FIND(\"]\",CELL(\"filename\",A1))+1,255)","v":"EN10"}]
["Programmi või meetme nimetus ","Kauglugemissüsteemile üleminek"]
["Programmi või meetme nimetus inglise keeles","Switching to a remote reading system"]
["Lühike kirjeldus","Kaugloetavate arvestite paigaldamine kõigile tarbijatele, kauglugemise juurutamine, 2027. alates järkjärgult üleminek 15 min kauplemisperioodile nõuab uute kaugloetavate arvestite paigaldust seoses andmesidega, aitab arendada elutähtsat teenust, aitab vähendada CO2 tarbimisandmete kättesaadavuse parandamise ja nende andmete alusel tarbimise juhtimisega"]
["Seotud Euroopa Liidu energialiidu mõõtmed","Energiatõhususe mõõde"]
["Asjakohased eesmärgid, sihid või panused, millele\npoliitikasuund või meede kaasa aitab","ajavahemikul 2021–2030 saavutatav kumulatiivne lõpptarbimise energiasääst kooskõlas direktiivi 2012/27/EL artikli 7 lõike 1 punktiga b energiasäästukohustuste kohta"]
["Mõjutatud sektorid","energiatarbimine (sh kütuste ja elektri tarbimine lõpptarbijate, näiteks kodumajapidamiste ja ametiasutuste, teenindus-, tööstus- ja põllumajandussektori poolt)"]
["Eesmärk","nõudluse juhtimine/vähendamine (energiatarbimine);\r\nhoonete energiatõhususe suurendamine (energiatarbimine);\r\nseadmete energiatõhususe suurendamine (energiatarbimine);\r\nEnergiatõhususe suurendamine teenuste-/teenindussektoris  (energiatarbimine);\r\nenergiatõhususe suurendamine tööstusliku lõppkasutuse sektorites (energiatarbimine)"]
["Kvantitatiivne eesmärk","Kõik tarbijad on varustatud kauglugemisseadmetega 01.01.2017"]
["Kasvuhoonegaasid, mille heitmeid otseselt mõjutatakse","NA"]
["Planeeritud eelarve"]
["Oodatav mõju 2025-2030 keskmine","NE"]
["Programmi või meetme tüüp","Seadusandlus (Regulatory)"]
["Hinnang sellele, mil määral poliitikasuund või meede aitab saavutada määruse\n(EL) 2021/1119 artikli 2 lõikes 1 sätestatud liidu kliimaneutraalsusees märki ja täita määruse (EL) 2018/1999 artiklis 15 osutatud pikaajalist strateegiat","This measure contributes to the political guidelines for the economy as a whole set in the General Principles of Climate Policy until 2050. https://kliimaministeerium.ee/sites/default/files/documents/2023-03/310022023003%20%281%29.pdf"]
["Programmi või meetme aluseks olevad Euroopa Liidu õigusaktid","Energy Efficency Directive"]
["Programmi või meetme rakendamise seis","Vastuvõetud (Adopted)"]
["Programmi või meetme rakendamise periood","2027-2030"]
["Stsenaarium, mille juures programmi või meedet on arvestatud","NIP"]
["Programmi või meetme rakendamise eest vastutavad isikute või asutuste tüüp","riigi valitsus"]
["Programmi või meetme rakendamise eest vastutavad isikud või asutused","Kliimaministeerium"]
["Viide analüüsidele või tehnilistele aruannetele"]
["Kommentaar"]

{"sheet":"EN11","index":12,"n_rows":25,"n_cols":2,"rows_kept":25,"cut":false,"hidden":false,"merged":[]}
["REKK peatükk","3.3.i"]
["Teised seonduvad REKK 2030 peatükid",{"$f":"\"3.4.1, 3.4.2, 3.4.3\"","v":"3.4.1, 3.4.2, 3.4.3"}]
["Poliitikasuuna või meetme number (PaM ID)",23]
["Programmi või meetme number REKK2030",{"$f":"MID(CELL(\"filename\",A2),FIND(\"]\",CELL(\"filename\",A2))+1,255)","v":"EN11"}]
["Programmi või meetme nimetus ","Balti riikide elektrisüsteemi sünkroniseerimine mandri-Euroopa sünkroonalaga"]
["Programmi või meetme nimetus inglise keeles","Synchronization of the electricity system of the Baltic countries with the synchronous area of continental Europe"]
["Lühike kirjeldus","Balti riikide elektrisüsteemi sünkroniseerimine mandri-Euroopa sünkroonalaga"]
["Seotud Euroopa Liidu energialiidu mõõtmed","Energiajulgeoleku mõõde"]
["Asjakohased eesmärgid, sihid või panused, millele\npoliitikasuund või meede kaasa aitab","kolmandatest riikidest imporditavast energiast sõltumise vähendamise riiklikud eesmärgid, et suurendada piirkondade ja riikide energiasüsteemide vastupanuvõimet"]
["Mõjutatud sektorid","energiavarustus (sh kütuste ammutamine/kaevandamine, edastamine, jaotamine ja säilitamine ning energia muundamine kütteks ja jahutuseks ning elektri tootmiseks)"]
["Eesmärk","MUU"]
["Kvantitatiivne eesmärk","Eesti on ühendatud Euroopa Liidus juhitava sünkroonalaga (2025)"]
["Kasvuhoonegaasid, mille heitmeid otseselt mõjutatakse","NA"]
["Planeeritud eelarve"]
["Oodatav mõju 2025-2030 keskmine","NE"]
["Programmi või meetme tüüp","Muu (Other)"]
["Hinnang sellele, mil määral poliitikasuund või meede aitab saavutada määruse\n(EL) 2021/1119 artikli 2 lõikes 1 sätestatud liidu kliimaneutraalsusees märki ja täita määruse (EL) 2018/1999 artiklis 15 osutatud pikaajalist strateegiat","This measure contributes to the political guidelines for the economy as a whole set in the General Principles of Climate Policy until 2050. https://kliimaministeerium.ee/sites/default/files/documents/2023-03/310022023003%20%281%29.pdf"]
["Programmi või meetme aluseks olevad Euroopa Liidu õigusaktid","Commission Delegated Regulation (EU) 2018/540 of 23 November 2017 amending Regulation (EU) No 347/2013 of the European Parliament and of the Council as regards the Union list of projects of common interest"]
["Programmi või meetme rakendamise seis","Rakendatud (Implemented)"]
["Programmi või meetme rakendamise periood","2018-2025"]
["Stsenaarium, mille juures programmi või meedet on arvestatud","NIP"]
["Programmi või meetme rakendamise eest vastutavad isikute või asutuste tüüp","riigi valitsus"]
["Programmi või meetme rakendamise eest vastutavad isikud või asutused","Kliimaministeerium"]
["Viide analüüsidele või tehnilistele aruannetele"]
["Kommentaar"]

{"sheet":"EN12","index":13,"n_rows":27,"n_cols":2,"rows_kept":27,"cut":false,"hidden":false,"merged":[]}
["REKK peatükk","3.1.2.ii"]
["Teised seonduvad REKK 2030 peatükid"]
["Poliitikasuuna või meetme number (PaM ID)",22]
["Programmi või meetme number REKK2030",{"$f":"MID(CELL(\"filename\",A2),FIND(\"]\",CELL(\"filename\",A2))+1,255)","v":"EN12"}]
["Programmi või meetme nimetus ","Õhuseireradarite soetamine tuuleparkide arendamiseks "]
["Programmi või meetme nimetus inglise keeles","The acquisition of air surveillance  radars for the development of wind farms"]
["Lühike kirjeldus","Soetatakse koostöös Kaitseministeeriumiga Lääne-Eesti meretuulealade vabastamiseks õhuseireradari 66,8 miljoni euro eest. See on vajalik, et saaksime suurendada kodumaist keskkonnasõbralikku energiatootmist kaitsesüsteeme häirimata. 2023. aastal 98 ettevalmistavad tegevused hanked jms. 2024. aastal soetamisega seonduvad tegevused jätkuvad 2025. aastal, 2026. aastal meede lõppeb. "]
["Seotud Euroopa Liidu energialiidu mõõtmed","CO2 heite vähendamise mõõde: taastuvenergia;\r\nEnergiajulgeoleku mõõde"]
["Asjakohased eesmärgid, sihid või panused, millele\npoliitikasuund või meede kaasa aitab","panus liidu siduvasse eesmärki saavutada 2030. aastal taastuvenergia vähemalt 32 % osakaal, nagu on osutatud direktiivi (EL) 2018/2001 artiklis 3\n;\r\nriiklikud eesmärgid seoses energiaallikate mitmekesistamise ja kolmandatest riikidest pärit energiatarnete suurendamisega, mille eesmärk võib olla vähendada sõltumist imporditavast energiast"]
["Mõjutatud sektorid","energiavarustus (sh kütuste ammutamine/kaevandamine, edastamine, jaotamine ja säilitamine ning energia muundamine kütteks ja jahutuseks ning elektri tootmiseks)"]
["Eesmärk","taastuvate energiaallikate osakaalu suurendamine elektrisektoris (energiavarustus);\r\nüleminek vähem CO2 heidet tekitavatele kütustele (energiavarustus)"]
["Kvantitatiivne eesmärk","Vabastada 2024/2025 aastatel mandri-Eesti kõrguspiirangutest. Ligi 70 % Eesti maismaast vabaneb riigikaitselistest piirnagutest tuuleenergia tootmiseks."]
["Kasvuhoonegaasid, mille heitmeid otseselt mõjutatakse","NA"]
["Planeeritud eelarve"]
["Oodatav mõju 2025-2030 keskmine","NE"]
["Programmi või meetme tüüp","Majanduslikud stiimulid (Economic)"]
["Hinnang sellele, mil määral poliitikasuund või meede aitab saavutada määruse\n(EL) 2021/1119 artikli 2 lõikes 1 sätestatud liidu kliimaneutraalsusees märki ja täita määruse (EL) 2018/1999 artiklis 15 osutatud pikaajalist strateegiat","This measure contributes to the political guidelines for the economy as a whole set in the General Principles of Climate Policy until 2050. https://kliimaministeerium.ee/sites/default/files/documents/2023-03/310022023003%20%281%29.pdf"]
["Programmi või meetme aluseks olevad Euroopa Liidu õigusaktid","Renewable Energy Directive;\r\nETS Directive;\r\nEnergy Efficency Directive"]
["Programmi või meetme rakendamise seis","Rakendatud (Implemented)"]
["Programmi või meetme rakendamise periood","2019-2025"]
["Stsenaarium, mille juures programmi või meedet on arvestatud","NIP"]
["Programmi või meetme rakendamise eest vastutavad isikute või asutuste tüüp","riigi valitsus"]
["Programmi või meetme rakendamise eest vastutavad isikud või asutused","Kliimaministeerium; Kaitseministeerium"]
["Viide analüüsidele või tehnilistele aruannetele"]
["Kommentaar"]
[]
[66800000]

{"sheet":"EN13","index":14,"n_rows":25,"n_cols":2,"rows_kept":25,"cut":false,"hidden":false,"merged":[]}
["REKK peatükk","3.1.2.iii"]
["Teised seonduvad REKK 2030 peatükid"]
["Poliitikasuuna või meetme number (PaM ID)",26]
["Programmi või meetme number REKK2030",{"$f":"MID(CELL(\"filename\",A2),FIND(\"]\",CELL(\"filename\",A2))+1,255)","v":"EN13"}]
["Programmi või meetme nimetus ","Meretuuleparkide eelarendus (liitumised, planeeringud), ühisprojekt "]
["Programmi või meetme nimetus inglise keeles","Preliminary development of offshore wind farms (joinings, plans), joint project"]
["Lühike kirjeldus","Meretuuleparkide rajamiseks peavad arendajad tegema olulises mahus kulutusi juba enne, kui on selge, kas piirkonnas tuuleparki rajada saab. Näiteks võib selguda, et nimetatud piirkond tuleb looduskaitse alla võtta. Kõrged riskid tõstavad ühiskonna jaoks taastuvelektri hinda ning heidutavad potentsiaalseid arendajaid. Võimalikuks lahenduseks on riigipoolsed tegevused meretuulepargi eelarendamiseks (näiteks vajalike planeerimismenetlustoimingute läbi viimine, elektrivõrguga liitumise rajamine). Eelkõige on sellist eelarendamist mõistlik riigi poolt kaaluda teiste riikidega ühisprojektides. "]
["Seotud Euroopa Liidu energialiidu mõõtmed","CO2 heite vähendamise mõõde: taastuvenergia;\r\nEnergiajulgeoleku mõõde"]
["Asjakohased eesmärgid, sihid või panused, millele\npoliitikasuund või meede kaasa aitab","panus liidu siduvasse eesmärki saavutada 2030. aastal taastuvenergia vähemalt 32 % osakaal, nagu on osutatud direktiivi (EL) 2018/2001 artiklis 3\n;\r\neeldatavad trajektoorid, mis näitavad ajavahemikul 2021–2030 elektri-, kütte- ja jahutus- ning transpordisektoris tarbitava taastuvenergia osakaalu lõppenergia tarbimises;\r\nriiklikud eesmärgid seoses energiaallikate mitmekesistamise ja kolmandatest riikidest pärit energiatarnete suurendamisega, mille eesmärk võib olla vähendada sõltumist imporditavast energiast"]
["Mõjutatud sektorid","energiavarustus (sh kütuste ammutamine/kaevandamine, edastamine, jaotamine ja säilitamine ning energia muundamine kütteks ja jahutuseks ning elektri tootmiseks)"]
["Eesmärk","taastuvate energiaallikate osakaalu suurendamine elektrisektoris (energiavarustus)"]
["Kvantitatiivne eesmärk","Riigiabi luba olemas vähempakkumise korraldamiseks  toetamaks 130 MEUR/a (kokku 2,6 mlrd eurot) 1000 MW meretuulepargi rajamist, 12 arendusala kandideerivad sellele toetusele. Väljaspool toetust on eelarendatav ühisprojekti ELWIND hoonestusloa taotlusega 1000 MW tuulepargi rajamiseks Läti ja Eesti koostöös oksjoniga 2029. aastal."]
["Kasvuhoonegaasid, mille heitmeid otseselt mõjutatakse","NA"]
["Planeeritud eelarve"]
["Oodatav mõju 2025-2030 keskmine","NE"]
["Programmi või meetme tüüp","Muu (Other)"]
["Hinnang sellele, mil määral poliitikasuund või meede aitab saavutada määruse\n(EL) 2021/1119 artikli 2 lõikes 1 sätestatud liidu kliimaneutraalsusees märki ja täita määruse (EL) 2018/1999 artiklis 15 osutatud pikaajalist strateegiat","Meretuuleparkide tulek panustab taastuvenergia eesmärki (mis on toodud energiamajanduse korralduse seaduses) ja seega, kliimaneutraalsele energiatootmisele üleminekusse."]
["Programmi või meetme aluseks olevad Euroopa Liidu õigusaktid","Renewable Energy Directive"]
["Programmi või meetme rakendamise seis","Rakendatud (Implemented)"]
["Programmi või meetme rakendamise periood","2020-2029"]
["Stsenaarium, mille juures programmi või meedet on arvestatud","NIP"]
["Programmi või meetme rakendamise eest vastutavad isikute või asutuste tüüp","riigi valitsus"]
["Programmi või meetme rakendamise eest vastutavad isikud või asutused","Kliimaministeerium"]
["Viide analüüsidele või tehnilistele aruannetele"]
["Kommentaar"]

{"sheet":"EN14","index":15,"n_rows":114,"n_cols":6,"rows_kept":114,"cut":false,"hidden":false,"merged":[[103,4,104,4],[103,0,104,0],[103,1,104,1],[103,2,104,2],[103,3,104,3]]}
["REKK peatükk","3.1.1.i"]
["Teised seonduvad REKK 2030 peatükid"]
["Poliitikasuuna või meetme number (PaM ID)",11]
["Programmi või meetme number REKK2030",{"$f":"MID(CELL(\"filename\",A2),FIND(\"]\",CELL(\"filename\",A2))+1,255)","v":"EN14"}]
["Programmi või meetme nimetus ","Keskkonnasäästlikud energialahendused väikesaartel"]
["Programmi või meetme nimetus inglise keeles","Introduction of renewable energy in maritime surveillance radar stations on small islands"]
["Lühike kirjeldus","Suurendada taastuvatest energiaallikatest toodetud energiat. Ligikaudu 2/3 kavandatava elektrivarustussüsteemi elektrist toodetakse taastuvatel energiaallikatel põhinevatel tootmisseadmetel. Süsteem peab olema täisautomaatne ja töötama ilma katkestusteta, ja seega kasutatakse ka akupangaga diiselgeneraatorit. Taastuvenergia süsteemi kasutuselevõtt vähendaks täna kasutatava diiselgeneraatori töötunde 60–70%, mis vähendab oluliselt CO2 heitkoguseid. "]
["Seotud Euroopa Liidu energialiidu mõõtmed","CO2 heite vähendamise mõõde;\r\nCO2 heite vähendamise mõõde: taastuvenergia;\r\nEnergiajulgeoleku mõõde;\r\nEnergiatõhususe mõõde"]
["Asjakohased eesmärgid, sihid või panused, millele\npoliitikasuund või meede kaasa aitab","eeldatavad trajektoorid, mis näitavad ajavahemikul 2021–2030 elektri-, kütte- ja jahutus- ning transpordisektoris tarbitava taastuvenergia osakaalu lõppenergia tarbimises;\r\npanus liidu siduvasse eesmärki saavutada 2030. aastal taastuvenergia vähemalt 32 % osakaal, nagu on osutatud direktiivi (EL) 2018/2001 artiklis 3\n;\r\najavahemikul 2021–2030 saavutatav kumulatiivne lõpptarbimise energiasääst kooskõlas direktiivi 2012/27/EL artikli 7 lõike 1 punktiga b energiasäästukohustuste kohta;\r\nriiklikud eesmärgid seoses energiaallikate mitmekesistamise ja kolmandatest riikidest pärit energiatarnete suurendamisega, mille eesmärk võib olla vähendada sõltumist imporditavast energiast;\r\nkasvuhoonegaaside heide ja nende sidumine – liikmesriigi siduv riiklik kasvuhoonegaaside heitega seotud eesmärk ja iga-aastased siduvad riiklikud piirnormid vastavalt määrusele (EL) 2018/842"]
["Mõjutatud sektorid","energiavarustus (sh kütuste ammutamine/kaevandamine, edastamine, jaotamine ja säilitamine ning energia muundamine kütteks ja jahutuseks ning elektri tootmiseks)"]
["Eesmärk","taastuvate energiaallikate osakaalu suurendamine elektrisektoris (energiavarustus);\r\ntõhususe suurendamine energeetikasektoris ja energia muundamise sektoris (energiavarustus)"]
["Kvantitatiivne eesmärk","Väike saarte energiatootmine taastuvatest energiaallikatest:\n2025 - 0.15 GWh"]
["Kasvuhoonegaasid, mille heitmeid otseselt mõjutatakse","CO2; CH4; N2O"]
["Planeeritud eelarve"]
["Oodatav mõju 2025-2030 keskmine",{"$f":"AVERAGE(Meetmed!H21:M21)","v":0.17999999999999997}]
["Programmi või meetme tüüp","Majanduslikud stiimulid (Economic)"]
["Hinnang sellele, mil määral poliitikasuund või meede aitab saavutada määruse\n(EL) 2021/1119 artikli 2 lõikes 1 sätestatud liidu kliimaneutraalsusees märki ja täita määruse (EL) 2018/1999 artiklis 15 osutatud pikaajalist strateegiat","This measure contributes to the political guidelines for the economy as a whole set in the General Principles of Climate Policy until 2050. https://kliimaministeerium.ee/sites/default/files/documents/2023-03/310022023003%20%281%29.pdf"]
["Programmi või meetme aluseks olevad Euroopa Liidu õigusaktid","Union renewable energy financing mechanism; Effort Sharing Regulation;\r\nRenewable Energy Directive"]
["Programmi või meetme rakendamise seis","Rakendatud (Implemented)"]
["Programmi või meetme rakendamise periood","2021-"]
["Stsenaarium, mille juures programmi või meedet on arvestatud","WEM"]
["Programmi või meetme rakendamise eest vastutavad isikute või asutuste tüüp","riigi valitsus"]
["Programmi või meetme rakendamise eest vastutavad isikud või asutused",{"$f":"AVERAGE(Meetmed!H21:M21)","v":0.17999999999999997}]
["Viide analüüsidele või tehnilistele aruannetele","https://adr.siseministeerium.ee/sisemin/dokument/1050803\n"]
["Kommentaar"]
[]
[]
[]
[]
[]
[]
[]
[]
[]
[]
[]
[]
[]
[]
[]
[]
[]
[]
[]
[]
[]
[]
[]
[]
[]
[]
[]
[]
[]
[]
[]
[]
[]
[]
[]
[]
[]
[]
[]
[]
[]
[]
[]
[]
[]
[]
[]
[]
[]
[]
[]
[]
[]
[]
[]
[]
[]
[]
[]
[]
[]
[]
[]
[]
[]
[]
[]
[]
[]
[]
[]
[]
[]
[]
[]
[]
[]
["MEETME seire"]
["Ajakohastus pärast eelmist esitamist","Ajakohastuse selgitused või täiendava /lisadokumendi link","Poliitikaeesmärgi saavutamiseks tehtud edusammud","Üldised märkused","Juhis tätimiseks"]
[]
["kehtiva meetme muutmine, muudatused rakendamises või ülesehituses ja pikendamine; seireteave, ajakohased andmed edusammude kohta või mõjuhindamise tulemused","nimi muutus",null,null,"Lahtris Poliitikaeesmärgi saavutamiseks tehtud edusammud (tulp C) lisa kvalitatiivne kirjelduse poliitikaeesmärgi saavutamiseks tehtud edusammude kohta.\nLisa sellised näitajad (koos ühikuga) ja nende väärtused, mida on kasutatud poliitikasuundade ja meetmete edenemise seireks ja (järel)hindamiseks.  Märgi, millis(t)e aasta(te) väärtus(t)ega on tegemist. Esitada võib mitme näitaja ja aasta väärtused. \nEsitatud tulemusnäitajad peavad olema asjakohased, heakskiidetud, usaldusväärsed, lihtsad ja töökindlad."]
[]
[]
[]
[]
["MEETME RAHASTUSE seire"]
["Algselt eeldatud investeeringud (eurodes)",null,"Tegelikud investeeringud aastani X–2 (kaasa arvatud) (eurodes)\r",null,"Veel rakendamata tegelikud investeeringud (eurodes)"]
["Väärtus","Aasta, mille hindu on kasutatud","Riigi avaliku sektori poolne\nrahastamine\r","Allika kirjeldus","Väärtus","Aasta, mille hindu on\nkasutatud"]
[1800000,"2024 (RES 2024-2027)",0,"EL HKS",0]

{"sheet":"EN16","index":16,"n_rows":25,"n_cols":2,"rows_kept":25,"cut":false,"hidden":false,"merged":[]}
["REKK peatükk","3.3.i"]
["Teised seonduvad REKK 2030 peatükid"]
["Poliitikasuuna või meetme number (PaM ID)",13]
["Programmi või meetme number REKK2030",{"$f":"MID(CELL(\"filename\",A2),FIND(\"]\",CELL(\"filename\",A2))+1,255)","v":"EN16"}]
["Programmi või meetme nimetus ","Kalalaeva energiatõhususe parendamise ja kliimamuutuste leevendamise toetus"]
["Programmi või meetme nimetus inglise keeles","Support for making the processing of fishery and aquaculture products more energy and resource efficient"]
["Lühike kirjeldus","Meetme eesmärk on suurendada ettevõtete energiasäästu ja ressursi tootlikkust säästlikumate tehnoloogiate ja lahenduste kasutuselevõtu kaudu, vähendades samal ajal mõju keskkonnale. Ressursi tootlikkus on materjalide kasutamise efektiivsuse näitaja, mis iseloomustab seda, kui palju lisandväärtust luuakse materjaliühiku kasutamisega. Seega on toetuse eesmärk nii energiasäästu suurendamine kui ka ressursside või materjalide (vesi, tooraine, küte, jäätmed jne) kasutamine. Tõhusam energiakasutus toob kaasa märkimisväärse rahalise kokkuhoiu ja vähenevad KHG heitkogused. Toetatakse energia- või ressursisäästulahenduse elluviimist energia- või ressursiauditi alusel."]
["Seotud Euroopa Liidu energialiidu mõõtmed","CO2 heite vähendamise mõõde;\r\nEnergiatõhususe mõõde"]
["Asjakohased eesmärgid, sihid või panused, millele\npoliitikasuund või meede kaasa aitab","kasvuhoonegaaside heide ja nende sidumine – liikmesriigi siduv riiklik kasvuhoonegaaside heitega seotud eesmärk ja iga-aastased siduvad riiklikud piirnormid vastavalt määrusele (EL) 2018/842;\r\najavahemikul 2021–2030 saavutatav kumulatiivne lõpptarbimise energiasääst kooskõlas direktiivi 2012/27/EL artikli 7 lõike 1 punktiga b energiasäästukohustuste kohta"]
["Mõjutatud sektorid","energiatarbimine (sh kütuste ja elektri tarbimine lõpptarbijate, näiteks kodumajapidamiste ja ametiasutuste, teenindus-, tööstus- ja põllumajandussektori poolt)"]
["Eesmärk","energiatõhususe suurendamine teenuste-/teenindussektoris (energiatarbimine)"]
["Kvantitatiivne eesmärk","Meetme energisääst 2030.aastaks 27.2 GWh"]
["Kasvuhoonegaasid, mille heitmeid otseselt mõjutatakse","CO2; CH4; N2O"]
["Planeeritud eelarve"]
["Oodatav mõju 2025-2030 keskmine",{"$f":"AVERAGE(Meetmed!H31:M31)","v":3.4540397994620498}]
["Programmi või meetme tüüp","Majanduslikud stiimulid (Economic)"]
["Hinnang sellele, mil määral poliitikasuund või meede aitab saavutada määruse\n(EL) 2021/1119 artikli 2 lõikes 1 sätestatud liidu kliimaneutraalsusees märki ja täita määruse (EL) 2018/1999 artiklis 15 osutatud pikaajalist strateegiat","This measure contributes to the political guidelines for the economy as a whole set in the General Principles of Climate Policy until 2050. https://kliimaministeerium.ee/sites/default/files/documents/2023-03/310022023003%20%281%29.pdf"]
["Programmi või meetme aluseks olevad Euroopa Liidu õigusaktid","Effort Sharing Regulation; Energy Efficency Directive"]
["Programmi või meetme rakendamise seis","Rakendatud (Implemented)"]
["Programmi või meetme rakendamise periood","2017-"]
["Stsenaarium, mille juures programmi või meedet on arvestatud","WEM"]
["Programmi või meetme rakendamise eest vastutavad isikute või asutuste tüüp","riigi valitsus"]
["Programmi või meetme rakendamise eest vastutavad isikud või asutused","Põllumajanduse Registrite ja Informatsiooni Amet, Regionaal- ja Põllumajandusministeerium"]
["Viide analüüsidele või tehnilistele aruannetele","Kalapüügi- ja vesiviljelustoodete töötlemise energia- ja ressursisäästlikumaks muutmise toetus–Riigi Teataja"]
["Kommentaar"]

{"sheet":"EN17","index":17,"n_rows":25,"n_cols":2,"rows_kept":25,"cut":false,"hidden":false,"merged":[]}
["REKK peatükk","3.1.1.i"]
["Teised seonduvad REKK 2030 peatükid"]
["Poliitikasuuna või meetme number (PaM ID)",14]
["Programmi või meetme number REKK2030",{"$f":"MID(CELL(\"filename\",A2),FIND(\"]\",CELL(\"filename\",A2))+1,255)","v":"EN17"}]
["Programmi või meetme nimetus ","Kalapüügi- ja vesiviljelustoodete käitlemisettevõtete energia- ja ressursiauditi tegemise toetus"]
["Programmi või meetme nimetus inglise keeles","Support for energy and resource audits of fishery and aquaculture products establishments"]
["Lühike kirjeldus","Meetme eesmärk on toetada energia- ja ressursiauditi läbiviimist. Energia- ja ressursiauditiga määratakse kindlaks need investeeringud kalandus- ja vesiviljelustoodete töötlemises, mis aitavad säästa energiat või vähendada keskkonnamõju, sealhulgas investeeringud jäätmekäitlusesse. Meede suunab ettevõtteid üle minema säästlikumale mõtteviisile ja edendab kulutõhusaid meetmeid."]
["Seotud Euroopa Liidu energialiidu mõõtmed","CO2 heite vähendamise mõõde;\r\nEnergiatõhususe mõõde"]
["Asjakohased eesmärgid, sihid või panused, millele\npoliitikasuund või meede kaasa aitab","kasvuhoonegaaside heide ja nende sidumine – liikmesriigi siduv riiklik kasvuhoonegaaside heitega seotud eesmärk ja iga-aastased siduvad riiklikud piirnormid vastavalt määrusele (EL) 2018/842;\r\najavahemikul 2021–2030 saavutatav kumulatiivne lõpptarbimise energiasääst kooskõlas direktiivi 2012/27/EL artikli 7 lõike 1 punktiga b energiasäästukohustuste kohta"]
["Mõjutatud sektorid","energiatarbimine (sh kütuste ja elektri tarbimine lõpptarbijate, näiteks kodumajapidamiste ja ametiasutuste, teenindus-, tööstus- ja põllumajandussektori poolt)"]
["Eesmärk","Energiatõhususe suurendamine teenuste-/teenindussektoris  (energiatarbimine)"]
["Kvantitatiivne eesmärk","NA"]
["Kasvuhoonegaasid, mille heitmeid otseselt mõjutatakse","CO2; CH4; N2O"]
["Planeeritud eelarve"]
["Oodatav mõju 2025-2030 keskmine","NE"]
["Programmi või meetme tüüp","Majanduslikud stiimulid (Economic)"]
["Hinnang sellele, mil määral poliitikasuund või meede aitab saavutada määruse\n(EL) 2021/1119 artikli 2 lõikes 1 sätestatud liidu kliimaneutraalsusees märki ja täita määruse (EL) 2018/1999 artiklis 15 osutatud pikaajalist strateegiat","This measure contributes to the political guidelines for the economy as a whole set in the General Principles of Climate Policy until 2050. https://kliimaministeerium.ee/sites/default/files/documents/2023-03/310022023003%20%281%29.pdf"]
["Programmi või meetme aluseks olevad Euroopa Liidu õigusaktid","Effort Sharing Regulation; Energy Efficency Directive"]
["Programmi või meetme rakendamise seis","Rakendatud (Implemented)"]
["Programmi või meetme rakendamise periood","2017-"]
["Stsenaarium, mille juures programmi või meedet on arvestatud","NIP"]
["Programmi või meetme rakendamise eest vastutavad isikute või asutuste tüüp","riigi valitsus"]
["Programmi või meetme rakendamise eest vastutavad isikud või asutused","Põllumajanduse Registrite ja Informatsiooni Amet, Regionaal- ja Põllumajandusministeerium"]
["Viide analüüsidele või tehnilistele aruannetele","https://www.riigiteataja.ee/akt/117022017001?leiaKehtiv"]
["Kommentaar"]

{"sheet":"EN18","index":18,"n_rows":25,"n_cols":2,"rows_kept":25,"cut":false,"hidden":false,"merged":[]}
["REKK peatükk","3.1.1.i"]
["Teised seonduvad REKK 2030 peatükid"]
["Poliitikasuuna või meetme number (PaM ID)",15]
["Programmi või meetme number REKK2030",{"$f":"MID(CELL(\"filename\",A2),FIND(\"]\",CELL(\"filename\",A2))+1,255)","v":"EN18"}]
["Programmi või meetme nimetus ","Väikeelamute taastuvenergia kasutuselevõtu ja küttesüsteemide uuendamise toetus"]
["Programmi või meetme nimetus inglise keeles","Oil boiler replacement programme"]
["Lühike kirjeldus","Meetme raames toetatakse väikeelamule kütteseadme soetamist ja paigaldamist. Tegevuse raames on planeeritud uuendada 1850 hoone küttesüsteeme. Kui eeldada, et tegemist on keskmiselt 150m2 hoonega, mille energiakulu on 16 MWh aastas ning tegemist on amortiseerunud kütteseadme uuendamisega, mistõttu kasutegur paraneb 5% võrra. Rahalist toetust võivad saada järgmised tegevused:\n\n1) väikeelamu vedelküttekatla väljavahetamise kulu, sealhulgas uue kütteseadme ost ja paigaldus ning katlaseadmete tarvikute (sh tsirkulatsioonipump, kompleksautomaatika) ja abiseadmete vahetus, samuti sellega seotud kulu. energia tootmise salvestamiseks vajalike seadmete ostmiseks ja paigaldamiseks\n\n2) vähemalt 3,5 (7 °C / 35 °C EN 14511) kütteteguriga õhk-vesi tüüpi soojuspumpade või süsteemikoefitsiendiga vesi-vesi (maasoojuspump) soojuspumpade paigalduskulu kütte (COP) vähemalt 4 väikese maja puhul 0,0 (0 °C / 35 °C EN 14511)\n\n3)kütteseadme paigalduse projekteerimisega seotud kulu, kui kütteseadme paigaldamine toimub sama meetme raames."]
["Seotud Euroopa Liidu energialiidu mõõtmed","CO2 heite vähendamise mõõde;\r\nCO2 heite vähendamise mõõde: taastuvenergia;\r\nEnergiatõhususe mõõde"]
["Asjakohased eesmärgid, sihid või panused, millele\npoliitikasuund või meede kaasa aitab","kasvuhoonegaaside heide ja nende sidumine – liikmesriigi siduv riiklik kasvuhoonegaaside heitega seotud eesmärk ja iga-aastased siduvad riiklikud piirnormid vastavalt määrusele (EL) 2018/842;\r\neeldatavad trajektoorid, mis näitavad ajavahemikul 2021–2030 elektri-, kütte- ja jahutus- ning transpordisektoris tarbitava taastuvenergia osakaalu lõppenergia tarbimises;\r\najavahemikul 2021–2030 saavutatav kumulatiivne lõpptarbimise energiasääst kooskõlas direktiivi 2012/27/EL artikli 7 lõike 1 punktiga b energiasäästukohustuste kohta"]
["Mõjutatud sektorid","energiatarbimine (sh kütuste ja elektri tarbimine lõpptarbijate, näiteks kodumajapidamiste ja ametiasutuste, teenindus-, tööstus- ja põllumajandussektori poolt)"]
["Eesmärk","üleminek vähem CO2 heidet tekitavatele kütustele (energiavarustus);\r\nkadude vähendamine (energiavarustus)"]
["Kvantitatiivne eesmärk","NA"]
["Kasvuhoonegaasid, mille heitmeid otseselt mõjutatakse","CO2; CH4; N2O"]
["Planeeritud eelarve"]
["Oodatav mõju 2025-2030 keskmine",{"$f":"AVERAGE(Meetmed!H20:M20)","v":0.3}]
["Programmi või meetme tüüp","Majanduslikud stiimulid (Economic)"]
["Hinnang sellele, mil määral poliitikasuund või meede aitab saavutada määruse\n(EL) 2021/1119 artikli 2 lõikes 1 sätestatud liidu kliimaneutraalsusees märki ja täita määruse (EL) 2018/1999 artiklis 15 osutatud pikaajalist strateegiat","This measure contributes to the political guidelines for the economy as a whole set in the General Principles of Climate Policy until 2050. https://kliimaministeerium.ee/sites/default/files/documents/2023-03/310022023003%20%281%29.pdf"]
["Programmi või meetme aluseks olevad Euroopa Liidu õigusaktid","Effort Sharing Regulation; Energy Efficency Directive"]
["Programmi või meetme rakendamise seis","Rakendatud (Implemented)"]
["Programmi või meetme rakendamise periood","2014-"]
["Stsenaarium, mille juures programmi või meedet on arvestatud","WEM"]
["Programmi või meetme rakendamise eest vastutavad isikute või asutuste tüüp","riigi valitsus"]
["Programmi või meetme rakendamise eest vastutavad isikud või asutused","Keskkonnainvesteeringute Keskus, Kliimaministeerium"]
["Viide analüüsidele või tehnilistele aruannetele","https://www.riigiteataja.ee/akt/114102016007?leiaKehtiv"]
["Kommentaar","Oodatav mõju on esitatud aasta kohta perioodi 2021-2030 keskmisena. "]

{"sheet":"EN19","index":19,"n_rows":25,"n_cols":2,"rows_kept":25,"cut":false,"hidden":false,"merged":[]}
["REKK peatükk","3.1.1.i"]
["Teised seonduvad REKK 2030 peatükid"]
["Poliitikasuuna või meetme number (PaM ID)",16]
["Programmi või meetme number REKK2030","EN19"]
["Programmi või meetme nimetus ","Energia- ja ressursiauditite toetamine tööstusettevõtetes"]
["Programmi või meetme nimetus inglise keeles","Support for energy- and resource audits in industries"]
["Lühike kirjeldus","Toetusmeetme eesmärk (Ettevõtete ressursiauditite toetuse andmise tingimused ja kord perioodil 2021–2027 (ametlik nimetus)) on teadlikkuse tõstmine ja investeeringute toetamine energia- ja ressursitõhusatesse tööstusharudesse.  Toetuse andmise eesmärk on parandada ettevõtete teadlikkust oma ressursikasutusest ja luua eeldused ettevõtete ressursikasutuse tõhusamaks muutmiseks ressursiauditite tegemise kaudu.  Toetuse andmine panustab meetmete nimekirja väljundnäitaja saavutamisse, milleks on ringmajanduses toetatavad ettevõtjad."]
["Seotud Euroopa Liidu energialiidu mõõtmed","CO2 heite vähendamise mõõde;\r\nEnergiatõhususe mõõde"]
["Asjakohased eesmärgid, sihid või panused, millele\npoliitikasuund või meede kaasa aitab","kasvuhoonegaaside heide ja nende sidumine – liikmesriigi siduv riiklik kasvuhoonegaaside heitega seotud eesmärk ja iga-aastased siduvad riiklikud piirnormid vastavalt määrusele (EL) 2018/842;\r\najavahemikul 2021–2030 saavutatav kumulatiivne lõpptarbimise energiasääst kooskõlas direktiivi 2012/27/EL artikli 7 lõike 1 punktiga b energiasäästukohustuste kohta"]
["Mõjutatud sektorid","energiatarbimine (sh kütuste ja elektri tarbimine lõpptarbijate, näiteks kodumajapidamiste ja ametiasutuste, teenindus-, tööstus- ja põllumajandussektori poolt)"]
["Eesmärk","energiatõhususe suurendamine tööstusliku lõppkasutuse sektorites (energiatarbimine)"]
["Kvantitatiivne eesmärk","Energia- ja ressursiauditi läbiviimine 150 ettevõttes aastaks 2029."]
["Kasvuhoonegaasid, mille heitmeid otseselt mõjutatakse","CO2; CH4; N2O"]
["Planeeritud eelarve"]
["Oodatav mõju 2025-2030 keskmine","NE"]
["Programmi või meetme tüüp","Majanduslikud stiimulid (Economic)"]
["Hinnang sellele, mil määral poliitikasuund või meede aitab saavutada määruse\n(EL) 2021/1119 artikli 2 lõikes 1 sätestatud liidu kliimaneutraalsusees märki ja täita määruse (EL) 2018/1999 artiklis 15 osutatud pikaajalist strateegiat","This measure contributes to the political guidelines for the economy as a whole set in the General Principles of Climate Policy until 2050. https://kliimaministeerium.ee/sites/default/files/documents/2023-03/310022023003%20%281%29.pdf"]
["Programmi või meetme aluseks olevad Euroopa Liidu õigusaktid","Effort Sharing Regulation; Energy Efficency Directive"]
["Programmi või meetme rakendamise seis","Rakendatud (Implemented)"]
["Programmi või meetme rakendamise periood","2021-2029"]
["Stsenaarium, mille juures programmi või meedet on arvestatud","WEM"]
["Programmi või meetme rakendamise eest vastutavad isikute või asutuste tüüp","riigi valitsus"]
["Programmi või meetme rakendamise eest vastutavad isikud või asutused","Keskkonnainvesteeringute Keskus, Kliimaministeerium"]
["Viide analüüsidele või tehnilistele aruannetele","https://www.riigiteataja.ee/akt/101072016008?leiaKehtiv"]
["Kommentaar"]

{"sheet":"EN20","index":20,"n_rows":25,"n_cols":2,"rows_kept":25,"cut":false,"hidden":false,"merged":[]}
["REKK peatükk","3.1.1.i"]
["Teised seonduvad REKK 2030 peatükid"]
["Poliitikasuuna või meetme number (PaM ID)",17]
["Programmi või meetme number REKK2030","EN20"]
["Programmi või meetme nimetus ","Energia- ja ressursitõhusus ettevõtetes"]
["Programmi või meetme nimetus inglise keeles","Energy and resource efficiency in industries"]
["Lühike kirjeldus","Teadlikkuse tõstmine ja investeeringute toetamine energia- ja ressursitõhususse tööstustes. RRFis ja ÜFis eesmärk  - Toetuse andmise eesmärk on suurendada ettevõtete ressursi- ja energiatõhusust ning ressursitootlikkust tööstusettevõtetes innovaatiliste rohetehnoloogiate ja lahenduste kasutuselevõtu kaudu, et aidata kaasa kliimaneutraalsele majandusele ja kliimamuutustega kohanemisele."]
["Seotud Euroopa Liidu energialiidu mõõtmed","CO2 heite vähendamise mõõde;\r\nEnergiatõhususe mõõde"]
["Asjakohased eesmärgid, sihid või panused, millele\npoliitikasuund või meede kaasa aitab","kasvuhoonegaaside heide ja nende sidumine – liikmesriigi siduv riiklik kasvuhoonegaaside heitega seotud eesmärk ja iga-aastased siduvad riiklikud piirnormid vastavalt määrusele (EL) 2018/842;\r\najavahemikul 2021–2030 saavutatav kumulatiivne lõpptarbimise energiasääst kooskõlas direktiivi 2012/27/EL artikli 7 lõike 1 punktiga b energiasäästukohustuste kohta"]
["Mõjutatud sektorid","energiatarbimine (sh kütuste ja elektri tarbimine lõpptarbijate, näiteks kodumajapidamiste ja ametiasutuste, teenindus-, tööstus- ja põllumajandussektori poolt)"]
["Eesmärk","energiatõhususe suurendamine tööstusliku lõppkasutuse sektorites (energiatarbimine)"]
["kvantitatiivne eesmärk","ÜFis eesmärgid: Toetuse andmine panustab meetmete nimekirja väljundnäitaja saavutamisse, milleks on ringmajanduses toetatavad ettevõtjad (5 sekkumise peale kokku 150 ettevõtjat 2029 aastaks) ja toetuse tulemusena panustatakse meetmete nimekirja tulemusnäitaja saavutamisse, milleks on esmase toorme sääst (5 sekkumise peale kokku 80 000 t 2029 aastaks).RRFis projekti tulemusnäitaja, milleks on ressursitõhusate rohetehnoloogia kasutuselevõtuks toetust saanud projektide arv (sihtmäär 26 projekti 2026 aastaks)."]
["Kasvuhoonegaasid, mille heitmeid otseselt mõjutatakse","CO2; CH4; N2O"]
["Planeeritud eelarve"]
["Oodatav mõju 2025-2030 keskmine","NE"]
["Programmi või meetme tüüp","Majanduslikud stiimulid (Economic)"]
["Hinnang sellele, mil määral poliitikasuund või meede aitab saavutada määruse\n(EL) 2021/1119 artikli 2 lõikes 1 sätestatud liidu kliimaneutraalsusees märki ja täita määruse (EL) 2018/1999 artiklis 15 osutatud pikaajalist strateegiat","This measure contributes to the political guidelines for the economy as a whole set in the General Principles of Climate Policy until 2050. https://kliimaministeerium.ee/sites/default/files/documents/2023-03/310022023003%20%281%29.pdf"]
["Programmi või meetme aluseks olevad Euroopa Liidu õigusaktid","Effort Sharing Regulation; Energy Efficency Directive"]
["Programmi või meetme rakendamise seis","Rakendatud (Implemented)"]
["Programmi või meetme rakendamise periood","2016-, (ÜF periood 2014-2020), RRF kuni 2026 ja ÜF periood 2021-2027"]
["Stsenaarium, mille juures programmi või meedet on arvestatud","WEM"]
["Programmi või meetme rakendamise eest vastutavad isikute või asutuste tüüp","riigi valitsus"]
["Programmi või meetme rakendamise eest vastutavad isikud või asutused","Keskkonnainvesteeringute Keskus, Kliimaministeerium"]
["Viide analüüsidele või tehnilistele aruannetele","https://www.kik.ee/et/toetavad-tegevused/ettevotete-ressursitohusus"]
["Kommentaar","Oodatav mõju on esitatud aasta kohta perioodi 2021-2030 keskmisena. "]

{"sheet":"EN21","index":21,"n_rows":25,"n_cols":2,"rows_kept":25,"cut":false,"hidden":false,"merged":[]}
["REKK peatükk","3.1.1.i"]
["Teised seonduvad REKK 2030 peatükid"]
["Poliitikasuuna või meetme number (PaM ID)",18]
["Programmi või meetme number REKK2030",{"$f":"MID(CELL(\"filename\",A2),FIND(\"]\",CELL(\"filename\",A2))+1,255)","v":"EN21"}]
["Programmi või meetme nimetus ","Biometaani kasutuselevõtu soodustamine"]
["Programmi või meetme nimetus inglise keeles","Encouraging the introduction of biomethane"]
["Lühike kirjeldus","\nToetatakse biometaani kasutamist ühistranspordis struktuurivahendite 2021-27 perioodil “Rohelisem Eesti” poliitika eesmärgi raames, võttes asutusele CNG-ga töötavad bussid ja toetades CNG-tanklate ehitamist, mis soodustaks kodumaise biometaani kasutuselevõttu ja tarbimist. Toetust antakse biometaanil töötavate busside kasutuselevõtuks eriti maapiirkondades. "]
["Seotud Euroopa Liidu energialiidu mõõtmed","CO2 heite vähendamise mõõde;\r\nCO2 heite vähendamise mõõde: taastuvenergia"]
["Asjakohased eesmärgid, sihid või panused, millele\npoliitikasuund või meede kaasa aitab","kasvuhoonegaaside heide ja nende sidumine – liikmesriigi siduv riiklik kasvuhoonegaaside heitega seotud eesmärk ja iga-aastased siduvad riiklikud piirnormid vastavalt määrusele (EL) 2018/842;\r\neeldatavad trajektoorid, mis näitavad ajavahemikul 2021–2030 elektri-, kütte- ja jahutus- ning transpordisektoris tarbitava taastuvenergia osakaalu lõppenergia tarbimises"]
["Mõjutatud sektorid","energiavarustus (sh kütuste ammutamine/kaevandamine, edastamine, jaotamine ja säilitamine ning energia muundamine kütteks ja jahutuseks ning elektri tootmiseks);\r\ntransport"]
["Eesmärk","üleminek vähem CO2 heidet tekitavatele kütustele (energiavarustus);\r\ntaastuvate energiaallikate osakaalu suurendamine elektrisektoris (energiavarustus);\r\ntaastuvenergia osakaalu suurendamine kütte- ja jahutussektoris (energiavarustus);\r\nvähese CO2 heitega kütused (transport)"]
["Kvantitatiivne eesmärk","NA"]
["Kasvuhoonegaasid, mille heitmeid otseselt mõjutatakse","CO2; CH4; N2O"]
["Planeeritud eelarve"]
["Oodatav mõju 2025-2030 keskmine","NE"]
["Programmi või meetme tüüp","Majanduslikud stiimulid (Economic)"]
["Hinnang sellele, mil määral poliitikasuund või meede aitab saavutada määruse\n(EL) 2021/1119 artikli 2 lõikes 1 sätestatud liidu kliimaneutraalsusees märki ja täita määruse (EL) 2018/1999 artiklis 15 osutatud pikaajalist strateegiat","This measure contributes to the political guidelines for the economy as a whole set in the General Principles of Climate Policy until 2050. https://kliimaministeerium.ee/sites/default/files/documents/2023-03/310022023003%20%281%29.pdf"]
["Programmi või meetme aluseks olevad Euroopa Liidu õigusaktid","European Structural and Investment Funds;\r\nRenewable Energy Directive"]
["Programmi või meetme rakendamise seis","Rakendatud (Implemented)"]
["Programmi või meetme rakendamise periood","2021-"]
["Stsenaarium, mille juures programmi või meedet on arvestatud","WEM"]
["Programmi või meetme rakendamise eest vastutavad isikute või asutuste tüüp","riigi valitsus"]
["Programmi või meetme rakendamise eest vastutavad isikud või asutused","Kliimaministeerium"]
["Viide analüüsidele või tehnilistele aruannetele","https://pilv.rtk.ee/s/dYGaDcSyyqj42di "]
["Kommentaar"]

{"sheet":"EN22","index":22,"n_rows":25,"n_cols":2,"rows_kept":25,"cut":false,"hidden":false,"merged":[]}
["REKK peatükk","3.1.1.i"]
["Teised seonduvad REKK 2030 peatükid"]
["Poliitikasuuna või meetme number (PaM ID)",19]
["Programmi või meetme number REKK2030",{"$f":"MID(CELL(\"filename\",A2),FIND(\"]\",CELL(\"filename\",A2))+1,255)","v":"EN22"}]
["Programmi või meetme nimetus ","Vesiniku terviktehnoloogiate kasutuselevõtu edendamine"]
["Programmi või meetme nimetus inglise keeles","Promoting the deployment of complete hydrogen technologies"]
["Lühike kirjeldus","Toetuse eesmärk on pilootprojektide raames testida Eesti oludes vesiniku tervikahelaid vesiniku tootmisest lõpptarbimiseni. Meede toetab täielike vesinikutehnoloogiate kasutuselevõtu edendamist. Toetuse tulemusena kiireneb rohelise vesiniku kasutuselevõtt ja tarbimine energiakandjana. Toetuse eesmärk on katseprojektide raames katsetada Eesti tingimustes terviklikke vesinikuahelaid vesiniku tootmisest lõpptarbimiseni. Rohelise vesiniku pilootprojektide elluviimine toetab REKK2030 eesmärkide ning valdkondlikes arengukavades ja arengudokumentides sätestatud eesmärkide saavutamist ning aitab kaasa nii EL-i kui ka Eesti pikaajaliste kliima- ja energiapoliitika eesmärkide saavutamisele. ."]
["Seotud Euroopa Liidu energialiidu mõõtmed","CO2 heite vähendamise mõõde;\r\nCO2 heite vähendamise mõõde: taastuvenergia"]
["Asjakohased eesmärgid, sihid või panused, millele\npoliitikasuund või meede kaasa aitab"," muud eesmärgid, sh sektoripõhised ja kohanemiseesmärgid;\r\neeldatavad trajektoorid, mis näitavad ajavahemikul 2021–2030 elektri-, kütte- ja jahutus- ning transpordisektoris tarbitava taastuvenergia osakaalu lõppenergia tarbimises"]
["Mõjutatud sektorid","energiavarustus (sh kütuste ammutamine/kaevandamine, edastamine, jaotamine ja säilitamine ning energia muundamine kütteks ja jahutuseks ning elektri tootmiseks)"]
["Eesmärk","üleminek vähem CO2 heidet tekitavatele kütustele (energiavarustus)"]
["Kvantitatiivne eesmärk","NA"]
["Kasvuhoonegaasid, mille heitmeid otseselt mõjutatakse","CO2; CH4; N2O"]
["Planeeritud eelarve"]
["Oodatav mõju 2025-2030 keskmine","NE"]
["Programmi või meetme tüüp","Majanduslikud stiimulid (Economic)"]
["Hinnang sellele, mil määral poliitikasuund või meede aitab saavutada määruse\n(EL) 2021/1119 artikli 2 lõikes 1 sätestatud liidu kliimaneutraalsusees märki ja täita määruse (EL) 2018/1999 artiklis 15 osutatud pikaajalist strateegiat","This measure contributes to the political guidelines for the economy as a whole set in the General Principles of Climate Policy until 2050. https://kliimaministeerium.ee/sites/default/files/documents/2023-03/310022023003%20%281%29.pdf"]
["Programmi või meetme aluseks olevad Euroopa Liidu õigusaktid","European Structural and Investment Funds;\r\nEnergy Efficency Directive"]
["Programmi või meetme rakendamise seis","Rakendatud (Implemented)"]
["Programmi või meetme rakendamise periood","2021-"]
["Stsenaarium, mille juures programmi või meedet on arvestatud","WEM"]
["Programmi või meetme rakendamise eest vastutavad isikute või asutuste tüüp","riigi valitsus"]
["Programmi või meetme rakendamise eest vastutavad isikud või asutused","Kliimaministeerium, Riigi Tugiteenuste keskus"]
["Viide analüüsidele või tehnilistele aruannetele","https://pilv.rtk.ee/s/dYGaDcSyyqj42di"]
["Kommentaar"]

{"sheet":"EN23","index":23,"n_rows":25,"n_cols":2,"rows_kept":25,"cut":false,"hidden":false,"merged":[]}
["REKK peatükk","3.1.1.i"]
["Teised seonduvad REKK 2030 peatükid"]
["Poliitikasuuna või meetme number (PaM ID)",20]
["Programmi või meetme number REKK2030",{"$f":"MID(CELL(\"filename\",A2),FIND(\"]\",CELL(\"filename\",A2))+1,255)","v":"EN23"}]
["Programmi või meetme nimetus ","Elektrivõrgu tugevdamise programm taastuvenergia tootmisvõimekuse tõstmiseks ning kliimamuutustega kohanemiseks"]
["Programmi või meetme nimetus inglise keeles","Electricity grid reinforcement program to increase renewable energy production capacity and adaptation to climate change"]
["Lühike kirjeldus","Meetme eesmärgiks on suurendada taastuvenergia tootmise võrku integreerimise võimekust. Tegevuste tulemusena suureneb võrgu läbilaskevõime, samuti ka vastupidavus kliimamuutusetele (tormikindlus). Toetust on antud Lääne-Eesti võrkude tugevdamiseks, mille tarbeks tööd käivad. "]
["Seotud Euroopa Liidu energialiidu mõõtmed","CO2 heite vähendamise mõõde;\r\nCO2 heite vähendamise mõõde: taastuvenergia;\r\nEnergiajulgeoleku mõõde"]
["Asjakohased eesmärgid, sihid või panused, millele\npoliitikasuund või meede kaasa aitab"," muud eesmärgid, sh sektoripõhised ja kohanemiseesmärgid;\r\npanus liidu siduvasse eesmärki saavutada 2030. aastal taastuvenergia vähemalt 32 % osakaal, nagu on osutatud direktiivi (EL) 2018/2001 artiklis 3\n;\r\nriiklikud eesmärgid seoses energiaallikate mitmekesistamise ja kolmandatest riikidest pärit energiatarnete suurendamisega, mille eesmärk võib olla vähendada sõltumist imporditavast energiast"]
["Mõjutatud sektorid","energiavarustus (sh kütuste ammutamine/kaevandamine, edastamine, jaotamine ja säilitamine ning energia muundamine kütteks ja jahutuseks ning elektri tootmiseks)"]
["Eesmärk","taastuvate energiaallikate osakaalu suurendamine elektrisektoris (energiavarustus);\r\ntõhususe suurendamine energeetikasektoris ja energia muundamise sektoris (energiavarustus)"]
["Kvantitatiivne eesmärk","RES100% (taastuvenergia toodang peab aasta kokkuvõttes olema sama suur kui lõpptarbimine"]
["Kasvuhoonegaasid, mille heitmeid otseselt mõjutatakse","CO2; CH4; N2O"]
["Planeeritud eelarve"]
["Oodatav mõju 2025-2030 keskmine","NE"]
["Programmi või meetme tüüp","Majanduslikud stiimulid (Economic)"]
["Hinnang sellele, mil määral poliitikasuund või meede aitab saavutada määruse\n(EL) 2021/1119 artikli 2 lõikes 1 sätestatud liidu kliimaneutraalsusees märki ja täita määruse (EL) 2018/1999 artiklis 15 osutatud pikaajalist strateegiat","This measure contributes to the political guidelines for the economy as a whole set in the General Principles of Climate Policy until 2050. https://kliimaministeerium.ee/sites/default/files/documents/2023-03/310022023003%20%281%29.pdf"]
["Programmi või meetme aluseks olevad Euroopa Liidu õigusaktid","European Structural and Investment Funds;\r\nRenewable Energy Directive"]
["Programmi või meetme rakendamise seis","Rakendatud (Implemented)"]
["Programmi või meetme rakendamise periood","2021-2027"]
["Stsenaarium, mille juures programmi või meedet on arvestatud","WEM"]
["Programmi või meetme rakendamise eest vastutavad isikute või asutuste tüüp","riigi valitsus"]
["Programmi või meetme rakendamise eest vastutavad isikud või asutused","Kliimaministeerium; Elektrilevi"]
["Viide analüüsidele või tehnilistele aruannetele","https://pilv.rtk.ee/s/dYGaDcSyyqj42di"]
["Kommentaar","Eesti vastupidavus- ja taastekava meede"]

{"sheet":"EN24 ","index":24,"n_rows":25,"n_cols":2,"rows_kept":25,"cut":false,"hidden":false,"merged":[]}
["REKK peatükk","3.1.1.i"]
["Teised seonduvad REKK 2030 peatükid"]
["Poliitikasuuna või meetme number (PaM ID)",21]
["Programmi või meetme number REKK2030",{"$f":"MID(CELL(\"filename\",A2),FIND(\"]\",CELL(\"filename\",A2))+1,255)","v":"EN24 "}]
["Programmi või meetme nimetus ","Energia salvestuse pilootprogramm"]
["Programmi või meetme nimetus inglise keeles","Energy storage pilot program"]
["Lühike kirjeldus","Meetme eesmärgiks on energia salvestuse kasutuselevõtu hoogustamine läbi investeeringutoetuse ning seeläbi suurendada taastuvenergia osatähtsust kaugküttesüsteemides ning vähendada fosiilkütuste kasutust. Väheneb fossiilenergia vajadus tipukoormuse katmiseks, sest kasutatakse taastuvenergiast toodetud salvestatud energiat. Samuti vähenevad kaod taastuvenergia tootmisel (nt suvel kaugküttevõrkudes) – st suureneb kaugküttesüsteemi energiatõhusus. Võimaldab ressursse kasutada suurema efektiivsusega ja madalama KHG heitega.\n"]
["Seotud Euroopa Liidu energialiidu mõõtmed","CO2 heite vähendamise mõõde;\r\nCO2 heite vähendamise mõõde: taastuvenergia;\r\nEnergiatõhususe mõõde;\r\nTeadusuuringute, innovatsiooni ja konkurentsivõime mõõde"]
["Asjakohased eesmärgid, sihid või panused, millele\npoliitikasuund või meede kaasa aitab"," muud eesmärgid, sh sektoripõhised ja kohanemiseesmärgid;\r\npanus liidu siduvasse eesmärki saavutada 2030. aastal taastuvenergia vähemalt 32 % osakaal, nagu on osutatud direktiivi (EL) 2018/2001 artiklis 3\n;\r\nseoses liidu 2030. aasta vähemalt 32,5 % energiatõhususeesmärgiga kindlaks määratud soovituslik riiklik energiatõhususpanus, millele on osutatud direktiivi 2012/27/EL artikli 1 lõikes 1 ja artikli 3 lõikes 5;\r\nenergialiiduga seotud avaliku sektori teadusuuringuid ja innovatsiooni ning asjakohasel juhul ka erasektori teadusuuringuid ja innovatsiooni käsitlevad riiklikud rahastamis- ja muud eesmärgid"]
["Mõjutatud sektorid","energiatarbimine (sh kütuste ja elektri tarbimine lõpptarbijate, näiteks kodumajapidamiste ja ametiasutuste, teenindus-, tööstus- ja põllumajandussektori poolt)"]
["Eesmärk","nõudluse juhtimine/vähendamine (energiatarbimine)"]
["Kvantitatiivne eesmärk","NA"]
["Kasvuhoonegaasid, mille heitmeid otseselt mõjutatakse","CO2; CH4; N2O"]
["Planeeritud eelarve"]
["Oodatav mõju 2025-2030 keskmine","NE"]
["Programmi või meetme tüüp","Majanduslikud stiimulid (Economic)"]
["Hinnang sellele, mil määral poliitikasuund või meede aitab saavutada määruse\n(EL) 2021/1119 artikli 2 lõikes 1 sätestatud liidu kliimaneutraalsusees märki ja täita määruse (EL) 2018/1999 artiklis 15 osutatud pikaajalist strateegiat","This measure contributes to the political guidelines for the economy as a whole set in the General Principles of Climate Policy until 2050. https://kliimaministeerium.ee/sites/default/files/documents/2023-03/310022023003%20%281%29.pdf"]
["Programmi või meetme aluseks olevad Euroopa Liidu õigusaktid","European Structural and Investment Funds; Energy Efficency Directive"]
["Programmi või meetme rakendamise seis","Rakendatud (Implemented)"]
["Programmi või meetme rakendamise periood","2021-2027"]
["Stsenaarium, mille juures programmi või meedet on arvestatud","WEM"]
["Programmi või meetme rakendamise eest vastutavad isikute või asutuste tüüp","riigi valitsus"]
["Programmi või meetme rakendamise eest vastutavad isikud või asutused","Kliimaministeerium, Keskkonnainvesteeringute Keskus"]
["Viide analüüsidele või tehnilistele aruannetele","https://www.riigiteataja.ee/akt/109122022021?leiaKehtiv="]
["Kommentaar"]

{"sheet":"EN25","index":25,"n_rows":25,"n_cols":2,"rows_kept":25,"cut":false,"hidden":false,"merged":[]}
["REKK peatükk","3.1.3.i"]
["Teised seonduvad REKK 2030 peatükid","3.1.3.iv, 3.1.3-iv"]
["Poliitikasuuna või meetme number (PaM ID)",121]
["Programmi või meetme number REKK2030",{"$f":"MID(CELL(\"filename\",A2),FIND(\"]\",CELL(\"filename\",A2))+1,255)","v":"EN25"}]
["Programmi või meetme nimetus ","Energia maksumeetmed"]
["Programmi või meetme nimetus inglise keeles","Energy tax measures"]
["Lühike kirjeldus","Energiamaksud (aktsiis ja käibemaks) järgmiselt:\n- Elekter\n- Soojus\n- Maagaas\n- Bensiin\n- Diisel\n- Erimärgistatud diisel\n- Küttepuud\n- Puidujäägid\n- Taastuvenergia tasu\n\nTarbimismaksudena kajastatakse aktsiisi ja käibemaksu teatud kaubagruppidelt. Kuna aktsiis ja käibemaks on oma olemuselt tarbimismaksud, siis kandub selle maksustamise maksukoormus üle lõpptarbijale, kes maksab toote ostmisel hinnas sisalduva aktsiisi ja/või käibemaksu ( sel juhul elekter või teatud kütused). Aktsiisi ja/või käibemaksu mõju tõttu hindadele mõjutab see lõpptarbijate käitumist energiatõhusate tehnoloogiate suurema kasutamise ja/või ressursi säästlikuma kasutamise suunas."]
["Seotud Euroopa Liidu energialiidu mõõtmed","CO2 heite vähendamise mõõde;\r\nEnergiatõhususe mõõde"]
["Asjakohased eesmärgid, sihid või panused, millele\npoliitikasuund või meede kaasa aitab","kasvuhoonegaaside heide ja nende sidumine – liikmesriigi siduv riiklik kasvuhoonegaaside heitega seotud eesmärk ja iga-aastased siduvad riiklikud piirnormid vastavalt määrusele (EL) 2018/842;\r\najavahemikul 2021–2030 saavutatav kumulatiivne lõpptarbimise energiasääst kooskõlas direktiivi 2012/27/EL artikli 7 lõike 1 punktiga b energiasäästukohustuste kohta"]
["Mõjutatud sektorid","energiatarbimine (sh kütuste ja elektri tarbimine lõpptarbijate, näiteks kodumajapidamiste ja ametiasutuste, teenindus-, tööstus- ja põllumajandussektori poolt)"]
["Eesmärk","nõudluse juhtimine/vähendamine (energiatarbimine)"]
["Kvantitatiivne eesmärk","NA"]
["Kasvuhoonegaasid, mille heitmeid otseselt mõjutatakse","NA"]
["Planeeritud eelarve"]
["Oodatav mõju 2025-2030 keskmine","NE"]
["Programmi või meetme tüüp","Maksundus (Fiscal)"]
["Hinnang sellele, mil määral poliitikasuund või meede aitab saavutada määruse\n(EL) 2021/1119 artikli 2 lõikes 1 sätestatud liidu kliimaneutraalsusees märki ja täita määruse (EL) 2018/1999 artiklis 15 osutatud pikaajalist strateegiat","This measure contributes to the political guidelines for the economy as a whole set in the General Principles of Climate Policy until 2050. https://kliimaministeerium.ee/sites/default/files/documents/2023-03/310022023003%20%281%29.pdf"]
["Programmi või meetme aluseks olevad Euroopa Liidu õigusaktid","Energy Efficency Directive"]
["Programmi või meetme rakendamise seis","Rakendatud (Implemented)"]
["Programmi või meetme rakendamise periood","1993-"]
["Stsenaarium, mille juures programmi või meedet on arvestatud","WEM"]
["Programmi või meetme rakendamise eest vastutavad isikute või asutuste tüüp","riigi valitsus"]
["Programmi või meetme rakendamise eest vastutavad isikud või asutused","Rahandusministeerium, Maksu- ja Tolliamet"]
["Viide analüüsidele või tehnilistele aruannetele","https://www.riigiteataja.ee/akt/13152698?leiaKehtiv"]
["Kommentaar"]

{"sheet":"EN26","index":26,"n_rows":25,"n_cols":2,"rows_kept":25,"cut":false,"hidden":false,"merged":[]}
["https://www.riigiteataja.ee/akt/130012024003?leiaKehtiv","3.1.1.i"]
["Teised seonduvad REKK 2030 peatükid"]
["Poliitikasuuna või meetme number (PaM ID)",46]
["Programmi või meetme number REKK2030",{"$f":"MID(CELL(\"filename\",A2),FIND(\"]\",CELL(\"filename\",A2))+1,255)","v":"EN26"}]
["Programmi või meetme nimetus ","Tootmisettevõtete ärimudeli muutus"]
["Programmi või meetme nimetus inglise keeles","A change in the business model of manufacturing companies"]
["Lühike kirjeldus","Toetada kohaliku tootmise toimepidevust ja ärimudelite muutust, et Eesti tootmisettevõtete tooted vastaksid keskkonna ja kliimaneutraalsuse eesmärkidele ja oleksid konkurentsivõimelised eksporditurgudel. Meede aitab tööstusettevõtjail panustada ringmajanduse põhimõtete kasutuselevõttu ning leida lahendusi fossiilsete kütuste asendamiseks. Selleks on toetus jagatud kahte etappi: tegevussuund 1 võimaldab ettevõtja tänast olukorda kaardistada ning fokusseerida kolmele peamisele arendussuunale, mida on tegevussuunas 2 võimalik ka ellu viia (nii investeeringu kui toote- ja protsessiarendusliku tegevusena)."]
["Seotud Euroopa Liidu energialiidu mõõtmed","CO2 heite vähendamise mõõde;\r\nEnergiatõhususe mõõde"]
["Asjakohased eesmärgid, sihid või panused, millele\npoliitikasuund või meede kaasa aitab","ajavahemikul 2021–2030 saavutatav kumulatiivne lõpptarbimise energiasääst kooskõlas direktiivi 2012/27/EL artikli 7 lõike 1 punktiga b energiasäästukohustuste kohta;\r\n muud eesmärgid, sh sektoripõhised ja kohanemiseesmärgid"]
["Mõjutatud sektorid","energiatarbimine (sh kütuste ja elektri tarbimine lõpptarbijate, näiteks kodumajapidamiste ja ametiasutuste, teenindus-, tööstus- ja põllumajandussektori poolt)"]
["Eesmärk","energiatõhususe suurendamine teenuste-/teenindussektoris (energiatarbimine);\r\nenergiatõhususe suurendamine tööstusliku lõppkasutuse sektorites (energiatarbimine)"]
["Kvantitatiivne eesmärk","70 rahastatud projekti 2025. aasta lõpuks"]
["Kasvuhoonegaasid, mille heitmeid otseselt mõjutatakse","CO2; CH4; N2O"]
["Planeeritud eelarve"]
["Oodatav mõju 2025-2030 keskmine","NE"]
["Programmi või meetme tüüp","Majanduslikud stiimulid (Economic)"]
["Hinnang sellele, mil määral poliitikasuund või meede aitab saavutada määruse\n(EL) 2021/1119 artikli 2 lõikes 1 sätestatud liidu kliimaneutraalsusees märki ja täita määruse (EL) 2018/1999 artiklis 15 osutatud pikaajalist strateegiat","This measure contributes to the political guidelines for the economy as a whole set in the General Principles of Climate Policy until 2050. https://kliimaministeerium.ee/sites/default/files/documents/2023-03/310022023003%20%281%29.pdf"]
["Programmi või meetme aluseks olevad Euroopa Liidu õigusaktid","Effort Sharing Regulation;\r\nEnergy Efficency Directive"]
["Programmi või meetme rakendamise seis","Rakendatud (Implemented)"]
["Programmi või meetme rakendamise periood","2022-2027"]
["Stsenaarium, mille juures programmi või meedet on arvestatud","WEM"]
["Programmi või meetme rakendamise eest vastutavad isikute või asutuste tüüp","riigi valitsus"]
["Programmi või meetme rakendamise eest vastutavad isikud või asutused","Majandus- ja Kommunikatsiooniministeerium, Ettevõtluse ja Innovatsiooni Sihtasutus (EIS)"]
["Viide analüüsidele või tehnilistele aruannetele","https://www.riigiteataja.ee/akt/130012024003?leiaKehtiv"]
["Kommentaar"]

{"sheet":"EN28","index":27,"n_rows":25,"n_cols":2,"rows_kept":25,"cut":false,"hidden":false,"merged":[]}
["REKK peatükk","3.1.1.i"]
["Teised seonduvad REKK 2030 peatükid"]
["Poliitikasuuna või meetme number (PaM ID)",36]
["Programmi või meetme number REKK2030",{"$f":"MID(CELL(\"filename\",A2),FIND(\"]\",CELL(\"filename\",A2))+1,255)","v":"EN28"}]
["Programmi või meetme nimetus ","Ressursitõhusate rohetehnoloogiate kasutuselevõtt "]
["Programmi või meetme nimetus inglise keeles","Adoption of resource-efficient green technologies"]
["Lühike kirjeldus","Investeeringu abil toetatakse ettevõtete ressursitõhususe, sh energiatõhususe, suurendamist keskendudes eelkõige alakasutatud bioressursi väärindamisele. Meetme määruse eesmärk: suurendada ressursitootlikkust tööstusettevõtetes innovaatiliste rohetehnoloogiate ja lahenduste kasutuselevõtu kaudu, et aidata kaasa kliimaneutraalsele majandusele, vastupidavusele ja kliimamuutustega kohanemisele, keskendudes eelkõige alakasutatud bioressursside väärindamisele."]
["Seotud Euroopa Liidu energialiidu mõõtmed","CO2 heite vähendamise mõõde;\r\nEnergiatõhususe mõõde;\r\nTeadusuuringute, innovatsiooni ja konkurentsivõime mõõde"]
["Asjakohased eesmärgid, sihid või panused, millele\npoliitikasuund või meede kaasa aitab","seoses liidu 2030. aasta vähemalt 32,5 % energiatõhususeesmärgiga kindlaks määratud soovituslik riiklik energiatõhususpanus, millele on osutatud direktiivi 2012/27/EL artikli 1 lõikes 1 ja artikli 3 lõikes 5;\r\najavahemikul 2021–2030 saavutatav kumulatiivne lõpptarbimise energiasääst kooskõlas direktiivi 2012/27/EL artikli 7 lõike 1 punktiga b energiasäästukohustuste kohta;\r\nenergialiiduga seotud avaliku sektori teadusuuringuid ja innovatsiooni ning asjakohasel juhul ka erasektori teadusuuringuid ja innovatsiooni käsitlevad riiklikud rahastamis- ja muud eesmärgid;\r\n muud eesmärgid, sh sektoripõhised ja kohanemiseesmärgid"]
["Mõjutatud sektorid","energiatarbimine (sh kütuste ja elektri tarbimine lõpptarbijate, näiteks kodumajapidamiste ja ametiasutuste, teenindus-, tööstus- ja põllumajandussektori poolt)"]
["Eesmärk","seadmete energiatõhususe suurendamine (energiatarbimine);\r\nenergiatõhususe suurendamine tööstusliku lõppkasutuse sektorites (energiatarbimine)"]
["Kvantitatiivne eesmärk","2026 aasta keskpaigaks 26 projekti saanud toetust ressursitõhusate rohetehnoloogiate kasutuselevõtuks "]
["Kasvuhoonegaasid, mille heitmeid otseselt mõjutatakse","CO2; CH4; N2O"]
["Planeeritud eelarve"]
["Oodatav mõju 2025-2030 keskmine","NE"]
["Programmi või meetme tüüp","Majanduslikud stiimulid (Economic)"]
["Hinnang sellele, mil määral poliitikasuund või meede aitab saavutada määruse\n(EL) 2021/1119 artikli 2 lõikes 1 sätestatud liidu kliimaneutraalsusees märki ja täita määruse (EL) 2018/1999 artiklis 15 osutatud pikaajalist strateegiat","This measure contributes to the political guidelines for the economy as a whole set in the General Principles of Climate Policy until 2050. https://kliimaministeerium.ee/sites/default/files/documents/2023-03/310022023003%20%281%29.pdf"]
["Programmi või meetme aluseks olevad Euroopa Liidu õigusaktid","Effort Sharing Regulation;\r\nEnergy Efficency Directive"]
["Programmi või meetme rakendamise seis","Rakendatud (Implemented)"]
["Programmi või meetme rakendamise periood","(2021-2027),  RRF 2021 - kuni 04.2026 k.a"]
["Stsenaarium, mille juures programmi või meedet on arvestatud","WEM"]
["Programmi või meetme rakendamise eest vastutavad isikute või asutuste tüüp","riigi valitsus"]
["Programmi või meetme rakendamise eest vastutavad isikud või asutused","Kliimaministeerium; Keskkonnainvesteeringute Keskus"]
["Viide analüüsidele või tehnilistele aruannetele"," https://www.kik.ee/et/toetavad-tegevused/ettevotete-ressursitohusus"]
["Kommentaar"]

{"sheet":"EN29","index":28,"n_rows":25,"n_cols":2,"rows_kept":25,"cut":false,"hidden":false,"merged":[]}
["REKK peatükk","3.1.1.i"]
["Teised seonduvad REKK 2030 peatükid"]
["Poliitikasuuna või meetme number (PaM ID)",59]
["Programmi või meetme number REKK2030",{"$f":"MID(CELL(\"filename\",A2),FIND(\"]\",CELL(\"filename\",A2))+1,255)","v":"EN29"}]
["Programmi või meetme nimetus ","Rohefond"]
["Programmi või meetme nimetus inglise keeles","Green fond"]
["Lühike kirjeldus","Rohefondi eesmärk on luua kapitali pakkumine uute rohetehnoloogiate arendamiseks strateegilistes valdkondades ja rahastada seeläbi innovaatilisi teadusmahukaid rohetehnoloogia ettevõtteid, mille tegevus aitab potentsiaalselt kaasa keskkonnaprobleemide lahendamise või kasvuhoonegaaside heidet vähendavate või siduvate uute toodete, teenuste või tehnoloogiate väljatöötamisele ja turule toomisele või lähtub ökodisaini nõuetest."]
["Seotud Euroopa Liidu energialiidu mõõtmed","CO2 heite vähendamise mõõde;\r\nTeadusuuringute, innovatsiooni ja konkurentsivõime mõõde"]
["Asjakohased eesmärgid, sihid või panused, millele\npoliitikasuund või meede kaasa aitab","kasvuhoonegaaside heide ja nende sidumine – liikmesriigi siduv riiklik kasvuhoonegaaside heitega seotud eesmärk ja iga-aastased siduvad riiklikud piirnormid vastavalt määrusele (EL) 2018/842;\r\npuhta energia tehnoloogia edendamisega seotud riiklikud 2050. aasta eesmärgid ning vajaduse korral riiklikud eesmärgid, sh pikaajalised (2050), mis on seotud vähese CO2 heitega tehnoloogia kasutuselevõtuga, sh suure energiakasutusega ja rohkesti CO2 heidet tekitavate tööstussektorite CO2 heite vähendamise ning vajaduse korral seonduva CO2 transpordi ja säilitamise taristu tehnoloogia"]
["Mõjutatud sektorid","energiatarbimine (sh kütuste ja elektri tarbimine lõpptarbijate, näiteks kodumajapidamiste ja ametiasutuste, teenindus-, tööstus- ja põllumajandussektori poolt)"]
["Eesmärk","muu energiatarbimine (energiatarbimine)"]
["Kvantitatiivne eesmärk","NA"]
["Kasvuhoonegaasid, mille heitmeid otseselt mõjutatakse","CO2; CH4; N2O"]
["Planeeritud eelarve"]
["Oodatav mõju 2025-2030 keskmine","NE"]
["Programmi või meetme tüüp","Majanduslikud stiimulid (Economic);\r\nTeadusuuringud (Research)"]
["Hinnang sellele, mil määral poliitikasuund või meede aitab saavutada määruse\n(EL) 2021/1119 artikli 2 lõikes 1 sätestatud liidu kliimaneutraalsusees märki ja täita määruse (EL) 2018/1999 artiklis 15 osutatud pikaajalist strateegiat","This measure contributes to the political guidelines for the economy as a whole set in the General Principles of Climate Policy until 2050. https://kliimaministeerium.ee/sites/default/files/documents/2023-03/310022023003%20%281%29.pdf"]
["Programmi või meetme aluseks olevad Euroopa Liidu õigusaktid","Renewable Energy Directive"]
["Programmi või meetme rakendamise seis","Rakendatud (Implemented)"]
["Programmi või meetme rakendamise periood","2021-2027"]
["Stsenaarium, mille juures programmi või meedet on arvestatud","WEM"]
["Programmi või meetme rakendamise eest vastutavad isikute või asutuste tüüp","riigi valitsus"]
["Programmi või meetme rakendamise eest vastutavad isikud või asutused","SmartCap"]
["Viide analüüsidele või tehnilistele aruannetele","https://www.rtk.ee/toetused-ja-taotlemine/taaste-ja-vastupidavusrahastu-rrf/eesti-taastekava; https://smartcap.ee/et/rohefond/"]
["Kommentaar"]

{"sheet":"EN30","index":29,"n_rows":25,"n_cols":2,"rows_kept":25,"cut":false,"hidden":false,"merged":[]}
["REKK peatükk","3.1.1.i"]
["Teised seonduvad REKK 2030 peatükid"]
["Poliitikasuuna või meetme number (PaM ID)",60]
["Programmi või meetme number REKK2030",{"$f":"MID(CELL(\"filename\",A2),FIND(\"]\",CELL(\"filename\",A2))+1,255)","v":"EN30"}]
["Programmi või meetme nimetus ","Tööstusalades taastuvelektri tootmisseadmete kasutuselevõtu hoogustamise programm "]
["Programmi või meetme nimetus inglise keeles","Program for accelerating the introduction of renewable electricity production equipment in industries"]
["Lühike kirjeldus","Meetme eesmärgiks on hoogustada taastuvenergia tootmisseadmete rajamist tööstusalade juurde läbi võrguga liitumise toetamise. "]
["Seotud Euroopa Liidu energialiidu mõõtmed","CO2 heite vähendamise mõõde;\r\nCO2 heite vähendamise mõõde: taastuvenergia;\r\nEnergiatõhususe mõõde"]
["Asjakohased eesmärgid, sihid või panused, millele\npoliitikasuund või meede kaasa aitab","kasvuhoonegaaside heide ja nende sidumine – liikmesriigi siduv riiklik kasvuhoonegaaside heitega seotud eesmärk ja iga-aastased siduvad riiklikud piirnormid vastavalt määrusele (EL) 2018/842;\r\npanus liidu siduvasse eesmärki saavutada 2030. aastal taastuvenergia vähemalt 32 % osakaal, nagu on osutatud direktiivi (EL) 2018/2001 artiklis 3\n;\r\nseoses liidu 2030. aasta vähemalt 32,5 % energiatõhususeesmärgiga kindlaks määratud soovituslik riiklik energiatõhususpanus, millele on osutatud direktiivi 2012/27/EL artikli 1 lõikes 1 ja artikli 3 lõikes 5"]
["Mõjutatud sektorid","energiavarustus (sh kütuste ammutamine/kaevandamine, edastamine, jaotamine ja säilitamine ning energia muundamine kütteks ja jahutuseks ning elektri tootmiseks)"]
["Eesmärk","taastuvate energiaallikate osakaalu suurendamine elektrisektoris (energiavarustus)"]
["Kvantitatiivne eesmärk","NA"]
["Kasvuhoonegaasid, mille heitmeid otseselt mõjutatakse","CO2; CH4; N2O"]
["Planeeritud eelarve"]
["Oodatav mõju 2025-2030 keskmine","NE"]
["Programmi või meetme tüüp","Majanduslikud stiimulid (Economic)"]
["Hinnang sellele, mil määral poliitikasuund või meede aitab saavutada määruse\n(EL) 2021/1119 artikli 2 lõikes 1 sätestatud liidu kliimaneutraalsusees märki ja täita määruse (EL) 2018/1999 artiklis 15 osutatud pikaajalist strateegiat","This measure contributes to the political guidelines for the economy as a whole set in the General Principles of Climate Policy until 2050. https://kliimaministeerium.ee/sites/default/files/documents/2023-03/310022023003%20%281%29.pdf"]
["Programmi või meetme aluseks olevad Euroopa Liidu õigusaktid","Renewable Energy Directive;\r\nEnergy Efficency Directive"]
["Programmi või meetme rakendamise seis","Rakendatud (Implemented)"]
["Programmi või meetme rakendamise periood","2021-2027"]
["Stsenaarium, mille juures programmi või meedet on arvestatud","WEM"]
["Programmi või meetme rakendamise eest vastutavad isikute või asutuste tüüp","riigi valitsus"]
["Programmi või meetme rakendamise eest vastutavad isikud või asutused","Kliimaministeerium, Keskkonnainvesteeringute Keskus"]
["Viide analüüsidele või tehnilistele aruannetele","https://www.rtk.ee/toetused-ja-taotlemine/taaste-ja-vastupidavusrahastu-rrf/eesti-taastekava; https://www.riigiteataja.ee/akt/103122022012?leiaKehtiv"]
["Kommentaar"]

{"sheet":"HF1","index":30,"n_rows":25,"n_cols":2,"rows_kept":25,"cut":false,"hidden":false,"merged":[]}
["REKK peatükk","3.1.1.i"]
["Teised seonduvad REKK 2030 peatükid"]
["Poliitikasuuna või meetme number (PaM ID)",47]
["Programmi või meetme number REKK2030",{"$f":"MID(CELL(\"filename\",A2),FIND(\"]\",CELL(\"filename\",A2))+1,255)","v":"HF1"}]
["Programmi või meetme nimetus ","Kohalike omavalitsuste hoonete renoveerimine"]
["Programmi või meetme nimetus inglise keeles","Energy efficiency in local government buildings"]
["Lühike kirjeldus","Meetme eesmärk on tõsta avalike hoonete energiatõhusust, vähendada kasvuhoonegaaside heitkoguseid, toetada taastuvenergia kasutamist ja vähendada üldisi küttekulusid. Meede sisaldab järgnevaid alameetmeid:\n1) KOV hoonete alameede (2013-2020 EL sisese KHG lubatud heitkoguse ühikutega kauplemine)\n2) KOV hoonete alameede (2021-2030 EL sisese KHG lubatud heitkoguse ühikutega kauplemine)\n3) KOV hoonete alameede (Moderniseerimisfond)\n4) Kohaliku omavalitsuse haridushoonete energiatõhusaks muutmine\n"]
["Seotud Euroopa Liidu energialiidu mõõtmed","Energiatõhususe mõõde;\r\nCO2 heite vähendamise mõõde"]
["Asjakohased eesmärgid, sihid või panused, millele\npoliitikasuund või meede kaasa aitab"," muud eesmärgid, sh sektoripõhised ja kohanemiseesmärgid;\r\najavahemikul 2021–2030 renoveeritav üldpõrandapind või võrdväärne iga-aastane energiasääst vastavalt direktiivi 2012/27/EL artiklile 5, mis käsitleb avaliku sektori asutuste hoonete eeskuju"]
["Mõjutatud sektorid","energiatarbimine (sh kütuste ja elektri tarbimine lõpptarbijate, näiteks kodumajapidamiste ja ametiasutuste, teenindus-, tööstus- ja põllumajandussektori poolt)"]
["Eesmärk","hoonete energiatõhususe suurendamine (energiatarbimine);\r\nenergiatõhususe suurendamine teenuste-/teenindussektoris (energiatarbimine)"]
["Kvantitatiivne eesmärk","656 583 m2"]
["Kasvuhoonegaasid, mille heitmeid otseselt mõjutatakse","CO2; CH4; N2O"]
["Planeeritud eelarve"]
["Oodatav mõju 2025-2030 keskmine",{"$f":"AVERAGE(Meetmed!H40:M40)","v":9.0717209000016492}]
["Programmi või meetme tüüp","Majanduslikud stiimulid (Economic)"]
["Hinnang sellele, mil määral poliitikasuund või meede aitab saavutada määruse\n(EL) 2021/1119 artikli 2 lõikes 1 sätestatud liidu kliimaneutraalsusees märki ja täita määruse (EL) 2018/1999 artiklis 15 osutatud pikaajalist strateegiat","This measure contributes to the political guidelines for the economy as a whole set in the General Principles of Climate Policy until 2050. https://kliimaministeerium.ee/sites/default/files/documents/2023-03/310022023003%20%281%29.pdf"]
["Programmi või meetme aluseks olevad Euroopa Liidu õigusaktid","Effort Sharing Regulation;\r\nEffort Sharing Decision;\r\nEnergy Efficency Directive;\r\nEnergy Performance of Buildings Directive"]
["Programmi või meetme rakendamise seis","Rakendatud (Implemented)"]
["Programmi või meetme rakendamise periood","2021-2027"]
["Stsenaarium, mille juures programmi või meedet on arvestatud","WEM"]
["Programmi või meetme rakendamise eest vastutavad isikute või asutuste tüüp","riigi valitsus"]
["Programmi või meetme rakendamise eest vastutavad isikud või asutused","Riigi Tugiteenuste Keskus, Kliimaministeerium"]
["Viide analüüsidele või tehnilistele aruannetele"]
["Kommentaar"]

{"sheet":"HF2","index":31,"n_rows":25,"n_cols":2,"rows_kept":25,"cut":false,"hidden":false,"merged":[]}
["REKK peatükk","3.1.1.i"]
["Teised seonduvad REKK 2030 peatükid"]
["Poliitikasuuna või meetme number (PaM ID)",48]
["Programmi või meetme number REKK2030",{"$f":"MID(CELL(\"filename\",A2),FIND(\"]\",CELL(\"filename\",A2))+1,255)","v":"HF2"}]
["Programmi või meetme nimetus ","Keskvalitsuse hoonete rekonstrueerimine"]
["Programmi või meetme nimetus inglise keeles","Energy efficiency in central government buildings"]
["Lühike kirjeldus","Meetme eesmärk on parendada keskvalitsuse sektori hoonete energiatõhusust, vähendada kasvuhoonegaaside heidet, toetada taastuvenergia kasutamist ning vähendada üldisi küttekulusid. Meede sisaldab järgnevaid alameetmeid:\n1) Keskvalitsuse hoonete alameede (2013-2020 EL sisese KHG lubatud heitkoguse ühikutega kauplemine)\n2) Keskvalitsuse hoonete alameede (2021-2030 EL sisese KHG lubatud heitkoguse ühikutega kauplemine)\n3) Keskvalitsuse hoonete alameede (Moderniseerimisfond)\n4) Tervishoiuasutuste energiatõhususe toetamine"]
["Seotud Euroopa Liidu energialiidu mõõtmed","Energiatõhususe mõõde;\r\nCO2 heite vähendamise mõõde"]
["Asjakohased eesmärgid, sihid või panused, millele\npoliitikasuund või meede kaasa aitab"," muud eesmärgid, sh sektoripõhised ja kohanemiseesmärgid;\r\najavahemikul 2021–2030 renoveeritav üldpõrandapind või võrdväärne iga-aastane energiasääst vastavalt direktiivi 2012/27/EL artiklile 5, mis käsitleb avaliku sektori asutuste hoonete eeskuju"]
["Mõjutatud sektorid","energiatarbimine (sh kütuste ja elektri tarbimine lõpptarbijate, näiteks kodumajapidamiste ja ametiasutuste, teenindus-, tööstus- ja põllumajandussektori poolt)"]
["Eesmärk","hoonete energiatõhususe suurendamine (energiatarbimine);\r\nenergiatõhususe suurendamine teenuste-/teenindussektoris (energiatarbimine)"]
["Kvantitatiivne eesmärk","288 026 m2"]
["Kasvuhoonegaasid, mille heitmeid otseselt mõjutatakse","CO2; CH4; N2O"]
["Planeeritud eelarve","180 460 000 eurot  (periood 2021-2030, rahastus CO2 kvoodimüük + Moderniseerimisfond)"]
["Oodatav mõju 2025-2030 keskmine",{"$f":"AVERAGE(Meetmed!H41:M41)","v":2.4756245314702041}]
["Programmi või meetme tüüp","Majanduslikud stiimulid (Economic)"]
["Hinnang sellele, mil määral poliitikasuund või meede aitab saavutada määruse\n(EL) 2021/1119 artikli 2 lõikes 1 sätestatud liidu kliimaneutraalsusees märki ja täita määruse (EL) 2018/1999 artiklis 15 osutatud pikaajalist strateegiat","This measure contributes to the political guidelines for the economy as a whole set in the General Principles of Climate Policy until 2050. https://kliimaministeerium.ee/sites/default/files/documents/2023-03/310022023003%20%281%29.pdf"]
["Programmi või meetme aluseks olevad Euroopa Liidu õigusaktid","Effort Sharing Regulation;\r\nEffort Sharing Decision;\r\nEnergy Efficency Directive;\r\nEnergy Performance of Buildings Directive"]
["Programmi või meetme rakendamise seis","Rakendatud (Implemented)"]
["Programmi või meetme rakendamise periood","2021-2027"]
["Stsenaarium, mille juures programmi või meedet on arvestatud","WEM"]
["Programmi või meetme rakendamise eest vastutavad isikute või asutuste tüüp","riigi valitsus"]
["Programmi või meetme rakendamise eest vastutavad isikud või asutused","Riigi Tugiteenuste Keskus, Kliimaministeerium"]
["Viide analüüsidele või tehnilistele aruannetele","https://www.riigiteataja.ee/akt/106032019020?leiaKehtiv"]
["Kommentaar"]

{"sheet":"HF3","index":32,"n_rows":24,"n_cols":2,"rows_kept":24,"cut":false,"hidden":false,"merged":[]}
["REKK peatükk","3.1.1.i"]
["Teised seonduvad REKK 2030 peatükid"]
["Poliitikasuuna või meetme number (PaM ID)",61]
["Programmi või meetme number REKK2030",{"$f":"MID(CELL(\"filename\",A2),FIND(\"]\",CELL(\"filename\",A2))+1,255)","v":"HF3"}]
["Programmi või meetme nimetus ","Elamumajanduse hoonete renoveerimine"]
["Programmi või meetme nimetus inglise keeles","Renovation of residential buildings"]
["Lühike kirjeldus","Meetme eesmärk on suurendada elamumajanduse energiatõhusust ja parandada nende sisekliimat. Meede sisaldab järgnevaid alameetmeid:\n1) Korterelamute rekonstrueerimise toetamine\n2) Eramute rekonstrueerimise toetamine\n3) Elamuinvesteeringute fond"]
["Seotud Euroopa Liidu energialiidu mõõtmed","Energiatõhususe mõõde;\r\nCO2 heite vähendamise mõõde"]
["Asjakohased eesmärgid, sihid või panused, millele\npoliitikasuund või meede kaasa aitab"," muud eesmärgid, sh sektoripõhised ja kohanemiseesmärgid;\r\najavahemikul 2021–2030 renoveeritav üldpõrandapind või võrdväärne iga-aastane energiasääst vastavalt direktiivi 2012/27/EL artiklile 5, mis käsitleb avaliku sektori asutuste hoonete eeskuju"]
["Mõjutatud sektorid","energiatarbimine (sh kütuste ja elektri tarbimine lõpptarbijate, näiteks kodumajapidamiste ja ametiasutuste, teenindus-, tööstus- ja põllumajandussektori poolt)"]
["Eesmärk","hoonete energiatõhususe suurendamine (energiatarbimine)"]
["Kvantitatiivne eesmärk","Primaarenergiatarbimise vähendamine - aastaks 2029 sihtväärtus 2 964 500 MWh/a"]
["Kasvuhoonegaasid, mille heitmeid otseselt mõjutatakse","CO2; CH4; N2O"]
["Oodatav mõju 2025-2030 keskmine",{"$f":"AVERAGE(Meetmed!H43:M43)","v":17.134843340528636}]
["Programmi või meetme tüüp","Majanduslikud stiimulid (Economic)"]
["Hinnang sellele, mil määral poliitikasuund või meede aitab saavutada määruse\n(EL) 2021/1119 artikli 2 lõikes 1 sätestatud liidu kliimaneutraalsusees märki ja täita määruse (EL) 2018/1999 artiklis 15 osutatud pikaajalist strateegiat","This measure contributes to the political guidelines for the economy as a whole set in the General Principles of Climate Policy until 2050. https://kliimaministeerium.ee/sites/default/files/documents/2023-03/310022023003%20%281%29.pdf"]
["Programmi või meetme aluseks olevad Euroopa Liidu õigusaktid","Effort Sharing Regulation"]
["Programmi või meetme rakendamise seis","Rakendatud (Implemented)"]
["Programmi või meetme rakendamise periood","2023-2027"]
["Stsenaarium, mille juures programmi või meedet on arvestatud","WEM"]
["Programmi või meetme rakendamise eest vastutavad isikute või asutuste tüüp","riigi valitsus"]
["Programmi või meetme rakendamise eest vastutavad isikud või asutused","KredEx, Kliimaministeerium"]
["Viide analüüsidele või tehnilistele aruannetele","https://pilv.rtk.ee/s/dYGaDcSyyqj42di"]
["Kommentaar"]

{"sheet":"HF4","index":33,"n_rows":24,"n_cols":2,"rows_kept":24,"cut":false,"hidden":false,"merged":[]}
["REKK peatükk","3.1.1.i"]
["Teised seonduvad REKK 2030 peatükid"]
["Poliitikasuuna või meetme number (PaM ID)",58]
["Programmi või meetme number REKK2030",{"$f":"MID(CELL(\"filename\",A2),FIND(\"]\",CELL(\"filename\",A2))+1,255)","v":"HF4"}]
["Programmi või meetme nimetus ","Investeeringud tänavavalgustuse rekonstrueerimisprogrammi "]
["Programmi või meetme nimetus inglise keeles","Street lighting reconstruction programme investments"]
["Lühike kirjeldus"," Meede on suunatud energiatõhususe suurendamisele ja „Energiasäästu ja taastuvenergia osakaalu suurendamine“ tegevuste „Tänavavalgustuse taristu renoveerimine“ eesmärke saavutamisele. Meetme tegevuse eesmärgiks on korrastada vananenud tänavavalgustuse taristut, mille tulemusel kaasaegse valgusti ja juhtimistehnoloogi kasutamine vähendab energia kasutamist.  "]
["Seotud Euroopa Liidu energialiidu mõõtmed","Energiatõhususe mõõde;\r\nCO2 heite vähendamise mõõde"]
["Asjakohased eesmärgid, sihid või panused, millele\npoliitikasuund või meede kaasa aitab","ajavahemikul 2021–2030 saavutatav kumulatiivne lõpptarbimise energiasääst kooskõlas direktiivi 2012/27/EL artikli 7 lõike 1 punktiga b energiasäästukohustuste kohta;\r\nkasvuhoonegaaside heide ja nende sidumine – liikmesriigi siduv riiklik kasvuhoonegaaside heitega seotud eesmärk ja iga-aastased siduvad riiklikud piirnormid vastavalt määrusele (EL) 2018/842"]
["Mõjutatud sektorid","energiatarbimine (sh kütuste ja elektri tarbimine lõpptarbijate, näiteks kodumajapidamiste ja ametiasutuste, teenindus-, tööstus- ja põllumajandussektori poolt)"]
["Eesmärk","Energiatõhususe suurendamine teenuste-/teenindussektoris  (energiatarbimine)"]
["Kvantitatiivne eesmärk","Meetme tegevuse tulemusena renoveeritud aastaks 2018 vähemalt 7 000 tänavavalgustuspunkti, aastaks 2020 vähemalt 14 000 tänavavalgustuspunkti ja aastaks 2023 vähemalt 22 000 tänavavalgustuspunkti. "]
["Kasvuhoonegaasid, mille heitmeid otseselt mõjutatakse","CO2; CH4; N2O"]
["Oodatav mõju 2025-2030 keskmine",{"$f":"AVERAGE(Meetmed!H25:M25)","v":72.933047446073928}]
["Programmi või meetme tüüp","Majanduslikud stiimulid (Economic)"]
["Hinnang sellele, mil määral poliitikasuund või meede aitab saavutada määruse\n(EL) 2021/1119 artikli 2 lõikes 1 sätestatud liidu kliimaneutraalsusees märki ja täita määruse (EL) 2018/1999 artiklis 15 osutatud pikaajalist strateegiat","This measure contributes to the political guidelines for the economy as a whole set in the General Principles of Climate Policy until 2050. https://kliimaministeerium.ee/sites/default/files/documents/2023-03/310022023003%20%281%29.pdf"]
["Programmi või meetme aluseks olevad Euroopa Liidu õigusaktid","Energy Efficency Directive"]
["Programmi või meetme rakendamise seis","Rakendatud (Implemented)"]
["Programmi või meetme rakendamise periood","2007-2024"]
["Stsenaarium, mille juures programmi või meedet on arvestatud","WEM"]
["Programmi või meetme rakendamise eest vastutavad isikute või asutuste tüüp","riigi valitsus"]
["Programmi või meetme rakendamise eest vastutavad isikud või asutused","Keskkonnainvesteeringute Keskus, Kliimaministeerium"]
["Viide analüüsidele või tehnilistele aruannetele"]
["Kommentaar"]

{"sheet":"HF5","index":34,"n_rows":24,"n_cols":2,"rows_kept":24,"cut":false,"hidden":false,"merged":[]}
["REKK peatükk","3.1.1.i"]
["Teised seonduvad REKK 2030 peatükid"]
["Poliitikasuuna või meetme number (PaM ID)"]
["Programmi või meetme number REKK2030",{"$f":"MID(CELL(\"filename\",A2),FIND(\"]\",CELL(\"filename\",A2))+1,255)","v":"HF5"}]
["Programmi või meetme nimetus ","Energiasäästlikud  valgustuslahendused (sh alameede: energiasäästlikud valgustuslahendused kultuuriasutustele) "]
["Programmi või meetme nimetus inglise keeles","Energy-saving lighting solutions (energy-efficient lighting solutions for cultural institutions)"]
["Lühike kirjeldus","Hõõg- ja gaaslahendusega lampidel põhinevad seadmete vahetamine LED lahendustega seadmete vastu toob kaasa etendusasutustes lõppenergiasäästu. "]
["Seotud Euroopa Liidu energialiidu mõõtmed","Energiatõhususe mõõde;\r\nCO2 heite vähendamise mõõde"]
["Asjakohased eesmärgid, sihid või panused, millele\npoliitikasuund või meede kaasa aitab","kasvuhoonegaaside heide ja nende sidumine – liikmesriigi siduv riiklik kasvuhoonegaaside heitega seotud eesmärk ja iga-aastased siduvad riiklikud piirnormid vastavalt määrusele (EL) 2018/842;\r\najavahemikul 2021–2030 saavutatav kumulatiivne lõpptarbimise energiasääst kooskõlas direktiivi 2012/27/EL artikli 7 lõike 1 punktiga b energiasäästukohustuste kohta"]
["Mõjutatud sektorid","energiatarbimine (sh kütuste ja elektri tarbimine lõpptarbijate, näiteks kodumajapidamiste ja ametiasutuste, teenindus-, tööstus- ja põllumajandussektori poolt)"]
["Eesmärk","hoonete energiatõhususe suurendamine (energiatarbimine)"]
["Kvantitatiivne eesmärk","Arvestuslik energia kokkuhoid aastas (baasaasta 2024, võrdlusaasta 2027) on ca 3,2 gigavatttundi (enegiatarbe sääst nimikoormustel võrdlusel  x tööpäevade arv aastas x rakendatuse tundide arv päevas)."]
["Kasvuhoonegaasid, mille heitmeid otseselt mõjutatakse","CO2; CH4; N2O"]
["Oodatav mõju 2025-2030 keskmine",{"$f":"AVERAGE(Meetmed!H26:M26)","v":2.1567854341321202}]
["Programmi või meetme tüüp","Majanduslikud stiimulid (Economic)"]
["Hinnang sellele, mil määral poliitikasuund või meede aitab saavutada määruse\n(EL) 2021/1119 artikli 2 lõikes 1 sätestatud liidu kliimaneutraalsusees märki ja täita määruse (EL) 2018/1999 artiklis 15 osutatud pikaajalist strateegiat","This measure contributes to the political guidelines for the economy as a whole set in the General Principles of Climate Policy until 2050. https://kliimaministeerium.ee/sites/default/files/documents/2023-03/310022023003%20%281%29.pdf"]
["Programmi või meetme aluseks olevad Euroopa Liidu õigusaktid","Energy Efficency Directive"]
["Programmi või meetme rakendamise seis","Rakendatud (Implemented)"]
["Programmi või meetme rakendamise periood","2023-2025"]
["Stsenaarium, mille juures programmi või meedet on arvestatud","WEM"]
["Programmi või meetme rakendamise eest vastutavad isikute või asutuste tüüp","riigi valitsus"]
["Programmi või meetme rakendamise eest vastutavad isikud või asutused","Kultuuriministeerium"]
["Viide analüüsidele või tehnilistele aruannetele","https://www.riigiteataja.ee/akt/123022024008"]
["Kommentaar"]

{"sheet":"TR1","index":35,"n_rows":24,"n_cols":2,"rows_kept":24,"cut":false,"hidden":false,"merged":[]}
["Vedel","3.1.1.i"]
["Teised seonduvad REKK 2030 peatükid","3.2.1.i"]
["Poliitikasuuna või meetme number (PaM ID)",24]
["Programmi või meetme number REKK2030",{"$f":"MID(CELL(\"filename\",A2),FIND(\"]\",CELL(\"filename\",A2))+1,255)","v":"TR1"}]
["Programmi või meetme nimetus ","Biokütuste osakaalu suurendamine transpordisektoris"]
["Programmi või meetme nimetus inglise keeles","Increasing the share of biofuels in transport"]
["Lühike kirjeldus","Kütuse müüjal, kelle kohta on majandustegevuse registrisse kantud kütuse tarbimisse lubamise märge või kütuse maksuladustamise lõpetamise märge, ja kütuse impordi tegevusluba omaval isikul (edaspidi koos tarnija) peab tarbimisse lubatud bensiini, diislikütuse, biokütuse ja maanteetranspordis kasutusse antud elektrienergia koguenergias biokütuse või lõpptarbimisse antud biometaani või elektrienergia koguenergia osakaal kalendriaasta kaalutud keskmise väärtusena olema kalendriaasta lõpuks vähemalt 7.5%, millest minimaalselt 0.5% peab olema täiustatud generatsioon ja I generatsioon 4.5%.  Alates 2023 piiratakse I generatsiooni vedel biokütuste kasutamist (maksimaalselt 2.5% ja alates 2024 maksimaalselt 0.5%)."]
["Seotud Euroopa Liidu energialiidu mõõtmed","CO2 heite vähendamise mõõde;\r\nCO2 heite vähendamise mõõde: taastuvenergia"]
["Asjakohased eesmärgid, sihid või panused, millele\npoliitikasuund või meede kaasa aitab","kasvuhoonegaaside heide ja nende sidumine – liikmesriigi siduv riiklik kasvuhoonegaaside heitega seotud eesmärk ja iga-aastased siduvad riiklikud piirnormid vastavalt määrusele (EL) 2018/842;\r\neeldatavad trajektoorid, mis näitavad ajavahemikul 2021–2030 elektri-, kütte- ja jahutus- ning transpordisektoris tarbitava taastuvenergia osakaalu lõppenergia tarbimises"]
["Mõjutatud sektorid","transport"]
["Eesmärk","vähese CO2 heitega kütused (transport)"]
["Kvantitatiivne eesmärk","Kütuse müüjal taastuvenergia ja -kütuse osakaal peab olema vähemalt 7.5%"]
["Kasvuhoonegaasid, mille heitmeid otseselt mõjutatakse","CO2; CH4; N2O"]
["Oodatav mõju 2025-2030 keskmine",{"$f":"AVERAGE(Meetmed!H60:M60)","v":71.155126029551269}]
["Programmi või meetme tüüp","Seadusandlus (Regulatory)"]
["Hinnang sellele, mil määral poliitikasuund või meede aitab saavutada määruse\n(EL) 2021/1119 artikli 2 lõikes 1 sätestatud liidu kliimaneutraalsusees märki ja täita määruse (EL) 2018/1999 artiklis 15 osutatud pikaajalist strateegiat","Panustab kliimapoliitika põhialuste 2050  transpordi suuna eesmärkidesse."]
["Programmi või meetme aluseks olevad Euroopa Liidu õigusaktid","Effort Sharing Regulation; xOBOSLETE Biofuels directive; Alternative Fuels Infrastructure Directive; Effort Sharing Decision; NEC Directive;\r\nRenewable Energy Directive"]
["Programmi või meetme rakendamise seis","Rakendatud (Implemented)"]
["Programmi või meetme rakendamise periood","2010-"]
["Stsenaarium, mille juures programmi või meedet on arvestatud","WEM"]
["Programmi või meetme rakendamise eest vastutavad isikute või asutuste tüüp","riigi valitsus"]
["Programmi või meetme rakendamise eest vastutavad isikud või asutused","Kliimaministeerium"]
["Viide analüüsidele või tehnilistele aruannetele","https://www.riigiteataja.ee/akt/110072020083?leiaKehtiv"]
["Kommentaar"]

{"sheet":"TR3","index":36,"n_rows":25,"n_cols":2,"rows_kept":25,"cut":false,"hidden":false,"merged":[]}
["REKK peatükk","3.1.1.i"]
["Teised seonduvad REKK 2030 peatükid"]
["Poliitikasuuna või meetme number (PaM ID)",27]
["Programmi või meetme number REKK2030",{"$f":"MID(CELL(\"filename\",A2),FIND(\"]\",CELL(\"filename\",A2))+1,255)","v":"TR3"}]
["Programmi või meetme nimetus ","Säästliku autojuhtimise edendamine"]
["Programmi või meetme nimetus inglise keeles","Promotion of economical driving"]
["Lühike kirjeldus","Säästlik sõiduviis (eco-driving) aitab säästa kütust, vähendada mürataset, heitgaase, õnnetusi ning kulutusi sõidukite remondile. Paljudes riikides kasutatakse säästliku sõiduviisi koolitusi liiklusohutuse programmides, sest see vähendab liiklusõnnetusi."]
["Seotud Euroopa Liidu energialiidu mõõtmed","CO2 heite vähendamise mõõde;\r\nEnergiatõhususe mõõde"]
["Asjakohased eesmärgid, sihid või panused, millele\npoliitikasuund või meede kaasa aitab","kasvuhoonegaaside heide ja nende sidumine – liikmesriigi siduv riiklik kasvuhoonegaaside heitega seotud eesmärk ja iga-aastased siduvad riiklikud piirnormid vastavalt määrusele (EL) 2018/842;\r\nseoses liidu 2030. aasta vähemalt 32,5 % energiatõhususeesmärgiga kindlaks määratud soovituslik riiklik energiatõhususpanus, millele on osutatud direktiivi 2012/27/EL artikli 1 lõikes 1 ja artikli 3 lõikes 5"]
["Mõjutatud sektorid","transport"]
["Eesmärk","käitumise parandamine (transport);\r\nnõudluse juhtimine/vähendamine (transport)"]
["Kvantitatiivne eesmärk","NA"]
["Kasvuhoonegaasid, mille heitmeid otseselt mõjutatakse","CO2; CH4; N2O"]
["Planeeritud eelarve"]
["Oodatav mõju 2025-2030 keskmine",{"$f":"AVERAGE(Meetmed!H49:M49)","v":13.592787825905466}]
["Programmi või meetme tüüp","Teavitamine (Information)"]
["Hinnang sellele, mil määral poliitikasuund või meede aitab saavutada määruse\n(EL) 2021/1119 artikli 2 lõikes 1 sätestatud liidu kliimaneutraalsusees märki ja täita määruse (EL) 2018/1999 artiklis 15 osutatud pikaajalist strateegiat","Panustab kliimapoliitika põhialuste 2050  transpordi suuna eesmärkidesse."]
["Programmi või meetme aluseks olevad Euroopa Liidu õigusaktid","Effort Sharing Regulation; Effort Sharing Decision; NEC Directive;\r\nEnergy Efficency Directive"]
["Programmi või meetme rakendamise seis","Rakendatud (Implemented)"]
["Programmi või meetme rakendamise periood","2002-"]
["Stsenaarium, mille juures programmi või meedet on arvestatud","WEM"]
["Programmi või meetme rakendamise eest vastutavad isikute või asutuste tüüp","riigi valitsus"]
["Programmi või meetme rakendamise eest vastutavad isikud või asutused","Kliimaministeerium"]
["Viide analüüsidele või tehnilistele aruannetele"]
["Kommentaar"]

{"sheet":"TR4","index":37,"n_rows":25,"n_cols":2,"rows_kept":25,"cut":false,"hidden":false,"merged":[]}
["REKK peatükk","3.1.1.i"]
["Teised seonduvad REKK 2030 peatükid","3.2.i"]
["Poliitikasuuna või meetme number (PaM ID)",28]
["Programmi või meetme number REKK2030",{"$f":"MID(CELL(\"filename\",A2),FIND(\"]\",CELL(\"filename\",A2))+1,255)","v":"TR4"}]
["Programmi või meetme nimetus ","Keskkonnahoidlikku liikuvust soodustav linnakeskkond"]
["Programmi või meetme nimetus inglise keeles","An urban environment that promotes environmentally friendly movement"]
["Lühike kirjeldus","Maakasutuse suunamine valglinnastumise ja autost sõltuvuse vähendamiseks (sundliikumine). Meede hõlmab telekommunikatsiooni arendamist ja ka lühiajaliste rendiautode väljatöötamist. Meede eeldab tugevamat regionaaltasandi ruumilist planeerimist, sest meetme tegevused väljuvad ühe omavalitsuse piiridest. (See meede hõlmab telekommunikatsiooni arendamist ja lühiajaliste autorendisüsteemide väljatöötamist. Meetme eesmärk on leevendada tipptundide transpordikoormust.) Meetme eesmärk on soodustada säästvat multimodaalset linnaliiklust, toetades suuremates linnapiirkondades:\n1) tervikliku jalgrattataristu väljaarendamine (keskendudes linnakeskustele);\n2) olemasolevate ühistranspordipeatuste ja multimodaalsete sõlmpunktide arendamine ja kvaliteedi parandamine;\n3) uute trammiliinide rajamine Tallinna linnapiirkonnas."]
["Seotud Euroopa Liidu energialiidu mõõtmed","CO2 heite vähendamise mõõde;\r\nEnergiatõhususe mõõde"]
["Asjakohased eesmärgid, sihid või panused, millele\npoliitikasuund või meede kaasa aitab","kasvuhoonegaaside heide ja nende sidumine – liikmesriigi siduv riiklik kasvuhoonegaaside heitega seotud eesmärk ja iga-aastased siduvad riiklikud piirnormid vastavalt määrusele (EL) 2018/842;\r\najavahemikul 2021–2030 saavutatav kumulatiivne lõpptarbimise energiasääst kooskõlas direktiivi 2012/27/EL artikli 7 lõike 1 punktiga b energiasäästukohustuste kohta"]
["Mõjutatud sektorid","transport"]
["Eesmärk","ühistranspordile või mootorita transpordivahenditele ülemineku edendamine (transport);\r\nnõudluse juhtimine/vähendamine (transport);\r\nkäitumise parandamine (transport);\r\ntransporditaristu tõhustamine (transport)"]
["Kvantitatiivne eesmärk","5,50 km ehitatud uusi trammiradu, 10 km jalgrattateid, vähemalt 1 multimodaalne ühendus"]
["Kasvuhoonegaasid, mille heitmeid otseselt mõjutatakse","CO2; CH4; N2O"]
["Planeeritud eelarve"]
["Oodatav mõju 2025-2030 keskmine",{"$f":"AVERAGE(Meetmed!H47:M47)","v":16.795661510666498}]
["Programmi või meetme tüüp","Planeerimine (Planning);\r\nMajanduslikud stiimulid (Economic)"]
["Hinnang sellele, mil määral poliitikasuund või meede aitab saavutada määruse\n(EL) 2021/1119 artikli 2 lõikes 1 sätestatud liidu kliimaneutraalsusees märki ja täita määruse (EL) 2018/1999 artiklis 15 osutatud pikaajalist strateegiat","Panustab kliimapoliitika põhialuste 2050  transpordi suuna eesmärkidesse."]
["Programmi või meetme aluseks olevad Euroopa Liidu õigusaktid","Effort Sharing Regulation; Effort Sharing Decision; NEC Directive;\r\nEnergy Efficency Directive"]
["Programmi või meetme rakendamise seis","Rakendatud (Implemented)"]
["Programmi või meetme rakendamise periood","2021-2030"]
["Stsenaarium, mille juures programmi või meedet on arvestatud","WEM"]
["Programmi või meetme rakendamise eest vastutavad isikute või asutuste tüüp","riigi valitsus"]
["Programmi või meetme rakendamise eest vastutavad isikud või asutused","Kliimaministeerium"]
["Viide analüüsidele või tehnilistele aruannetele"]
["Kommentaar"]

{"sheet":"TR5","index":38,"n_rows":25,"n_cols":2,"rows_kept":25,"cut":false,"hidden":false,"merged":[]}
["REKK peatükk","3.1.1.i"]
["Teised seonduvad REKK 2030 peatükid"]
["Poliitikasuuna või meetme number (PaM ID)",30]
["Programmi või meetme number REKK2030",{"$f":"MID(CELL(\"filename\",A2),FIND(\"]\",CELL(\"filename\",A2))+1,255)","v":"TR5"}]
["Programmi või meetme nimetus ","Kestliku ühistranspordi arendamine"]
["Programmi või meetme nimetus inglise keeles","\nDevelopment of sustainable public transport"]
["Lühike kirjeldus","Mugava ja kaasaegse ühistranspordi arendamine, piletisüsteemide ja uute teenuste väljatöötamine – meede hõlmab ühistranspordi kättesaadavuse parandamist, piletisüsteemide ja uute teenuste arendamist. Meede eeldab tugevamat regionaalset ruumilist planeerimist, kuna meetme tegevused ületavad ühe omavalitsuse piire. Investeeringuid tehakse kohalike omavalitsuste ühistranspordipargi ja -taristu uuendamisse. Lisaks parendatakse reisirongiliikluse taktpõhise graafiku juurutamise ettevalmistava tegevusena raudteetaristut."]
["Seotud Euroopa Liidu energialiidu mõõtmed","CO2 heite vähendamise mõõde;\r\nEnergiatõhususe mõõde"]
["Asjakohased eesmärgid, sihid või panused, millele\npoliitikasuund või meede kaasa aitab","kasvuhoonegaaside heide ja nende sidumine – liikmesriigi siduv riiklik kasvuhoonegaaside heitega seotud eesmärk ja iga-aastased siduvad riiklikud piirnormid vastavalt määrusele (EL) 2018/842;\r\najavahemikul 2021–2030 saavutatav kumulatiivne lõpptarbimise energiasääst kooskõlas direktiivi 2012/27/EL artikli 7 lõike 1 punktiga b energiasäästukohustuste kohta"]
["Mõjutatud sektorid","transport"]
["Eesmärk","ühistranspordile või mootorita transpordivahenditele ülemineku edendamine (transport);\r\nnõudluse juhtimine/vähendamine (transport)"]
["Kvantitatiivne eesmärk","NA"]
["Kasvuhoonegaasid, mille heitmeid otseselt mõjutatakse","CO2; CH4; N2O"]
["Planeeritud eelarve"]
["Oodatav mõju 2025-2030 keskmine","NE"]
["Programmi või meetme tüüp","Planeerimine (Planning)"]
["Hinnang sellele, mil määral poliitikasuund või meede aitab saavutada määruse\n(EL) 2021/1119 artikli 2 lõikes 1 sätestatud liidu kliimaneutraalsusees märki ja täita määruse (EL) 2018/1999 artiklis 15 osutatud pikaajalist strateegiat","Panustab kliimapoliitika põhialuste 2050  transpordi suuna eesmärkidesse."]
["Programmi või meetme aluseks olevad Euroopa Liidu õigusaktid","Effort Sharing Regulation; Effort Sharing Decision; NEC Directive"]
["Programmi või meetme rakendamise seis","Rakendatud (Implemented)"]
["Programmi või meetme rakendamise periood","2015-"]
["Stsenaarium, mille juures programmi või meedet on arvestatud","NIP"]
["Programmi või meetme rakendamise eest vastutavad isikute või asutuste tüüp","riigi valitsus"]
["Programmi või meetme rakendamise eest vastutavad isikud või asutused","Kliimaministeerium"]
["Viide analüüsidele või tehnilistele aruannetele"]
["Kommentaar"]

{"sheet":"TR6","index":39,"n_rows":24,"n_cols":2,"rows_kept":24,"cut":false,"hidden":false,"merged":[]}
["REKK peatükk","3.1.1.i"]
["Teised seonduvad REKK 2030 peatükid"]
["Poliitikasuuna või meetme number (PaM ID)",31]
["Programmi või meetme number REKK2030",{"$f":"MID(CELL(\"filename\",A2),FIND(\"]\",CELL(\"filename\",A2))+1,255)","v":"TR6"}]
["Programmi või meetme nimetus ","Raskeveokite ajapõhine teekasutustasu "]
["Programmi või meetme nimetus inglise keeles","Road usage fees for heavy duty vehicles based on time"]
["Lühike kirjeldus","Meede hõlmab teekasutustasu kehtestamist aja, asukoha, keskkonnaaspektide jms alusel. 2017. aasta juunis kiitis Riigikogu heaks teekasutustasu sõidukitele, mille täismass ületab 3500 kg (raskeveokid)."]
["Seotud Euroopa Liidu energialiidu mõõtmed","CO2 heite vähendamise mõõde"]
["Asjakohased eesmärgid, sihid või panused, millele\npoliitikasuund või meede kaasa aitab","kasvuhoonegaaside heide ja nende sidumine – liikmesriigi siduv riiklik kasvuhoonegaaside heitega seotud eesmärk ja iga-aastased siduvad riiklikud piirnormid vastavalt määrusele (EL) 2018/842"]
["Mõjutatud sektorid","transport"]
["Eesmärk","muu transport (transport)"]
["Kvantitatiivne eesmärk"]
["Kasvuhoonegaasid, mille heitmeid otseselt mõjutatakse","CO2; CH4; N2O"]
["Oodatav mõju 2025-2030 keskmine",{"$f":"AVERAGE(Meetmed!H53:M53)","v":13.910665672776878}]
["Programmi või meetme tüüp","Maksundus (Fiscal)"]
["Hinnang sellele, mil määral poliitikasuund või meede aitab saavutada määruse\n(EL) 2021/1119 artikli 2 lõikes 1 sätestatud liidu kliimaneutraalsusees märki ja täita määruse (EL) 2018/1999 artiklis 15 osutatud pikaajalist strateegiat","Panustab kliimapoliitika põhialuste 2050  transpordi suuna eesmärkidesse."]
["Programmi või meetme aluseks olevad Euroopa Liidu õigusaktid","Effort Sharing Regulation; Eurovignette Directive; Effort Sharing Decision; NEC Directive; Energy Efficency Directive"]
["Programmi või meetme rakendamise seis","Rakendatud (Implemented)"]
["Programmi või meetme rakendamise periood","2018-"]
["Stsenaarium, mille juures programmi või meedet on arvestatud","WEM"]
["Programmi või meetme rakendamise eest vastutavad isikute või asutuste tüüp","riigi valitsus"]
["Programmi või meetme rakendamise eest vastutavad isikud või asutused","Estonian Tax and Customs Board"]
["Viide analüüsidele või tehnilistele aruannetele"]
["Kommentaar"]

{"sheet":"TR7","index":40,"n_rows":25,"n_cols":2,"rows_kept":25,"cut":false,"hidden":false,"merged":[]}
["REKK peatükk","3.1.1.i"]
["Teised seonduvad REKK 2030 peatükid","3.2.1.i"]
["Poliitikasuuna või meetme number (PaM ID)",32]
["Programmi või meetme number REKK2030",{"$f":"MID(CELL(\"filename\",A2),FIND(\"]\",CELL(\"filename\",A2))+1,255)","v":"TR7"}]
["Programmi või meetme nimetus ","Nullheitega sõidukite ostutoetus"]
["Programmi või meetme nimetus inglise keeles","Support for the purchase of zero-emission vehicles"]
["Lühike kirjeldus","Elektriautode ostutoetus on suunatud suure transpordivajadusega äriühingutele ning füüsilistele isikutele. Toetuse saamise tingimuseks on, et sõidukiga läbitakse nelja aasta jooksul toetuse väljamaksmisest 80 000 kilomeetrit. See tähendab, et keskmiselt läbitakse aastas 20 000 km. Sellest vähemalt 80% ehk 16 000 km tuleb läbida Eestis, et tagada kütuste kokkuhoid Eesti transpordisektoris ning vähendada õhusaastet Eesti territooriumil."]
["Seotud Euroopa Liidu energialiidu mõõtmed","CO2 heite vähendamise mõõde;\r\nCO2 heite vähendamise mõõde: taastuvenergia;\r\nEnergiatõhususe mõõde"]
["Asjakohased eesmärgid, sihid või panused, millele\npoliitikasuund või meede kaasa aitab","kasvuhoonegaaside heide ja nende sidumine – liikmesriigi siduv riiklik kasvuhoonegaaside heitega seotud eesmärk ja iga-aastased siduvad riiklikud piirnormid vastavalt määrusele (EL) 2018/842;\r\neeldatavad trajektoorid, mis näitavad ajavahemikul 2021–2030 elektri-, kütte- ja jahutus- ning transpordisektoris tarbitava taastuvenergia osakaalu lõppenergia tarbimises;\r\najavahemikul 2021–2030 saavutatav kumulatiivne lõpptarbimise energiasääst kooskõlas direktiivi 2012/27/EL artikli 7 lõike 1 punktiga b energiasäästukohustuste kohta"]
["Mõjutatud sektorid","transport"]
["Eesmärk","vähese CO2 heitega kütused (transport);\r\nelektriline maanteetransport (transport)"]
["Kvantitatiivne eesmärk","Toetud sõidukite arv:\n2021- 2025 - 12 500 tk"]
["Kasvuhoonegaasid, mille heitmeid otseselt mõjutatakse","CO2; CH4; N2O"]
["Planeeritud eelarve"]
["Oodatav mõju 2025-2030 keskmine",{"$f":"AVERAGE(Meetmed!H54:M54)","v":35.737527685697231}]
["Programmi või meetme tüüp","Majanduslikud stiimulid (Economic)"]
["Hinnang sellele, mil määral poliitikasuund või meede aitab saavutada määruse\n(EL) 2021/1119 artikli 2 lõikes 1 sätestatud liidu kliimaneutraalsusees märki ja täita määruse (EL) 2018/1999 artiklis 15 osutatud pikaajalist strateegiat","Panustab kliimapoliitika põhialuste 2050  transpordi suuna eesmärkidesse."]
["Programmi või meetme aluseks olevad Euroopa Liidu õigusaktid","Effort Sharing Regulation; Alternative Fuels Infrastructure Directive; Clean Vehicles Directive; Effort Sharing Decision; NEC Directive;\r\nRenewable Energy Directive;\r\nEnergy Efficency Directive"]
["Programmi või meetme rakendamise seis","Rakendatud (Implemented)"]
["Programmi või meetme rakendamise periood","2020-2025"]
["Stsenaarium, mille juures programmi või meedet on arvestatud","WEM"]
["Programmi või meetme rakendamise eest vastutavad isikute või asutuste tüüp","riigi valitsus"]
["Programmi või meetme rakendamise eest vastutavad isikud või asutused","Keskkonnainvesteeringute Keskus, Kliimaministeerium"]
["Viide analüüsidele või tehnilistele aruannetele"]
["Kommentaar"]

{"sheet":"TR13","index":41,"n_rows":25,"n_cols":2,"rows_kept":25,"cut":false,"hidden":false,"merged":[]}
["REKK peatükk","3.1.1.i"]
["Teised seonduvad REKK 2030 peatükid","3.2.1.i"]
["Poliitikasuuna või meetme number (PaM ID)",37]
["Programmi või meetme number REKK2030",{"$f":"MID(CELL(\"filename\",A2),FIND(\"]\",CELL(\"filename\",A2))+1,255)","v":"TR13"}]
["Programmi või meetme nimetus ","Kestliku raudteetranspordi arendamine"]
["Programmi või meetme nimetus inglise keeles","Development of sustainable rail transport"]
["Lühike kirjeldus","Selle meetme eesmärk on arendada säästvat raudteetransporti mitmete alltegevuste kaupa, sealhulgas:\na) olemasoleva raudtee elektrifitseerimine ja kasutuse laiendamine. Plaanis on elektrifitseerida Tallinn-Tartu, Tartu-Koidula ja Tapa-Narva raudteelõigud. Praegu mahuvad need liinid peamiselt diislikütust kasutavad rongid. Pärast nende liinide elektrifitseerimist on võimalik vastu võtta peamiselt elektrit kasutavaid ronge;\nb) Rail Balticu arendamine;\nc) raudteeinfrastruktuuri arendamine – kiiruse tõstmine 160 km/h-ni Tallinn-Narva ja Tapa-Tartu liinidel; ja\nd) uute reisirongide soetamine (16 tk)."]
["Seotud Euroopa Liidu energialiidu mõõtmed","CO2 heite vähendamise mõõde;\r\nCO2 heite vähendamise mõõde: taastuvenergia;\r\nEnergiatõhususe mõõde"]
["Asjakohased eesmärgid, sihid või panused, millele\npoliitikasuund või meede kaasa aitab","kasvuhoonegaaside heide ja nende sidumine – liikmesriigi siduv riiklik kasvuhoonegaaside heitega seotud eesmärk ja iga-aastased siduvad riiklikud piirnormid vastavalt määrusele (EL) 2018/842;\r\neeldatavad trajektoorid, mis näitavad ajavahemikul 2021–2030 elektri-, kütte- ja jahutus- ning transpordisektoris tarbitava taastuvenergia osakaalu lõppenergia tarbimises;\r\najavahemikul 2021–2030 saavutatav kumulatiivne lõpptarbimise energiasääst kooskõlas direktiivi 2012/27/EL artikli 7 lõike 1 punktiga b energiasäästukohustuste kohta"]
["Mõjutatud sektorid","transport"]
["Eesmärk","ühistranspordile või mootorita transpordivahenditele ülemineku edendamine (transport);\r\nvähese CO2 heitega kütused (transport);\r\nnõudluse juhtimine/vähendamine (transport);\r\ntransporditaristu tõhustamine (transport);\r\nmuu transport (transport)"]
["Kvantitatiivne eesmärk","500 km elektrifitseeritud raudteed (I etapis), uued reisirongid 16 tk"]
["Kasvuhoonegaasid, mille heitmeid otseselt mõjutatakse","CO2; CH4; N2O"]
["Planeeritud eelarve"]
["Oodatav mõju 2025-2030 keskmine",{"$f":"AVERAGE(Meetmed!H51:M51)","v":24.91145451290236}]
["Programmi või meetme tüüp","Majanduslikud stiimulid (Economic)"]
["Hinnang sellele, mil määral poliitikasuund või meede aitab saavutada määruse\n(EL) 2021/1119 artikli 2 lõikes 1 sätestatud liidu kliimaneutraalsusees märki ja täita määruse (EL) 2018/1999 artiklis 15 osutatud pikaajalist strateegiat","Panustab kliimapoliitika põhialuste 2050  transpordi suuna eesmärkidesse."]
["Programmi või meetme aluseks olevad Euroopa Liidu õigusaktid","Effort Sharing Regulation; NEC Directive; Renewable Energy Directive;\r\nEnergy Efficency Directive;\r\nAlternative Fuels Infrastructure Directive"]
["Programmi või meetme rakendamise seis","Rakendatud (Implemented)"]
["Programmi või meetme rakendamise periood","2024-2027"]
["Stsenaarium, mille juures programmi või meedet on arvestatud","WEM"]
["Programmi või meetme rakendamise eest vastutavad isikute või asutuste tüüp","riigi valitsus"]
["Programmi või meetme rakendamise eest vastutavad isikud või asutused","Kliimaministeerium"]
["Viide analüüsidele või tehnilistele aruannetele","https://www.mkm.ee/sites/default/files/180917_energiatohusus_2030_aruanne.pdf; \nhttps://www.mkm.ee/media/143/download\n"]
["Kommentaar"]

{"sheet":"TR15","index":42,"n_rows":25,"n_cols":2,"rows_kept":25,"cut":false,"hidden":false,"merged":[]}
["REKK peatükk","3.1.1.i"]
["Teised seonduvad REKK 2030 peatükid","3.2.1.i"]
["Poliitikasuuna või meetme number (PaM ID)",39]
["Programmi või meetme number REKK2030",{"$f":"MID(CELL(\"filename\",A2),FIND(\"]\",CELL(\"filename\",A2))+1,255)","v":"TR15"}]
["Programmi või meetme nimetus ","Siseriikliku parvlaeva muutmine kliimaneutraalseks"]
["Programmi või meetme nimetus inglise keeles","Making a domestic ferry climate neutral"]
["Lühike kirjeldus","Üks Saaremaa mandri vaheline parvlaev töötab elektril. Selle meetme rakendamine hõlmab mandri-Eesti ja saarte vahelise parvlaeva elektrifitseerimist. Praegu teenindab mandrit kaks diiselkütusel töötavat parvlaeva. Plaanis on asendada üks diiselkütusel töötav parvlaev elektriga töötava parvlaevaga, millel on parvlaeva laadimiseks vajalik taristu."]
["Seotud Euroopa Liidu energialiidu mõõtmed","CO2 heite vähendamise mõõde;\r\nCO2 heite vähendamise mõõde: taastuvenergia;\r\nEnergiatõhususe mõõde"]
["Asjakohased eesmärgid, sihid või panused, millele\npoliitikasuund või meede kaasa aitab","kasvuhoonegaaside heide ja nende sidumine – liikmesriigi siduv riiklik kasvuhoonegaaside heitega seotud eesmärk ja iga-aastased siduvad riiklikud piirnormid vastavalt määrusele (EL) 2018/842;\r\neeldatavad trajektoorid, mis näitavad ajavahemikul 2021–2030 elektri-, kütte- ja jahutus- ning transpordisektoris tarbitava taastuvenergia osakaalu lõppenergia tarbimises;\r\najavahemikul 2021–2030 saavutatav kumulatiivne lõpptarbimise energiasääst kooskõlas direktiivi 2012/27/EL artikli 7 lõike 1 punktiga b energiasäästukohustuste kohta"]
["Mõjutatud sektorid","transport"]
["Eesmärk","sõidukite energiatõhususe suurendamine (transport);\r\ntransporditaristu tõhustamine (transport)"]
["Kvantitatiivne eesmärk","Üks elektriline parvlaev"]
["Kasvuhoonegaasid, mille heitmeid otseselt mõjutatakse","CO2; CH4; N2O"]
["Planeeritud eelarve"]
["Oodatav mõju 2025-2030 keskmine",{"$f":"AVERAGE(Meetmed!H55:M55)","v":8.1261663262811705}]
["Programmi või meetme tüüp","Majanduslikud stiimulid (Economic)"]
["Hinnang sellele, mil määral poliitikasuund või meede aitab saavutada määruse\n(EL) 2021/1119 artikli 2 lõikes 1 sätestatud liidu kliimaneutraalsusees märki ja täita määruse (EL) 2018/1999 artiklis 15 osutatud pikaajalist strateegiat","Panustab kliimapoliitika põhialuste 2050  transpordi suuna eesmärkidesse."]
["Programmi või meetme aluseks olevad Euroopa Liidu õigusaktid","Effort Sharing Regulation; Clean Vehicles Directive; Effort Sharing Decision; NEC Directive;\r\nRenewable Energy Directive;\r\nEffort Sharing Regulation; Clean Vehicles Directive;\nRenewable Energy Directive"]
["Programmi või meetme rakendamise seis","Vastuvõetud (Adopted)"]
["Programmi või meetme rakendamise periood","2027-"]
["Stsenaarium, mille juures programmi või meedet on arvestatud","WEM"]
["Programmi või meetme rakendamise eest vastutavad isikute või asutuste tüüp","riigi valitsus"]
["Programmi või meetme rakendamise eest vastutavad isikud või asutused","Kliimaministeerium"]
["Viide analüüsidele või tehnilistele aruannetele"]
["Kommentaar"]

{"sheet":"TR16a","index":43,"n_rows":25,"n_cols":2,"rows_kept":25,"cut":false,"hidden":false,"merged":[]}
["REKK peatükk","3.1.1.i"]
["Teised seonduvad REKK 2030 peatükid","3.2.1.i"]
["Poliitikasuuna või meetme number (PaM ID)",40]
["Programmi või meetme number REKK2030",{"$f":"MID(CELL(\"filename\",A2),FIND(\"]\",CELL(\"filename\",A2))+1,255)","v":"TR16a"}]
["Programmi või meetme nimetus ","Biometaani kasutamise soodustamine bussides"]
["Programmi või meetme nimetus inglise keeles","Promoting the use of biomethane in busses"]
["Lühike kirjeldus","Toetuse eesmärk on suurendada biometaani pakkumist turul, tekitades nõudlust taastuvatest energiaallikatest toodetud kütuste järele ja toetades tanklate rajamist."]
["Seotud Euroopa Liidu energialiidu mõõtmed","CO2 heite vähendamise mõõde;\r\nCO2 heite vähendamise mõõde: taastuvenergia"]
["Asjakohased eesmärgid, sihid või panused, millele\npoliitikasuund või meede kaasa aitab","kasvuhoonegaaside heide ja nende sidumine – liikmesriigi siduv riiklik kasvuhoonegaaside heitega seotud eesmärk ja iga-aastased siduvad riiklikud piirnormid vastavalt määrusele (EL) 2018/842;\r\neeldatavad trajektoorid, mis näitavad ajavahemikul 2021–2030 elektri-, kütte- ja jahutus- ning transpordisektoris tarbitava taastuvenergia osakaalu lõppenergia tarbimises"]
["Mõjutatud sektorid","transport"]
["Eesmärk","vähese CO2 heitega kütused (transport);\r\nsõidukite energiatõhususe suurendamine (transport)"]
["Kvantitatiivne eesmärk","Bussid 100% biometaanil 2030.aastaks"]
["Kasvuhoonegaasid, mille heitmeid otseselt mõjutatakse","CO2; CH4; N2O"]
["Planeeritud eelarve"]
["Oodatav mõju 2025-2030 keskmine",{"$f":"AVERAGE(Meetmed!H61:M61)","v":74.006166976523531}]
["Programmi või meetme tüüp","Majanduslikud stiimulid (Economic)"]
["Hinnang sellele, mil määral poliitikasuund või meede aitab saavutada määruse\n(EL) 2021/1119 artikli 2 lõikes 1 sätestatud liidu kliimaneutraalsusees märki ja täita määruse (EL) 2018/1999 artiklis 15 osutatud pikaajalist strateegiat"," Panustab kliimapoliitika põhialuste 2050  transpordi suuna eesmärkidesse."]
["Programmi või meetme aluseks olevad Euroopa Liidu õigusaktid","Effort Sharing Regulation;\r\nEffort Sharing Decision;\r\nRenewable Energy Directive"]
["Programmi või meetme rakendamise seis","Rakendatud (Implemented)"]
["Programmi või meetme rakendamise periood","2014-…"]
["Stsenaarium, mille juures programmi või meedet on arvestatud","WEM"]
["Programmi või meetme rakendamise eest vastutavad isikute või asutuste tüüp","riigi valitsus"]
["Programmi või meetme rakendamise eest vastutavad isikud või asutused","Keskkonnainvesteeringute Keskus, Kliimaministeerium"]
["Viide analüüsidele või tehnilistele aruannetele","https://www.riigiteataja.ee/akt/125112015009?leiaKehtiv"]
["Kommentaar"]

{"sheet":"TR16b","index":44,"n_rows":25,"n_cols":2,"rows_kept":25,"cut":false,"hidden":false,"merged":[]}
["REKK peatükk","3.1.1.i"]
["Teised seonduvad REKK 2030 peatükid","3.2.1.i"]
["Poliitikasuuna või meetme number (PaM ID)",41]
["Programmi või meetme number REKK2030",{"$f":"MID(CELL(\"filename\",A2),FIND(\"]\",CELL(\"filename\",A2))+1,255)","v":"TR16b"}]
["Programmi või meetme nimetus ","Elektri kasutamise soodustamine bussides"]
["Programmi või meetme nimetus inglise keeles","Promoting the use of electricity in busses"]
["Lühike kirjeldus","See meede hõlmab elektribussidele ülemineku (ka trollide) infrastruktuuri tugisüsteemi väljatöötamist.\nToetuse eesmärk oli vähendada süsihappegaasi emissiooni elektribusside kasutuselevõtuga Eesti transpordisektoris ning koguda ja analüüsida elektribusside tarbimis- ja laadimisandmeid, et aidata kaasa elektritranspordi arengule."]
["Seotud Euroopa Liidu energialiidu mõõtmed","CO2 heite vähendamise mõõde;\r\nCO2 heite vähendamise mõõde: taastuvenergia;\r\nEnergiatõhususe mõõde"]
["Asjakohased eesmärgid, sihid või panused, millele\npoliitikasuund või meede kaasa aitab","kasvuhoonegaaside heide ja nende sidumine – liikmesriigi siduv riiklik kasvuhoonegaaside heitega seotud eesmärk ja iga-aastased siduvad riiklikud piirnormid vastavalt määrusele (EL) 2018/842;\r\neeldatavad trajektoorid, mis näitavad ajavahemikul 2021–2030 elektri-, kütte- ja jahutus- ning transpordisektoris tarbitava taastuvenergia osakaalu lõppenergia tarbimises;\r\najavahemikul 2021–2030 saavutatav kumulatiivne lõpptarbimise energiasääst kooskõlas direktiivi 2012/27/EL artikli 7 lõike 1 punktiga b energiasäästukohustuste kohta"]
["Mõjutatud sektorid","transport"]
["Eesmärk","elektriline maanteetransport (transport); ühistranspordile või mootorita transpordivahenditele ülemineku edendamine (transport)"]
["Kvantitatiivne eesmärk","8 laadimisinfrastruktuuriga elektribussi (aeglased ja kiirlaadijad)"]
["Kasvuhoonegaasid, mille heitmeid otseselt mõjutatakse","CO2; CH4; N2O"]
["Planeeritud eelarve"]
["Oodatav mõju 2025-2030 keskmine",{"$f":"AVERAGE(Meetmed!H56:M56)","v":16.164222767351259}]
["Programmi või meetme tüüp","Majanduslikud stiimulid (Economic)"]
["Hinnang sellele, mil määral poliitikasuund või meede aitab saavutada määruse\n(EL) 2021/1119 artikli 2 lõikes 1 sätestatud liidu kliimaneutraalsusees märki ja täita määruse (EL) 2018/1999 artiklis 15 osutatud pikaajalist strateegiat","Panustab kliimapoliitika põhialuste 2050  transpordi suuna eesmärkidesse."]
["Programmi või meetme aluseks olevad Euroopa Liidu õigusaktid","Effort Sharing Regulation;\r\nEnergy Efficency Directive;\r\nRenewable Energy Directive;\r\nNEC Directive"]
["Programmi või meetme rakendamise seis","Rakendatud (Implemented)"]
["Programmi või meetme rakendamise periood","2020-…"]
["Stsenaarium, mille juures programmi või meedet on arvestatud","WEM"]
["Programmi või meetme rakendamise eest vastutavad isikute või asutuste tüüp","riigi valitsus"]
["Programmi või meetme rakendamise eest vastutavad isikud või asutused","Kliimaministeerium"]
["Viide analüüsidele või tehnilistele aruannetele","https://www.riigiteataja.ee/akt/105072023320?leiaKehtiv"]
["Kommentaar"]

{"sheet":"TR17","index":45,"n_rows":25,"n_cols":2,"rows_kept":25,"cut":false,"hidden":false,"merged":[]}
["REKK peatükk","3.1.1.i"]
["Teised seonduvad REKK 2030 peatükid"]
["Poliitikasuuna või meetme number (PaM ID)",42]
["Programmi või meetme number REKK2030",{"$f":"MID(CELL(\"filename\",A2),FIND(\"]\",CELL(\"filename\",A2))+1,255)","v":"TR17"}]
["Programmi või meetme nimetus ","KHS direktiivi ülevõtmine ning riigisektori sõidukipargi keskkonnasõbralikuks muutmine"]
["Programmi või meetme nimetus inglise keeles","Promotion of clean and energy efficient road transport vehicles in public procurement"]
["Lühike kirjeldus","Keskkonnasõbralike ja energiatõhusate maanteetranspordivahendite edendamine avalikus sektoris. Valitsus peab keskkonnasõbralike sõidukite direktiivis 2009/33/EÜ sätestatud süsteemi rakendama 24 kuu jooksul, s.o alates augustist 2021."]
["Seotud Euroopa Liidu energialiidu mõõtmed","CO2 heite vähendamise mõõde;\r\nEnergiatõhususe mõõde;\r\nCO2 heite vähendamise mõõde: taastuvenergia"]
["Asjakohased eesmärgid, sihid või panused, millele\npoliitikasuund või meede kaasa aitab","kasvuhoonegaaside heide ja nende sidumine – liikmesriigi siduv riiklik kasvuhoonegaaside heitega seotud eesmärk ja iga-aastased siduvad riiklikud piirnormid vastavalt määrusele (EL) 2018/842;\r\neeldatavad trajektoorid, mis näitavad ajavahemikul 2021–2030 elektri-, kütte- ja jahutus- ning transpordisektoris tarbitava taastuvenergia osakaalu lõppenergia tarbimises;\r\najavahemikul 2021–2030 saavutatav kumulatiivne lõpptarbimise energiasääst kooskõlas direktiivi 2012/27/EL artikli 7 lõike 1 punktiga b energiasäästukohustuste kohta"]
["Mõjutatud sektorid","transport"]
["Eesmärk","sõidukite energiatõhususe suurendamine (transport);\r\nvähese CO2 heitega kütused (transport);\r\nelektriline maanteetransport (transport)"]
["Kvantitatiivne eesmärk","NA"]
["Kasvuhoonegaasid, mille heitmeid otseselt mõjutatakse","CO2; CH4; N2O"]
["Planeeritud eelarve"]
["Oodatav mõju 2025-2030 keskmine",{"$f":"AVERAGE(Meetmed!H57:M57)","v":14.994803293033321}]
["Programmi või meetme tüüp","Seadusandlus (Regulatory)"]
["Hinnang sellele, mil määral poliitikasuund või meede aitab saavutada määruse\n(EL) 2021/1119 artikli 2 lõikes 1 sätestatud liidu kliimaneutraalsusees märki ja täita määruse (EL) 2018/1999 artiklis 15 osutatud pikaajalist strateegiat","Panustab kliimapoliitika põhialuste 2050  transpordi suuna eesmärkidesse."]
["Programmi või meetme aluseks olevad Euroopa Liidu õigusaktid","Effort Sharing Regulation; NEC Directive;\r\nEnergy Efficency Directive;\r\nRenewable Energy Directive"]
["Programmi või meetme rakendamise seis","Rakendatud (Implemented)"]
["Programmi või meetme rakendamise periood","2021-2030"]
["Stsenaarium, mille juures programmi või meedet on arvestatud","WEM"]
["Programmi või meetme rakendamise eest vastutavad isikute või asutuste tüüp","riigi valitsus"]
["Programmi või meetme rakendamise eest vastutavad isikud või asutused","Kliimaministeerium"]
["Viide analüüsidele või tehnilistele aruannetele"]
["Kommentaar"]

{"sheet":"TR19","index":46,"n_rows":25,"n_cols":2,"rows_kept":25,"cut":false,"hidden":false,"merged":[]}
["REKK peatükk","3.1.1.i"]
["Teised seonduvad REKK 2030 peatükid"]
["Poliitikasuuna või meetme number (PaM ID)",44]
["Programmi või meetme number REKK2030",{"$f":"MID(CELL(\"filename\",A2),FIND(\"]\",CELL(\"filename\",A2))+1,255)","v":"TR19"}]
["Programmi või meetme nimetus ","Vesiniku pilootprojekt"]
["Programmi või meetme nimetus inglise keeles","Pilot project for hydrogen"]
["Lühike kirjeldus","Pilootprojekt hõlmab kogu vesiniku kasutusahelat, st tootmisest, transpordist, ladustamisest kuni transpordis (taksoga) tarbimiseni. Plaanis on asendada 30 bensiini või diisliga sõitvat taksot vesinikuga. Takso aastane läbisõit on ligikaudu 100 000 kilomeetrit. IPPU sektorit mõjutab maanteetranspordi ja diislikütuse lõppnõudluse vähenemise kaudu (Ad Blue kasutamine on kajastatud IPPU sektori all)."]
["Seotud Euroopa Liidu energialiidu mõõtmed","CO2 heite vähendamise mõõde;\r\nCO2 heite vähendamise mõõde: taastuvenergia;\r\nTeadusuuringute, innovatsiooni ja konkurentsivõime mõõde"]
["Asjakohased eesmärgid, sihid või panused, millele\npoliitikasuund või meede kaasa aitab","kasvuhoonegaaside heide ja nende sidumine – liikmesriigi siduv riiklik kasvuhoonegaaside heitega seotud eesmärk ja iga-aastased siduvad riiklikud piirnormid vastavalt määrusele (EL) 2018/842;\r\neeldatavad trajektoorid taastuvenergiatehnoloogia lahenduste kaupa;\r\npuhta energia tehnoloogia edendamisega seotud riiklikud 2050. aasta eesmärgid ning vajaduse korral riiklikud eesmärgid, sh pikaajalised (2050), mis on seotud vähese CO2 heitega tehnoloogia kasutuselevõtuga, sh suure energiakasutusega ja rohkesti CO2 heidet tekitavate tööstussektorite CO2 heite vähendamise ning vajaduse korral seonduva CO2 transpordi ja säilitamise taristu tehnoloogia"]
["Mõjutatud sektorid","transport"]
["Eesmärk","vähese CO2 heitega kütused (transport);\r\nsõidukite energiatõhususe suurendamine (transport)"]
["Kvantitatiivne eesmärk","Vesiniku tootmine, kasutatakse ühistranspordis (taksod)"]
["Kasvuhoonegaasid, mille heitmeid otseselt mõjutatakse","CO2; CH4; N2O"]
["Planeeritud eelarve"]
["Oodatav mõju 2025-2030 keskmine",{"$f":"AVERAGE(Meetmed!H62:M62)","v":0.91198551663753913}]
["Programmi või meetme tüüp","Majanduslikud stiimulid (Economic);\r\nTeadusuuringud (Research)"]
["Hinnang sellele, mil määral poliitikasuund või meede aitab saavutada määruse\n(EL) 2021/1119 artikli 2 lõikes 1 sätestatud liidu kliimaneutraalsusees märki ja täita määruse (EL) 2018/1999 artiklis 15 osutatud pikaajalist strateegiat","Panustab kliimapoliitika põhialuste 2050  transpordi suuna eesmärkidesse."]
["Programmi või meetme aluseks olevad Euroopa Liidu õigusaktid","Effort Sharing Regulation;\r\nRenewable Energy Directive"]
["Programmi või meetme rakendamise seis","Rakendatud (Implemented)"]
["Programmi või meetme rakendamise periood","2021-2025"]
["Stsenaarium, mille juures programmi või meedet on arvestatud","WEM"]
["Programmi või meetme rakendamise eest vastutavad isikute või asutuste tüüp","riigi valitsus"]
["Programmi või meetme rakendamise eest vastutavad isikud või asutused","Keskkonnainvesteeringute Keskus, Kliimaministeerium"]
["Viide analüüsidele või tehnilistele aruannetele","https://www.riigiteataja.ee/akt/102072021012?leiaKehtiv"]
["Kommentaar"]

{"sheet":"TR21","index":47,"n_rows":25,"n_cols":2,"rows_kept":25,"cut":false,"hidden":false,"merged":[]}
["REKK peatükk","3.1.1.i"]
["Teised seonduvad REKK 2030 peatükid"]
["Poliitikasuuna või meetme number (PaM ID)",124]
["Programmi või meetme number REKK2030",{"$f":"MID(CELL(\"filename\",A2),FIND(\"]\",CELL(\"filename\",A2))+1,255)","v":"TR21"}]
["Programmi või meetme nimetus ","Mootorsõidukite registreerimis- ja aastamaks"]
["Programmi või meetme nimetus inglise keeles","Vehicle registration and annual tax"]
["Lühike kirjeldus","Mootorsõiduki aast- ja registreerimismaks vastavalt vanuse, keskkonnaaspektidele (CO2) jne. Maksu eesmärk ei ole auto kui sellise maksustamine ja riigi maksutulude suurendamine, vaid tarbijate valikute mõjutamine ning ökonoomsema sõidukipargi kujundamine. \n"]
["Seotud Euroopa Liidu energialiidu mõõtmed","CO2 heite vähendamise mõõde;\r\nEnergiatõhususe mõõde"]
["Asjakohased eesmärgid, sihid või panused, millele\npoliitikasuund või meede kaasa aitab","kasvuhoonegaaside heide ja nende sidumine – liikmesriigi siduv riiklik kasvuhoonegaaside heitega seotud eesmärk ja iga-aastased siduvad riiklikud piirnormid vastavalt määrusele (EL) 2018/842;\r\najavahemikul 2021–2030 saavutatav kumulatiivne lõpptarbimise energiasääst kooskõlas direktiivi 2012/27/EL artikli 7 lõike 1 punktiga b energiasäästukohustuste kohta"]
["Mõjutatud sektorid","transport"]
["Eesmärk","ühistranspordile või mootorita transpordivahenditele ülemineku edendamine (transport);\r\nnõudluse juhtimine/vähendamine (transport);\r\nkäitumise parandamine (transport)"]
["Kvantitatiivne eesmärk","NA"]
["Kasvuhoonegaasid, mille heitmeid otseselt mõjutatakse","CO2; CH4; N2O"]
["Planeeritud eelarve"]
["Oodatav mõju 2025-2030 keskmine",{"$f":"AVERAGE(Meetmed!H58:M58)","v":38.433633975656505}]
["Programmi või meetme tüüp","Maksundus (Fiscal)"]
["Hinnang sellele, mil määral poliitikasuund või meede aitab saavutada määruse\n(EL) 2021/1119 artikli 2 lõikes 1 sätestatud liidu kliimaneutraalsusees märki ja täita määruse (EL) 2018/1999 artiklis 15 osutatud pikaajalist strateegiat","Panustab kliimapoliitika põhialuste 2050  transpordi suuna eesmärkidesse."]
["Programmi või meetme aluseks olevad Euroopa Liidu õigusaktid","Effort Sharing Regulation;\r\nEnergy Efficency Directive"]
["Programmi või meetme rakendamise seis","Rakendatud (Implemented)"]
["Programmi või meetme rakendamise periood","2025-"]
["Stsenaarium, mille juures programmi või meedet on arvestatud","WEM"]
["Programmi või meetme rakendamise eest vastutavad isikute või asutuste tüüp","riigi valitsus"]
["Programmi või meetme rakendamise eest vastutavad isikud või asutused","Rahandusministeerium, Maksu- ja Tolliamet"]
["Viide analüüsidele või tehnilistele aruannetele"]
["Kommentaar"]

{"sheet":"TR25","index":48,"n_rows":25,"n_cols":2,"rows_kept":25,"cut":false,"hidden":false,"merged":[]}
["REKK peatükk","3.1.1.i"]
["Teised seonduvad REKK 2030 peatükid"]
["Poliitikasuuna või meetme number (PaM ID)",63]
["Programmi või meetme number REKK2030",{"$f":"MID(CELL(\"filename\",A2),FIND(\"]\",CELL(\"filename\",A2))+1,255)","v":"TR25"}]
["Programmi või meetme nimetus ","Alternatiivkütustuste taristu arendamine transpordis (elektri- ja vesiniku laadimistaristu loomine)"]
["Programmi või meetme nimetus inglise keeles","Development of infrastructure for alternative fuels in transport ()"]
["Lühike kirjeldus","Meetme eesmärk on tagada piisavalt ja omavahel ühilduvad laadimis- ja tankimisvõrgustikud transpordisektori jaoks, toetades üleminekut heitmevabale liikumisele ning täites ELi alternatiivkütuste taristu määruse (AFIR) nõudeid."]
["Seotud Euroopa Liidu energialiidu mõõtmed","CO2 heite vähendamise mõõde: taastuvenergia;\r\nCO2 heite vähendamise mõõde"]
["Asjakohased eesmärgid, sihid või panused, millele\npoliitikasuund või meede kaasa aitab","eeldatavad trajektoorid, mis näitavad ajavahemikul 2021–2030 elektri-, kütte- ja jahutus- ning transpordisektoris tarbitava taastuvenergia osakaalu lõppenergia tarbimises;\r\nkasvuhoonegaaside heide ja nende sidumine – liikmesriigi siduv riiklik kasvuhoonegaaside heitega seotud eesmärk ja iga-aastased siduvad riiklikud piirnormid vastavalt määrusele (EL) 2018/842"]
["Mõjutatud sektorid","transport"]
["Eesmärk","transporditaristu tõhustamine (transport)"]
["Kvantitatiivne eesmärk","AFIRi määruse nõuete täitmine"]
["Kasvuhoonegaasid, mille heitmeid otseselt mõjutatakse","CO2; CH4; N2O"]
["Planeeritud eelarve"]
["Oodatav mõju 2025-2030 keskmine","NE"]
["Programmi või meetme tüüp","Majanduslikud stiimulid (Economic);\r\nSeadusandlus (Regulatory)"]
["Hinnang sellele, mil määral poliitikasuund või meede aitab saavutada määruse\n(EL) 2021/1119 artikli 2 lõikes 1 sätestatud liidu kliimaneutraalsusees märki ja täita määruse (EL) 2018/1999 artiklis 15 osutatud pikaajalist strateegiat","Panustab kliimapoliitika põhialuste 2050  transpordi suuna eesmärkidesse."]
["Programmi või meetme aluseks olevad Euroopa Liidu õigusaktid","Alternative Fuels Infrastructure Directive;\r\nRenewable Energy Directive;\r\nEffort Sharing Regulation"]
["Programmi või meetme rakendamise seis","Rakendatud (Implemented)"]
["Programmi või meetme rakendamise periood","2024-2027"]
["Stsenaarium, mille juures programmi või meedet on arvestatud","WEM"]
["Programmi või meetme rakendamise eest vastutavad isikute või asutuste tüüp","riigi valitsus"]
["Programmi või meetme rakendamise eest vastutavad isikud või asutused","Kliimaministeerium"]
["Viide analüüsidele või tehnilistele aruannetele"]
["Kommentaar"]

{"sheet":"PM4","index":49,"n_rows":24,"n_cols":2,"rows_kept":24,"cut":false,"hidden":false,"merged":[]}
["REKK peatükk","3.1.1.i"]
["Teised seonduvad REKK 2030 peatükid"]
["Poliitikasuuna või meetme number (PaM ID)",70]
["Programmi või meetme number REKK2030",{"$f":"MID(CELL(\"filename\",A2),FIND(\"]\",CELL(\"filename\",A2))+1,255)","v":"PM4"}]
["Programmi või meetme nimetus ","Teadmussiire ja teavitus"]
["Programmi või meetme nimetus inglise keeles","Knowledge transfer and awareness"]
["Lühike kirjeldus","Meetme eesmärgiks on põllumajandus-, toidu- ja metsandussektori ettevõtjate ning nende töötajate arendamine. Uute teadmiste leviku soodustamisega aidatakse kaasa biomajanduse arengule ja kohanemisele uute väljakutsetega ressursside säästlikuks kasutamiseks. Meetmega soovitakse edendada koolituste/esitluste ja teadlikkuse tõstmise tegevuste korraldamist ning töötubade või ettevõtete külastuste korraldamist ning pikaajalisi programme."]
["Seotud Euroopa Liidu energialiidu mõõtmed","CO2 heite vähendamise mõõde"]
["Asjakohased eesmärgid, sihid või panused, millele\npoliitikasuund või meede kaasa aitab","Teadusuuringute, innovatsiooni ja konkurentsivõime mõõde;\r\nkasvuhoonegaaside heide ja nende sidumine – liikmesriigi siduv riiklik kasvuhoonegaaside heitega seotud eesmärk ja iga-aastased siduvad riiklikud piirnormid vastavalt määrusele (EL) 2018/842"]
["Mõjutatud sektorid","põllumajandus"]
["Eesmärk","muu põllumajandus (põllumajandus)"]
["Kvantitatiivne eesmärk","Nõustatuid kokku 2025 a lõpuks ca 8000."]
["Kasvuhoonegaasid, mille heitmeid otseselt mõjutatakse","CH4, CO2, N2O"]
["Oodatav mõju 2025-2030 keskmine","NE"]
["Programmi või meetme tüüp","Haridus (Education); Teavitamine (Information)"]
["Hinnang sellele, mil määral poliitikasuund või meede aitab saavutada määruse (EL) 2021/1119 artikli 2 lõikes 1 sätestatud liidu kliimaneutraalsusees märki ja täita määruse (EL) 2018/1999 artiklis 15 osutatud pikaajalist strateegiat","Meede aitab kaasa KPP2050 järgmistele suunistele: Põllumajandussektori kasvuhoonegaaside heite piiramisel eelistatakse teadus-, arendus- ja innovatsioonisuundi, mis suurendavad põllumajanduse kestlikkust. Innovatsiooni edendamiseks seotakse teadustöö tihedalt põllumajandustootmisega hariduse, teavituse ja nõustamise kaudu. Uuringute abil suurendatakse põllumajanduses keskkonna- ja kliimamuutustega seotud teadus-, arendus- ja innovatsioonitegevuste mahtu."]
["Programmi või meetme aluseks olevad Euroopa Liidu õigusaktid","Effort Sharing Regulation; Common Agricultural Policy; Effort Sharing Decision; European Structural and Investment Funds"]
["Programmi või meetme rakendamise seis","Rakendatud (Implemented)"]
["Programmi või meetme rakendamise periood","2015-2025"]
["Stsenaarium, mille juures programmi või meedet on arvestatud","WEM"]
["Programmi või meetme rakendamise eest vastutavad isikute või asutuste tüüp","piirkondlikud üksused;\r\nriigi valitsus"]
[" ","Põllumajanduse Registrite ja Informatiooni Amet; Regionaal -ja Põllumajandusministeerium"]
["Viide analüüsidele või tehnilistele aruannetele","https://www.agri.ee/eesti-maaelu-arengukava-2014-2020"]
["Kommentaar"]

{"sheet":"PM7","index":50,"n_rows":24,"n_cols":2,"rows_kept":24,"cut":false,"hidden":false,"merged":[]}
["REKK peatükk","3.1.1.i"]
["Teised seonduvad REKK 2030 peatükid"]
["Poliitikasuuna või meetme number (PaM ID)",76]
["Programmi või meetme number REKK2030",{"$f":"MID(CELL(\"filename\",A2),FIND(\"]\",CELL(\"filename\",A2))+1,255)","v":"PM7"}]
["Programmi või meetme nimetus ","Kliima- ja keskkonnakava: mahepõllumajanduse ökokava (ÖK2)"]
["Programmi või meetme nimetus inglise keeles","Eco-scheme for organic farming"]
["Lühike kirjeldus","\nToetust antakse mahepõllumajandusele üleminekut alustavatele ja mahepõllumajandusega tegelevatele ettevõtjatele ning toetuse maksmise aluseks on nende mahepõllumajanduslikus kasutuses oleva põllumajandusmaa pind."]
["Seotud Euroopa Liidu energialiidu mõõtmed","CO2 heite vähendamise mõõde"]
["Asjakohased eesmärgid, sihid või panused, millele\npoliitikasuund või meede kaasa aitab","kasvuhoonegaaside heide ja nende sidumine – liikmesriigi siduv riiklik kasvuhoonegaaside heitega seotud eesmärk ja iga-aastased siduvad riiklikud piirnormid vastavalt määrusele (EL) 2018/842"]
["Mõjutatud sektorid","põllumajandus"]
["Eesmärk","väetiste/sõnniku kasutamise vähendamine põllumaal (põllumajandus); orgaaniliste muldade parem majandamine (põllumajandus)"]
["Kvantitatiivne eesmärk","230 000 ha mahemaa pindala kokku aastaks 2027"]
["Kasvuhoonegaasid, mille heitmeid otseselt mõjutatakse","N2O; CO2"]
["Oodatav mõju 2025-2030 keskmine",{"$f":"AVERAGE(Meetmed!H66:M66)","v":27.013638426944173}]
["Programmi või meetme tüüp","Majanuduslikud stiimulid (Economic); Seadusandlus (Regulatory)"]
["Hinnang sellele, mil määral poliitikasuund või meede aitab saavutada määruse (EL) 2021/1119 artikli 2 lõikes 1 sätestatud liidu kliimaneutraalsusees märki ja täita määruse (EL) 2018/1999 artiklis 15 osutatud pikaajalist strateegiat","Meede aitab kaasa KPP2050 järgmistele suunistele: 1) Suurendatakse ja säilitatakse muldade süsinikuvaru ning kujundatakse ja säilitatakse olulise süsinikuvaruga maa-alasid; 2) Soodustatakse põllumajandusmaa tõhusat ja keskkonnasõbralikku kasutust ning välditakse selle põllumajanduslikust kasutusest väljalangemist. Säilitatakse põllumajandusmaa tootmispotentsiaal ja väärtusliku mullastikuga põllumaa pindala. Praktiseeritakse keskkonna- ja kliimasõbralikke viljelusviise ja tavasid ning rakendatakse tõhusaid põllumajandustehnoloogiaid ja -praktikaid, et säilitada ja suurendada põllumaade viljakust ning tagada sealne elurikkus. 2) Tõhustatakse taimetoitainete kasutamist ning soodustatakse mineraalväetiste asendamist orgaaniliste väetiste ja keskkonnasõbralike mullaparandajatega. Välditakse orgaanilise aine vajaduseta põllult minemaviimist. \n\nMeede aitab eesmärkide saavutamisele kaasa, toetades mahepõllumajandusliku tootmise arengut ja vähendades kasvuhoonegaaside heitkoguseid, kasutades sünteetiliste väetiste asemel orgaanilisi väetisi."]
["Programmi või meetme aluseks olevad Euroopa Liidu õigusaktid","Common Agricultural Policy;\r\nEffort Sharing Regulation"]
["Programmi või meetme rakendamise seis","Rakendatud (Implemented)"]
["Programmi või meetme rakendamise periood","2023-2027"]
["Stsenaarium, mille juures programmi või meedet on arvestatud","WEM"]
["Programmi või meetme rakendamise eest vastutavad isikute või asutuste tüüp","piirkondlikud üksused;\r\nriigi valitsus"]
["Programmi või meetme rakendamise eest vastutavad isikud või asutused","Põllumajanduse Registrite ja Informatiooni Amet; Regionaal -ja Põllumajandusministeerium"]
["Viide analüüsidele või tehnilistele aruannetele","https://www.agri.ee/euroopa-liidu-uhise-pollumajanduspoliitika-strateegiakava-2023-2027 "]
["Kommentaar"]

{"sheet":"PM9","index":51,"n_rows":24,"n_cols":2,"rows_kept":24,"cut":false,"hidden":false,"merged":[]}
["REKK peatükk","3.1.1.i"]
["Teised seonduvad REKK 2030 peatükid"]
["Poliitikasuuna või meetme number (PaM ID)",82]
["Programmi või meetme number REKK2030",{"$f":"MID(CELL(\"filename\",A2),FIND(\"]\",CELL(\"filename\",A2))+1,255)","v":"PM9"}]
["Programmi või meetme nimetus ","Loomade heaolu toetus"]
["Programmi või meetme nimetus inglise keeles","Animal welfare support"]
["Lühike kirjeldus","Sekkumise üldeesmärgiks on tõsta loomakasvatajate teadlikkust loomade heaolust ja toetada põllumajandustootjaid, kes täidavad loomade heaolu kõrgemaid nõudeid ning parandavad sellega loomade heaolu ja tervist. Lisaks aitab toetus vähendada loomakasvatuse negatiivset keskkonnamõju õhule ja mullale ning suurendada rohumaade elurikkuse säilitamiseks ekstensiivselt karjatatavate loomade hulka seejuures loomade üldarvu ja loomkoormuse tõusu soodustamata. \nSekkumise abil toetatakse: \n- piimaveiste ja hobuste keskkonnahoidlikku karjatamist; \n- suuremat pidamispinda sea kohta, sigade söötmisplaani koostamist ja söödalisandite kasutamist ning põrsaste kastreerimise korral anesteesia ja analgeesia kasutamist; \n- alternatiivsüsteemide rakendamist linnukasvatuses, suuremat pidamispinda munakana ja vuti kohta. "]
["Seotud Euroopa Liidu energialiidu mõõtmed","CO2 heite vähendamise mõõde"]
["Asjakohased eesmärgid, sihid või panused, millele\npoliitikasuund või meede kaasa aitab","kasvuhoonegaaside heide ja nende sidumine – liikmesriigi siduv riiklik kasvuhoonegaaside heitega seotud eesmärk ja iga-aastased siduvad riiklikud piirnormid vastavalt määrusele (EL) 2018/842"]
["Mõjutatud sektorid","põllumajandus"]
["Eesmärk","tõhusam loomakasvatus (põllumajandus); karja- või rohumaade parema majandamise meetmed (põllumajandus)"]
["Kvantitatiivne eesmärk","65 128 loomühikut toetatud aastaks 2027"]
["Kasvuhoonegaasid, mille heitmeid otseselt mõjutatakse","CH4; N2O"]
["Oodatav mõju 2025-2030 keskmine",{"$f":"AVERAGE(Meetmed!H68:M68)","v":13.399184318041035}]
["Programmi või meetme tüüp","Majanuduslikud stiimulid (Economic)"]
["Hinnang sellele, mil määral poliitikasuund või meede aitab saavutada määruse\n(EL) 2021/1119 artikli 2 lõikes 1 sätestatud liidu kliimaneutraalsusees märki ja täita määruse (EL) 2018/1999 artiklis 15 osutatud pikaajalist strateegiat","Meede aitab kaasa KPP2050-s olevatele järgmistele suunistele: Suurendatakse põllumajandussektori tootlikkust ja ressursikasutuse tõhusust, et vähendada kasvuhoonegaaside heidet toodangu ühiku kohta.  Meede aitab kaasa eesmärgi saavutamisele, toetades loomade stressitaseme alandamist, nt. kuna looma kohta on rohkem ruumi. Väiksem stress võimaldab loomadel saavutada parema sööda seeduvuse, mis vähendab soolesisese fermentatsiooni heitkoguseid."]
["Programmi või meetme aluseks olevad Euroopa Liidu õigusaktid","Common Agricultural Policy; European Structural and Investment Funds"]
["Programmi või meetme rakendamise seis","Rakendatud (Implemented)"]
["Programmi või meetme rakendamise periood","2023-2027"]
["Stsenaarium, mille juures programmi või meedet on arvestatud","WEM"]
["Programmi või meetme rakendamise eest vastutavad isikute või asutuste tüüp","piirkondlikud üksused;\r\nriigi valitsus"]
["Programmi või meetme rakendamise eest vastutavad isikud või asutused","Põllumajanduse Registrite ja Informatiooni Amet; Regionaal -ja Põllumajandusministeerium"]
["Viide analüüsidele või tehnilistele aruannetele","https://www.agri.ee/euroopa-liidu-uhise-pollumajanduspoliitika-strateegiakava-2023-2027"]
["Kommentaar"]

{"sheet":"PM11","index":52,"n_rows":24,"n_cols":2,"rows_kept":24,"cut":false,"hidden":false,"merged":[]}
["REKK peatükk","3.1.1.i"]
["Teised seonduvad REKK 2030 peatükid"]
["Poliitikasuuna või meetme number (PaM ID)",86]
["Programmi või meetme number REKK2030",{"$f":"MID(CELL(\"filename\",A2),FIND(\"]\",CELL(\"filename\",A2))+1,255)","v":"PM11"}]
["Programmi või meetme nimetus ","Investeeringud bioressursside väärindamisse "]
["Programmi või meetme nimetus inglise keeles","Investments in expoitation bioresources"]
["Lühike kirjeldus","Sekkumise eesmärk on aidata kaasa bioressurssidele suurema majandusliku lisandväärtuse loomisele, teadus- ja arendustegevuse ning innovatsioonivõimekuse suurendamisele ning kasvuhoonegaaside heitkoguste vähendamisele.\nBioressursile kõrgema lisandväärtuse andmine kasvatab ettevõtete positsiooni väärtusahelas, aitab vähendada sõltuvust kodu- ja välismaistest taastumatutest ressurssidestning kiirendab taastumatute ressursside asendamist kooskõlas ELi kliimaeesmärkidega. Tekivad uued töökohad, mis edendavad maapiirkondade majandust, sh äärealadel. Sekkumisega soodustatakse ka (sektoritevahelist) koostööd, ühistute ja klastrite teket ning tutvustatakse biomajanduse võimalusi laiemale sihtgrupile."]
["Seotud Euroopa Liidu energialiidu mõõtmed","CO2 heite vähendamise mõõde;\r\nCO2 heite vähendamise mõõde: taastuvenergia"]
["Asjakohased eesmärgid, sihid või panused, millele\npoliitikasuund või meede kaasa aitab","kasvuhoonegaaside heide ja nende sidumine – liikmesriigi siduv riiklik kasvuhoonegaaside heitega seotud eesmärk ja iga-aastased siduvad riiklikud piirnormid vastavalt määrusele (EL) 2018/842;\r\neeldatavad trajektoorid taastuvenergiatehnoloogia lahenduste kaupa"]
["Mõjutatud sektorid","energiatarbimine (sh kütuste ja elektri tarbimine lõpptarbijate, näiteks kodumajapidamiste ja ametiasutuste, teenindus-, tööstus- ja põllumajandussektori poolt); põllumajandus"]
["Eesmärk","muu põllumajandus (põllumajandus); muu energiatarbimine (energiatarbimine)"]
["Kvantitatiivne eesmärk","Toetatud kuni 15 projekti hiljemalt aastaks 2027"]
["Kasvuhoonegaasid, mille heitmeid otseselt mõjutatakse","CH4"]
["Oodatav mõju 2025-2030 keskmine","NE"]
["Programmi või meetme tüüp","Majanuduslikud stiimulid (Economic)"]
["Hinnang sellele, mil määral poliitikasuund või meede aitab saavutada määruse (EL) 2021/1119 artikli 2 lõikes 1 sätestatud liidu kliimaneutraalsusees märki ja täita määruse (EL) 2018/1999 artiklis 15 osutatud pikaajalist strateegiat","Meede aitab kaasa KPP2050 järgmistele suunistele: Edendatakse säästlikkuse kriteeriumitele vastavast biomassist bioenergia tootmist, et seda kasutada taastumatute kütuste asemel, kahjustamata sealjuures elurikkust ja kliimaeesmärkide saavutamist. Bioenergia tootmisel soodustatakse suuremat tõhusust ja ressursside väärindamist.  Meede aitab kaasa eesmärgi saavutamisele, toetades bioenergia tootmist. Bioenergia tootmise sisend võib olla põllumajanduslikku päritolu, nt. sõnnik või põllukultuuride jäägid."]
["Programmi või meetme aluseks olevad Euroopa Liidu õigusaktid","Effort Sharing Regulation; Common Agricultural Policy"]
["Programmi või meetme rakendamise seis","Rakendatud (Implemented)"]
["Programmi või meetme rakendamise periood","2023-2027"]
["Stsenaarium, mille juures programmi või meedet on arvestatud","WEM"]
["Programmi või meetme rakendamise eest vastutavad isikute või asutuste tüüp","piirkondlikud üksused;\r\nriigi valitsus"]
["Programmi või meetme rakendamise eest vastutavad isikud või asutused","Põllumajanduse Registrite ja Informatiooni Amet; Regionaal -ja Põllumajandusministeerium"]
["Viide analüüsidele või tehnilistele aruannetele","https://www.agri.ee/euroopa-liidu-uhise-pollumajanduspoliitika-strateegiakava-2023-2027 \n"]
["Kommentaar"]

{"sheet":"PM13","index":53,"n_rows":24,"n_cols":2,"rows_kept":24,"cut":false,"hidden":false,"merged":[]}
["REKK peatükk","3.1.1.i"]
["Teised seonduvad REKK 2030 peatükid"]
["Poliitikasuuna või meetme number (PaM ID)",78]
["Programmi või meetme number REKK2030",{"$f":"MID(CELL(\"filename\",A2),FIND(\"]\",CELL(\"filename\",A2))+1,255)","v":"PM13"}]
["Programmi või meetme nimetus ","Kliima- ja keskkonnakava: ökosüsteemiteenuste säilitamine põllumaal (ÖK4)"]
["Programmi või meetme nimetus inglise keeles","Support for maintenance of ecosystem services on agricultural land"]
["Lühike kirjeldus","Sekkumisega toetatakse mitmekesist põllumajandusmaastikku, maastikuelementide ja looduslike alade säilitamist eesmärgiga tagada põllumaal põllukahjurite looduslikud vaenlased, kes osutavad looduslikku kahjuritõrje ökosüsteemi teenust."]
["Seotud Euroopa Liidu energialiidu mõõtmed","CO2 heite vähendamise mõõde"]
["Asjakohased eesmärgid, sihid või panused, millele\npoliitikasuund või meede kaasa aitab","kasvuhoonegaaside heide ja nende sidumine – liikmesriigi siduv riiklik kasvuhoonegaaside heitega seotud eesmärk ja iga-aastased siduvad riiklikud piirnormid vastavalt määrusele (EL) 2018/842"]
["Mõjutatud sektorid","põllumajandus"]
["Eesmärk","karja- või rohumaade parema majandamise meetmed (põllumajandus); muud põllumaa parema majandamise meetmed (põllumajandus); orgaaniliste muldade parem majandamine (põllumajandus); karja- või rohumaade parema majandamise meetmed (põllumajandus); orgaaniliste muldade parem majandamine (põllumajandus); degradeerunud maa taastamine; muu LULUCFi sektoriga seotud eesmärk (LULUCF)"]
["Kvantitatiivne eesmärk","90 000 ha põllumajandusmaastike, maastikuelemente või looduslikke alasi säilitatud aastaks 2027 läbi põllukahjurite looduslike vaenlaste tagamise põllumaal"]
["Kasvuhoonegaasid, mille heitmeid otseselt mõjutatakse","N20"]
["Oodatav mõju 2025-2030 keskmine","NE"]
["Programmi või meetme tüüp","Majanuduslikud stiimulid (Economic)"]
["Hinnang sellele, mil määral poliitikasuund või meede aitab saavutada määruse (EL) 2021/1119 artikli 2 lõikes 1 sätestatud liidu kliimaneutraalsusees märki ja täita määruse (EL) 2018/1999 artiklis 15 osutatud pikaajalist strateegiat","Meede aitab kaasa KPP2050 järgmistele suunistele:  Tõhustatakse taimetoitainete kasutamist ning soodustatakse mineraalväetiste asendamist orgaaniliste väetiste ja keskkonnasõbralike mullaparandajatega. Välditakse orgaanilise aine vajaduseta põllult minemaviimist.\nMeede aitab kaasa eesmärgi saavutamisele, toetades kohaspetsiifilise väetamise seadmete (nt GPS, sõnniku ja mineraalväetiste lisamise seadmed) ostmist, et vähendada lämmastikväetiste kasutamist ja toitainete leostumist."]
["Programmi või meetme aluseks olevad Euroopa Liidu õigusaktid","Effort Sharing Regulation; Common Agricultural Policy"]
["Programmi või meetme rakendamise seis","Rakendatud (Implemented)"]
["Programmi või meetme rakendamise periood","2023-2027"]
["Stsenaarium, mille juures programmi või meedet on arvestatud","WEM"]
["Programmi või meetme rakendamise eest vastutavad isikute või asutuste tüüp","piirkondlikud üksused;\r\nriigi valitsus"]
["Programmi või meetme rakendamise eest vastutavad isikud või asutused","Põllumajanduse Registrite ja Informatiooni Amet; Regionaal -ja Põllumajandusministeerium"]
["Viide analüüsidele või tehnilistele aruannetele","https://www.agri.ee/euroopa-liidu-uhise-pollumajanduspoliitika-strateegiakava-2023-2027 "]
["Kommentaar"]

{"sheet":"PM19","index":54,"n_rows":24,"n_cols":2,"rows_kept":24,"cut":false,"hidden":false,"merged":[]}
["REKK peatükk","3.1.1.i"]
["Teised seonduvad REKK 2030 peatükid"]
["Poliitikasuuna või meetme number (PaM ID)",84]
["Programmi või meetme number REKK2030",{"$f":"MID(CELL(\"filename\",A2),FIND(\"]\",CELL(\"filename\",A2))+1,255)","v":"PM19"}]
["Programmi või meetme nimetus ","Teadmussiirde- ja innovatsioonisüsteemi (AKIS) arendamise toetus"]
["Programmi või meetme nimetus inglise keeles","Support for the development of knowledge transfer and advisory services (AKIS) "]
["Lühike kirjeldus","Sidusa teadmussiirde- ja innovatsioonisüsteemi (AKIS) keskmes olev kvaliteetne teadmussiire ja nõuandeteenus on oluline põllumajanduse ja toidusektori jätkusuutlikuks arenguks ja aitab tõsta sektori ettevõtete konkurentsivõimet, luues täiendavaid võimalusi põllumajanduse ja maapiirkondade elu kaasajastamiseks, edendades ja jagades teadmisi, toetades innovatsiooni ja digiüleminekut ning ergutades nende kasutuselevõttu. \nToetatakse tegevusi, mis on seotud põllumajanduse, toidu käitlemise (sh töötlemise), metsanduse,\nmaapiirkonna ettevõtluse ja kogukondadega ning tõstavad inimeste teadlikkust tööõiguse ja -ohutuse temaatikast, kestlikust toidusüsteemist, keskkonnasäästlikkusest, ressursi- ja energiatõhususest, innovatiivsete lahenduste kasutamise võimalustest, loodushoiust ja loodusvarade kestlikust kasutamisest, kliimaneutraalsuse saavutamise vajadusest ja võimalustest, kliimamuutustega kohanemisest ning (ring)biomajandusest, jne. Teadlikkuse tõstmine omakorda loob pinnase rohelisemate ärimudelite kasutamiseks."]
["Seotud Euroopa Liidu energialiidu mõõtmed","CO2 heite vähendamise mõõde"]
["Asjakohased eesmärgid, sihid või panused, millele\npoliitikasuund või meede kaasa aitab","Teadusuuringute, innovatsiooni ja konkurentsivõime mõõde;\r\nkasvuhoonegaaside heide ja nende sidumine – liikmesriigi siduv riiklik kasvuhoonegaaside heitega seotud eesmärk ja iga-aastased siduvad riiklikud piirnormid vastavalt määrusele (EL) 2018/842"]
["Mõjutatud sektorid","põllumajandus"]
["Eesmärk","muu põllumajandus (põllumajandus)"]
["Kvantitatiivne eesmärk","1800 nõuannet/koolitust/teadusekspertiisi läbi viidud, mis hõlmavad sektorit laiemalt kui vaid kliima, aastatel 2023-2029"]
["Kasvuhoonegaasid, mille heitmeid otseselt mõjutatakse","CH4, CO2, N2O"]
["Oodatav mõju 2025-2030 keskmine","NE"]
["Programmi või meetme tüüp","Haridus (Education); Teavitamine (Information)"]
["Hinnang sellele, mil määral poliitikasuund või meede aitab saavutada määruse\n(EL) 2021/1119 artikli 2 lõikes 1 sätestatud liidu kliimaneutraalsusees märki ja täita määruse (EL) 2018/1999 artiklis 15 osutatud pikaajalist strateegiat","Meede aitab kaasa KPP2050 järgmistele suunistele: Põllumajandussektori kasvuhoonegaaside heite piiramisel eelistatakse teadus-, arendus- ja innovatsioonisuundi, mis suurendavad põllumajanduse kestlikkust. Innovatsiooni edendamiseks seotakse teadustöö tihedalt põllumajandustootmisega hariduse, teavituse ja nõustamise kaudu. Uuringute abil suurendatakse põllumajanduses keskkonna- ja kliimamuutustega seotud teadus-, arendus- ja innovatsioonitegevuste mahtu. Meede aitab kaasa eesmärgi saavutamisele, toetades hariduslike koolituste, ettekannete, teadlikkuse tõstmise tegevuste korraldamist, töötubade või ettevõtete visiitide korraldamist ning pikaajalisi programme ettevõtjate ja nende töötajate tehniliste, majandus- ja keskkonnaalaste teadmiste arendamiseks ja täiendamiseks. põllumajandussektoris, et parandada biomajandust ja kohandada uusi väljakutseid ressursside säästlikuks kasutamiseks."]
["Programmi või meetme aluseks olevad Euroopa Liidu õigusaktid","Common Agricultural Policy"]
["Programmi või meetme rakendamise seis","Rakendatud (Implemented)"]
["Programmi või meetme rakendamise periood","2023-2029"]
["Stsenaarium, mille juures programmi või meedet on arvestatud","WEM"]
["Programmi või meetme rakendamise eest vastutavad isikute või asutuste tüüp","piirkondlikud üksused;\r\nriigi valitsus"]
["Programmi või meetme rakendamise eest vastutavad isikud või asutused","Põllumajanduse Registrite ja Informatiooni Amet; Regionaal -ja Põllumajandusministeerium"]
["Viide analüüsidele või tehnilistele aruannetele","https://www.agri.ee/euroopa-liidu-uhise-pollumajanduspoliitika-strateegiakava-2023-2027 "]
["Kommentaar"]

{"sheet":"PM23","index":55,"n_rows":24,"n_cols":2,"rows_kept":24,"cut":false,"hidden":false,"merged":[]}
["REKK peatükk","3.1.1.i"]
["Teised seonduvad REKK 2030 peatükid"]
["Poliitikasuuna või meetme number (PaM ID)",85]
["Programmi või meetme number REKK2030",{"$f":"MID(CELL(\"filename\",A2),FIND(\"]\",CELL(\"filename\",A2))+1,255)","v":"PM23"}]
["Programmi või meetme nimetus ","Nõuandetoetus"]
["Programmi või meetme nimetus inglise keeles","Support for Advisory services"]
["Lühike kirjeldus","Meede aitab suurendada teadlikkust kliima, selle muutuste ja põllumajanduse vastastikusest mõjust.  Eesmärk on toetada põllumajandusettevõtete elujõulisust tagavat sissetulekut ja põllumajandussektori vastupanuvõimet kogu liidus, et parandada pikaajalist toiduga kindlustatust ja põllumajanduse mitmekesisust ning tagada põllumajandusliku tootmise majanduslik kestlikkus liidus."]
["Seotud Euroopa Liidu energialiidu mõõtmed","CO2 heite vähendamise mõõde"]
["Asjakohased eesmärgid, sihid või panused, millele\npoliitikasuund või meede kaasa aitab","Teadusuuringute, innovatsiooni ja konkurentsivõime mõõde;\r\nkasvuhoonegaaside heide ja nende sidumine – liikmesriigi siduv riiklik kasvuhoonegaaside heitega seotud eesmärk ja iga-aastased siduvad riiklikud piirnormid vastavalt määrusele (EL) 2018/842"]
["Mõjutatud sektorid","põllumajandus"]
["Eesmärk","muu põllumajandus (põllumajandus)"]
["Kvantitatiivne eesmärk","6000 põllumajandusettevõtet toetatud või koolitatud selle toetusega 2023–2029 "]
["Kasvuhoonegaasid, mille heitmeid otseselt mõjutatakse","CH4, CO2, N2O"]
["Oodatav mõju 2025-2030 keskmine","NE"]
["Programmi või meetme tüüp","Majanuduslikud stiimulid (Economic); Haridus (Education); Teavitamine (Information)"]
["Hinnang sellele, mil määral poliitikasuund või meede aitab saavutada määruse (EL) 2021/1119 artikli 2 lõikes 1 sätestatud liidu kliimaneutraalsusees märki ja täita määruse (EL) 2018/1999 artiklis 15 osutatud pikaajalist strateegiat","Meede aitab kaasa KPP2050 järgmistele suunistele: Põllumajandussektori kasvuhoonegaaside heite piiramisel eelistatakse teadus-, arendus- ja innovatsioonisuundi, mis suurendavad põllumajanduse kestlikkust. Innovatsiooni edendamiseks seotakse teadustöö tihedalt põllumajandustootmisega hariduse, teavituse ja nõustamise kaudu. Uuringute abil suurendatakse põllumajanduses keskkonna- ja kliimamuutustega seotud teadus-, arendus- ja innovatsioonitegevuste mahtu. Meede aitab kaasa eesmärgi saavutamisele, toetades hariduslike koolituste, ettekannete, teadlikkuse tõstmise tegevuste korraldamist, töötubade või ettevõtete visiitide korraldamist ning pikaajalisi programme ettevõtjate ja nende töötajate tehniliste, majandus- ja keskkonnaalaste teadmiste arendamiseks ja täiendamiseks. põllumajandussektoris, et parandada biomajandust ja kohandada uusi väljakutseid ressursside säästlikuks kasutamiseks."]
["Programmi või meetme aluseks olevad Euroopa Liidu õigusaktid","Common Agricultural Policy"]
["Programmi või meetme rakendamise seis","Rakendatud (Implemented)"]
["Programmi või meetme rakendamise periood","2024-2029"]
["Stsenaarium, mille juures programmi või meedet on arvestatud","WEM"]
["Programmi või meetme rakendamise eest vastutavad isikute või asutuste tüüp","piirkondlikud üksused;\r\nriigi valitsus"]
["Programmi või meetme rakendamise eest vastutavad isikud või asutused","Põllumajanduse Registrite ja Informatiooni Amet; Regionaal -ja Põllumajandusministeerium"]
["Viide analüüsidele või tehnilistele aruannetele","https://www.agri.ee/euroopa-liidu-uhise-pollumajanduspoliitika-strateegiakava-2023-2027 "]
["Kommentaar"]

{"sheet":"PM24","index":56,"n_rows":24,"n_cols":2,"rows_kept":24,"cut":false,"hidden":false,"merged":[]}
["REKK peatükk","3.1.1.i"]
["Teised seonduvad REKK 2030 peatükid"]
["Poliitikasuuna või meetme number (PaM ID)",132]
["Programmi või meetme number REKK2030",{"$f":"MID(CELL(\"filename\",A1),FIND(\"]\",CELL(\"filename\",A1))+1,255)","v":"PM24"}]
["Programmi või meetme nimetus ","Investeering: Biogaasi ja biometaani tootmise ja kasutamise suurendamine  "]
["Programmi või meetme nimetus inglise keeles","Increasing the production and uptake of biomethane"]
["Lühike kirjeldus","Investeering on seotud REPowerEU eesmärkidega: (b) jätkusuutliku biometaani kasutuselevõtu suurendamine kooskõlas taastuvenergiadirektiiviga (RED II), (e) taastuvenergiaallikate võrku integreerimise kiirendamine."]
["Seotud Euroopa Liidu energialiidu mõõtmed","CO2 heite vähendamise mõõde;\r\nCO2 heite vähendamise mõõde: taastuvenergia"]
["Asjakohased eesmärgid, sihid või panused, millele\npoliitikasuund või meede kaasa aitab","kasvuhoonegaaside heide ja nende sidumine – liikmesriigi siduv riiklik kasvuhoonegaaside heitega seotud eesmärk ja iga-aastased siduvad riiklikud piirnormid vastavalt määrusele (EL) 2018/842;\r\npanus liidu siduvasse eesmärki saavutada 2030. aastal taastuvenergia vähemalt 32 % osakaal, nagu on osutatud direktiivi (EL) 2018/2001 artiklis 3\n"]
["Mõjutatud sektorid","põllumajandus; energiatarbimine (sh kütuste ja elektri tarbimine lõpptarbijate, näiteks kodumajapidamiste ja ametiasutuste, teenindus-, tööstus- ja põllumajandussektori poolt);\r\nenergiatarbimine (sh kütuste ja elektri tarbimine lõpptarbijate, näiteks kodumajapidamiste ja ametiasutuste, teenindus-, tööstus- ja põllumajandussektori poolt)"]
["Eesmärk","muu energiatarbimine (energiatarbimine); muu põllumajandus (põllumajandus)"]
["Kvantitatiivne eesmärk","Suurendada biogaasi tootmisvõimekust vähemalt  4 000 000 m3 võrra hiljemalt 2030 aastaks. "]
["Kasvuhoonegaasid, mille heitmeid otseselt mõjutatakse","CH4, N2O"]
["Oodatav mõju 2025-2030 keskmine",{"$f":"AVERAGE(Meetmed!H72:M72)","v":3.7666575175798029}]
["Programmi või meetme tüüp","Majanuduslikud stiimulid (Economic)"]
["Hinnang sellele, mil määral poliitikasuund või meede aitab saavutada määruse (EL) 2021/1119 artikli 2 lõikes 1 sätestatud liidu kliimaneutraalsusees märki ja täita määruse (EL) 2018/1999 artiklis 15 osutatud pikaajalist strateegiat","Panustab sektori kliimaeesmärkide saavutamisse, sest sõnniku ladestamisel lenduv metaan (ja muud KHGd) püütakse kinni ja seda saab kasutada eelkõige transpordis, aga ka fossiilse maagaasi asemel gaasivõrgus"]
["Programmi või meetme aluseks olevad Euroopa Liidu õigusaktid","Recovery and Resielience Facility Rregulation"]
["Programmi või meetme rakendamise seis","Rakendatud (Implemented)"]
["Programmi või meetme rakendamise periood","2023-2026"]
["Stsenaarium, mille juures programmi või meedet on arvestatud","WEM"]
["Programmi või meetme rakendamise eest vastutavad isikute või asutuste tüüp","riigi valitsus"]
["Programmi või meetme rakendamise eest vastutavad isikud või asutused","Keskkonnainvensteeringute Keskus"]
["Viide analüüsidele või tehnilistele aruannetele","https://www.rtk.ee/toetusfondid-ja-programmid/taaste-ja-vastupidavusrahastu-rrf/eesti-taastekava"]
["Kommentaar"]

{"sheet":"JM1","index":57,"n_rows":25,"n_cols":2,"rows_kept":25,"cut":false,"hidden":false,"merged":[]}
["REKK peatükk","3.1.1.i"]
["Teised seonduvad REKK 2030 peatükid"]
["Poliitikasuuna või meetme number (PaM ID)",89]
["Programmi või meetme number REKK2030","JM1"]
["Programmi või meetme nimetus ","Ladestatavate biolagunevate jäätmete koguse protsendiline piiramine ja jäätmematerjalide korduskasutusse ja ringlusse võtmise mahu suurendamine "]
["Programmi või meetme nimetus inglise keeles","Limiting the percentage of biodegradable waste landfilled and increasing the reuse and recycling of waste materials. "]
["Lühike kirjeldus","Meetme keskpunktiks on ringlusse võetavate olmejäätmete mahu suurendamine sealhulgas biolagunevate jäätmete osakaalu vähendamine ning välja töötada üleriigiline jäätmete kogumisvõrgustik koos tõhusama aruandluse infosüsteemiga.  Järjekindel jäätmete ringlusse ja korduvkasutusse võtmise alaste suuniste andmine ning lihtne laienev jäätmekäitlussüsteem aitavad suurendada eraldi kogutavate jäätmete hulka ja vähendada bioloogiliselt lagunevate jäätmete osakaalu ladestatavas prügis. Riikliku biolagunevate jäätmete kogumise ja töötlemise võrgustiku loomine on eriti tähtis tahkete jäätmete ladestamisega kaasnevate KHG-de heitkoguste vähendamiseks."]
["Seotud Euroopa Liidu energialiidu mõõtmed","CO2 heite vähendamise mõõde"]
["Asjakohased eesmärgid, sihid või panused, millele\npoliitikasuund või meede kaasa aitab","kasvuhoonegaaside heide ja nende sidumine – liikmesriigi siduv riiklik kasvuhoonegaaside heitega seotud eesmärk ja iga-aastased siduvad riiklikud piirnormid vastavalt määrusele (EL) 2018/842"]
["Mõjutatud sektorid","jäätmekäitlus/jäätmed"]
["Eesmärk","prügilasse ladestamise vähendamine (jäätmekäitlus/jäätmed);\r\ntõhusam ringlussevõtt (jäätmekäitlus/jäätmed)"]
["Kvantitatiivne eesmärk","2020-aastaks moodustavad biojäätmed ladestatavatest olmejäätmetest maksimaalselt 20%, 2035 aastaks tuleb ringlusse võtta 65% olmejäätmetest. Ladestatavate biolagunevate jäätmete maht väheneb igal aastal. (Liigiti kogutud biojäätmeid ei tohi prügilasse ladestada Jäätmeseaduse kohaselt juba praegu.)"]
["Kasvuhoonegaasid, mille heitmeid otseselt mõjutatakse","CH4; N2O"]
["Planeeritud eelarve"]
["Oodatav mõju 2025-2030 keskmine","NE"]
["Programmi või meetme tüüp","Seadusandlus (Regulatory);\r\nPlaneerimine (Planning)"]
["Hinnang sellele, mil määral poliitikasuund või meede aitab saavutada määruse\n(EL) 2021/1119 artikli 2 lõikes 1 sätestatud liidu kliimaneutraalsusees märki ja täita määruse (EL) 2018/1999 artiklis 15 osutatud pikaajalist strateegiat","Aitab kaasa kasvuhoonegaaside vähendamisele, ringlussevõtu suurendamisele"]
["Programmi või meetme aluseks olevad Euroopa Liidu õigusaktid","Waste Management Framework Directive"]
["Programmi või meetme rakendamise seis","Rakendatud (Implemented)"]
["Programmi või meetme rakendamise periood","2014-2028 (riigi jäätmekava periood)"]
["Stsenaarium, mille juures programmi või meedet on arvestatud","WEM"]
["Programmi või meetme rakendamise eest vastutavad isikute või asutuste tüüp","riigi valitsus"]
["Programmi või meetme rakendamise eest vastutavad isikud või asutused","Kliimaministeerium"]
["Viide analüüsidele või tehnilistele aruannetele","Jäätmekava 2023-2028: https://kliimaministeerium.ee/jaatmekava "]
["Kommentaar"]

{"sheet":"JM2","index":58,"n_rows":25,"n_cols":2,"rows_kept":25,"cut":false,"hidden":false,"merged":[]}
["REKK peatükk","3.1.1.i"]
["Teised seonduvad REKK 2030 peatükid"]
["Poliitikasuuna või meetme number (PaM ID)",92]
["Programmi või meetme number REKK2030","JM2"]
["Programmi või meetme nimetus ","Ohutu materjaliringluse suurendamine "]
["Programmi või meetme nimetus inglise keeles","Circular material use rate"]
["Lühike kirjeldus","Erinevate materjalide ringlussevõtu ja sekundaarse toorme kasutamise suurendamiseks edendame säästvate tootmis- ja tarbimismudelite kasutuselevõttu. Ettevõtetes tuleb parandada ressursitõhusust, sealhulgas energiatõhusust, näiteks tööstussümbioosi, digitaliseerimise ja ressursitõhusamate tehnoloogiate toetamise kaudu. Jäätmemajandus korraldatakse ümber jäätmehierarhia alusel, suurendatakse materjalide ringlussevõtu ja jäätmete liigiti kogumist."]
["Seotud Euroopa Liidu energialiidu mõõtmed","CO2 heite vähendamise mõõde"]
["Asjakohased eesmärgid, sihid või panused, millele\npoliitikasuund või meede kaasa aitab","kasvuhoonegaaside heide ja nende sidumine – liikmesriigi siduv riiklik kasvuhoonegaaside heitega seotud eesmärk ja iga-aastased siduvad riiklikud piirnormid vastavalt määrusele (EL) 2018/842"]
["Mõjutatud sektorid","jäätmekäitlus/jäätmed"]
["Eesmärk","Ringlussevõtu laiendamine, tõhusam prügilate haldamine, väiksem prügilates ladestatavate jäätmete hulk"]
["Kvantitatiivne eesmärk","Ringleva materjali määr 2035. aastaks: 30%"]
["Kasvuhoonegaasid, mille heitmeid otseselt mõjutatakse","CH4"]
["Planeeritud eelarve"]
["Oodatav mõju 2025-2030 keskmine","NE"]
["Programmi või meetme tüüp","Seadusandlus (Regulatory)"]
["Hinnang sellele, mil määral poliitikasuund või meede aitab saavutada määruse\n(EL) 2021/1119 artikli 2 lõikes 1 sätestatud liidu kliimaneutraalsusees märki ja täita määruse (EL) 2018/1999 artiklis 15 osutatud pikaajalist strateegiat"]
["Programmi või meetme aluseks olevad Euroopa Liidu õigusaktid","Effort Sharing Regulation EU 2018/842 and implementing decision on ESR Annual Emission Allocations; Waste Management Framework Directive 2008/98/EC, amended by Directive 2018/851"]
["Programmi või meetme rakendamise seis","Rakendatud (Implemented)"]
["Programmi või meetme rakendamise periood","2021-2035"]
["Stsenaarium, mille juures programmi või meedet on arvestatud","WEM"]
["Programmi või meetme rakendamise eest vastutavad isikute või asutuste tüüp","riigi valitsus"]
["Programmi või meetme rakendamise eest vastutavad isikud või asutused","Kliimaministeerium"]
["Viide analüüsidele või tehnilistele aruannetele","Eesti 2035\nhttps://www.valitsus.ee/strateegia-eesti-2035-arengukavad-ja-planeering/strateegia "]
["Kommentaar"]

{"sheet":"JM3","index":59,"n_rows":25,"n_cols":5,"rows_kept":25,"cut":false,"hidden":false,"merged":[]}
["REKK peatükk","3.1.1.i",null,null,"Küsimused/märkused"]
["Teised seonduvad REKK 2030 peatükid"]
["Poliitikasuuna või meetme number (PaM ID)",90]
["Programmi või meetme number REKK2030","JM3"]
["Programmi või meetme nimetus ","Jäätmetekke ennetamise ja vähendamise propageerimine, sh jäätmete ohtlikkuse vähendamine"]
["Programmi või meetme nimetus inglise keeles","Promotion of waste prevention and reduction, including the reduction of hazardous waste."]
["Lühike kirjeldus","Meetme üldeesmärk on parandada Eesti majanduse ressursitõhusust ja edendada jäätmetekke vältimist, et vähendada negatiivseid mõjusid keskkonnale ja inimeste tervisele. Riik toetab ettevõttete tootmisprotsesside ressursitõhusamaks muutmist, et väheneks jäätmeteket tootmisprotsessides. Lisaks toetatakse jäätmetekke vältimist informatsiooni levitamise teel. Meetme rakendamiseks kasutatakse mitmesuguseid algatusi, rakendatakse keskkonnajuhtimismeetmeid, viiakse läbi täiendavaid uuringuid, tehakse investeeringuid ning täiendatakse vajalikke õigusakte."]
["Seotud Euroopa Liidu energialiidu mõõtmed","CO2 heite vähendamise mõõde"]
["Asjakohased eesmärgid, sihid või panused, millele\npoliitikasuund või meede kaasa aitab","kasvuhoonegaaside heide ja nende sidumine – liikmesriigi siduv riiklik kasvuhoonegaaside heitega seotud eesmärk ja iga-aastased siduvad riiklikud piirnormid vastavalt määrusele (EL) 2018/842"]
["Mõjutatud sektorid","jäätmekäitlus/jäätmed"]
["Eesmärk","tõhusam jäätmekäitlustehnoloogia (jäätmekäitlus/jäätmed); nõudluse juhtimine/vähendamine (jäätmekäitlus/jäätmed); tõhusam ringlussevõtt (jäätmekäitlus/jäätmed)"]
["Kvantitatiivne eesmärk","Jäätmeteke inimese kohta (va põlevkivijäätmed) –algtase 4151 kg/in (2020), sihttase \n4000 kg/in(2028)\nKorduskasutatava pakendi osakaal turule lastud pakenditest –algtase 0% (2020), sihttase 10% (2028)\nOlmejäätmete ringlussevõtt – algtase 29% (2020), sihttase 58% (2028)\nPakendijäätmete ringlussevõtt–algtase 66% (2019), sihttase 70% (2028)"]
["Kasvuhoonegaasid, mille heitmeid otseselt mõjutatakse","CH4, N2O"]
["Planeeritud eelarve"]
["Oodatav mõju 2025-2030 keskmine","NE"]
["Programmi või meetme tüüp","Seadusandlus (Regulatory); Teavitamine (Information)"]
["Hinnang sellele, mil määral poliitikasuund või meede aitab saavutada määruse\n(EL) 2021/1119 artikli 2 lõikes 1 sätestatud liidu kliimaneutraalsusees märki ja täita määruse (EL) 2018/1999 artiklis 15 osutatud pikaajalist strateegiat","Jäätmetekke vältimine tähendab muuhulgas kvaliteetsemate ja pikaealisemate toodete osakaalu suurenemist. Selle arvelt väheneb uute toodete tootmine ja käitlemine eluea lõpus, sh ka tootmise ja käitlemisega seotud KHG-de teke."]
["Programmi või meetme aluseks olevad Euroopa Liidu õigusaktid","Waste Management Framework Directive"]
["Programmi või meetme rakendamise seis","Rakendatud (Implemented)"]
["Programmi või meetme rakendamise periood","2014-2028 (riigi jäätmekava periood)"]
["Stsenaarium, mille juures programmi või meedet on arvestatud","WEM"]
["Programmi või meetme rakendamise eest vastutavad isikute või asutuste tüüp","riigi valitsus"]
["Programmi või meetme rakendamise eest vastutavad isikud või asutused","Kliimaministeerium"]
["Viide analüüsidele või tehnilistele aruannetele","Jäätmekava 2023-2028: https://kliimaministeerium.ee/jaatmekava "]
["Kommentaar"]

{"sheet":"JM4","index":60,"n_rows":24,"n_cols":2,"rows_kept":24,"cut":false,"hidden":false,"merged":[]}
["REKK peatükk","3.1.1.i"]
["Teised seonduvad REKK 2030 peatükid"]
["Poliitikasuuna või meetme number (PaM ID)",91]
["Programmi või meetme number REKK2030","JM4"]
["Programmi või meetme nimetus ","Jäätmetest tingitud keskkonnaohtude vähendamine, seire ja järelvalve tõhustamine"]
["Programmi või meetme nimetus inglise keeles","Reducing environmental risks arising from waste, improvement of monitoring and supervision"]
["Lühike kirjeldus","Meetme üldine eesmärk on täiendada ohtlike jäätmete käitlemiseks kasutatavate meetodite valikut ning vähendada jäätmete ladestamisega kaasnevaid keskkonnariske. Suletud prügilaid tuleb nõuete kohaselt korrastada. Järelevalve tugevdamine jäätmekäitluse üle aitab vähendada ebaseaduslikku jäätmete ladestamist. "]
["Seotud Euroopa Liidu energialiidu mõõtmed","CO2 heite vähendamise mõõde"]
["Asjakohased eesmärgid, sihid või panused, millele\npoliitikasuund või meede kaasa aitab","kasvuhoonegaaside heide ja nende sidumine – liikmesriigi siduv riiklik kasvuhoonegaaside heitega seotud eesmärk ja iga-aastased siduvad riiklikud piirnormid vastavalt määrusele (EL) 2018/842"]
["Mõjutatud sektorid","jäätmekäitlus/jäätmed"]
["Eesmärk","tõhusam jäätmekäitlustehnoloogia (jäätmekäitlus/jäätmed);\r\nprügilate tõhusam haldamine (jäätmekäitlus/jäätmed)"]
["Kvantitatiivne eesmärk"," Hinnatakse Riigi jäätmekava III eesmärgi alaeesmärkide täitmist ja mõõdikute täitmist, eelkõige võiksid panustada III eesmärgi täitmisesse mõõdikud  7. Ohtlike jäätmete taaskasutus – algtase 48% (2020), sihttase 55% (2028)\t\t\n8. Elektri ja elektroonikajäätmete kogumise määr  - algtase 64% (2019), sihttase 85% (2028)\t\t\n9. Patarei- ja akujäätmete kogumise määr - algtase 29% (2019) , sihttase 65% (2028)\t\t\n"]
["Kasvuhoonegaasid, mille heitmeid otseselt mõjutatakse","CH4"]
["Oodatav mõju 2025-2030 keskmine","NE"]
["Programmi või meetme tüüp","Teavitamine (Information)"]
["Hinnang sellele, mil määral poliitikasuund või meede aitab saavutada määruse\n(EL) 2021/1119 artikli 2 lõikes 1 sätestatud liidu kliimaneutraalsusees märki ja täita määruse (EL) 2018/1999 artiklis 15 osutatud pikaajalist strateegiat","Tõhus järelevalve aitab vähendada ebaseaduslikke jäätmekäitlusalaseid tegevusi, mis omakorda aitab kaasa ka kasvuhoonegaaside vähendamisele"]
["Programmi või meetme aluseks olevad Euroopa Liidu õigusaktid","Waste Management Framework Directive"]
["Programmi või meetme rakendamise seis","Rakendatud (Implemented)"]
["Programmi või meetme rakendamise periood","2014-"]
["Stsenaarium, mille juures programmi või meedet on arvestatud","WEM"]
["Programmi või meetme rakendamise eest vastutavad isikute või asutuste tüüp","riigi valitsus"]
["Programmi või meetme rakendamise eest vastutavad isikud või asutused","Kliimaministeerium"]
["Viide analüüsidele või tehnilistele aruannetele","Jäätmekava 2023-2028: https://kliimaministeerium.ee/jaatmekava "]
["Kommentaar"]

{"sheet":"JM5 ","index":61,"n_rows":24,"n_cols":2,"rows_kept":24,"cut":false,"hidden":false,"merged":[]}
["REKK peatükk","3.1.1.i"]
["Teised seonduvad REKK 2030 peatükid"]
["Poliitikasuuna või meetme number (PaM ID)",133]
["Programmi või meetme number REKK2030","JM5"]
["Programmi või meetme nimetus ","Toidujäätmete tekke vähendamine"]
["Programmi või meetme nimetus inglise keeles","Reduction of food waste"]
["Lühike kirjeldus","Eesti toidujäätmete tekke vältimise kava esmärk on vähendada toidujäätmete ja toidukao teket kogu toidu tarnimise ahelas ehk esmatootmises, toidu töötlemisel ja valmistamisel, toidu jae- ja hulgimüügi ja muul viisil tarnimise käigus, samuti toitlustamisel ning kodumajapidamistes. See tagab kokkuhoiu loodusressurssidelt, majanduslikelt ressurssidelt ja sotsiaalsüsteemi koormamiselt."]
["Seotud Euroopa Liidu energialiidu mõõtmed","CO2 heite vähendamise mõõde"]
["Asjakohased eesmärgid, sihid või panused, millele\npoliitikasuund või meede kaasa aitab","kasvuhoonegaaside heide ja nende sidumine – liikmesriigi siduv riiklik kasvuhoonegaaside heitega seotud eesmärk ja iga-aastased siduvad riiklikud piirnormid vastavalt määrusele (EL) 2018/842"]
["Mõjutatud sektorid","jäätmekäitlus/jäätmed"]
["Eesmärk","nõudluse juhtimine/vähendamine (jäätmekäitlus/jäätmed)"]
["Kvantitatiivne eesmärk","Lähtuvalt ÜRO kestliku arengu eesmärgile 12.3 tuleb vähendada 2030. aastaks jaekaubanduse ja tarbijate tekitatud toidujäätmeid 50% elaniku kohta. Vähendada toidu kadu tootmis- ja tarneahelas, kaasa arvatud saagikoristusjärgsed kaod. Selleks, et EL liikmesriigid liiguksid eelpool nimetatud eesmärgi poole, esitas EL komisjon 5.juuli 2023 ettepaneku jäätmete raamdirektiivi muudatsuteks, kus muu hulgas on tehtud konkreetne ettepanek toidujäätmete tekke koguste vähendamiseks. Ettepanek vähendada aastaks 2030 toidujäätmete teket toidutööstuses ja - tootmises 10% võrreldes 2020 aastal tekkinud kogustega ning toitlustuses, jaekaubanduses ning kaubanduses 30% inimese kohta. "]
["Kasvuhoonegaasid, mille heitmeid otseselt mõjutatakse","CH4, N2O"]
["Oodatav mõju 2025-2030 keskmine","NE"]
["Programmi või meetme tüüp","Seadusandlus (Regulatory)"]
["Hinnang sellele, mil määral poliitikasuund või meede aitab saavutada määruse\n(EL) 2021/1119 artikli 2 lõikes 1 sätestatud liidu kliimaneutraalsusees märki ja täita määruse (EL) 2018/1999 artiklis 15 osutatud pikaajalist strateegiat","This measure contributes to the political guidelines for the economy as a whole set in the General Principles of Climate Policy until 2050.\nhttps://kliimaministeerium.ee/sites/default/files/documents/2023-03/310022023003%20%281%29.pdfToidujäätmete tekke vähendamine aitab vähendada KHG heitkoguse vähendamisele EL-is eelduslikult kuni 16,5-62 miljoni tonni võrra."]
["Programmi või meetme aluseks olevad Euroopa Liidu õigusaktid","Waste Management Framework Directive"]
["Programmi või meetme rakendamise seis","Rakendatud (Implemented)"]
["Programmi või meetme rakendamise periood","2021-"]
["Stsenaarium, mille juures programmi või meedet on arvestatud","WEM"]
["Programmi või meetme rakendamise eest vastutavad isikute või asutuste tüüp","riigi valitsus"]
["Programmi või meetme rakendamise eest vastutavad isikud või asutused","Kliimaministeerium"]
["Viide analüüsidele või tehnilistele aruannetele","Toidujäätmete tekke vältimise kava: https://kliimaministeerium.ee/elukeskkond-ringmajandus/jaatmed/toidujaatmed"]
["Kommentaar"]

{"sheet":"MM1","index":62,"n_rows":25,"n_cols":2,"rows_kept":25,"cut":false,"hidden":false,"merged":[]}
["REKK peatükk","3.1.1.i"]
["Teised seonduvad REKK 2030 peatükid"]
["Poliitikasuuna või meetme number (PaM ID)",96]
["Programmi või meetme number REKK2030","MM1"]
["Programmi või meetme nimetus ","Väljaspool Natura 2000 võrgustiku ala asuvate erametsaalade looduskaitseliste piirangute hüvitamine"]
["Programmi või meetme nimetus inglise keeles","Compensation for nature conservation restrictions on private forest areas outside the Natura 2000 network"]
["Lühike kirjeldus","Toetusi makstakse erametsaomanikele väljaspool Natura 2000 alasid piiranguvööndis, hoiualadel ja aladel, kus on algatatud kaitsemenetlus. Metsamaal asuvad kaitsealad aitavad säilitada metsa süsinikuvaru.\nSubsidies are paid to owners of private forests outside Natura 2000 areas in limited management zones, limited-conservation areas and in areas where protection proceedings have been initiated. Protected areas on forest land help to preserve the forest carbon stock."]
["Seotud Euroopa Liidu energialiidu mõõtmed","CO2 heite vähendamise mõõde"]
["Asjakohased eesmärgid, sihid või panused, millele\npoliitikasuund või meede kaasa aitab"," liikmesriigi kohustused vastavalt määrusele (EL) 2018/841"]
["Mõjutatud sektorid","LULUCF\n"]
["Eesmärk","süsiniku säilitamine olemasolevates metsades (LULUCF) "]
["Kvantitatiivne eesmärk","NA"]
["Kasvuhoonegaasid, mille heitmeid otseselt mõjutatakse","CO2; CH4; N2O"]
["Planeeritud eelarve"]
["Oodatav mõju 2025-2030 keskmine","NE"]
["Programmi või meetme tüüp","Majanduslikud stiimulid (Economic)"]
["Hinnang sellele, mil määral poliitikasuund või meede aitab saavutada määruse\n(EL) 2021/1119 artikli 2 lõikes 1 sätestatud liidu kliimaneutraalsusees märki ja täita määruse (EL) 2018/1999 artiklis 15 osutatud pikaajalist strateegiat","The measure contributes to the following policy guidline of the General Principles of Climate Policy until 2050:\nPreservation of the current area under forest land will be facilitated, and in other categories of land use, techniques of increasing carbon sequestration and reducing emissions will be preferred. Trends in the land use sector will be monitored and considered in planning.\n\nhttps://envir.ee/kliimapoliitika-pohialused-aastani-2050"]
["Programmi või meetme aluseks olevad Euroopa Liidu õigusaktid","New EU Forest Strategy (COM(2013)659); New EU Forest Strategy for 2030 (COM(2021) 572)"]
["Programmi või meetme rakendamise seis","Rakendatud (Implemented)"]
["Programmi või meetme rakendamise periood","2022-"]
["Stsenaarium, mille juures programmi või meedet on arvestatud","WEM"]
["Programmi või meetme rakendamise eest vastutavad isikute või asutuste tüüp","riigi valitsus"]
["Programmi või meetme rakendamise eest vastutavad isikud või asutused","Kliimaministeerium"]
["Viide analüüsidele või tehnilistele aruannetele","https://kliimaministeerium.ee/sites/default/files/documents/2024-02/Keskkonnakaitse%20ja%20-kasutuse%20programm%202024-2027.pdf\nhttps://www.riigiteataja.ee/akt/106012017005?leiaKehtiv"]
["Kommentaar"]

{"sheet":"MM2","index":63,"n_rows":24,"n_cols":2,"rows_kept":24,"cut":false,"hidden":false,"merged":[]}
["REKK peatükk","3.1.1.i"]
["Teised seonduvad REKK 2030 peatükid"]
["Poliitikasuuna või meetme number (PaM ID)",95]
["Programmi või meetme number REKK2030","MM2"]
["Programmi või meetme nimetus ","Erametsade uuendamine võimalikult heade pärilike omaduste ja kasvukohale sobivamate kodumaiste puuliikidega"]
["Programmi või meetme nimetus inglise keeles","Supporting the reforestation in private forests with native tree species of best possible hereditary characteristics suitable for the site "]
["Lühike kirjeldus","Meetme eesmärgiks on toetada metsade õigeaegse uuenemisega seotud tegevusi, et parandada metsaressursi kvaliteeti ja tagada metsamaa tootmispotentsiaali tõhus kasutamine. Meetmel on positiivne mõju uue metsapõlve kasvule, mis aitab suurendada süsiniku sidumist.\nThe overall objective of the measure is to support activities related to the timely regeneration of forests in order to improve the quality of forest resources and ensure the efficient use of forest land production potential. The measure has a positive effect on the growth of a new forest which helps to increase carbon uptake."]
["Seotud Euroopa Liidu energialiidu mõõtmed","CO2 heite vähendamise mõõde"]
["Asjakohased eesmärgid, sihid või panused, millele\npoliitikasuund või meede kaasa aitab"," liikmesriigi kohustused vastavalt määrusele (EL) 2018/841"]
["Mõjutatud sektorid","LULUCF\n"]
["Eesmärk","olemasolevate metsade tootmisvõime suurendamine (LULUCF) ;\r\nmetsade tõhusam majandamine (LULUCF);\r\ntugevam kaitse looduslike häiringute eest (LULUCF)"]
["Kvantitatiivne eesmärk","NA"]
["Kasvuhoonegaasid, mille heitmeid otseselt mõjutatakse","CO2"]
["Oodatav mõju","NE"]
["Programmi või meetme tüüp","Majanduslikud stiimulid (Economic)"]
["Hinnang sellele, mil määral poliitikasuund või meede aitab saavutada määruse\n(EL) 2021/1119 artikli 2 lõikes 1 sätestatud liidu kliimaneutraalsusees märki ja täita määruse (EL) 2018/1999 artiklis 15 osutatud pikaajalist strateegiat","The measure contributes to the following policy guidline of the General Principles of Climate Policy until 2050:\nForest growth and the carbon sequestration ability will be increased through productive and sustainable forest management, and the carbon stock of forests will be maintained in the longer perspective. The productivity of managed forest land will be mainly increased through improvement cutting, timely cutting of forest stands and fast renewal of forests with tree species appropriate for the habitat type. Flexible rotation ages considering the growth potential of forest stands will be implemented in managed forests, and the principles of sustainable forestry and the maintenance of biodiversity will be taken into account.\n\nhttps://envir.ee/kliimapoliitika-pohialused-aastani-2050"]
["Programmi või meetme aluseks olevad Euroopa Liidu õigusaktid","New EU Forest Strategy (COM(2013)659); New EU Forest Strategy for 2030 (COM(2021) 572)"]
["Programmi või meetme rakendamise seis","Rakendatud (Implemented)"]
["Programmi või meetme rakendamise periood","2012-"]
["Stsenaarium, mille juures programmi või meedet on arvestatud","WEM"]
["Programmi või meetme rakendamise eest vastutavad isikute või asutuste tüüp","riigi valitsus"]
["Programmi või meetme rakendamise eest vastutavad isikud või asutused","Kliimaministeerium"]
["Viide analüüsidele või tehnilistele aruannetele","https://kliimaministeerium.ee/sites/default/files/documents/2024-02/Keskkonnakaitse%20ja%20-kasutuse%20programm%202024-2027.pdf\nhttps://envir.ee/elusloodus-looduskaitse/metsandus/metsanduse-arengukava-2011-2020\nhttps://www.riigiteataja.ee/akt/106012017005?leiaKehtiv"]
["Kommentaar"]

{"sheet":"MM3","index":64,"n_rows":24,"n_cols":2,"rows_kept":24,"cut":false,"hidden":false,"merged":[]}
["REKK peatükk","3.1.1.i"]
["Teised seonduvad REKK 2030 peatükid"]
["Poliitikasuuna või meetme number (PaM ID)",97]
["Programmi või meetme number REKK2030","MM3"]
["Programmi või meetme nimetus ","Elurikkuse kaitse tagamine "]
["Programmi või meetme nimetus inglise keeles","Ensuring the protection of biodiversity"]
["Lühike kirjeldus","Meetme eesmärk on tagada liikide ja elupaikade soodne seisund ning maastike mitmekesisus, et elupaigad toimiksid ühtse ökoloogilise võrgustikuna ja elurikkuse poolt pakutavad ökosüsteemiteenused oleksid jätkusuutlikud. Meede hõlmab ka elupaikade (soode, pärandniitude) taastamist, et saavutada nende soodne seisund.\nThe objective of the measure is to ensure favourable condition of species and habitats, and the diversity of landscape so that the habitats function as a single ecological network and the ecosystem services provided by biodiversity are sustainable. The measure also includes restoration of habitats (mires, semi-natural communities) to achieve their favourable status."]
["Seotud Euroopa Liidu energialiidu mõõtmed","CO2 heite vähendamise mõõde"]
["Asjakohased eesmärgid, sihid või panused, millele\npoliitikasuund või meede kaasa aitab"," liikmesriigi kohustused vastavalt määrusele (EL) 2018/841"]
["Mõjutatud sektorid","LULUCF\n"]
["Eesmärk","sookuivendamise ärahoidmine või taassoostamine (LULUCF);\r\ndegradeerunud maa taastamine; muu LULUCFi sektoriga seotud eesmärk (LULUCF);\r\ntugevam kaitse looduslike häiringute eest (LULUCF)"]
["Kvantitatiivne eesmärk","Eesmärgid aastaks 2027: taastatavate elupaikade pindala aastas 4 000 ha; kaitstavate alade pindala osakaal maismaast vähemalt 20.6%; rangelt kaitstavate metsade osakaal vähemalt 10%; asjakohaste \nkaitsekorralduskavadega kaetud Natura loodusalade osakaal vähemalt 86% pindalast."]
["Kasvuhoonegaasid, mille heitmeid otseselt mõjutatakse","CO2; CH4; N2O"]
["Oodatav mõju 2025-2030 keskmine","NE"]
["Programmi või meetme tüüp","Majanduslikud stiimulid (Economic);\r\nTeavitamine (Information);\r\nSeadusandlus (Regulatory);\r\nTeadusuuringud (Research)"]
["Hinnang sellele, mil määral poliitikasuund või meede aitab saavutada määruse\n(EL) 2021/1119 artikli 2 lõikes 1 sätestatud liidu kliimaneutraalsusees märki ja täita määruse (EL) 2018/1999 artiklis 15 osutatud pikaajalist strateegiat","The measure contributes to the following targets in General Principles of Climate Policy until 2050: 1) efficient and ecological use of agricultural land will be encouraged while the falling out of agricultural use of such land will be avoided. The production potential of agricultural land and the area of cropland with valuable soil will be maintained. Eco-friendly and climate-friendly cultivation styles and practices and efficient agricultural technologies and practices will be implemented for ensuring and increasing the fertility and biodiversity of agricultural land; 2) the soil’s carbon stock will be increased and maintained, and land areas of significant carbon stock will be developed and maintained; 3) further drainage of mires will be avoided and near-natural water regimes will be restored in drained peat lands, if possible, or the further degradation of such areas will be avoided.\n\nhttps://envir.ee/kliimapoliitika-pohialused-aastani-2050"]
["Programmi või meetme aluseks olevad Euroopa Liidu õigusaktid","Water Framework Directive;\nEuropean Structural and Investment Funds; Council Directive 92/43/EEC of 21 May 1992 on the conservation of natural habitats and of wild fauna and flora;"]
["Programmi või meetme rakendamise seis","Rakendatud (Implemented)"]
["Programmi või meetme rakendamise periood","2020-"]
["Stsenaarium, mille juures programmi või meedet on arvestatud","WEM"]
["Programmi või meetme rakendamise eest vastutavad isikute või asutuste tüüp","riigi valitsus"]
["Programmi või meetme rakendamise eest vastutavad isikud või asutused","Kliimaministeerium"]
["Viide analüüsidele või tehnilistele aruannetele","https://envir.ee/media/5809/download\nhttps://keskkonnaamet.ee/en/media/5321/download\nhttps://envir.ee/media/1755/download"]
["Kommentaar"]

{"sheet":"MM4","index":65,"n_rows":24,"n_cols":2,"rows_kept":24,"cut":false,"hidden":false,"merged":[]}
["REKK peatükk","3.1.1.i"]
["Teised seonduvad REKK 2030 peatükid"]
["Poliitikasuuna või meetme number (PaM ID)",93]
["Programmi või meetme number REKK2030","MM4"]
["Programmi või meetme nimetus ","Fossiilsete kütuste ja mittetaastuvate loodusvarade kasutamisega seotud keskkonnamõjude vähendamine Eesti puidutootmise ja -kasutamise suurendamise läbi"]
["Programmi või meetme nimetus inglise keeles","Reduction of environmental impacts related to the use of fossil fuels and non-renewable natural resources by increasing the Estonian timber production and use"]
["Lühike kirjeldus","Meede aitab vähendada fossiilkütuste kasutamisest tulenevaid kasvuhoonegaaside heitkoguseid ja talletada puittoodetes süsinikku. Konkreetsed tegevused hõlmavad teabekampaaniaid, et edendada puidukasutust, ning puidu kasutamise ergutamine  roheliste riigihangete kaudu (avalikes ehitistes, energeetikas jm). Planeeritud on puidust referentshoone rajamine  eesmärgiga luua suurte puitehitiste ehitamise kogemus ja suurendada sellega Eesti puidusektori ekspordipotentsiaali ning edendada kohaliku tooraine väärindamist.\nThe measure helps to reduce GHG emissions of fossil fuels and deposit carbon in harvested wood products. Specific activities include information campaigns to promote the use of wood and encouraging the use of wood through green public procurement (public buildings, energy, etc.). The construction of a wooden reference building is planned with the aim of creating experience in the construction of large wooden buildings and thereby increasing the export potential of the Estonian wood sector and promoting the valorization of local raw materials."]
["Seotud Euroopa Liidu energialiidu mõõtmed","CO2 heite vähendamise mõõde"]
["Asjakohased eesmärgid, sihid või panused, millele\npoliitikasuund või meede kaasa aitab"," liikmesriigi kohustused vastavalt määrusele (EL) 2018/841"]
["Mõjutatud sektorid","LULUCF\n"]
["Eesmärk","puittoodete süsiniku talletaja suurendamine (LULUCF); suure kasvuhoonegaaside heitemahukusega lähteainete ja materjalide asendamine puittoodetega (LULUCF)"]
["Kvantitatiivne eesmärk","NA"]
["Kasvuhoonegaasid, mille heitmeid otseselt mõjutatakse","CO2"]
["Oodatav mõju 2025-2030 keskmine","NE"]
["Programmi või meetme tüüp","Majanduslikud stiimulid (Economic);\r\nTeavitamine (Information)"]
["Hinnang sellele, mil määral poliitikasuund või meede aitab saavutada määruse (EL) 2021/1119 artikli 2 lõikes 1 sätestatud liidu kliimaneutraalsusees märki ja täita määruse (EL) 2018/1999 artiklis 15 osutatud pikaajalist strateegiat","The measure contributes to the following policy guidline of the General Principles of Climate Policy until 2050: Timber use will be consistently enhanced and the carbon stock in timber products and buildings will be increased, thus replacing the use of non-renewable natural resources. The use and production of domestic timber will be developed, e.g., the use of timber in construction will be increased.\n\nhttps://envir.ee/kliimapoliitika-pohialused-aastani-2050"]
["Programmi või meetme aluseks olevad Euroopa Liidu õigusaktid","New EU Forest Strategy (COM(2013)659); New EU Forest Strategy for 2030 (COM(2021) 572)"]
["Programmi või meetme rakendamise seis","Rakendatud (Implemented)"]
["Programmi või meetme rakendamise periood","2012-"]
["Stsenaarium, mille juures programmi või meedet on arvestatud","WEM"]
["Programmi või meetme rakendamise eest vastutavad isikute või asutuste tüüp","riigi valitsus"]
["Programmi või meetme rakendamise eest vastutavad isikud või asutused","Kliimaministeerium"]
["Viide analüüsidele või tehnilistele aruannetele","https://kliimaministeerium.ee/sites/default/files/documents/2024-02/Keskkonnakaitse%20ja%20-kasutuse%20programm%202024-2027.pdf\nhttps://envir.ee/elusloodus-looduskaitse/metsandus/metsanduse-arengukava-2011-2020"]
["Kommentaar"]

{"sheet":"MM5","index":66,"n_rows":24,"n_cols":2,"rows_kept":24,"cut":false,"hidden":false,"merged":[]}
["REKK peatükk","3.1.1.i"]
["Teised seonduvad REKK 2030 peatükid"]
["Poliitikasuuna või meetme number (PaM ID)",94]
["Programmi või meetme number REKK2030","MM5"]
["Programmi või meetme nimetus ","Elurikkuse soodustamine Natura 2000 erametsades       "]
["Programmi või meetme nimetus inglise keeles","Promoting biodiversity in Natura 2000 private forests"]
["Lühike kirjeldus","Toetus suunatakse erametsamaale, mis paikneb Natura 2000 võrgustiku alal ning sihtkaitsevööndis väljapool Natura 2000 ala. Keskkonnakaitseliste eesmärkide ning bioloogilise ja maastikulise mitmekesisuse säilitamise tagamiseks tuleb erametsaomanikul osaliselt või täielikult loobuda raietest või muudest tulutoovatest tegevustest metsas vastavalt kaitsekorrale.\nThe measure aims to maintain biological and landscape diversity in Natura 2000 areas and outside the Natura 2000 protected areas in the conservation zone, covered with forests. In order to ensure the preservation of environmental protection goals and biological and landscape diversity, the private forest owner must partially or completely stop fellings or other profitable activities in the forest in accordance with the protection order."]
["Seotud Euroopa Liidu energialiidu mõõtmed","CO2 heite vähendamise mõõde"]
["Asjakohased eesmärgid, sihid või panused, millele\npoliitikasuund või meede kaasa aitab"," liikmesriigi kohustused vastavalt määrusele (EL) 2018/841"]
["Mõjutatud sektorid","LULUCF\n"]
["Eesmärk","süsiniku säilitamine olemasolevates metsades (LULUCF) "]
["Kvantitatiivne eesmärk","Natura 2000 või direktiivi 2000/60/EÜ alusel toetust saavate hektarite arv - 339 084 ha (2024 - 2028 kokku)"]
["Kasvuhoonegaasid, mille heitmeid otseselt mõjutatakse","CO2; CH4; N2O"]
["Oodatav mõju 2025-2030 keskmine","NE"]
["Programmi või meetme tüüp","Majanduslikud stiimulid (Economic)"]
["Hinnang sellele, mil määral poliitikasuund või meede aitab saavutada määruse (EL) 2021/1119 artikli 2 lõikes 1 sätestatud liidu kliimaneutraalsusees märki ja täita määruse (EL) 2018/1999 artiklis 15 osutatud pikaajalist strateegiat","The measure contributes to the following policy guidline of the General Principles of Climate Policy until 2050: Preservation of the current area under forest land will be facilitated, and in other categories of land use, techniques of increasing carbon sequestration and reducing emissions will be preferred. Trends in the land use sector will be monitored and considered in planning.\n\nhttps://envir.ee/kliimapoliitika-pohialused-aastani-2050"]
["Programmi või meetme aluseks olevad Euroopa Liidu õigusaktid","Common Agricultural Policy; Water Framework Directive; Directive 2009/147/EC of the European Parliament and of the Council of 30 November 2009 on the conservation of wild birds; Council Directive 92/43/EEC of 21 May 1992 on the conservation of natural habitats and of wild fauna and flora"]
["Programmi või meetme rakendamise seis","Rakendatud (Implemented)"]
["Programmi või meetme rakendamise periood","2023-2027"]
["Stsenaarium, mille juures programmi või meedet on arvestatud","WEM"]
["Programmi või meetme rakendamise eest vastutavad isikute või asutuste tüüp","riigi valitsus"]
["Programmi või meetme rakendamise eest vastutavad isikud või asutused","Regionaal- ja Põllumajandusministeerium"]
["Viide analüüsidele või tehnilistele aruannetele","https://www.agri.ee/euroopa-liidu-uhise-pollumajanduspoliitika-strateegiakava-2023-2027"]
["Kommentaar"]

{"sheet":"MM6","index":67,"n_rows":24,"n_cols":2,"rows_kept":24,"cut":false,"hidden":false,"merged":[]}
["REKK peatükk","3.1.1.i"]
["Teised seonduvad REKK 2030 peatükid"]
["Poliitikasuuna või meetme number (PaM ID)",98]
["Programmi või meetme number REKK2030","MM6"]
["Programmi või meetme nimetus ","Investeeringud metsa kliimamuutustega kohanemiseks "]
["Programmi või meetme nimetus inglise keeles","Investments to support forest adaptation to climate change "]
["Lühike kirjeldus","Metsainvesteeringud aitavad kaasa kliimamuutuste leevendamisele ja nendega kohanemisele, sest heas tervislikus seisundis mets seob rohkem süsinikku. Toetatakse hooldusraiet kuni 30 aasta vanustes puistutes ja aidatakse teha investeeringuid kodumaise taimlaemajanduse arendamiseks. Meetmega toetatakse ka tulekahju, kahjurite ja tormi põhjustatud kahjude ennetamist ja kõrvaldamist.\nForest investments contribute to mitigating and adapting to climate change, as a growing forest, in particular, accumulates carbon. Maintenance felling in stands up to 30 years old is supported and investments are made for the development of nurseries. The measure also provides support for preventing and eliminating damage caused by fire, pests and storms."]
["Seotud Euroopa Liidu energialiidu mõõtmed","CO2 heite vähendamise mõõde"]
["Asjakohased eesmärgid, sihid või panused, millele\npoliitikasuund või meede kaasa aitab"," liikmesriigi kohustused vastavalt määrusele (EL) 2018/841"]
["Mõjutatud sektorid","LULUCF\n"]
["Eesmärk","süsiniku säilitamine olemasolevates metsades (LULUCF) ;\r\nolemasolevate metsade tootmisvõime suurendamine (LULUCF) ;\r\nmetsade tõhusam majandamine (LULUCF);\r\ntugevam kaitse looduslike häiringute eest (LULUCF)"]
["Kvantitatiivne eesmärk","Väljaspool põllumajandusettevõtet tootlikeks investeeringuteks toetust saavate tegevuste või ühikute arv - 1 724 ( 2024 - 2028 kokku); Väljaspool põllumajandusettevõtet mittetootlikeks investeeringuteks toetust saavate tegevuste või ühikute arv - 125 ( 2024 - 2028 kokku)"]
["Kasvuhoonegaasid, mille heitmeid otseselt mõjutatakse","CO2; CH4; N2O"]
["Oodatav mõju 2025-2030 keskmine","NE"]
["Programmi või meetme tüüp","Majanduslikud stiimulid (Economic)"]
["Hinnang sellele, mil määral poliitikasuund või meede aitab saavutada määruse (EL) 2021/1119 artikli 2 lõikes 1 sätestatud liidu kliimaneutraalsusees märki ja täita määruse (EL) 2018/1999 artiklis 15 osutatud pikaajalist strateegiat","The measure contributes to the following policy guidline of the General Principles of Climate Policy until 2050:\nForest growth and the carbon sequestration ability will be increased through productive and sustainable forest management, and the carbon stock of forests will be maintained in the longer perspective. The productivity of managed forest land will be mainly increased through improvement cutting, timely cutting of forest stands and fast renewal of forests with tree species appropriate for the habitat type. Flexible rotation ages considering the growth potential of forest stands will be implemented in managed forests, and the principles of sustainable forestry and the maintenance of biodiversity will be taken into account.\n\nhttps://envir.ee/kliimapoliitika-pohialused-aastani-2050"]
["Programmi või meetme aluseks olevad Euroopa Liidu õigusaktid","Common Agricultural Policy"]
["Programmi või meetme rakendamise seis","Rakendatud (Implemented)"]
["Programmi või meetme rakendamise periood","2023-2027"]
["Stsenaarium, mille juures programmi või meedet on arvestatud","WEM"]
["Programmi või meetme rakendamise eest vastutavad isikute või asutuste tüüp","riigi valitsus"]
["Programmi või meetme rakendamise eest vastutavad isikud või asutused","Regionaal- ja Põllumajandusministeerium"]
["Viide analüüsidele või tehnilistele aruannetele","https://www.agri.ee/euroopa-liidu-uhise-pollumajanduspoliitika-strateegiakava-2023-2027"]
["Kommentaar"]

{"sheet":"MM7","index":68,"n_rows":24,"n_cols":5,"rows_kept":24,"cut":false,"hidden":false,"merged":[]}
["REKK peatükk","3.1.1.i",null,null,"Küsimused/märkused"]
["Teised seonduvad REKK 2030 peatükid"]
["Poliitikasuuna või meetme number (PaM ID)",99]
["Programmi või meetme number REKK2030","MM7"]
["Programmi või meetme nimetus ","Vääriselupaikade kaitse"]
["Programmi või meetme nimetus inglise keeles","Protection of woodland key habitats"]
["Lühike kirjeldus","Riigimetsades korraldab vääriselupaikade kaitset Riigimetsa Majandamise Keskus. Erametsaomanikud saavad sõlmida 20 aastaks lepingu vääriselupaiga kaitseks. Meede hõlmab ka vääriselupaikade inventuuri.\nIn state forests, the conservation of woodland key habitats is organised by the State Forest Service. Private forest owners may conclude a contract for the protection of a key habitat for 20 years. The measure also includes inventory of key habitats."]
["Seotud Euroopa Liidu energialiidu mõõtmed","CO2 heite vähendamise mõõde"]
["Asjakohased eesmärgid, sihid või panused, millele\npoliitikasuund või meede kaasa aitab"," liikmesriigi kohustused vastavalt määrusele (EL) 2018/841"]
["Mõjutatud sektorid","LULUCF\n"]
["Eesmärk","süsiniku säilitamine olemasolevates metsades (LULUCF) "]
["Kvantitatiivne eesmärk","NA"]
["Kasvuhoonegaasid, mille heitmeid otseselt mõjutatakse","CO2; CH4; N2O"]
["Oodatav mõju 2025-2030 keskmine","NE"]
["Programmi või meetme tüüp","Majanduslikud stiimulid (Economic);\r\nSeadusandlus (Regulatory);\r\nVabatahtlikud/läbiräägitud kokkulepped (Voluntary)"]
["Hinnang sellele, mil määral poliitikasuund või meede aitab saavutada määruse (EL) 2021/1119 artikli 2 lõikes 1 sätestatud liidu kliimaneutraalsusees märki ja täita määruse (EL) 2018/1999 artiklis 15 osutatud pikaajalist strateegiat","The measure contributes to the following policy guidline of the General Principles of Climate Policy until 2050:\nPreservation of the current area under forest land will be facilitated, and in other categories of land use, techniques of increasing carbon sequestration and reducing emissions will be preferred. Trends in the land use sector will be monitored and considered in planning.\n\nhttps://envir.ee/kliimapoliitika-pohialused-aastani-2050"]
["Programmi või meetme aluseks olevad Euroopa Liidu õigusaktid","New EU Forest Strategy (COM(2013)659); New EU Forest Strategy for 2030 (COM(2021) 572)"]
["Programmi või meetme rakendamise seis","Rakendatud (Implemented)"]
["Programmi või meetme rakendamise periood","2009-"]
["Stsenaarium, mille juures programmi või meedet on arvestatud","WEM"]
["Programmi või meetme rakendamise eest vastutavad isikute või asutuste tüüp","riigi valitsus"]
["Programmi või meetme rakendamise eest vastutavad isikud või asutused","Kliimaministeerium"]
["Viide analüüsidele või tehnilistele aruannetele","https://envir.ee/media/5809/download\nhttps://www.riigiteataja.ee/akt/MS\nhttps://www.riigiteataja.ee/akt/116122010003?leiaKehtiv"]
["Kommentaar"]

{"sheet":"MM8","index":69,"n_rows":25,"n_cols":2,"rows_kept":25,"cut":false,"hidden":false,"merged":[]}
["REKK peatükk","3.1.1.i"]
["Teised seonduvad REKK 2030 peatükid"]
["Poliitikasuuna või meetme number (PaM ID)",100]
["Programmi või meetme number REKK2030","MM8"]
["Programmi või meetme nimetus ","Üraskikahjustuste ennetamise toetamine"]
["Programmi või meetme nimetus inglise keeles","Prevention of bark beetle damage"]
["Lühike kirjeldus","Toetuse eesmärk on ennetada kahjustusi erametsades. Toetatavate tegevuste hulka kuuluvad püünispuude kasutamine, feromoonpüüniste soetamine ja paigaldamine ning värskete tormikahjustuste likvideerimine.\nThe aim of the aid is to prevent damage to private forests. Supported activities include the use of trapping trees, the acquisition and installation of pheromone traps and elimination of fresh storm damage."]
["Seotud Euroopa Liidu energialiidu mõõtmed","CO2 heite vähendamise mõõde"]
["Asjakohased eesmärgid, sihid või panused, millele\npoliitikasuund või meede kaasa aitab"," liikmesriigi kohustused vastavalt määrusele (EL) 2018/841"]
["Mõjutatud sektorid","LULUCF\n"]
["Eesmärk","süsiniku säilitamine olemasolevates metsades (LULUCF) ;\r\ntugevam kaitse looduslike häiringute eest (LULUCF)"]
["Kvantitatiivne eesmärk","NA"]
["Kasvuhoonegaasid, mille heitmeid otseselt mõjutatakse","CO2"]
["Planeeritud eelarve"]
["Oodatav mõju 2025-2030 keskmine","NE"]
["Programmi või meetme tüüp","Majanduslikud stiimulid (Economic)"]
["Hinnang sellele, mil määral poliitikasuund või meede aitab saavutada määruse (EL) 2021/1119 artikli 2 lõikes 1 sätestatud liidu kliimaneutraalsusees märki ja täita määruse (EL) 2018/1999 artiklis 15 osutatud pikaajalist strateegiat","The measure contributes to the following policy guidline of the General Principles of Climate Policy until 2050:\nForest growth and the carbon sequestration ability will be increased through productive and sustainable forest management, and the carbon stock of forests will be maintained in the longer perspective. The productivity of managed forest land will be mainly increased through improvement cutting, timely cutting of forest stands and fast renewal of forests with tree species appropriate for the habitat type. Flexible rotation ages considering the growth potential of forest stands will be implemented in managed forests, and the principles of sustainable forestry and the maintenance of biodiversity will be taken into account.\n\nhttps://envir.ee/kliimapoliitika-pohialused-aastani-2050"]
["Programmi või meetme aluseks olevad Euroopa Liidu õigusaktid","LULUCF Regulation; New EU Forest Strategy (COM(2013)659); New EU Forest Strategy for 2030 (COM(2021) 572)"]
["Programmi või meetme rakendamise seis","Rakendatud (Implemented)"]
["Programmi või meetme rakendamise periood",2021]
["Stsenaarium, mille juures programmi või meedet on arvestatud","WEM"]
["Programmi või meetme rakendamise eest vastutavad isikute või asutuste tüüp","riigi valitsus"]
["Programmi või meetme rakendamise eest vastutavad isikud või asutused","Kliimaministeerium"]
["Viide analüüsidele või tehnilistele aruannetele","https://www.riigiteataja.ee/akt/106012017005?leiaKehtiv"]
["Kommentaar"]

{"sheet":"MM9","index":70,"n_rows":24,"n_cols":2,"rows_kept":24,"cut":false,"hidden":false,"merged":[]}
["REKK peatükk","3.1.1.i"]
["Teised seonduvad REKK 2030 peatükid"]
["Poliitikasuuna või meetme number (PaM ID)",134]
["Programmi või meetme number REKK2030","MM9"]
["Programmi või meetme nimetus ","Raadamisõiguse tasu"]
["Programmi või meetme nimetus inglise keeles","Deforestation fee"]
["Lühike kirjeldus","Raadamisõiguse maksustamine võimaldab raadamisõiguse tasust laekunud rahast toetada maakasutussektorisse seotud süsinikuvaru suurendamiseks ja süsinikusidumise parandamiseks tehtavaid tegevusi, pidades silmas elurikkuse eesmärke.\nTaxation of deforestation rights allows the funds collected from these rights to support activities aimed at increasing carbon stocks and improving carbon sequestration in the land-use sector, while taking biodiversity goals into consideration."]
["Seotud Euroopa Liidu energialiidu mõõtmed","CO2 heite vähendamise mõõde"]
["Asjakohased eesmärgid, sihid või panused, millele\npoliitikasuund või meede kaasa aitab"," liikmesriigi kohustused vastavalt määrusele (EL) 2018/841"]
["Mõjutatud sektorid","LULUCF\n"]
["Eesmärk","süsiniku säilitamine olemasolevates metsades (LULUCF); raadamise ärahoidmine (LULUCF)"]
["Kvantitatiivne eesmärk","ei"]
["Kasvuhoonegaasid, mille heitmeid otseselt mõjutatakse","CO2"]
["Oodatav mõju 2025-2030 keskmine","NE"]
["Programmi või meetme tüüp","Maksundus (Fiscal)"]
["Hinnang sellele, mil määral poliitikasuund või meede aitab saavutada määruse (EL) 2021/1119 artikli 2 lõikes 1 sätestatud liidu kliimaneutraalsusees märki ja täita määruse (EL) 2018/1999 artiklis 15 osutatud pikaajalist strateegiat","The measure contributes to the following policy guidline of the General Principles of Climate Policy until 2050:\nForest growth and the carbon sequestration ability will be increased through productive and sustainable forest management, and the carbon stock of forests will be maintained in the longer perspective. The productivity of managed forest land will be mainly increased through improvement cutting, timely cutting of forest stands and fast renewal of forests with tree species appropriate for the habitat type. Flexible rotation ages considering the growth potential of forest stands will be implemented in managed forests, and the principles of sustainable forestry and the maintenance of biodiversity will be taken into account.\n\nhttps://envir.ee/kliimapoliitika-pohialused-aastani-2050"]
["Programmi või meetme aluseks olevad Euroopa Liidu õigusaktid","LULUCF Regulation; New EU Forest Strategy (COM(2013)659); New EU Forest Strategy for 2030 (COM(2021) 572)"]
["Programmi või meetme rakendamise seis"]
["Programmi või meetme rakendamise periood","2024-"]
["Stsenaarium, mille juures programmi või meedet on arvestatud","WEM"]
["Programmi või meetme rakendamise eest vastutavad isikute või asutuste tüüp","riigi valitsus"]
["Programmi või meetme rakendamise eest vastutavad isikud või asutused","Kliimaministeerium"]
["Viide analüüsidele või tehnilistele aruannetele","https://www.riigiteataja.ee/en/eli/519082024016/consolide"]
["Kommentaar"]

{"sheet":"TÖ1","index":71,"n_rows":24,"n_cols":2,"rows_kept":24,"cut":false,"hidden":false,"merged":[]}
["REKK peatükk","3.1.1.i"]
["Teised seonduvad REKK 2030 peatükid"]
["Poliitikasuuna või meetme number (PaM ID)",87]
["Programmi või meetme number REKK2030",{"$f":"MID(CELL(\"filename\",A2),FIND(\"]\",CELL(\"filename\",A2))+1,255)","v":"TÖ1"}]
["Programmi või meetme nimetus ","Keelud, piirangud ja kohustused, mis tulenevad määrusest (EL) nr 2024/573 fluoritud kasvuhoonegaaside kohta ja direktiivist 2006/40/EC, mis käsitleb mootorsõidukite kliimaseadmetest pärit heitkoguseid"]
["Programmi või meetme nimetus inglise keeles","Bans and duties from the Regulation (EU) No 2024/573 on fluorinated greenhouse gases and Directive 2006/40/EC related to emissions from mobile air conditioners (MACs)"]
["Lühike kirjeldus","Eesmärk on oluliselt vähendada fluoritud kasvuhoonegaaside (F-gaaside) heitkoguseid ja saavutada ELi kliimaneutraalsuse eesmärk aastaks 2050, asendades kõrge GWP-ga külmaained madala GWP-ga külmaainete ja muude alternatiividega, nt looduslike külmaainetega. Selle saavutamiseks on kehtestatud uus F-gaaside turule toomise järkjärgulise vähendamise skeem, mis jõuab nullini aastaks 2050, samuti teatud seadmete turule laskmise ja hooldamise keeld, (sertifitseerimis)kohustused operaatoritele ja hooldustöötajatele ning kohustus koguda gaasid maha võetud seadmetest.\n\nDirektiiv 2006/40/EÜ, mis käsitleb heitkoguseid mootorsõidukite kliimaseadmetest (MAC), mille  eesmärk on vähendada F-gaaside heitkoguseid sõiduautodest ja kaubikutest, keelates alates 2011. aastast uutesse sõidukitüüpidesse ning alates 2017. aastast kõikidesse uutesse sõiduautodesse ja kaubikutesse üle 150 kordse CO₂ globaalse soojenemise potentsiaaliga F-gaaside kasutamise."]
["Seotud Euroopa Liidu energialiidu mõõtmed","CO2 heite vähendamise mõõde"]
["Asjakohased eesmärgid, sihid või panused, millele\npoliitikasuund või meede kaasa aitab","kasvuhoonegaaside heide ja nende sidumine – liikmesriigi siduv riiklik kasvuhoonegaaside heitega seotud eesmärk ja iga-aastased siduvad riiklikud piirnormid vastavalt määrusele (EL) 2018/842"]
["Mõjutatud sektorid","tööstusprotsessid (sh tööstusharud, kus muundatakse materjale keemiliselt või füüsikaliselt,\nkus tekitatakse sellega kasvuhoonegaaside heidet või kasutatakse toodetes kasvuhoonegaase ja fossiilkütustest pärinevat süsinikdioksiidi mitteenergeetilisel eesmärgil)"]
["Eesmärk","fluoritud gaaside asendamine väiksema globaalse soojendamise potentsiaaliga gaasidega (tööstusprotsessid)"]
["Kvantitatiivne eesmärk","NA"]
["Kasvuhoonegaasid, mille heitmeid otseselt mõjutatakse","HFC, PFC, SF6"]
["Oodatav mõju 2025-2030 keskmine","NE"]
["Programmi või meetme tüüp","Seadusandlus (Regulatory)"]
["Hinnang sellele, mil määral poliitikasuund või meede aitab saavutada määruse (EL) 2021/1119 artikli 2 lõikes 1 sätestatud liidu kliimaneutraalsusees märki ja täita määruse (EL) 2018/1999 artiklis 15 osutatud pikaajalist strateegiat","This measure contributes to the political guidelines for the economy as a whole set in the General Principles of Climate Policy until 2050.\nhttps://kliimaministeerium.ee/sites/default/files/documents/2023-03/310022023003%20%281%29.pdf"]
["Programmi või meetme aluseks olevad Euroopa Liidu õigusaktid","F-gas Regulation"]
["Programmi või meetme rakendamise seis","Rakendatud (Implemented)"]
["Programmi või meetme rakendamise periood","2015-"]
["Stsenaarium, mille juures programmi või meedet on arvestatud","WEM"]
["Programmi või meetme rakendamise eest vastutavad isikute või asutuste tüüp","riigi valitsus"]
["Programmi või meetme rakendamise eest vastutavad isikud või asutused","Kliimaministeerium"]
["Viide analüüsidele või tehnilistele aruannetele","https://eur-lex.europa.eu/legal-content/ET/TXT/PDF/?uri=OJ:L_202400573"]
["Kommentaar"]

{"sheet":"TÖ2","index":72,"n_rows":25,"n_cols":2,"rows_kept":25,"cut":false,"hidden":false,"merged":[]}
["REKK peatükk","3.1.1.i"]
["Teised seonduvad REKK 2030 peatükid"]
["Poliitikasuuna või meetme number (PaM ID)",88]
["Programmi või meetme number REKK2030",{"$f":"MID(CELL(\"filename\",A2),FIND(\"]\",CELL(\"filename\",A2))+1,255)","v":"TÖ2"}]
["Programmi või meetme nimetus ","Parima võimaliku tehnika (PVT) rakendamine"]
["Programmi või meetme nimetus inglise keeles","Implement best available technologies (BAT)"]
["Lühike kirjeldus","Parima võimaliku tehnika rakendamine heite vältimiseks ja piiramiseks tööstusettevõtetes. Tootmisettevõte peab vastama parima võimaliku tehnika (PVT) nõuetele. Tööstusheite seaduse nõuded hõlmavad heite piirväärtusi, seiret ja heite vähendamise meetmeid PVT rakendamise kaudu juhul, kui väljastatakse keskkonnaluba. See ei too kaasa täiendavat heitkoguste vähendamist, kuna kõik tootmisettevõtted peavad BAT-idele vastama juba oma tavapärase tegevuse käigus."]
["Seotud Euroopa Liidu energialiidu mõõtmed","CO2 heite vähendamise mõõde"]
["Asjakohased eesmärgid, sihid või panused, millele\npoliitikasuund või meede kaasa aitab","kasvuhoonegaaside heide ja nende sidumine – liikmesriigi siduv riiklik kasvuhoonegaaside heitega seotud eesmärk ja iga-aastased siduvad riiklikud piirnormid vastavalt määrusele (EL) 2018/842"]
["Mõjutatud sektorid","tööstusprotsessid (sh tööstusharud, kus muundatakse materjale keemiliselt või füüsikaliselt,\nkus tekitatakse sellega kasvuhoonegaaside heidet või kasutatakse toodetes kasvuhoonegaase ja fossiilkütustest pärinevat süsinikdioksiidi mitteenergeetilisel eesmärgil)"]
["Eesmärk","tööstusprotsesside hajusheite tõhusam piiramine (tööstusprotsessid);\r\nheite vähendamise tehnoloogia kasutamine (tööstusprotsessid);\r\n fluoritud gaaside tootmisega seotud heite, kontrollimatu heite ja kõrvaldamisega seotud heite tõhusam piiramine (tööstusprotsessid)"]
["Kvantitatiivne eesmärk","NA"]
["Kasvuhoonegaasid, mille heitmeid otseselt mõjutatakse","CO2"]
["Planeeritud eelarve"]
["Oodatav mõju 2025-2030 keskmine","NE"]
["Programmi või meetme tüüp","Seadusandlus (Regulatory)"]
["Hinnang sellele, mil määral poliitikasuund või meede aitab saavutada määruse\n(EL) 2021/1119 artikli 2 lõikes 1 sätestatud liidu kliimaneutraalsusees märki ja täita määruse (EL) 2018/1999 artiklis 15 osutatud pikaajalist strateegiat","This measure contributes to the political guidelines for the economy as a whole set in the General Principles of Climate Policy until 2050.\nhttps://kliimaministeerium.ee/sites/default/files/documents/2023-03/310022023003%20%281%29.pdf"]
["Programmi või meetme aluseks olevad Euroopa Liidu õigusaktid","Indurstrial Emission Directive"]
["Programmi või meetme rakendamise seis","Rakendatud (Implemented)"]
["Programmi või meetme rakendamise periood",2013]
["Stsenaarium, mille juures programmi või meedet on arvestatud","WEM"]
["Programmi või meetme rakendamise eest vastutavad isikute või asutuste tüüp","riigi valitsus"]
["Programmi või meetme rakendamise eest vastutavad isikud või asutused","Kliimaministeerium"]
["Viide analüüsidele või tehnilistele aruannetele","https://kliimaministeerium.ee/elurikkus-keskkonnakaitse/toostusheide-ja-kemikaalid/pvt"]
["Kommentaar"]

{"sheet":"IP1","index":73,"n_rows":24,"n_cols":2,"rows_kept":24,"cut":false,"hidden":false,"merged":[]}
["REKK peatükk","3.4.1.i"]
["Teised seonduvad REKK 2030 peatükid"]
["Poliitikasuuna või meetme number (PaM ID)",123]
["Programmi või meetme number REKK2030",{"$f":"MID(CELL(\"filename\",A1),FIND(\"]\",CELL(\"filename\",A1))+1,255)","v":"IP1"}]
["Programmi või meetme nimetus ","Rohetehnoloogia investeerimisprogramm"]
["Programmi või meetme nimetus inglise keeles","Green technology investment program"]
["Lühike kirjeldus","Rohetehnoloogia investeerimisprogrammi vahendeid kasutatakse rohetehnoloogia iduettevõtete arendamiseks vajalike teenuste pakkumiseks kahes etapis:\n1) korraldatakse hanked, et luua arengukiirendid riiklikult valitud fookusvaldkondades, mille eesmärk on aidata iduettevõtetel arendada rohetehnoloogilisi lahendusi idee faasist kuni investorivalmiduseni;\n2) käivitatakse toetusmeede, mis aitab iduettevõtetel arendada prototüüpe ja piloteerida tehnoloogiaid.\nKiirendid keskenduvad muuhulgas järgmistele teemadele: materjaliteadus, ressursside väärindamine, kemikaalide kasutuse vähendamine, energeetika ja liikuvus. Hankeprotsess algab 2023. aasta lõpus, mil määratakse kindlaks konkreetsed fookusvaldkonnad koos toetusreeglitega."]
["Seotud Euroopa Liidu energialiidu mõõtmed","Teadusuuringute, innovatsiooni ja konkurentsivõime mõõde"]
["Asjakohased eesmärgid, sihid või panused, millele\npoliitikasuund või meede kaasa aitab","puhta energia tehnoloogia edendamisega seotud riiklikud 2050. aasta eesmärgid ning vajaduse korral riiklikud eesmärgid, sh pikaajalised (2050), mis on seotud vähese CO2 heitega tehnoloogia kasutuselevõtuga, sh suure energiakasutusega ja rohkesti CO2 heidet tekitavate tööstussektorite CO2 heite vähendamise ning vajaduse korral seonduva CO2 transpordi ja säilitamise taristu tehnoloogia"]
["Mõjutatud sektorid","transport"]
["Eesmärk","innovatsioon transpordi digipöörde valdkonnas (transport)"]
["Kvantitatiivne eesmärk","Investeerimisprogrammi raames viiakse ellu viis erinevat arengukiirendit."]
["Kasvuhoonegaasid, mille heitmeid otseselt mõjutatakse","CO2, CH4; N2O"]
["Oodatav mõju 2025-2030 keskmine","NE"]
["Programmi või meetme tüüp","Majanduslikud stiimulid (Economic);\r\nTeadusuuringud (Research)"]
["Hinnang sellele, mil määral poliitikasuund või meede aitab saavutada määruse\n(EL) 2021/1119 artikli 2 lõikes 1 sätestatud liidu kliimaneutraalsusees märki ja täita määruse (EL) 2018/1999 artiklis 15 osutatud pikaajalist strateegiat","This measure contributes to the political guidelines for the economy as a whole set in the General Principles of Climate Policy until 2050. https://kliimaministeerium.ee/sites/default/files/documents/2023-03/310022023003%20%281%29.pdf"]
["Programmi või meetme aluseks olevad Euroopa Liidu õigusaktid","Effort Sharing Regulation"]
["Programmi või meetme rakendamise seis","Rakendatud (Implemented)"]
["Programmi või meetme rakendamise periood","2022-2026"]
["Stsenaarium, mille juures programmi või meedet on arvestatud","NIP"]
["Programmi või meetme rakendamise eest vastutavad isikute või asutuste tüüp","riigi valitsus;\r\npiirkondlikud üksused"]
["Programmi või meetme rakendamise eest vastutavad isikud või asutused","Kliimaministeerium; Keskkonnainvesteeringute Keskus"]
["Viide analüüsidele või tehnilistele aruannetele","https://kik.ee/et/kiki-enda-projektid/rohetehnoloogia-iduettevotete-arendusteenused"]
["Kommentaar"]

{"sheet":"PM-EN1","index":74,"n_rows":24,"n_cols":2,"rows_kept":24,"cut":false,"hidden":false,"merged":[]}
["REKK peatükk","3.1.1.i"]
["Teised seonduvad REKK 2030 peatükid"]
["Poliitikasuuna või meetme number (PaM ID)",66]
["Programmi või meetme number REKK2030",{"$f":"MID(CELL(\"filename\",A2),FIND(\"]\",CELL(\"filename\",A2))+1,255)","v":"PM-EN1"}]
["Programmi või meetme nimetus ","Põllumajandustootjate materiaalsed ja immateriaalsed investeeringud (KK1)"]
["Programmi või meetme nimetus inglise keeles","Productive tangible and intangible investments of agricultural producers "]
["Lühike kirjeldus","Sekkumise eesmärk on läbi materiaalsete investeeringute, millega võivad kaasneda ka immateriaalsed investeeringud, soodustada põllumajandustootmises ressursitõhusust, vältida jäätmete ja heitmete teket, vähendada tootmisest tulenevat keskkonnamõju ja kasvuhoonegaaside heidet ning suurendada loomade heaolu ja bioohutust.\n\nInvesteeringud\n...sh investeeringud põllumajandusettevõtte keskkonnasõbralike taastuvenergia-lahenduste rajamiseks, mille tootmisvõimsus ei ületa toetuse saaja aastast omatarbimist ning  energia kokkuhoiuks;\n... sh  täppisväetamise sensorsüsteemide ostmine;\n... sh  keskkonnasäästlike jahutusseadmete soetamine või jahutusseadmete väljavahetamine keskkonnasäästlikumate vastu;\n... sh  sõnniku- ja silohoidlate ehitamine, sõnnikuhoidla katmine ning sügavallapanuga lautade lekkekindla aluspinna rajamine; \n... sh   investeeringud sõnniku sisestuslaotuse seadmetesse; \n... sh ammoniaaki püüdvate filtrite ostmine\n"]
["Seotud Euroopa Liidu energialiidu mõõtmed","CO2 heite vähendamise mõõde;\r\nCO2 heite vähendamise mõõde: taastuvenergia"]
["Asjakohased eesmärgid, sihid või panused, millele\npoliitikasuund või meede kaasa aitab","kasvuhoonegaaside heide ja nende sidumine – liikmesriigi siduv riiklik kasvuhoonegaaside heitega seotud eesmärk ja iga-aastased siduvad riiklikud piirnormid vastavalt määrusele (EL) 2018/842;\r\n muud eesmärgid, sh sektoripõhised ja kohanemiseesmärgid;\r\npanus liidu siduvasse eesmärki saavutada 2030. aastal taastuvenergia vähemalt 32 % osakaal, nagu on osutatud direktiivi (EL) 2018/2001 artiklis 3\n"]
["Mõjutatud sektorid","energiatarbimine (sh kütuste ja elektri tarbimine lõpptarbijate, näiteks kodumajapidamiste ja ametiasutuste, teenindus-, tööstus- ja põllumajandussektori poolt); põllumajandus"]
["Eesmärk","muud põllumaa parema majandamise meetmed (põllumajandus); orgaaniliste muldade parem majandamine (põllumajandus); muu põllumajandus (põllumajandus); tõhusam loomakasvatus (põllumajandus); väetiste/sõnniku kasutamise vähendamine põllumaal (põllumajandus); üleminek vähem CO2 heidet tekitavatele kütustele (energiavarustus); seadmete energiatõhususe suurendamine (energiatarbimine).\nSekkumise eesmärk on läbi materiaalsete investeeringute, millega võivad kaasneda ka immateriaalsed\ninvesteeringud, soodustada põllumajandustootmises ressursitõhusust, vältida jäätmete ja heitmete teket,\nvähendada tootmisest tulenevat keskkonnamõju ja kasvuhoonegaaside heidet ning suurendada loomade\nheaolu ja bioohutust."]
["Kvantitatiivne eesmärk","Toetatakse vähemalt 504 tegevust. Seda kõikide investeeringute toetamiseks, mida tullakse taotlema (mitte vaid kliima). 1 MW taastuvenergia võimsust."]
["Kasvuhoonegaasid, mille heitmeid otseselt mõjutatakse","CH4; CO2; N2O"]
["Oodatav mõju 2025-2030 keskmine","NE"]
["Programmi või meetme tüüp","Majanuduslikud stiimulid (Economic)"]
["Hinnang sellele, mil määral poliitikasuund või meede aitab saavutada määruse (EL) 2021/1119 artikli 2 lõikes 1 sätestatud liidu kliimaneutraalsusees märki ja täita määruse (EL) 2018/1999 artiklis 15 osutatud pikaajalist strateegiat","See meede aitab kaasa  Kliimapoliitika põhialused aastani 2050 eesmärgile piirata kasvuhoonegaaside heitkoguseid põllumajandussektoris."]
["Programmi või meetme aluseks olevad Euroopa Liidu õigusaktid","Common Agricultural Policy"]
["Programmi või meetme rakendamise seis","Vastuvõetud (Adopted)"]
["Programmi või meetme rakendamise periood","2025-2027"]
["Stsenaarium, mille juures programmi või meedet on arvestatud","WEM"]
["Programmi või meetme rakendamise eest vastutavad isikute või asutuste tüüp","piirkondlikud üksused;\r\nriigi valitsus"]
["Programmi või meetme rakendamise eest vastutavad isikud või asutused","Põllumajanduse Registrite ja Informatiooni Amet; Regionaal -ja Põllumajandusministeerium"]
["Viide analüüsidele või tehnilistele aruannetele","https://www.agri.ee/euroopa-liidu-uhise-pollumajanduspoliitika-strateegiakava-2023-2027"]
["Kommentaar"]

{"sheet":"PM_MM1","index":75,"n_rows":24,"n_cols":2,"rows_kept":24,"cut":false,"hidden":false,"merged":[]}
["REKK peatükk","3.1.1.i"]
["Teised seonduvad REKK 2030 peatükid"]
["Poliitikasuuna või meetme number (PaM ID)",67]
["Programmi või meetme number REKK2030",{"$f":"MID(CELL(\"filename\",A2),FIND(\"]\",CELL(\"filename\",A2))+1,255)","v":"PM_MM1"}]
["Programmi või meetme nimetus ","Kliima- ja keskkonnakava: keskkonnasõbralik majandamine (ÖK1)"]
["Programmi või meetme nimetus inglise keeles","Environmentally friendly management"]
["Lühike kirjeldus","Keskkonnasõbraliku majandamise toetus on laiapõhjaline sekkumine, millega toetatakse praktikaid, mis aitavad vähendada survet pinna- ja põhjaveele ning inimese tervisele ning toetavad elurikkuse säilimist ja suurenemist. Sekkumine koosneb põhitegevuse nõuetepaketist ja sellele lisaks valitavatest lisategevustest. Toetuse eesmärgiks on soodustada keskkonnasõbralike majandamisviiside kasutuselevõttu ja jätkuvat kasutamist põllumajanduses, et kaitsta mulda ja vett ning parandada nende seisundit, samuti suurendada elurikkust ja maastikulist mitmekesisust ning tõsta põllumajandustootjate keskkonnateadlikkust. Valitavad lisatoetused vahekultuuride kasvatamise eest  ja happeliste muldade lupjamiseks aitavad säilitada mulla süsinikuvaru. \n"]
["Seotud Euroopa Liidu energialiidu mõõtmed","CO2 heite vähendamise mõõde"]
["Asjakohased eesmärgid, sihid või panused, millele\npoliitikasuund või meede kaasa aitab"," liikmesriigi kohustused vastavalt määrusele (EL) 2018/841;\r\nkasvuhoonegaaside heide ja nende sidumine – liikmesriigi siduv riiklik kasvuhoonegaaside heitega seotud eesmärk ja iga-aastased siduvad riiklikud piirnormid vastavalt määrusele (EL) 2018/842"]
["Mõjutatud sektorid","põllumajandus; LULUCF\n"]
["Eesmärk","karja- või rohumaade parema majandamise meetmed (põllumajandus); muu põllumajandus (põllumajandus); muud põllumaa parema majandamise meetmed (põllumajandus);\r\nMUU"]
["Kvantitatiivne eesmärk","789 617 ha keskkonnasõbralikult majandatud maad aastaks 2027"]
["Kasvuhoonegaasid, mille heitmeid otseselt mõjutatakse","CO2, N2O"]
["Oodatav mõju 2025-2030 keskmine","NE"]
["Programmi või meetme tüüp","Majanuduslikud stiimulid (Economic); Haridus (Education); Teavitamine (Information); Seadusandlus (Regulatory)"]
["Hinnang sellele, mil määral poliitikasuund või meede aitab saavutada määruse\n(EL) 2021/1119 artikli 2 lõikes 1 sätestatud liidu kliimaneutraalsusees märki ja täita määruse (EL) 2018/1999 artiklis 15 osutatud pikaajalist strateegiat","Meede aitab kaasa KPP2050 järgmistele suunistele: 1) Suurendatakse ja säilitatakse muldade süsinikuvaru ning kujundatakse ja säilitatakse olulise süsinikuvaruga maa-alasid; 2) Soodustatakse põllumajandusmaa tõhusat ja keskkonnasõbralikku kasutust ning välditakse selle põllumajanduslikust kasutusest väljalangemist. Säilitatakse põllumajandusmaa tootmispotentsiaal ja väärtusliku mullastikuga põllumaa pindala. Praktiseeritakse keskkonna- ja kliimasõbralikke viljelusviise ja tavasid ning rakendatakse tõhusaid põllumajandustehnoloogiaid ja -praktikaid, et säilitada ja suurendada põllumaade viljakust ning tagada sealne elurikkus. 2) Tõhustatakse taimetoitainete kasutamist ning soodustatakse mineraalväetiste asendamist orgaaniliste väetiste ja keskkonnasõbralike mullaparandajatega. Välditakse orgaanilise aine vajaduseta põllult minemaviimist. \nMeede aitab eesmärkide saavutamisele kaasa, toetades mahepõllumajandusliku tootmise arengut ja vähendades kasvuhoonegaaside heitkoguseid, kasutades sünteetiliste väetiste asemel orgaanilisi väetisi"]
["Programmi või meetme aluseks olevad Euroopa Liidu õigusaktid","Common Agricultural Policy"]
["Programmi või meetme rakendamise seis","Rakendatud (Implemented)"]
["Programmi või meetme rakendamise periood","2023-2027"]
["Stsenaarium, mille juures programmi või meedet on arvestatud","WEM"]
["Programmi või meetme rakendamise eest vastutavad isikute või asutuste tüüp","piirkondlikud üksused;\r\nriigi valitsus"]
["Programmi või meetme rakendamise eest vastutavad isikud või asutused","Põllumajanduse Registrite ja Informatiooni Amet; Regionaal -ja Põllumajandusministeerium"]
["Viide analüüsidele või tehnilistele aruannetele","https://www.agri.ee/euroopa-liidu-uhise-pollumajanduspoliitika-strateegiakava-2023-2027"]
["Kommentaar"]

{"sheet":"PM_MM2","index":76,"n_rows":24,"n_cols":2,"rows_kept":24,"cut":false,"hidden":false,"merged":[]}
["REKK peatükk","3.1.1.i"]
["Teised seonduvad REKK 2030 peatükid"]
["Poliitikasuuna või meetme number (PaM ID)",69]
["Programmi või meetme number REKK2030",{"$f":"MID(CELL(\"filename\",A2),FIND(\"]\",CELL(\"filename\",A2))+1,255)","v":"PM_MM2"}]
["Programmi või meetme nimetus ","Põllumajanduse keskkonna- ja kliimameede ja selle alameetmed"]
["Programmi või meetme nimetus inglise keeles","Agri-environment-climate measures (including its sub-measures for Agriculture and LULUCF)"]
["Lühike kirjeldus","Selle meetme enamik alameetmeid on lõppenud, ning seega meetme alla kuulub järgmine alameed:\nPoolloodusliku koosluse hooldamise toetus: Meetme üldeesmärgid on:\n- poollooduslike elupaikade hooldamise kvaliteedi tõstmine samal ajal suurendades kariloomade hooldatavate poollooduslike elupaikade osakaalu;\n- säilitada ja suurendada bioloogilist ja maastiku mitmekesisust;\n- suurendada hooldatavate maade ulatust; ja\n-  parandada poollooduslike elupaikadega seotud liikide olukorda.\n(Kehtib 2015-2025)\n\n"]
["Seotud Euroopa Liidu energialiidu mõõtmed","CO2 heite vähendamise mõõde"]
["Asjakohased eesmärgid, sihid või panused, millele\npoliitikasuund või meede kaasa aitab","kasvuhoonegaaside heide ja nende sidumine – liikmesriigi siduv riiklik kasvuhoonegaaside heitega seotud eesmärk ja iga-aastased siduvad riiklikud piirnormid vastavalt määrusele (EL) 2018/842;\r\n liikmesriigi kohustused vastavalt määrusele (EL) 2018/841"]
["Mõjutatud sektorid","põllumajandus; LULUCF\n"]
["Eesmärk","karja- või rohumaade parema majandamise meetmed (põllumajandus);\r\nmuu põllumajandus (põllumajandus);\r\ntugevam kaitse looduslike häiringute eest (LULUCF)"]
["Kvantitatiivne eesmärk","NA"]
["Kasvuhoonegaasid, mille heitmeid otseselt mõjutatakse","CH4; N2O; CO2"]
["Oodatav mõju 2025-2030 keskmine","NE"]
["Programmi või meetme tüüp","Seadusandlus (Regulatory); Majanuduslikud stiimulid (Economic)"]
["Hinnang sellele, mil määral poliitikasuund või meede aitab saavutada määruse\n(EL) 2021/1119 artikli 2 lõikes 1 sätestatud liidu kliimaneutraalsusees märki ja täita määruse (EL) 2018/1999 artiklis 15 osutatud pikaajalist strateegiat","Meede aitab kaasa kliimamuutuste leevendamisele ja nendega kohanemisele, sealhulgas kasvuhoonegaaside heitkoguste\nvähendamise ja süsiniku sidumise võimendamise kaudu. "]
["Programmi või meetme aluseks olevad Euroopa Liidu õigusaktid","European Structural and Investment Funds; Common Agricultural Policy"]
["Programmi või meetme rakendamise seis","Rakendatud (Implemented)"]
["Programmi või meetme rakendamise periood","2015-2025"]
["Stsenaarium, mille juures programmi või meedet on arvestatud","WEM"]
["Programmi või meetme rakendamise eest vastutavad isikute või asutuste tüüp","piirkondlikud üksused;\r\nriigi valitsus"]
["Programmi või meetme rakendamise eest vastutavad isikud või asutused","Põllumajanduse Registrite ja Informatiooni Amet; Regionaal -ja Põllumajandusministeerium"]
["Viide analüüsidele või tehnilistele aruannetele","https://www.agri.ee/eesti-maaelu-arengukava-2014-2020 "]
["Kommentaar"]

{"sheet":"PM_MM3","index":77,"n_rows":24,"n_cols":2,"rows_kept":24,"cut":false,"hidden":false,"merged":[]}
["REKK peatükk","3.1.1.i"]
["Teised seonduvad REKK 2030 peatükid"]
["Poliitikasuuna või meetme number (PaM ID)",77]
["Programmi või meetme number REKK2030",{"$f":"MID(CELL(\"filename\",A2),FIND(\"]\",CELL(\"filename\",A2))+1,255)","v":"PM_MM3"}]
["Programmi või meetme nimetus ","Kliima- ja keskkonnakava: ökoalad"]
["Programmi või meetme nimetus inglise keeles","Eco-scheme for ecological focus areas"]
["Lühike kirjeldus","Toetusega soodustatakse põllumaale mittetootlike alade ja maastikuelementide rajamist, et aidata kaasa elurikkusele ja mosaiikse maastiku kujunemisele."]
["Seotud Euroopa Liidu energialiidu mõõtmed","CO2 heite vähendamise mõõde"]
["Asjakohased eesmärgid, sihid või panused, millele\npoliitikasuund või meede kaasa aitab","kasvuhoonegaaside heide ja nende sidumine – liikmesriigi siduv riiklik kasvuhoonegaaside heitega seotud eesmärk ja iga-aastased siduvad riiklikud piirnormid vastavalt määrusele (EL) 2018/842;\r\n liikmesriigi kohustused vastavalt määrusele (EL) 2018/841"]
["Mõjutatud sektorid","põllumajandus; LULUCF\n"]
["Eesmärk","karja- või rohumaade parema majandamise meetmed (põllumajandus);\r\nMUU;\r\ntugevam kaitse looduslike häiringute eest (LULUCF)"]
["Kvantitatiivne eesmärk","532 900 ha ökoalasid aastaks 2027"]
["Kasvuhoonegaasid, mille heitmeid otseselt mõjutatakse","N2O, CO2"]
["Oodatav mõju 2025-2030 keskmine","NE"]
["Programmi või meetme tüüp","Majanuduslikud stiimulid (Economic)"]
["Hinnang sellele, mil määral poliitikasuund või meede aitab saavutada määruse\n(EL) 2021/1119 artikli 2 lõikes 1 sätestatud liidu kliimaneutraalsusees märki ja täita määruse (EL) 2018/1999 artiklis 15 osutatud pikaajalist strateegiat","Meede aitab kaasa KPP2050 järgmistele suunistele:  Soodustatakse põllumajandusmaa tõhusat ja keskkonnasõbralikku kasutust ning välditakse selle põllumajanduslikust kasutusest väljalangemist. Säilitatakse põllumajandusmaa tootmispotentsiaal ja väärtusliku mullastikuga põllumaa pindala. Praktiseeritakse keskkonna- ja kliimasõbralikke viljelusviise ja tavasid ning rakendatakse tõhusaid põllumajandustehnoloogiaid ja -praktikaid, et säilitada ja suurendada põllumaade viljakust ning tagada sealne elurikkus. "]
["Programmi või meetme aluseks olevad Euroopa Liidu õigusaktid","Common Agricultural Policy"]
["Programmi või meetme rakendamise seis","Rakendatud (Implemented)"]
["Programmi või meetme rakendamise periood","2023-2027"]
["Stsenaarium, mille juures programmi või meedet on arvestatud","WEM"]
["Programmi või meetme rakendamise eest vastutavad isikute või asutuste tüüp","piirkondlikud üksused;\r\nriigi valitsus"]
["Programmi või meetme rakendamise eest vastutavad isikud või asutused","Põllumajanduse Registrite ja Informatiooni Amet; Regionaal -ja Põllumajandusministeerium"]
["Viide analüüsidele või tehnilistele aruannetele","https://www.agri.ee/euroopa-liidu-uhise-pollumajanduspoliitika-strateegiakava-2023-2027 "]
["Kommentaar"]

{"sheet":"PM_MM4","index":78,"n_rows":24,"n_cols":2,"rows_kept":24,"cut":false,"hidden":false,"merged":[]}
["REKK peatükk","3.1.1.i"]
["Teised seonduvad REKK 2030 peatükid"]
["Poliitikasuuna või meetme number (PaM ID)",79]
["Programmi või meetme number REKK2030",{"$f":"MID(CELL(\"filename\",A2),FIND(\"]\",CELL(\"filename\",A2))+1,255)","v":"PM_MM4"}]
["Programmi või meetme nimetus ","Mulla- ja veekaitsetoetus"]
["Programmi või meetme nimetus inglise keeles","Soil and water protection support"]
["Lühike kirjeldus","Mullakaitseliselt on selle sekkumise eesmärk süsiniku emissiooni vähendamine ning muldade orgaanilise süsiniku varu ja turvasmuldade kaitsmine. Kuna kõige suurem orgaanilise süsiniku emissioon põllumajanduses toimub turvasmuldadelt ning kõige suurema orgaanilise süsiniku sisaldusega ja mineraliseerumisele haavatumad on just haritavad turvasmullad, vähendatakse sekkumise abil selliste muldadega põllumajandusmaa harimist ja soodustatakse põllukultuuride aluse maa viimist pikaajalise rohumaa alla ja vastupidi, välditakse rohumaa asemel põllukultuuride kasvatamist."]
["Seotud Euroopa Liidu energialiidu mõõtmed","CO2 heite vähendamise mõõde"]
["Asjakohased eesmärgid, sihid või panused, millele\npoliitikasuund või meede kaasa aitab","kasvuhoonegaaside heide ja nende sidumine – liikmesriigi siduv riiklik kasvuhoonegaaside heitega seotud eesmärk ja iga-aastased siduvad riiklikud piirnormid vastavalt määrusele (EL) 2018/842;\r\n liikmesriigi kohustused vastavalt määrusele (EL) 2018/841"]
["Mõjutatud sektorid","põllumajandus; LULUCF\n"]
["Eesmärk","väetiste/sõnniku kasutamise vähendamine põllumaal (põllumajandus); orgaaniliste muldade parem majandamine (põllumajandus); karja- või rohumaade parema majandamise meetmed (põllumajandus);\r\nMUU"]
["Kvantitatiivne eesmärk","24 000 ha toetatud selle toetusega aastaks 2028"]
["Kasvuhoonegaasid, mille heitmeid otseselt mõjutatakse","N2O, CO2"]
["Oodatav mõju 2025-2030 keskmine","NE"]
["Programmi või meetme tüüp","Majanuduslikud stiimulid (Economic)"]
["Hinnang sellele, mil määral poliitikasuund või meede aitab saavutada määruse\n(EL) 2021/1119 artikli 2 lõikes 1 sätestatud liidu kliimaneutraalsusees märki ja täita määruse (EL) 2018/1999 artiklis 15 osutatud pikaajalist strateegiat","Meede aitab kaasa KPP2050 järgmistele suunistele: 1) Suurendatakse ja säilitatakse muldade süsinikuvaru ning kujundatakse ja säilitatakse olulise süsinikuvaruga maa-alasid; 2) Soodustatakse põllumajandusmaa tõhusat ja keskkonnasõbralikku kasutust ning välditakse selle põllumajanduslikust kasutusest väljalangemist. Säilitatakse põllumajandusmaa tootmispotentsiaal ja väärtusliku mullastikuga põllumaa pindala. Praktiseeritakse keskkonna- ja kliimasõbralikke viljelusviise ja tavasid ning rakendatakse tõhusaid põllumajandustehnoloogiaid ja -praktikaid, et säilitada ja suurendada põllumaade viljakust ning tagada sealne elurikkus. "]
["Programmi või meetme aluseks olevad Euroopa Liidu õigusaktid","Common Agricultural Policy"]
["Programmi või meetme rakendamise seis","Rakendatud (Implemented)"]
["Programmi või meetme rakendamise periood","2023-2028"]
["Stsenaarium, mille juures programmi või meedet on arvestatud","WEM"]
["Programmi või meetme rakendamise eest vastutavad isikute või asutuste tüüp","piirkondlikud üksused;\r\nriigi valitsus"]
["Programmi või meetme rakendamise eest vastutavad isikud või asutused","Põllumajanduse Registrite ja Informatiooni Amet; Regionaal -ja Põllumajandusministeerium"]
["Viide analüüsidele või tehnilistele aruannetele","https://www.agri.ee/euroopa-liidu-uhise-pollumajanduspoliitika-strateegiakava-2023-2027\n"]
["Kommentaar"]

{"sheet":"PM-MM5","index":79,"n_rows":24,"n_cols":2,"rows_kept":24,"cut":false,"hidden":false,"merged":[]}
["REKK peatükk","3.1.1.i"]
["Teised seonduvad REKK 2030 peatükid"]
["Poliitikasuuna või meetme number (PaM ID)",80]
["Programmi või meetme number REKK2030",{"$f":"MID(CELL(\"filename\",A2),FIND(\"]\",CELL(\"filename\",A2))+1,255)","v":"PM-MM5"}]
["Programmi või meetme nimetus ","Väärtusliku püsirohumaa säilitamise toetus"]
["Programmi või meetme nimetus inglise keeles","Support for the maintenance of valuable permanent grassland"]
["Lühike kirjeldus","Sekkumise eesmärk on säilitada kõrge bioloogilise väärtusega püsirohumaid, kus on kujunenud või säilinud looduslik taimestik ja seeläbi tagatud tingimused liigirikkuseks. Väärtusliku püsirohumaa säilitamise toetus on mõeldud väljaspool kaitstavaid alasid asuvatele pärandniitudele ja ekspertide poolt väärtuslikuks püsirohumaaks inventeeritud püsirohumaadele. "]
["Seotud Euroopa Liidu energialiidu mõõtmed","CO2 heite vähendamise mõõde"]
["Asjakohased eesmärgid, sihid või panused, millele\npoliitikasuund või meede kaasa aitab","kasvuhoonegaaside heide ja nende sidumine – liikmesriigi siduv riiklik kasvuhoonegaaside heitega seotud eesmärk ja iga-aastased siduvad riiklikud piirnormid vastavalt määrusele (EL) 2018/842;\r\n liikmesriigi kohustused vastavalt määrusele (EL) 2018/841"]
["Mõjutatud sektorid","põllumajandus; LULUCF\n"]
["Eesmärk","karja- või rohumaade parema majandamise meetmed (põllumajandus);\r\nMUU"]
["Kvantitatiivne eesmärk","28 000 ha  kõrge loodusväärtusega püsirohumaad toetuse alla võetud aastaks 2029 (eelarve aasta)"]
["Kasvuhoonegaasid, mille heitmeid otseselt mõjutatakse","CO2; N2O"]
["Oodatav mõju 2025-2030 keskmine","NE"]
["Programmi või meetme tüüp","Majanduslikud stiimulid (Economic)"]
["Hinnang sellele, mil määral poliitikasuund või meede aitab saavutada määruse\n(EL) 2021/1119 artikli 2 lõikes 1 sätestatud liidu kliimaneutraalsusees märki ja täita määruse (EL) 2018/1999 artiklis 15 osutatud pikaajalist strateegiat","Meede aitab kaasa KPP2050 järgmistele suunistele: 1) Suurendatakse ja säilitatakse muldade süsinikuvaru ning kujundatakse ja säilitatakse olulise süsinikuvaruga maa-alasid; 2) Soodustatakse põllumajandusmaa tõhusat ja keskkonnasõbralikku kasutust ning välditakse selle põllumajanduslikust kasutusest väljalangemist. Säilitatakse põllumajandusmaa tootmispotentsiaal ja väärtusliku mullastikuga põllumaa pindala. Praktiseeritakse keskkonna- ja kliimasõbralikke viljelusviise ja tavasid ning rakendatakse tõhusaid põllumajandustehnoloogiaid ja -praktikaid, et säilitada ja suurendada põllumaade viljakust ning tagada sealne elurikkus. "]
["Programmi või meetme aluseks olevad Euroopa Liidu õigusaktid","Common Agricultural Policy"]
["Programmi või meetme rakendamise seis","Rakendatud (Implemented)"]
["Programmi või meetme rakendamise periood","2024-2028"]
["Stsenaarium, mille juures programmi või meedet on arvestatud","WEM"]
["Programmi või meetme rakendamise eest vastutavad isikute või asutuste tüüp","piirkondlikud üksused;\r\nriigi valitsus"]
["Programmi või meetme rakendamise eest vastutavad isikud või asutused","Põllumajanduse Registrite ja Informatiooni Amet; Regionaal -ja Põllumajandusministeerium"]
["Viide analüüsidele või tehnilistele aruannetele","https://www.agri.ee/euroopa-liidu-uhise-pollumajanduspoliitika-strateegiakava-2023-2027"]
["Kommentaar"]

{"sheet":"PM_MM6","index":80,"n_rows":24,"n_cols":2,"rows_kept":24,"cut":false,"hidden":false,"merged":[]}
["REKK peatükk","3.1.1.i"]
["Teised seonduvad REKK 2030 peatükid"]
["Poliitikasuuna või meetme number (PaM ID)",81]
["Programmi või meetme number REKK2030",{"$f":"MID(CELL(\"filename\",A2),FIND(\"]\",CELL(\"filename\",A2))+1,255)","v":"PM_MM6"}]
["Programmi või meetme nimetus ","Pärandniidu hooldamise toetus "]
["Programmi või meetme nimetus inglise keeles","Support for maintaining semi-natural grassland"]
["Lühike kirjeldus","Sekkumise eesmärk on säilitada pärandniite ehk poollooduslikke kooslusi ja seeläbi liigirikkust kogu põllumajandusmaal. Oluline roll on pärandniitudel ka kliimamuutustega kohanemisel ja orgaanilise süsiniku sidumisel muldadesse. "]
["Seotud Euroopa Liidu energialiidu mõõtmed","CO2 heite vähendamise mõõde"]
["Asjakohased eesmärgid, sihid või panused, millele\npoliitikasuund või meede kaasa aitab","kasvuhoonegaaside heide ja nende sidumine – liikmesriigi siduv riiklik kasvuhoonegaaside heitega seotud eesmärk ja iga-aastased siduvad riiklikud piirnormid vastavalt määrusele (EL) 2018/842;\r\n liikmesriigi kohustused vastavalt määrusele (EL) 2018/841"]
["Mõjutatud sektorid","põllumajandus; LULUCF\n"]
["Eesmärk","muud põllumaa parema majandamise meetmed (põllumajandus);\r\nMUU"]
["Kvantitatiivne eesmärk","45000 ha pärandniite toetatud aastaks 2028 (Eelarve aasta)"]
["Kasvuhoonegaasid, mille heitmeid otseselt mõjutatakse","CO2; N2O"]
["Oodatav mõju 2025-2030 keskmine","NE"]
["Programmi või meetme tüüp","Majanuduslikud stiimulid (Economic)"]
["Hinnang sellele, mil määral poliitikasuund või meede aitab saavutada määruse\n(EL) 2021/1119 artikli 2 lõikes 1 sätestatud liidu kliimaneutraalsusees märki ja täita määruse (EL) 2018/1999 artiklis 15 osutatud pikaajalist strateegiat","Meede aitab kaasa KPP2050 järgmistele suunistele: 1) Suurendatakse ja säilitatakse muldade süsinikuvaru ning kujundatakse ja säilitatakse olulise süsinikuvaruga maa-alasid; 2) Soodustatakse põllumajandusmaa tõhusat ja keskkonnasõbralikku kasutust ning välditakse selle põllumajanduslikust kasutusest väljalangemist. Säilitatakse põllumajandusmaa tootmispotentsiaal ja väärtusliku mullastikuga põllumaa pindala. Praktiseeritakse keskkonna- ja kliimasõbralikke viljelusviise ja tavasid ning rakendatakse tõhusaid põllumajandustehnoloogiaid ja -praktikaid, et säilitada ja suurendada põllumaade viljakust ning tagada sealne elurikkus. "]
["Programmi või meetme aluseks olevad Euroopa Liidu õigusaktid","Common Agricultural Policy"]
["Programmi või meetme rakendamise seis","Rakendatud (Implemented)"]
["Programmi või meetme rakendamise periood","2023-2028"]
["Stsenaarium, mille juures programmi või meedet on arvestatud","WEM"]
["Programmi või meetme rakendamise eest vastutavad isikute või asutuste tüüp","piirkondlikud üksused;\r\nriigi valitsus"]
["Programmi või meetme rakendamise eest vastutavad isikud või asutused","Põllumajanduse Registrite ja Informatiooni Amet; Regionaal -ja Põllumajandusministeerium"]
["Viide analüüsidele või tehnilistele aruannetele","https://www.agri.ee/euroopa-liidu-uhise-pollumajanduspoliitika-strateegiakava-2023-2027 "]
["Kommentaar"]